Workbook

Sheet Control
A1: Sheets | B1: Text File Names | C1: Description | E1: Notes: 50 sheets maximum
A2: GW_SW002 | B2: Culpability\SW002\SW002_Culp_NatGW.txt | C2: Cumulative background GW loading to SW-002 | E2: Referenced text files must be in same root folder as this spreadsheet
A3: RO_SW002 | B3: Culpability\SW002\SW002_Culp_NatRO.txt | C3: Cumulative background RO loading to SW-002
A4: GW_SW003 | B4: Culpability\SW003\SW003_Culp_NatGW.txt | C4: Cumulative background GW loading to SW-003
A5: RO_SW003 | B5: Culpability\SW003\SW003_Culp_NatRO.txt | C5: Cumulative background RO loading to SW-003
A6: GW_SW004 | B6: Culpability\SW004\SW004_Culp_NatGW.txt | C6: Cumulative background GW loading to SW-004
A7: RO_SW004 | B7: Culpability\SW004\SW004_Culp_NatRO.txt | C7: Cumulative background RO loading to SW-004
A8: GW_SW004a | B8: Culpability\SW004a\SW004a_Culp_NatGW.txt | C8: Cumulative background GW loading to SW-004a | F8: Run Time Min: | G8: =MIN(GW_SW002!B5,RO_SW002!B5,GW_SW003!B5,RO_SW003!B5,GW_SW004!B5,RO_SW004!B5,GW_SW004a!B5,RO_SW004a!B5,GW_SW004b!B5,RO_SW004b!B5,GW_SW005!B5,RO_SW005!B5,GW_SW006!B5,RO_SW006!B5,GW_Colby!B5,RO_Colby!B5,PMP!B5,EP_flood!B5,EP_Cat23_surf!B5,EP_bed!B5,OSP_surf!B5,WWTF_surf!B5,OSLA_surf!B5,WP_bed1!B5,WP_surf!B5,WP_bed2!B5,WWTF_outflow!B5) -> 2014-12-15T22:56:18
A9: RO_SW004a | B9: Culpability\SW004a\SW004a_Culp_NatRO.txt | C9: Cumulative background RO loading to SW-004a | F9: Run Time Max: | G9: =MAX(GW_SW002!B5,RO_SW002!B5,GW_SW003!B5,RO_SW003!B5,GW_SW004!B5,RO_SW004!B5,GW_SW004a!B5,RO_SW004a!B5,GW_SW004b!B5,RO_SW004b!B5,GW_SW005!B5,RO_SW005!B5,GW_SW006!B5,RO_SW006!B5,GW_Colby!B5,RO_Colby!B5,PMP!B5,EP_flood!B5,EP_Cat23_surf!B5,EP_bed!B5,OSP_surf!B5,WWTF_surf!B5,OSLA_surf!B5,WP_bed1!B5,WP_surf!B5,WP_bed2!B5,WWTF_outflow!B5) -> 2014-12-15T22:56:18
A10: GW_SW004b | B10: Culpability\SW004b\SW004b_Culp_NatGW.txt | C10: Cumulative background GW loading to SW-004b
A11: RO_SW004b | B11: Culpability\SW004b\SW004b_Culp_NatRO.txt | C11: Cumulative background RO loading to SW-004b
A12: GW_SW005 | B12: Culpability\SW005\SW005_Culp_NatGW.txt | C12: Cumulative background GW loading to SW-005
A13: RO_SW005 | B13: Culpability\SW005\SW005_Culp_NatRO.txt | C13: Cumulative background RO loading to SW-005
A14: GW_SW006 | B14: Culpability\SW006\SW006_Culp_NatGW.txt | C14: Cumulative background GW loading to SW-006
A15: RO_SW006 | B15: Culpability\SW006\SW006_Culp_NatRO.txt | C15: Cumulative background RO loading to SW-006
A16: GW_Colby | B16: Culpability\Colby\Colby_Culp_NatGW.txt | C16: Cumulative background GW loading to Colby Lake
A17: RO_Colby | B17: Culpability\Colby\Colby_Culp_NatRO.txt | C17: Cumulative background RO loading to Colby Lake
A19: PMP | B19: Culpability\SW002\SW002_Culp_PMP.txt | C19: PMP dewatering load to SW002
A20: EP_Flood | B20: Culpability\SW003\SW003_Culp_EP_flood.txt | C20: East Pit overflow to river in case of flooding
A21: EP_Cat23_surf | B21: Culpability\SW004\SW004_Culp_EPCat23_surf.txt | C21: East Pit - Cat 2/3 stockpile surficial aquifer loading to SW-004
A22: EP_bed | B22: Culpability\SW004\SW004_Culp_EP_bed.txt | C22: East Pit bedrock loading to SW-004
A23: OSP_surf | B23: Culpability\SW004\SW004_Culp_OSP_surf.txt | C23: Ore Surge Pile surficial aquifer loading to SW-004
A24: WWTF_surf | B24: Culpability\SW004\SW004_Culp_WWTF_surf.txt | C24: WWTF area surficial aquifer loading to SW-004
A25: OSLA_surf | B25: Culpability\SW004\SW004_Culp_OSLA_surf.txt | C25: Overburden Storage & Laydown Area surficial aquifer loading to SW-004
A26: WP_bed1 | B26: Culpability\SW004\SW004_Culp_WP_bed4.txt | C26: West Pit bedrock loading to SW-004
A27: WP_surf | B27: Culpability\SW004a\SW004a_Culp_WP_surf.txt | C27: West Pit surficial aquifer loading to SW-004a
A28: WP_bed2 | B28: Culpability\SW004a\SW004a_Culp_WP_bed4a.txt | C28: West Pit bedrock loading to SW-004a
A29: WWTF_outflow | B29: Culpability\SW004a\SW004a_Culp_WWTF.txt | C29: Long-term WWTF loading to SW-004a
A30: Colby_load | B30: Culpability\Colby\Colby_Culp_AddLoad.txt | C30: Additional loading term to Colby Lake

Sheet PlotControl
A2: Model Name: | B2: Mine Site Version 6.0 | C2: =B2 & " Model " & IF(B4="P50", "Median", IF(B4="P10", "10th Percentile", "90th Percentile")) & " Loading Rates " & B6 & " to " & IF(B8=A19, B8, "the Partridge River at " & B8) -> Mine Site Version 6.0 Model Median Loading Rates Ni to Colby Lake
A4: Plot: | B4: P50 | C4: =MATCH(B4,$B$28:$B$30,0) -> 2 | W4: Directory to save PDFs to: | X4: C:\Users\jem4\Desktop\temp
W5: Starting figure caption | X5: Figure M-08-27
A6: Constituent to Plot (dropdown): | B6: Ni | C6: =MATCH(B6,$A$28:$A$54,0) -> 20
W7: Note: This loops through the plots, constituent, and location drop down menus.
A8: Location to Plot (dropdown): | B8: Colby Lake | C8: =MATCH(B8,$A$12:$A$19,0) -> 8
A11: Locations | B11: Sources | C11: Start Loc. | E11: Number
A12: SW002 | B12: Background GW | C12: SW002 | D12: =MATCH(C12,$A$12:$A$19,0) -> 1 | E12: 1
A13: SW003 | B13: Background RO | C13: SW002 | D13: =MATCH(C13,$A$12:$A$19,0) -> 1 | E13: 2
A14: SW004 | B14: PMP Dewatering | C14: SW002 | D14: 1 | E14: 3
A15: SW004a | B15: East Pit overflow | C15: SW003 | D15: 2 | E15: 4
A16: SW004b | B16: EP-Cat 2/3 surf. GW | C16: SW004 | D16: 3 | E16: 5
A17: SW005 | B17: EP bed. GW | C17: SW004 | D17: 3 | E17: 6
A18: SW006 | B18: OSP surf. GW | C18: SW004 | D18: 3 | E18: 7
A19: Colby Lake | B19: WWTF surf. GW | C19: SW004 | D19: 3 | E19: 8 | F19: Note: Results shown are based on P10/P50/P90 monthly loading to the river and cannot be used to determine cumulative mass loading due to differences in timing between realizations. Results are for relative magnitude comparison only.
B20: OSLA surf. GW | C20: SW004 | D20: 3
B21: WP bed. GW (1) | C21: SW004 | D21: 3
B22: WP surf. GW | C22: SW004a | D22: 4
B23: WP bed. GW (2) | C23: SW004a | D23: 4
B24: WWTF discharge | C24: SW004a | D24: 4
B25: Colby Lk Load | C25: Colby Lake | D25: 8
E26: Annual Project Results (tonne/yr loading)
A27: Constituent | B27: Percentile | D27: Time | E27: Background GW | F27: Background RO | G27: PMP Dewatering | H27: East Pit overflow | I27: EP-Cat 2/3 surf. GW | J27: EP bed. GW | K27: OSP surf. GW | L27: WWTF surf. GW | M27: OSLA surf. GW | N27: WP bed. GW (SW004) | O27: WP surf. GW | P27: WP bed. GW (SW004a) | Q27: WWTF discharge | R27: Colby Lk Load
A28: Ag | B28: P10 | D28: 0
A29: Al | B29: P50 | D29: 1 | E29: =VLOOKUP($D29,Background_All!$A$5:$Y$204,3*($C$8-1)+$C$4+1)/1000 -> 0.01053863333 | F29: =VLOOKUP($D29,Background_All!$AA$5:$AY$204,3*($C$8-1)+$C$4+1)/1000 -> 0.03056328833 | G29: =IF($C$8>=$D$14,VLOOKUP($D29,Point_Sources_All!$A$5:$AK$204,$C$4+1),0)/1000 -> 0.0020288 | H29: =IF($C$8>=$D$15,VLOOKUP($D29,Point_Sources_All!$A$5:$AK$204,$C$4+4),0)/1000 -> 0 | I29: =IF($C$8>=$D$16,VLOOKUP($D29,Point_Sources_All!$A$5:$AK$204,$C$4+7),0)/1000 -> 0.0001058291667 | J29: =IF($C$8>=$D$17,VLOOKUP($D29,Point_Sources_All!$A$5:$AK$204,$C$4+10),0)/1000 -> 0 | K29: =IF($C$8>=$D$18,VLOOKUP($D29,Point_Sources_All!$A$5:$AK$204,$C$4+13),0)/1000 -> 2.275966667e-05 | L29: =IF($C$8>=$D$19,VLOOKUP($D29,Point_Sources_All!$A$5:$AK$204,$C$4+16),0)/1000 -> 1.5084e-05 | M29: =IF($C$8>=$D$20,VLOOKUP($D29,Point_Sources_All!$A$5:$AK$204,$C$4+19),0)/1000 -> 9.069075e-05 | N29: =IF($C$8>=$D$21,VLOOKUP($D29,Point_Sources_All!$A$5:$AK$204,$C$4+22),0)/1000 -> 0 | O29: =IF($C$8>=$D$22,VLOOKUP($D29,Point_Sources_All!$A$5:$AK$204,$C$4+25),0)/1000 -> 0 | P29: =IF($C$8>=$D$23,VLOOKUP($D29,Point_Sources_All!$A$5:$AK$204,$C$4+28),0)/1000 -> 0 | Q29: =IF($C$8>=$D$24,VLOOKUP($D29,Point_Sources_All!$A$5:$AK$204,$C$4+31),0)/1000 -> 0 | R29: =IF($C$8>=$D$25,VLOOKUP($D29,Point_Sources_All!$A$5:$AK$204,$C$4+34),0)/1000 -> 0.028
A30: Alkalinity | B30: P90 | D30: 2 | E30: =VLOOKUP($D30,Background_All!$A$5:$Y$204,3*($C$8-1)+$C$4+1)/1000 -> 0.01056825833 | F30: =VLOOKUP($D30,Background_All!$AA$5:$AY$204,3*($C$8-1)+$C$4+1)/1000 -> 0.02847126461 | G30: =IF($C$8>=$D$14,VLOOKUP($D30,Point_Sources_All!$A$5:$AK$204,$C$4+1),0)/1000 -> 0.0020288 | H30: =IF($C$8>=$D$15,VLOOKUP($D30,Point_Sources_All!$A$5:$AK$204,$C$4+4),0)/1000 -> 0 | I30: =IF($C$8>=$D$16,VLOOKUP($D30,Point_Sources_All!$A$5:$AK$204,$C$4+7),0)/1000 -> 0.0001154541667 | J30: =IF($C$8>=$D$17,VLOOKUP($D30,Point_Sources_All!$A$5:$AK$204,$C$4+10),0)/1000 -> 0 | K30: =IF($C$8>=$D$18,VLOOKUP($D30,Point_Sources_All!$A$5:$AK$204,$C$4+13),0)/1000 -> 2.482641667e-05 | L30: =IF($C$8>=$D$19,VLOOKUP($D30,Point_Sources_All!$A$5:$AK$204,$C$4+16),0)/1000 -> 1.644991667e-05 | M30: =IF($C$8>=$D$20,VLOOKUP($D30,Point_Sources_All!$A$5:$AK$204,$C$4+19),0)/1000 -> 9.551758333e-05 | N30: =IF($C$8>=$D$21,VLOOKUP($D30,Point_Sources_All!$A$5:$AK$204,$C$4+22),0)/1000 -> 0 | O30: =IF($C$8>=$D$22,VLOOKUP($D30,Point_Sources_All!$A$5:$AK$204,$C$4+25),0)/1000 -> 0 | P30: =IF($C$8>=$D$23,VLOOKUP($D30,Point_Sources_All!$A$5:$AK$204,$C$4+28),0)/1000 -> 0 | Q30: =IF($C$8>=$D$24,VLOOKUP($D30,Point_Sources_All!$A$5:$AK$204,$C$4+31),0)/1000 -> 0 | R30: =IF($C$8>=$D$25,VLOOKUP($D30,Point_Sources_All!$A$5:$AK$204,$C$4+34),0)/1000 -> 0.028
A31: As | D31: 3 | E31: =VLOOKUP($D31,Background_All!$A$5:$Y$204,3*($C$8-1)+$C$4+1)/1000 -> 0.01046479167 | F31: =VLOOKUP($D31,Background_All!$AA$5:$AY$204,3*($C$8-1)+$C$4+1)/1000 -> 0.02798447833 | G31: =IF($C$8>=$D$14,VLOOKUP($D31,Point_Sources_All!$A$5:$AK$204,$C$4+1),0)/1000 -> 0.0020288 | H31: =IF($C$8>=$D$15,VLOOKUP($D31,Point_Sources_All!$A$5:$AK$204,$C$4+4),0)/1000 -> 0 | I31: =IF($C$8>=$D$16,VLOOKUP($D31,Point_Sources_All!$A$5:$AK$204,$C$4+7),0)/1000 -> 0.0001154741667 | J31: =IF($C$8>=$D$17,VLOOKUP($D31,Point_Sources_All!$A$5:$AK$204,$C$4+10),0)/1000 -> 0 | K31: =IF($C$8>=$D$18,VLOOKUP($D31,Point_Sources_All!$A$5:$AK$204,$C$4+13),0)/1000 -> 2.4827e-05 | L31: =IF($C$8>=$D$19,VLOOKUP($D31,Point_Sources_All!$A$5:$AK$204,$C$4+16),0)/1000 -> 1.644991667e-05 | M31: =IF($C$8>=$D$20,VLOOKUP($D31,Point_Sources_All!$A$5:$AK$204,$C$4+19),0)/1000 -> 9.558858333e-05 | N31: =IF($C$8>=$D$21,VLOOKUP($D31,Point_Sources_All!$A$5:$AK$204,$C$4+22),0)/1000 -> 0 | O31: =IF($C$8>=$D$22,VLOOKUP($D31,Point_Sources_All!$A$5:$AK$204,$C$4+25),0)/1000 -> 0 | P31: =IF($C$8>=$D$23,VLOOKUP($D31,Point_Sources_All!$A$5:$AK$204,$C$4+28),0)/1000 -> 0 | Q31: =IF($C$8>=$D$24,VLOOKUP($D31,Point_Sources_All!$A$5:$AK$204,$C$4+31),0)/1000 -> 0 | R31: =IF($C$8>=$D$25,VLOOKUP($D31,Point_Sources_All!$A$5:$AK$204,$C$4+34),0)/1000 -> 0.028
A32: B | D32: 4 | E32: =VLOOKUP($D32,Background_All!$A$5:$Y$204,3*($C$8-1)+$C$4+1)/1000 -> 0.01062110833 | F32: =VLOOKUP($D32,Background_All!$AA$5:$AY$204,3*($C$8-1)+$C$4+1)/1000 -> 0.0280981925 | G32: =IF($C$8>=$D$14,VLOOKUP($D32,Point_Sources_All!$A$5:$AK$204,$C$4+1),0)/1000 -> 0.0020288 | H32: =IF($C$8>=$D$15,VLOOKUP($D32,Point_Sources_All!$A$5:$AK$204,$C$4+4),0)/1000 -> 0 | I32: =IF($C$8>=$D$16,VLOOKUP($D32,Point_Sources_All!$A$5:$AK$204,$C$4+7),0)/1000 -> 0.0001154741667 | J32: =IF($C$8>=$D$17,VLOOKUP($D32,Point_Sources_All!$A$5:$AK$204,$C$4+10),0)/1000 -> 0 | K32: =IF($C$8>=$D$18,VLOOKUP($D32,Point_Sources_All!$A$5:$AK$204,$C$4+13),0)/1000 -> 2.482633333e-05 | L32: =IF($C$8>=$D$19,VLOOKUP($D32,Point_Sources_All!$A$5:$AK$204,$C$4+16),0)/1000 -> 1.644991667e-05 | M32: =IF($C$8>=$D$20,VLOOKUP($D32,Point_Sources_All!$A$5:$AK$204,$C$4+19),0)/1000 -> 9.588408333e-05 | N32: =IF($C$8>=$D$21,VLOOKUP($D32,Point_Sources_All!$A$5:$AK$204,$C$4+22),0)/1000 -> 0 | O32: =IF($C$8>=$D$22,VLOOKUP($D32,Point_Sources_All!$A$5:$AK$204,$C$4+25),0)/1000 -> 0 | P32: =IF($C$8>=$D$23,VLOOKUP($D32,Point_Sources_All!$A$5:$AK$204,$C$4+28),0)/1000 -> 0 | Q32: =IF($C$8>=$D$24,VLOOKUP($D32,Point_Sources_All!$A$5:$AK$204,$C$4+31),0)/1000 -> 0 | R32: =IF($C$8>=$D$25,VLOOKUP($D32,Point_Sources_All!$A$5:$AK$204,$C$4+34),0)/1000 -> 0.028
A33: Ba | D33: 5 | E33: =VLOOKUP($D33,Background_All!$A$5:$Y$204,3*($C$8-1)+$C$4+1)/1000 -> 0.01057934167 | F33: =VLOOKUP($D33,Background_All!$AA$5:$AY$204,3*($C$8-1)+$C$4+1)/1000 -> 0.03090966375 | G33: =IF($C$8>=$D$14,VLOOKUP($D33,Point_Sources_All!$A$5:$AK$204,$C$4+1),0)/1000 -> 0.0020288 | H33: =IF($C$8>=$D$15,VLOOKUP($D33,Point_Sources_All!$A$5:$AK$204,$C$4+4),0)/1000 -> 0 | I33: =IF($C$8>=$D$16,VLOOKUP($D33,Point_Sources_All!$A$5:$AK$204,$C$4+7),0)/1000 -> 0.0001154858333 | J33: =IF($C$8>=$D$17,VLOOKUP($D33,Point_Sources_All!$A$5:$AK$204,$C$4+10),0)/1000 -> 0 | K33: =IF($C$8>=$D$18,VLOOKUP($D33,Point_Sources_All!$A$5:$AK$204,$C$4+13),0)/1000 -> 2.482716667e-05 | L33: =IF($C$8>=$D$19,VLOOKUP($D33,Point_Sources_All!$A$5:$AK$204,$C$4+16),0)/1000 -> 1.644991667e-05 | M33: =IF($C$8>=$D$20,VLOOKUP($D33,Point_Sources_All!$A$5:$AK$204,$C$4+19),0)/1000 -> 9.683658333e-05 | N33: =IF($C$8>=$D$21,VLOOKUP($D33,Point_Sources_All!$A$5:$AK$204,$C$4+22),0)/1000 -> 0 | O33: =IF($C$8>=$D$22,VLOOKUP($D33,Point_Sources_All!$A$5:$AK$204,$C$4+25),0)/1000 -> 0 | P33: =IF($C$8>=$D$23,VLOOKUP($D33,Point_Sources_All!$A$5:$AK$204,$C$4+28),0)/1000 -> 0 | Q33: =IF($C$8>=$D$24,VLOOKUP($D33,Point_Sources_All!$A$5:$AK$204,$C$4+31),0)/1000 -> 0 | R33: =IF($C$8>=$D$25,VLOOKUP($D33,Point_Sources_All!$A$5:$AK$204,$C$4+34),0)/1000 -> 0.028
A34: Be | D34: 6 | E34: =VLOOKUP($D34,Background_All!$A$5:$Y$204,3*($C$8-1)+$C$4+1)/1000 -> 0.01050184167 | F34: =VLOOKUP($D34,Background_All!$AA$5:$AY$204,3*($C$8-1)+$C$4+1)/1000 -> 0.030001935 | G34: =IF($C$8>=$D$14,VLOOKUP($D34,Point_Sources_All!$A$5:$AK$204,$C$4+1),0)/1000 -> 0.0020288 | H34: =IF($C$8>=$D$15,VLOOKUP($D34,Point_Sources_All!$A$5:$AK$204,$C$4+4),0)/1000 -> 0 | I34: =IF($C$8>=$D$16,VLOOKUP($D34,Point_Sources_All!$A$5:$AK$204,$C$4+7),0)/1000 -> 0.0001155033333 | J34: =IF($C$8>=$D$17,VLOOKUP($D34,Point_Sources_All!$A$5:$AK$204,$C$4+10),0)/1000 -> 0 | K34: =IF($C$8>=$D$18,VLOOKUP($D34,Point_Sources_All!$A$5:$AK$204,$C$4+13),0)/1000 -> 2.48275e-05 | L34: =IF($C$8>=$D$19,VLOOKUP($D34,Point_Sources_All!$A$5:$AK$204,$C$4+16),0)/1000 -> 1.644991667e-05 | M34: =IF($C$8>=$D$20,VLOOKUP($D34,Point_Sources_All!$A$5:$AK$204,$C$4+19),0)/1000 -> 9.795108333e-05 | N34: =IF($C$8>=$D$21,VLOOKUP($D34,Point_Sources_All!$A$5:$AK$204,$C$4+22),0)/1000 -> 0 | O34: =IF($C$8>=$D$22,VLOOKUP($D34,Point_Sources_All!$A$5:$AK$204,$C$4+25),0)/1000 -> 0 | P34: =IF($C$8>=$D$23,VLOOKUP($D34,Point_Sources_All!$A$5:$AK$204,$C$4+28),0)/1000 -> 0 | Q34: =IF($C$8>=$D$24,VLOOKUP($D34,Point_Sources_All!$A$5:$AK$204,$C$4+31),0)/1000 -> 0 | R34: =IF($C$8>=$D$25,VLOOKUP($D34,Point_Sources_All!$A$5:$AK$204,$C$4+34),0)/1000 -> 0.028
A35: Ca | D35: 7 | E35: =VLOOKUP($D35,Background_All!$A$5:$Y$204,3*($C$8-1)+$C$4+1)/1000 -> 0.01054056667 | F35: =VLOOKUP($D35,Background_All!$AA$5:$AY$204,3*($C$8-1)+$C$4+1)/1000 -> 0.02786023692 | G35: =IF($C$8>=$D$14,VLOOKUP($D35,Point_Sources_All!$A$5:$AK$204,$C$4+1),0)/1000 -> 0.0020288 | H35: =IF($C$8>=$D$15,VLOOKUP($D35,Point_Sources_All!$A$5:$AK$204,$C$4+4),0)/1000 -> 0 | I35: =IF($C$8>=$D$16,VLOOKUP($D35,Point_Sources_All!$A$5:$AK$204,$C$4+7),0)/1000 -> 0.0001155175 | J35: =IF($C$8>=$D$17,VLOOKUP($D35,Point_Sources_All!$A$5:$AK$204,$C$4+10),0)/1000 -> 0 | K35: =IF($C$8>=$D$18,VLOOKUP($D35,Point_Sources_All!$A$5:$AK$204,$C$4+13),0)/1000 -> 2.482725e-05 | L35: =IF($C$8>=$D$19,VLOOKUP($D35,Point_Sources_All!$A$5:$AK$204,$C$4+16),0)/1000 -> 1.644991667e-05 | M35: =IF($C$8>=$D$20,VLOOKUP($D35,Point_Sources_All!$A$5:$AK$204,$C$4+19),0)/1000 -> 9.607866667e-05 | N35: =IF($C$8>=$D$21,VLOOKUP($D35,Point_Sources_All!$A$5:$AK$204,$C$4+22),0)/1000 -> 0 | O35: =IF($C$8>=$D$22,VLOOKUP($D35,Point_Sources_All!$A$5:$AK$204,$C$4+25),0)/1000 -> 0 | P35: =IF($C$8>=$D$23,VLOOKUP($D35,Point_Sources_All!$A$5:$AK$204,$C$4+28),0)/1000 -> 0 | Q35: =IF($C$8>=$D$24,VLOOKUP($D35,Point_Sources_All!$A$5:$AK$204,$C$4+31),0)/1000 -> 0 | R35: =IF($C$8>=$D$25,VLOOKUP($D35,Point_Sources_All!$A$5:$AK$204,$C$4+34),0)/1000 -> 0.028
A36: Cd | D36: 8 | E36: =VLOOKUP($D36,Background_All!$A$5:$Y$204,3*($C$8-1)+$C$4+1)/1000 -> 0.010435875 | F36: =VLOOKUP($D36,Background_All!$AA$5:$AY$204,3*($C$8-1)+$C$4+1)/1000 -> 0.02864114658 | G36: =IF($C$8>=$D$14,VLOOKUP($D36,Point_Sources_All!$A$5:$AK$204,$C$4+1),0)/1000 -> 0.0020288 | H36: =IF($C$8>=$D$15,VLOOKUP($D36,Point_Sources_All!$A$5:$AK$204,$C$4+4),0)/1000 -> 0 | I36: =IF($C$8>=$D$16,VLOOKUP($D36,Point_Sources_All!$A$5:$AK$204,$C$4+7),0)/1000 -> 0.0001155091667 | J36: =IF($C$8>=$D$17,VLOOKUP($D36,Point_Sources_All!$A$5:$AK$204,$C$4+10),0)/1000 -> 0 | K36: =IF($C$8>=$D$18,VLOOKUP($D36,Point_Sources_All!$A$5:$AK$204,$C$4+13),0)/1000 -> 2.48265e-05 | L36: =IF($C$8>=$D$19,VLOOKUP($D36,Point_Sources_All!$A$5:$AK$204,$C$4+16),0)/1000 -> 1.644991667e-05 | M36: =IF($C$8>=$D$20,VLOOKUP($D36,Point_Sources_All!$A$5:$AK$204,$C$4+19),0)/1000 -> 9.531616667e-05 | N36: =IF($C$8>=$D$21,VLOOKUP($D36,Point_Sources_All!$A$5:$AK$204,$C$4+22),0)/1000 -> 0 | O36: =IF($C$8>=$D$22,VLOOKUP($D36,Point_Sources_All!$A$5:$AK$204,$C$4+25),0)/1000 -> 0 | P36: =IF($C$8>=$D$23,VLOOKUP($D36,Point_Sources_All!$A$5:$AK$204,$C$4+28),0)/1000 -> 0 | Q36: =IF($C$8>=$D$24,VLOOKUP($D36,Point_Sources_All!$A$5:$AK$204,$C$4+31),0)/1000 -> 0 | R36: =IF($C$8>=$D$25,VLOOKUP($D36,Point_Sources_All!$A$5:$AK$204,$C$4+34),0)/1000 -> 0.028
A37: Cl | D37: 9 | E37: =VLOOKUP($D37,Background_All!$A$5:$Y$204,3*($C$8-1)+$C$4+1)/1000 -> 0.01044519167 | F37: =VLOOKUP($D37,Background_All!$AA$5:$AY$204,3*($C$8-1)+$C$4+1)/1000 -> 0.02965599747 | G37: =IF($C$8>=$D$14,VLOOKUP($D37,Point_Sources_All!$A$5:$AK$204,$C$4+1),0)/1000 -> 0.0020288 | H37: =IF($C$8>=$D$15,VLOOKUP($D37,Point_Sources_All!$A$5:$AK$204,$C$4+4),0)/1000 -> 0 | I37: =IF($C$8>=$D$16,VLOOKUP($D37,Point_Sources_All!$A$5:$AK$204,$C$4+7),0)/1000 -> 0.0001155033333 | J37: =IF($C$8>=$D$17,VLOOKUP($D37,Point_Sources_All!$A$5:$AK$204,$C$4+10),0)/1000 -> 0 | K37: =IF($C$8>=$D$18,VLOOKUP($D37,Point_Sources_All!$A$5:$AK$204,$C$4+13),0)/1000 -> 2.4827e-05 | L37: =IF($C$8>=$D$19,VLOOKUP($D37,Point_Sources_All!$A$5:$AK$204,$C$4+16),0)/1000 -> 1.644991667e-05 | M37: =IF($C$8>=$D$20,VLOOKUP($D37,Point_Sources_All!$A$5:$AK$204,$C$4+19),0)/1000 -> 9.486733333e-05 | N37: =IF($C$8>=$D$21,VLOOKUP($D37,Point_Sources_All!$A$5:$AK$204,$C$4+22),0)/1000 -> 0 | O37: =IF($C$8>=$D$22,VLOOKUP($D37,Point_Sources_All!$A$5:$AK$204,$C$4+25),0)/1000 -> 0 | P37: =IF($C$8>=$D$23,VLOOKUP($D37,Point_Sources_All!$A$5:$AK$204,$C$4+28),0)/1000 -> 0 | Q37: =IF($C$8>=$D$24,VLOOKUP($D37,Point_Sources_All!$A$5:$AK$204,$C$4+31),0)/1000 -> 0 | R37: =IF($C$8>=$D$25,VLOOKUP($D37,Point_Sources_All!$A$5:$AK$204,$C$4+34),0)/1000 -> 0.028
A38: Co | D38: 10 | E38: =VLOOKUP($D38,Background_All!$A$5:$Y$204,3*($C$8-1)+$C$4+1)/1000 -> 0.01036978333 | F38: =VLOOKUP($D38,Background_All!$AA$5:$AY$204,3*($C$8-1)+$C$4+1)/1000 -> 0.0302771325 | G38: =IF($C$8>=$D$14,VLOOKUP($D38,Point_Sources_All!$A$5:$AK$204,$C$4+1),0)/1000 -> 0.0020288 | H38: =IF($C$8>=$D$15,VLOOKUP($D38,Point_Sources_All!$A$5:$AK$204,$C$4+4),0)/1000 -> 0 | I38: =IF($C$8>=$D$16,VLOOKUP($D38,Point_Sources_All!$A$5:$AK$204,$C$4+7),0)/1000 -> 0.0001155083333 | J38: =IF($C$8>=$D$17,VLOOKUP($D38,Point_Sources_All!$A$5:$AK$204,$C$4+10),0)/1000 -> 0 | K38: =IF($C$8>=$D$18,VLOOKUP($D38,Point_Sources_All!$A$5:$AK$204,$C$4+13),0)/1000 -> 2.4827e-05 | L38: =IF($C$8>=$D$19,VLOOKUP($D38,Point_Sources_All!$A$5:$AK$204,$C$4+16),0)/1000 -> 1.644991667e-05 | M38: =IF($C$8>=$D$20,VLOOKUP($D38,Point_Sources_All!$A$5:$AK$204,$C$4+19),0)/1000 -> 9.6216e-05 | N38: =IF($C$8>=$D$21,VLOOKUP($D38,Point_Sources_All!$A$5:$AK$204,$C$4+22),0)/1000 -> 0 | O38: =IF($C$8>=$D$22,VLOOKUP($D38,Point_Sources_All!$A$5:$AK$204,$C$4+25),0)/1000 -> 0 | P38: =IF($C$8>=$D$23,VLOOKUP($D38,Point_Sources_All!$A$5:$AK$204,$C$4+28),0)/1000 -> 0 | Q38: =IF($C$8>=$D$24,VLOOKUP($D38,Point_Sources_All!$A$5:$AK$204,$C$4+31),0)/1000 -> 0 | R38: =IF($C$8>=$D$25,VLOOKUP($D38,Point_Sources_All!$A$5:$AK$204,$C$4+34),0)/1000 -> 0.028
A39: Cr | D39: 11 | E39: =VLOOKUP($D39,Background_All!$A$5:$Y$204,3*($C$8-1)+$C$4+1)/1000 -> 0.01043715833 | F39: =VLOOKUP($D39,Background_All!$AA$5:$AY$204,3*($C$8-1)+$C$4+1)/1000 -> 0.0303227586 | G39: =IF($C$8>=$D$14,VLOOKUP($D39,Point_Sources_All!$A$5:$AK$204,$C$4+1),0)/1000 -> 0.0020288 | H39: =IF($C$8>=$D$15,VLOOKUP($D39,Point_Sources_All!$A$5:$AK$204,$C$4+4),0)/1000 -> 0 | I39: =IF($C$8>=$D$16,VLOOKUP($D39,Point_Sources_All!$A$5:$AK$204,$C$4+7),0)/1000 -> 0.0001155058333 | J39: =IF($C$8>=$D$17,VLOOKUP($D39,Point_Sources_All!$A$5:$AK$204,$C$4+10),0)/1000 -> 0 | K39: =IF($C$8>=$D$18,VLOOKUP($D39,Point_Sources_All!$A$5:$AK$204,$C$4+13),0)/1000 -> 2.48275e-05 | L39: =IF($C$8>=$D$19,VLOOKUP($D39,Point_Sources_All!$A$5:$AK$204,$C$4+16),0)/1000 -> 1.644991667e-05 | M39: =IF($C$8>=$D$20,VLOOKUP($D39,Point_Sources_All!$A$5:$AK$204,$C$4+19),0)/1000 -> 9.6544e-05 | N39: =IF($C$8>=$D$21,VLOOKUP($D39,Point_Sources_All!$A$5:$AK$204,$C$4+22),0)/1000 -> 0 | O39: =IF($C$8>=$D$22,VLOOKUP($D39,Point_Sources_All!$A$5:$AK$204,$C$4+25),0)/1000 -> 0 | P39: =IF($C$8>=$D$23,VLOOKUP($D39,Point_Sources_All!$A$5:$AK$204,$C$4+28),0)/1000 -> 0 | Q39: =IF($C$8>=$D$24,VLOOKUP($D39,Point_Sources_All!$A$5:$AK$204,$C$4+31),0)/1000 -> 0 | R39: =IF($C$8>=$D$25,VLOOKUP($D39,Point_Sources_All!$A$5:$AK$204,$C$4+34),0)/1000 -> 0.028
A40: Cu | D40: 12 | E40: =VLOOKUP($D40,Background_All!$A$5:$Y$204,3*($C$8-1)+$C$4+1)/1000 -> 0.0103773 | F40: =VLOOKUP($D40,Background_All!$AA$5:$AY$204,3*($C$8-1)+$C$4+1)/1000 -> 0.02797561133 | G40: =IF($C$8>=$D$14,VLOOKUP($D40,Point_Sources_All!$A$5:$AK$204,$C$4+1),0)/1000 -> 0.0020288 | H40: =IF($C$8>=$D$15,VLOOKUP($D40,Point_Sources_All!$A$5:$AK$204,$C$4+4),0)/1000 -> 0 | I40: =IF($C$8>=$D$16,VLOOKUP($D40,Point_Sources_All!$A$5:$AK$204,$C$4+7),0)/1000 -> 0.0001155175 | J40: =IF($C$8>=$D$17,VLOOKUP($D40,Point_Sources_All!$A$5:$AK$204,$C$4+10),0)/1000 -> 0 | K40: =IF($C$8>=$D$18,VLOOKUP($D40,Point_Sources_All!$A$5:$AK$204,$C$4+13),0)/1000 -> 2.4827e-05 | L40: =IF($C$8>=$D$19,VLOOKUP($D40,Point_Sources_All!$A$5:$AK$204,$C$4+16),0)/1000 -> 1.644991667e-05 | M40: =IF($C$8>=$D$20,VLOOKUP($D40,Point_Sources_All!$A$5:$AK$204,$C$4+19),0)/1000 -> 9.527825e-05 | N40: =IF($C$8>=$D$21,VLOOKUP($D40,Point_Sources_All!$A$5:$AK$204,$C$4+22),0)/1000 -> 0 | O40: =IF($C$8>=$D$22,VLOOKUP($D40,Point_Sources_All!$A$5:$AK$204,$C$4+25),0)/1000 -> 0 | P40: =IF($C$8>=$D$23,VLOOKUP($D40,Point_Sources_All!$A$5:$AK$204,$C$4+28),0)/1000 -> 0 | Q40: =IF($C$8>=$D$24,VLOOKUP($D40,Point_Sources_All!$A$5:$AK$204,$C$4+31),0)/1000 -> 0 | R40: =IF($C$8>=$D$25,VLOOKUP($D40,Point_Sources_All!$A$5:$AK$204,$C$4+34),0)/1000 -> 0.028
A41: F | D41: 13 | E41: =VLOOKUP($D41,Background_All!$A$5:$Y$204,3*($C$8-1)+$C$4+1)/1000 -> 0.0105057 | F41: =VLOOKUP($D41,Background_All!$AA$5:$AY$204,3*($C$8-1)+$C$4+1)/1000 -> 0.0295976475 | G41: =IF($C$8>=$D$14,VLOOKUP($D41,Point_Sources_All!$A$5:$AK$204,$C$4+1),0)/1000 -> 0.0020288 | H41: =IF($C$8>=$D$15,VLOOKUP($D41,Point_Sources_All!$A$5:$AK$204,$C$4+4),0)/1000 -> 0 | I41: =IF($C$8>=$D$16,VLOOKUP($D41,Point_Sources_All!$A$5:$AK$204,$C$4+7),0)/1000 -> 0.0001155166667 | J41: =IF($C$8>=$D$17,VLOOKUP($D41,Point_Sources_All!$A$5:$AK$204,$C$4+10),0)/1000 -> 0 | K41: =IF($C$8>=$D$18,VLOOKUP($D41,Point_Sources_All!$A$5:$AK$204,$C$4+13),0)/1000 -> 2.482716667e-05 | L41: =IF($C$8>=$D$19,VLOOKUP($D41,Point_Sources_All!$A$5:$AK$204,$C$4+16),0)/1000 -> 1.644991667e-05 | M41: =IF($C$8>=$D$20,VLOOKUP($D41,Point_Sources_All!$A$5:$AK$204,$C$4+19),0)/1000 -> 9.622291667e-05 | N41: =IF($C$8>=$D$21,VLOOKUP($D41,Point_Sources_All!$A$5:$AK$204,$C$4+22),0)/1000 -> 0 | O41: =IF($C$8>=$D$22,VLOOKUP($D41,Point_Sources_All!$A$5:$AK$204,$C$4+25),0)/1000 -> 0 | P41: =IF($C$8>=$D$23,VLOOKUP($D41,Point_Sources_All!$A$5:$AK$204,$C$4+28),0)/1000 -> 0 | Q41: =IF($C$8>=$D$24,VLOOKUP($D41,Point_Sources_All!$A$5:$AK$204,$C$4+31),0)/1000 -> 0 | R41: =IF($C$8>=$D$25,VLOOKUP($D41,Point_Sources_All!$A$5:$AK$204,$C$4+34),0)/1000 -> 0.028
A42: Fe | D42: 14 | E42: =VLOOKUP($D42,Background_All!$A$5:$Y$204,3*($C$8-1)+$C$4+1)/1000 -> 0.010432625 | F42: =VLOOKUP($D42,Background_All!$AA$5:$AY$204,3*($C$8-1)+$C$4+1)/1000 -> 0.03013213083 | G42: =IF($C$8>=$D$14,VLOOKUP($D42,Point_Sources_All!$A$5:$AK$204,$C$4+1),0)/1000 -> 0.0020288 | H42: =IF($C$8>=$D$15,VLOOKUP($D42,Point_Sources_All!$A$5:$AK$204,$C$4+4),0)/1000 -> 0 | I42: =IF($C$8>=$D$16,VLOOKUP($D42,Point_Sources_All!$A$5:$AK$204,$C$4+7),0)/1000 -> 0.0001155058333 | J42: =IF($C$8>=$D$17,VLOOKUP($D42,Point_Sources_All!$A$5:$AK$204,$C$4+10),0)/1000 -> 0 | K42: =IF($C$8>=$D$18,VLOOKUP($D42,Point_Sources_All!$A$5:$AK$204,$C$4+13),0)/1000 -> 2.4827e-05 | L42: =IF($C$8>=$D$19,VLOOKUP($D42,Point_Sources_All!$A$5:$AK$204,$C$4+16),0)/1000 -> 1.644991667e-05 | M42: =IF($C$8>=$D$20,VLOOKUP($D42,Point_Sources_All!$A$5:$AK$204,$C$4+19),0)/1000 -> 9.587325e-05 | N42: =IF($C$8>=$D$21,VLOOKUP($D42,Point_Sources_All!$A$5:$AK$204,$C$4+22),0)/1000 -> 0 | O42: =IF($C$8>=$D$22,VLOOKUP($D42,Point_Sources_All!$A$5:$AK$204,$C$4+25),0)/1000 -> 0 | P42: =IF($C$8>=$D$23,VLOOKUP($D42,Point_Sources_All!$A$5:$AK$204,$C$4+28),0)/1000 -> 0 | Q42: =IF($C$8>=$D$24,VLOOKUP($D42,Point_Sources_All!$A$5:$AK$204,$C$4+31),0)/1000 -> 0 | R42: =IF($C$8>=$D$25,VLOOKUP($D42,Point_Sources_All!$A$5:$AK$204,$C$4+34),0)/1000 -> 0.028
A43: K | D43: 15 | E43: =VLOOKUP($D43,Background_All!$A$5:$Y$204,3*($C$8-1)+$C$4+1)/1000 -> 0.010430675 | F43: =VLOOKUP($D43,Background_All!$AA$5:$AY$204,3*($C$8-1)+$C$4+1)/1000 -> 0.0299429695 | G43: =IF($C$8>=$D$14,VLOOKUP($D43,Point_Sources_All!$A$5:$AK$204,$C$4+1),0)/1000 -> 0.0020288 | H43: =IF($C$8>=$D$15,VLOOKUP($D43,Point_Sources_All!$A$5:$AK$204,$C$4+4),0)/1000 -> 0 | I43: =IF($C$8>=$D$16,VLOOKUP($D43,Point_Sources_All!$A$5:$AK$204,$C$4+7),0)/1000 -> 0.0001155083333 | J43: =IF($C$8>=$D$17,VLOOKUP($D43,Point_Sources_All!$A$5:$AK$204,$C$4+10),0)/1000 -> 0 | K43: =IF($C$8>=$D$18,VLOOKUP($D43,Point_Sources_All!$A$5:$AK$204,$C$4+13),0)/1000 -> 2.4827e-05 | L43: =IF($C$8>=$D$19,VLOOKUP($D43,Point_Sources_All!$A$5:$AK$204,$C$4+16),0)/1000 -> 1.644991667e-05 | M43: =IF($C$8>=$D$20,VLOOKUP($D43,Point_Sources_All!$A$5:$AK$204,$C$4+19),0)/1000 -> 9.677133333e-05 | N43: =IF($C$8>=$D$21,VLOOKUP($D43,Point_Sources_All!$A$5:$AK$204,$C$4+22),0)/1000 -> 0 | O43: =IF($C$8>=$D$22,VLOOKUP($D43,Point_Sources_All!$A$5:$AK$204,$C$4+25),0)/1000 -> 0 | P43: =IF($C$8>=$D$23,VLOOKUP($D43,Point_Sources_All!$A$5:$AK$204,$C$4+28),0)/1000 -> 0 | Q43: =IF($C$8>=$D$24,VLOOKUP($D43,Point_Sources_All!$A$5:$AK$204,$C$4+31),0)/1000 -> 0 | R43: =IF($C$8>=$D$25,VLOOKUP($D43,Point_Sources_All!$A$5:$AK$204,$C$4+34),0)/1000 -> 0.028
A44: Mg | D44: 16 | E44: =VLOOKUP($D44,Background_All!$A$5:$Y$204,3*($C$8-1)+$C$4+1)/1000 -> 0.01054124167 | F44: =VLOOKUP($D44,Background_All!$AA$5:$AY$204,3*($C$8-1)+$C$4+1)/1000 -> 0.02885180767 | G44: =IF($C$8>=$D$14,VLOOKUP($D44,Point_Sources_All!$A$5:$AK$204,$C$4+1),0)/1000 -> 0.0020288 | H44: =IF($C$8>=$D$15,VLOOKUP($D44,Point_Sources_All!$A$5:$AK$204,$C$4+4),0)/1000 -> 0 | I44: =IF($C$8>=$D$16,VLOOKUP($D44,Point_Sources_All!$A$5:$AK$204,$C$4+7),0)/1000 -> 0.0001154933333 | J44: =IF($C$8>=$D$17,VLOOKUP($D44,Point_Sources_All!$A$5:$AK$204,$C$4+10),0)/1000 -> 0 | K44: =IF($C$8>=$D$18,VLOOKUP($D44,Point_Sources_All!$A$5:$AK$204,$C$4+13),0)/1000 -> 2.4827e-05 | L44: =IF($C$8>=$D$19,VLOOKUP($D44,Point_Sources_All!$A$5:$AK$204,$C$4+16),0)/1000 -> 1.644991667e-05 | M44: =IF($C$8>=$D$20,VLOOKUP($D44,Point_Sources_All!$A$5:$AK$204,$C$4+19),0)/1000 -> 9.572483333e-05 | N44: =IF($C$8>=$D$21,VLOOKUP($D44,Point_Sources_All!$A$5:$AK$204,$C$4+22),0)/1000 -> 0 | O44: =IF($C$8>=$D$22,VLOOKUP($D44,Point_Sources_All!$A$5:$AK$204,$C$4+25),0)/1000 -> 0 | P44: =IF($C$8>=$D$23,VLOOKUP($D44,Point_Sources_All!$A$5:$AK$204,$C$4+28),0)/1000 -> 0 | Q44: =IF($C$8>=$D$24,VLOOKUP($D44,Point_Sources_All!$A$5:$AK$204,$C$4+31),0)/1000 -> 0 | R44: =IF($C$8>=$D$25,VLOOKUP($D44,Point_Sources_All!$A$5:$AK$204,$C$4+34),0)/1000 -> 0.028
A45: Mn | D45: 17 | E45: =VLOOKUP($D45,Background_All!$A$5:$Y$204,3*($C$8-1)+$C$4+1)/1000 -> 0.01063064167 | F45: =VLOOKUP($D45,Background_All!$AA$5:$AY$204,3*($C$8-1)+$C$4+1)/1000 -> 0.029870075 | G45: =IF($C$8>=$D$14,VLOOKUP($D45,Point_Sources_All!$A$5:$AK$204,$C$4+1),0)/1000 -> 0.0020288 | H45: =IF($C$8>=$D$15,VLOOKUP($D45,Point_Sources_All!$A$5:$AK$204,$C$4+4),0)/1000 -> 0 | I45: =IF($C$8>=$D$16,VLOOKUP($D45,Point_Sources_All!$A$5:$AK$204,$C$4+7),0)/1000 -> 0.00011547 | J45: =IF($C$8>=$D$17,VLOOKUP($D45,Point_Sources_All!$A$5:$AK$204,$C$4+10),0)/1000 -> 0 | K45: =IF($C$8>=$D$18,VLOOKUP($D45,Point_Sources_All!$A$5:$AK$204,$C$4+13),0)/1000 -> 2.4827e-05 | L45: =IF($C$8>=$D$19,VLOOKUP($D45,Point_Sources_All!$A$5:$AK$204,$C$4+16),0)/1000 -> 1.644991667e-05 | M45: =IF($C$8>=$D$20,VLOOKUP($D45,Point_Sources_All!$A$5:$AK$204,$C$4+19),0)/1000 -> 9.492191667e-05 | N45: =IF($C$8>=$D$21,VLOOKUP($D45,Point_Sources_All!$A$5:$AK$204,$C$4+22),0)/1000 -> 0 | O45: =IF($C$8>=$D$22,VLOOKUP($D45,Point_Sources_All!$A$5:$AK$204,$C$4+25),0)/1000 -> 0 | P45: =IF($C$8>=$D$23,VLOOKUP($D45,Point_Sources_All!$A$5:$AK$204,$C$4+28),0)/1000 -> 0 | Q45: =IF($C$8>=$D$24,VLOOKUP($D45,Point_Sources_All!$A$5:$AK$204,$C$4+31),0)/1000 -> 0 | R45: =IF($C$8>=$D$25,VLOOKUP($D45,Point_Sources_All!$A$5:$AK$204,$C$4+34),0)/1000 -> 0.028
A46: Na | D46: 18 | E46: =VLOOKUP($D46,Background_All!$A$5:$Y$204,3*($C$8-1)+$C$4+1)/1000 -> 0.01041074167 | F46: =VLOOKUP($D46,Background_All!$AA$5:$AY$204,3*($C$8-1)+$C$4+1)/1000 -> 0.02969578833 | G46: =IF($C$8>=$D$14,VLOOKUP($D46,Point_Sources_All!$A$5:$AK$204,$C$4+1),0)/1000 -> 0.0020288 | H46: =IF($C$8>=$D$15,VLOOKUP($D46,Point_Sources_All!$A$5:$AK$204,$C$4+4),0)/1000 -> 0 | I46: =IF($C$8>=$D$16,VLOOKUP($D46,Point_Sources_All!$A$5:$AK$204,$C$4+7),0)/1000 -> 0.00011546 | J46: =IF($C$8>=$D$17,VLOOKUP($D46,Point_Sources_All!$A$5:$AK$204,$C$4+10),0)/1000 -> 0 | K46: =IF($C$8>=$D$18,VLOOKUP($D46,Point_Sources_All!$A$5:$AK$204,$C$4+13),0)/1000 -> 2.48265e-05 | L46: =IF($C$8>=$D$19,VLOOKUP($D46,Point_Sources_All!$A$5:$AK$204,$C$4+16),0)/1000 -> 1.644991667e-05 | M46: =IF($C$8>=$D$20,VLOOKUP($D46,Point_Sources_All!$A$5:$AK$204,$C$4+19),0)/1000 -> 9.629241667e-05 | N46: =IF($C$8>=$D$21,VLOOKUP($D46,Point_Sources_All!$A$5:$AK$204,$C$4+22),0)/1000 -> 0 | O46: =IF($C$8>=$D$22,VLOOKUP($D46,Point_Sources_All!$A$5:$AK$204,$C$4+25),0)/1000 -> 0 | P46: =IF($C$8>=$D$23,VLOOKUP($D46,Point_Sources_All!$A$5:$AK$204,$C$4+28),0)/1000 -> 0 | Q46: =IF($C$8>=$D$24,VLOOKUP($D46,Point_Sources_All!$A$5:$AK$204,$C$4+31),0)/1000 -> 0 | R46: =IF($C$8>=$D$25,VLOOKUP($D46,Point_Sources_All!$A$5:$AK$204,$C$4+34),0)/1000 -> 0.028
A47: Ni | D47: 19 | E47: =VLOOKUP($D47,Background_All!$A$5:$Y$204,3*($C$8-1)+$C$4+1)/1000 -> 0.010430025 | F47: =VLOOKUP($D47,Background_All!$AA$5:$AY$204,3*($C$8-1)+$C$4+1)/1000 -> 0.03022380317 | G47: =IF($C$8>=$D$14,VLOOKUP($D47,Point_Sources_All!$A$5:$AK$204,$C$4+1),0)/1000 -> 0.0020288 | H47: =IF($C$8>=$D$15,VLOOKUP($D47,Point_Sources_All!$A$5:$AK$204,$C$4+4),0)/1000 -> 0 | I47: =IF($C$8>=$D$16,VLOOKUP($D47,Point_Sources_All!$A$5:$AK$204,$C$4+7),0)/1000 -> 0.000115435 | J47: =IF($C$8>=$D$17,VLOOKUP($D47,Point_Sources_All!$A$5:$AK$204,$C$4+10),0)/1000 -> 0 | K47: =IF($C$8>=$D$18,VLOOKUP($D47,Point_Sources_All!$A$5:$AK$204,$C$4+13),0)/1000 -> 2.4827e-05 | L47: =IF($C$8>=$D$19,VLOOKUP($D47,Point_Sources_All!$A$5:$AK$204,$C$4+16),0)/1000 -> 1.644991667e-05 | M47: =IF($C$8>=$D$20,VLOOKUP($D47,Point_Sources_All!$A$5:$AK$204,$C$4+19),0)/1000 -> 9.666325e-05 | N47: =IF($C$8>=$D$21,VLOOKUP($D47,Point_Sources_All!$A$5:$AK$204,$C$4+22),0)/1000 -> 0 | O47: =IF($C$8>=$D$22,VLOOKUP($D47,Point_Sources_All!$A$5:$AK$204,$C$4+25),0)/1000 -> 0 | P47: =IF($C$8>=$D$23,VLOOKUP($D47,Point_Sources_All!$A$5:$AK$204,$C$4+28),0)/1000 -> 0 | Q47: =IF($C$8>=$D$24,VLOOKUP($D47,Point_Sources_All!$A$5:$AK$204,$C$4+31),0)/1000 -> 0 | R47: =IF($C$8>=$D$25,VLOOKUP($D47,Point_Sources_All!$A$5:$AK$204,$C$4+34),0)/1000 -> 0.028
A48: Pb | D48: 20 | E48: =VLOOKUP($D48,Background_All!$A$5:$Y$204,3*($C$8-1)+$C$4+1)/1000 -> 0.0105533 | F48: =VLOOKUP($D48,Background_All!$AA$5:$AY$204,3*($C$8-1)+$C$4+1)/1000 -> 0.02873198 | G48: =IF($C$8>=$D$14,VLOOKUP($D48,Point_Sources_All!$A$5:$AK$204,$C$4+1),0)/1000 -> 0.0020288 | H48: =IF($C$8>=$D$15,VLOOKUP($D48,Point_Sources_All!$A$5:$AK$204,$C$4+4),0)/1000 -> 0 | I48: =IF($C$8>=$D$16,VLOOKUP($D48,Point_Sources_All!$A$5:$AK$204,$C$4+7),0)/1000 -> 0.0001200141667 | J48: =IF($C$8>=$D$17,VLOOKUP($D48,Point_Sources_All!$A$5:$AK$204,$C$4+10),0)/1000 -> 1.339666667e-06 | K48: =IF($C$8>=$D$18,VLOOKUP($D48,Point_Sources_All!$A$5:$AK$204,$C$4+13),0)/1000 -> 2.4827e-05 | L48: =IF($C$8>=$D$19,VLOOKUP($D48,Point_Sources_All!$A$5:$AK$204,$C$4+16),0)/1000 -> 1.644991667e-05 | M48: =IF($C$8>=$D$20,VLOOKUP($D48,Point_Sources_All!$A$5:$AK$204,$C$4+19),0)/1000 -> 9.530591667e-05 | N48: =IF($C$8>=$D$21,VLOOKUP($D48,Point_Sources_All!$A$5:$AK$204,$C$4+22),0)/1000 -> 0 | O48: =IF($C$8>=$D$22,VLOOKUP($D48,Point_Sources_All!$A$5:$AK$204,$C$4+25),0)/1000 -> 0 | P48: =IF($C$8>=$D$23,VLOOKUP($D48,Point_Sources_All!$A$5:$AK$204,$C$4+28),0)/1000 -> 0 | Q48: =IF($C$8>=$D$24,VLOOKUP($D48,Point_Sources_All!$A$5:$AK$204,$C$4+31),0)/1000 -> 0 | R48: =IF($C$8>=$D$25,VLOOKUP($D48,Point_Sources_All!$A$5:$AK$204,$C$4+34),0)/1000 -> 0.028
A49: Sb | D49: 21 | E49: =VLOOKUP($D49,Background_All!$A$5:$Y$204,3*($C$8-1)+$C$4+1)/1000 -> 0.01049143333 | F49: =VLOOKUP($D49,Background_All!$AA$5:$AY$204,3*($C$8-1)+$C$4+1)/1000 -> 0.027624761 | G49: =IF($C$8>=$D$14,VLOOKUP($D49,Point_Sources_All!$A$5:$AK$204,$C$4+1),0)/1000 -> 0.0020288 | H49: =IF($C$8>=$D$15,VLOOKUP($D49,Point_Sources_All!$A$5:$AK$204,$C$4+4),0)/1000 -> 0 | I49: =IF($C$8>=$D$16,VLOOKUP($D49,Point_Sources_All!$A$5:$AK$204,$C$4+7),0)/1000 -> 0.0001549791667 | J49: =IF($C$8>=$D$17,VLOOKUP($D49,Point_Sources_All!$A$5:$AK$204,$C$4+10),0)/1000 -> 1.615583333e-05 | K49: =IF($C$8>=$D$18,VLOOKUP($D49,Point_Sources_All!$A$5:$AK$204,$C$4+13),0)/1000 -> 2.482491667e-05 | L49: =IF($C$8>=$D$19,VLOOKUP($D49,Point_Sources_All!$A$5:$AK$204,$C$4+16),0)/1000 -> 1.583025e-05 | M49: =IF($C$8>=$D$20,VLOOKUP($D49,Point_Sources_All!$A$5:$AK$204,$C$4+19),0)/1000 -> 5.354891667e-05 | N49: =IF($C$8>=$D$21,VLOOKUP($D49,Point_Sources_All!$A$5:$AK$204,$C$4+22),0)/1000 -> 0 | O49: =IF($C$8>=$D$22,VLOOKUP($D49,Point_Sources_All!$A$5:$AK$204,$C$4+25),0)/1000 -> 0 | P49: =IF($C$8>=$D$23,VLOOKUP($D49,Point_Sources_All!$A$5:$AK$204,$C$4+28),0)/1000 -> 0 | Q49: =IF($C$8>=$D$24,VLOOKUP($D49,Point_Sources_All!$A$5:$AK$204,$C$4+31),0)/1000 -> 0 | R49: =IF($C$8>=$D$25,VLOOKUP($D49,Point_Sources_All!$A$5:$AK$204,$C$4+34),0)/1000 -> 0.028
A50: Se | D50: 22 | E50: =VLOOKUP($D50,Background_All!$A$5:$Y$204,3*($C$8-1)+$C$4+1)/1000 -> 0.01036659167 | F50: =VLOOKUP($D50,Background_All!$AA$5:$AY$204,3*($C$8-1)+$C$4+1)/1000 -> 0.03032779417 | G50: =IF($C$8>=$D$14,VLOOKUP($D50,Point_Sources_All!$A$5:$AK$204,$C$4+1),0)/1000 -> 0.0020288 | H50: =IF($C$8>=$D$15,VLOOKUP($D50,Point_Sources_All!$A$5:$AK$204,$C$4+4),0)/1000 -> 0 | I50: =IF($C$8>=$D$16,VLOOKUP($D50,Point_Sources_All!$A$5:$AK$204,$C$4+7),0)/1000 -> 0.000156 | J50: =IF($C$8>=$D$17,VLOOKUP($D50,Point_Sources_All!$A$5:$AK$204,$C$4+10),0)/1000 -> 1.6187e-05 | K50: =IF($C$8>=$D$18,VLOOKUP($D50,Point_Sources_All!$A$5:$AK$204,$C$4+13),0)/1000 -> 2.923858333e-05 | L50: =IF($C$8>=$D$19,VLOOKUP($D50,Point_Sources_All!$A$5:$AK$204,$C$4+16),0)/1000 -> 1.5165e-05 | M50: =IF($C$8>=$D$20,VLOOKUP($D50,Point_Sources_All!$A$5:$AK$204,$C$4+19),0)/1000 -> 5.2779e-05 | N50: =IF($C$8>=$D$21,VLOOKUP($D50,Point_Sources_All!$A$5:$AK$204,$C$4+22),0)/1000 -> 0 | O50: =IF($C$8>=$D$22,VLOOKUP($D50,Point_Sources_All!$A$5:$AK$204,$C$4+25),0)/1000 -> 0 | P50: =IF($C$8>=$D$23,VLOOKUP($D50,Point_Sources_All!$A$5:$AK$204,$C$4+28),0)/1000 -> 0 | Q50: =IF($C$8>=$D$24,VLOOKUP($D50,Point_Sources_All!$A$5:$AK$204,$C$4+31),0)/1000 -> 0 | R50: =IF($C$8>=$D$25,VLOOKUP($D50,Point_Sources_All!$A$5:$AK$204,$C$4+34),0)/1000 -> 0.028
A51: SO4 | D51: 23 | E51: =VLOOKUP($D51,Background_All!$A$5:$Y$204,3*($C$8-1)+$C$4+1)/1000 -> 0.01045161667 | F51: =VLOOKUP($D51,Background_All!$AA$5:$AY$204,3*($C$8-1)+$C$4+1)/1000 -> 0.03098449167 | G51: =IF($C$8>=$D$14,VLOOKUP($D51,Point_Sources_All!$A$5:$AK$204,$C$4+1),0)/1000 -> 0.0020288 | H51: =IF($C$8>=$D$15,VLOOKUP($D51,Point_Sources_All!$A$5:$AK$204,$C$4+4),0)/1000 -> 0 | I51: =IF($C$8>=$D$16,VLOOKUP($D51,Point_Sources_All!$A$5:$AK$204,$C$4+7),0)/1000 -> 0.000156 | J51: =IF($C$8>=$D$17,VLOOKUP($D51,Point_Sources_All!$A$5:$AK$204,$C$4+10),0)/1000 -> 1.6187e-05 | K51: =IF($C$8>=$D$18,VLOOKUP($D51,Point_Sources_All!$A$5:$AK$204,$C$4+13),0)/1000 -> 2.964e-05 | L51: =IF($C$8>=$D$19,VLOOKUP($D51,Point_Sources_All!$A$5:$AK$204,$C$4+16),0)/1000 -> 1.5165e-05 | M51: =IF($C$8>=$D$20,VLOOKUP($D51,Point_Sources_All!$A$5:$AK$204,$C$4+19),0)/1000 -> 5.2779e-05 | N51: =IF($C$8>=$D$21,VLOOKUP($D51,Point_Sources_All!$A$5:$AK$204,$C$4+22),0)/1000 -> 0 | O51: =IF($C$8>=$D$22,VLOOKUP($D51,Point_Sources_All!$A$5:$AK$204,$C$4+25),0)/1000 -> 0 | P51: =IF($C$8>=$D$23,VLOOKUP($D51,Point_Sources_All!$A$5:$AK$204,$C$4+28),0)/1000 -> 0 | Q51: =IF($C$8>=$D$24,VLOOKUP($D51,Point_Sources_All!$A$5:$AK$204,$C$4+31),0)/1000 -> 0 | R51: =IF($C$8>=$D$25,VLOOKUP($D51,Point_Sources_All!$A$5:$AK$204,$C$4+34),0)/1000 -> 0.028
A52: Tl | D52: 24 | E52: =VLOOKUP($D52,Background_All!$A$5:$Y$204,3*($C$8-1)+$C$4+1)/1000 -> 0.0104832 | F52: =VLOOKUP($D52,Background_All!$AA$5:$AY$204,3*($C$8-1)+$C$4+1)/1000 -> 0.02758124083 | G52: =IF($C$8>=$D$14,VLOOKUP($D52,Point_Sources_All!$A$5:$AK$204,$C$4+1),0)/1000 -> 0.0020288 | H52: =IF($C$8>=$D$15,VLOOKUP($D52,Point_Sources_All!$A$5:$AK$204,$C$4+4),0)/1000 -> 0 | I52: =IF($C$8>=$D$16,VLOOKUP($D52,Point_Sources_All!$A$5:$AK$204,$C$4+7),0)/1000 -> 0.000156 | J52: =IF($C$8>=$D$17,VLOOKUP($D52,Point_Sources_All!$A$5:$AK$204,$C$4+10),0)/1000 -> 1.6187e-05 | K52: =IF($C$8>=$D$18,VLOOKUP($D52,Point_Sources_All!$A$5:$AK$204,$C$4+13),0)/1000 -> 2.964e-05 | L52: =IF($C$8>=$D$19,VLOOKUP($D52,Point_Sources_All!$A$5:$AK$204,$C$4+16),0)/1000 -> 1.5165e-05 | M52: =IF($C$8>=$D$20,VLOOKUP($D52,Point_Sources_All!$A$5:$AK$204,$C$4+19),0)/1000 -> 5.2779e-05 | N52: =IF($C$8>=$D$21,VLOOKUP($D52,Point_Sources_All!$A$5:$AK$204,$C$4+22),0)/1000 -> 0 | O52: =IF($C$8>=$D$22,VLOOKUP($D52,Point_Sources_All!$A$5:$AK$204,$C$4+25),0)/1000 -> 0 | P52: =IF($C$8>=$D$23,VLOOKUP($D52,Point_Sources_All!$A$5:$AK$204,$C$4+28),0)/1000 -> 0 | Q52: =IF($C$8>=$D$24,VLOOKUP($D52,Point_Sources_All!$A$5:$AK$204,$C$4+31),0)/1000 -> 0 | R52: =IF($C$8>=$D$25,VLOOKUP($D52,Point_Sources_All!$A$5:$AK$204,$C$4+34),0)/1000 -> 0.028
A53: V | D53: 25 | E53: =VLOOKUP($D53,Background_All!$A$5:$Y$204,3*($C$8-1)+$C$4+1)/1000 -> 0.01052065833 | F53: =VLOOKUP($D53,Background_All!$AA$5:$AY$204,3*($C$8-1)+$C$4+1)/1000 -> 0.02881671833 | G53: =IF($C$8>=$D$14,VLOOKUP($D53,Point_Sources_All!$A$5:$AK$204,$C$4+1),0)/1000 -> 0.0020288 | H53: =IF($C$8>=$D$15,VLOOKUP($D53,Point_Sources_All!$A$5:$AK$204,$C$4+4),0)/1000 -> 0 | I53: =IF($C$8>=$D$16,VLOOKUP($D53,Point_Sources_All!$A$5:$AK$204,$C$4+7),0)/1000 -> 0.000156 | J53: =IF($C$8>=$D$17,VLOOKUP($D53,Point_Sources_All!$A$5:$AK$204,$C$4+10),0)/1000 -> 1.6187e-05 | K53: =IF($C$8>=$D$18,VLOOKUP($D53,Point_Sources_All!$A$5:$AK$204,$C$4+13),0)/1000 -> 2.964e-05 | L53: =IF($C$8>=$D$19,VLOOKUP($D53,Point_Sources_All!$A$5:$AK$204,$C$4+16),0)/1000 -> 1.5165e-05 | M53: =IF($C$8>=$D$20,VLOOKUP($D53,Point_Sources_All!$A$5:$AK$204,$C$4+19),0)/1000 -> 5.2779e-05 | N53: =IF($C$8>=$D$21,VLOOKUP($D53,Point_Sources_All!$A$5:$AK$204,$C$4+22),0)/1000 -> 0 | O53: =IF($C$8>=$D$22,VLOOKUP($D53,Point_Sources_All!$A$5:$AK$204,$C$4+25),0)/1000 -> 0 | P53: =IF($C$8>=$D$23,VLOOKUP($D53,Point_Sources_All!$A$5:$AK$204,$C$4+28),0)/1000 -> 0 | Q53: =IF($C$8>=$D$24,VLOOKUP($D53,Point_Sources_All!$A$5:$AK$204,$C$4+31),0)/1000 -> 0 | R53: =IF($C$8>=$D$25,VLOOKUP($D53,Point_Sources_All!$A$5:$AK$204,$C$4+34),0)/1000 -> 0.028
A54: Zn | D54: 26 | E54: =VLOOKUP($D54,Background_All!$A$5:$Y$204,3*($C$8-1)+$C$4+1)/1000 -> 0.01048065833 | F54: =VLOOKUP($D54,Background_All!$AA$5:$AY$204,3*($C$8-1)+$C$4+1)/1000 -> 0.03018173167 | G54: =IF($C$8>=$D$14,VLOOKUP($D54,Point_Sources_All!$A$5:$AK$204,$C$4+1),0)/1000 -> 0.0020288 | H54: =IF($C$8>=$D$15,VLOOKUP($D54,Point_Sources_All!$A$5:$AK$204,$C$4+4),0)/1000 -> 0 | I54: =IF($C$8>=$D$16,VLOOKUP($D54,Point_Sources_All!$A$5:$AK$204,$C$4+7),0)/1000 -> 0.000156 | J54: =IF($C$8>=$D$17,VLOOKUP($D54,Point_Sources_All!$A$5:$AK$204,$C$4+10),0)/1000 -> 1.6187e-05 | K54: =IF($C$8>=$D$18,VLOOKUP($D54,Point_Sources_All!$A$5:$AK$204,$C$4+13),0)/1000 -> 2.964e-05 | L54: =IF($C$8>=$D$19,VLOOKUP($D54,Point_Sources_All!$A$5:$AK$204,$C$4+16),0)/1000 -> 1.5165e-05 | M54: =IF($C$8>=$D$20,VLOOKUP($D54,Point_Sources_All!$A$5:$AK$204,$C$4+19),0)/1000 -> 5.2779e-05 | N54: =IF($C$8>=$D$21,VLOOKUP($D54,Point_Sources_All!$A$5:$AK$204,$C$4+22),0)/1000 -> 0 | O54: =IF($C$8>=$D$22,VLOOKUP($D54,Point_Sources_All!$A$5:$AK$204,$C$4+25),0)/1000 -> 0 | P54: =IF($C$8>=$D$23,VLOOKUP($D54,Point_Sources_All!$A$5:$AK$204,$C$4+28),0)/1000 -> 0 | Q54: =IF($C$8>=$D$24,VLOOKUP($D54,Point_Sources_All!$A$5:$AK$204,$C$4+31),0)/1000 -> 0 | R54: =IF($C$8>=$D$25,VLOOKUP($D54,Point_Sources_All!$A$5:$AK$204,$C$4+34),0)/1000 -> 0.028
D55: 27 | E55: =VLOOKUP($D55,Background_All!$A$5:$Y$204,3*($C$8-1)+$C$4+1)/1000 -> 0.01052453333 | F55: =VLOOKUP($D55,Background_All!$AA$5:$AY$204,3*($C$8-1)+$C$4+1)/1000 -> 0.02946439917 | G55: =IF($C$8>=$D$14,VLOOKUP($D55,Point_Sources_All!$A$5:$AK$204,$C$4+1),0)/1000 -> 0.0020288 | H55: =IF($C$8>=$D$15,VLOOKUP($D55,Point_Sources_All!$A$5:$AK$204,$C$4+4),0)/1000 -> 0 | I55: =IF($C$8>=$D$16,VLOOKUP($D55,Point_Sources_All!$A$5:$AK$204,$C$4+7),0)/1000 -> 0.000156 | J55: =IF($C$8>=$D$17,VLOOKUP($D55,Point_Sources_All!$A$5:$AK$204,$C$4+10),0)/1000 -> 1.6187e-05 | K55: =IF($C$8>=$D$18,VLOOKUP($D55,Point_Sources_All!$A$5:$AK$204,$C$4+13),0)/1000 -> 2.964e-05 | L55: =IF($C$8>=$D$19,VLOOKUP($D55,Point_Sources_All!$A$5:$AK$204,$C$4+16),0)/1000 -> 1.5165e-05 | M55: =IF($C$8>=$D$20,VLOOKUP($D55,Point_Sources_All!$A$5:$AK$204,$C$4+19),0)/1000 -> 5.2779e-05 | N55: =IF($C$8>=$D$21,VLOOKUP($D55,Point_Sources_All!$A$5:$AK$204,$C$4+22),0)/1000 -> 0 | O55: =IF($C$8>=$D$22,VLOOKUP($D55,Point_Sources_All!$A$5:$AK$204,$C$4+25),0)/1000 -> 0 | P55: =IF($C$8>=$D$23,VLOOKUP($D55,Point_Sources_All!$A$5:$AK$204,$C$4+28),0)/1000 -> 0 | Q55: =IF($C$8>=$D$24,VLOOKUP($D55,Point_Sources_All!$A$5:$AK$204,$C$4+31),0)/1000 -> 0 | R55: =IF($C$8>=$D$25,VLOOKUP($D55,Point_Sources_All!$A$5:$AK$204,$C$4+34),0)/1000 -> 0.028
D56: 28 | E56: =VLOOKUP($D56,Background_All!$A$5:$Y$204,3*($C$8-1)+$C$4+1)/1000 -> 0.01056451667 | F56: =VLOOKUP($D56,Background_All!$AA$5:$AY$204,3*($C$8-1)+$C$4+1)/1000 -> 0.02868264833 | G56: =IF($C$8>=$D$14,VLOOKUP($D56,Point_Sources_All!$A$5:$AK$204,$C$4+1),0)/1000 -> 0.0020288 | H56: =IF($C$8>=$D$15,VLOOKUP($D56,Point_Sources_All!$A$5:$AK$204,$C$4+4),0)/1000 -> 0 | I56: =IF($C$8>=$D$16,VLOOKUP($D56,Point_Sources_All!$A$5:$AK$204,$C$4+7),0)/1000 -> 0.000156 | J56: =IF($C$8>=$D$17,VLOOKUP($D56,Point_Sources_All!$A$5:$AK$204,$C$4+10),0)/1000 -> 1.6187e-05 | K56: =IF($C$8>=$D$18,VLOOKUP($D56,Point_Sources_All!$A$5:$AK$204,$C$4+13),0)/1000 -> 2.964e-05 | L56: =IF($C$8>=$D$19,VLOOKUP($D56,Point_Sources_All!$A$5:$AK$204,$C$4+16),0)/1000 -> 1.5165e-05 | M56: =IF($C$8>=$D$20,VLOOKUP($D56,Point_Sources_All!$A$5:$AK$204,$C$4+19),0)/1000 -> 5.2779e-05 | N56: =IF($C$8>=$D$21,VLOOKUP($D56,Point_Sources_All!$A$5:$AK$204,$C$4+22),0)/1000 -> 0 | O56: =IF($C$8>=$D$22,VLOOKUP($D56,Point_Sources_All!$A$5:$AK$204,$C$4+25),0)/1000 -> 0 | P56: =IF($C$8>=$D$23,VLOOKUP($D56,Point_Sources_All!$A$5:$AK$204,$C$4+28),0)/1000 -> 0 | Q56: =IF($C$8>=$D$24,VLOOKUP($D56,Point_Sources_All!$A$5:$AK$204,$C$4+31),0)/1000 -> 0 | R56: =IF($C$8>=$D$25,VLOOKUP($D56,Point_Sources_All!$A$5:$AK$204,$C$4+34),0)/1000 -> 0.028
D57: 29 | E57: =VLOOKUP($D57,Background_All!$A$5:$Y$204,3*($C$8-1)+$C$4+1)/1000 -> 0.01040669167 | F57: =VLOOKUP($D57,Background_All!$AA$5:$AY$204,3*($C$8-1)+$C$4+1)/1000 -> 0.02870567667 | G57: =IF($C$8>=$D$14,VLOOKUP($D57,Point_Sources_All!$A$5:$AK$204,$C$4+1),0)/1000 -> 0.0020288 | H57: =IF($C$8>=$D$15,VLOOKUP($D57,Point_Sources_All!$A$5:$AK$204,$C$4+4),0)/1000 -> 0 | I57: =IF($C$8>=$D$16,VLOOKUP($D57,Point_Sources_All!$A$5:$AK$204,$C$4+7),0)/1000 -> 0.000156 | J57: =IF($C$8>=$D$17,VLOOKUP($D57,Point_Sources_All!$A$5:$AK$204,$C$4+10),0)/1000 -> 1.6187e-05 | K57: =IF($C$8>=$D$18,VLOOKUP($D57,Point_Sources_All!$A$5:$AK$204,$C$4+13),0)/1000 -> 2.964e-05 | L57: =IF($C$8>=$D$19,VLOOKUP($D57,Point_Sources_All!$A$5:$AK$204,$C$4+16),0)/1000 -> 1.515125e-05 | M57: =IF($C$8>=$D$20,VLOOKUP($D57,Point_Sources_All!$A$5:$AK$204,$C$4+19),0)/1000 -> 5.2779e-05 | N57: =IF($C$8>=$D$21,VLOOKUP($D57,Point_Sources_All!$A$5:$AK$204,$C$4+22),0)/1000 -> 0 | O57: =IF($C$8>=$D$22,VLOOKUP($D57,Point_Sources_All!$A$5:$AK$204,$C$4+25),0)/1000 -> 0 | P57: =IF($C$8>=$D$23,VLOOKUP($D57,Point_Sources_All!$A$5:$AK$204,$C$4+28),0)/1000 -> 0 | Q57: =IF($C$8>=$D$24,VLOOKUP($D57,Point_Sources_All!$A$5:$AK$204,$C$4+31),0)/1000 -> 0 | R57: =IF($C$8>=$D$25,VLOOKUP($D57,Point_Sources_All!$A$5:$AK$204,$C$4+34),0)/1000 -> 0.028
D58: 30 | E58: =VLOOKUP($D58,Background_All!$A$5:$Y$204,3*($C$8-1)+$C$4+1)/1000 -> 0.01049261667 | F58: =VLOOKUP($D58,Background_All!$AA$5:$AY$204,3*($C$8-1)+$C$4+1)/1000 -> 0.0279988925 | G58: =IF($C$8>=$D$14,VLOOKUP($D58,Point_Sources_All!$A$5:$AK$204,$C$4+1),0)/1000 -> 0.0020288 | H58: =IF($C$8>=$D$15,VLOOKUP($D58,Point_Sources_All!$A$5:$AK$204,$C$4+4),0)/1000 -> 0 | I58: =IF($C$8>=$D$16,VLOOKUP($D58,Point_Sources_All!$A$5:$AK$204,$C$4+7),0)/1000 -> 0.000156 | J58: =IF($C$8>=$D$17,VLOOKUP($D58,Point_Sources_All!$A$5:$AK$204,$C$4+10),0)/1000 -> 1.6187e-05 | K58: =IF($C$8>=$D$18,VLOOKUP($D58,Point_Sources_All!$A$5:$AK$204,$C$4+13),0)/1000 -> 2.964e-05 | L58: =IF($C$8>=$D$19,VLOOKUP($D58,Point_Sources_All!$A$5:$AK$204,$C$4+16),0)/1000 -> 1.5126e-05 | M58: =IF($C$8>=$D$20,VLOOKUP($D58,Point_Sources_All!$A$5:$AK$204,$C$4+19),0)/1000 -> 5.2779e-05 | N58: =IF($C$8>=$D$21,VLOOKUP($D58,Point_Sources_All!$A$5:$AK$204,$C$4+22),0)/1000 -> 0 | O58: =IF($C$8>=$D$22,VLOOKUP($D58,Point_Sources_All!$A$5:$AK$204,$C$4+25),0)/1000 -> 0 | P58: =IF($C$8>=$D$23,VLOOKUP($D58,Point_Sources_All!$A$5:$AK$204,$C$4+28),0)/1000 -> 0 | Q58: =IF($C$8>=$D$24,VLOOKUP($D58,Point_Sources_All!$A$5:$AK$204,$C$4+31),0)/1000 -> 0 | R58: =IF($C$8>=$D$25,VLOOKUP($D58,Point_Sources_All!$A$5:$AK$204,$C$4+34),0)/1000 -> 0.028
D59: 31 | E59: =VLOOKUP($D59,Background_All!$A$5:$Y$204,3*($C$8-1)+$C$4+1)/1000 -> 0.01050085833 | F59: =VLOOKUP($D59,Background_All!$AA$5:$AY$204,3*($C$8-1)+$C$4+1)/1000 -> 0.02949495217 | G59: =IF($C$8>=$D$14,VLOOKUP($D59,Point_Sources_All!$A$5:$AK$204,$C$4+1),0)/1000 -> 0.0020288 | H59: =IF($C$8>=$D$15,VLOOKUP($D59,Point_Sources_All!$A$5:$AK$204,$C$4+4),0)/1000 -> 0 | I59: =IF($C$8>=$D$16,VLOOKUP($D59,Point_Sources_All!$A$5:$AK$204,$C$4+7),0)/1000 -> 0.000156 | J59: =IF($C$8>=$D$17,VLOOKUP($D59,Point_Sources_All!$A$5:$AK$204,$C$4+10),0)/1000 -> 1.6187e-05 | K59: =IF($C$8>=$D$18,VLOOKUP($D59,Point_Sources_All!$A$5:$AK$204,$C$4+13),0)/1000 -> 2.964e-05 | L59: =IF($C$8>=$D$19,VLOOKUP($D59,Point_Sources_All!$A$5:$AK$204,$C$4+16),0)/1000 -> 1.5126e-05 | M59: =IF($C$8>=$D$20,VLOOKUP($D59,Point_Sources_All!$A$5:$AK$204,$C$4+19),0)/1000 -> 5.2779e-05 | N59: =IF($C$8>=$D$21,VLOOKUP($D59,Point_Sources_All!$A$5:$AK$204,$C$4+22),0)/1000 -> 0 | O59: =IF($C$8>=$D$22,VLOOKUP($D59,Point_Sources_All!$A$5:$AK$204,$C$4+25),0)/1000 -> 0 | P59: =IF($C$8>=$D$23,VLOOKUP($D59,Point_Sources_All!$A$5:$AK$204,$C$4+28),0)/1000 -> 0 | Q59: =IF($C$8>=$D$24,VLOOKUP($D59,Point_Sources_All!$A$5:$AK$204,$C$4+31),0)/1000 -> 0 | R59: =IF($C$8>=$D$25,VLOOKUP($D59,Point_Sources_All!$A$5:$AK$204,$C$4+34),0)/1000 -> 0.028
D60: 32 | E60: =VLOOKUP($D60,Background_All!$A$5:$Y$204,3*($C$8-1)+$C$4+1)/1000 -> 0.01040509167 | F60: =VLOOKUP($D60,Background_All!$AA$5:$AY$204,3*($C$8-1)+$C$4+1)/1000 -> 0.02933571667 | G60: =IF($C$8>=$D$14,VLOOKUP($D60,Point_Sources_All!$A$5:$AK$204,$C$4+1),0)/1000 -> 0.0020288 | H60: =IF($C$8>=$D$15,VLOOKUP($D60,Point_Sources_All!$A$5:$AK$204,$C$4+4),0)/1000 -> 0 | I60: =IF($C$8>=$D$16,VLOOKUP($D60,Point_Sources_All!$A$5:$AK$204,$C$4+7),0)/1000 -> 0.000156 | J60: =IF($C$8>=$D$17,VLOOKUP($D60,Point_Sources_All!$A$5:$AK$204,$C$4+10),0)/1000 -> 1.6187e-05 | K60: =IF($C$8>=$D$18,VLOOKUP($D60,Point_Sources_All!$A$5:$AK$204,$C$4+13),0)/1000 -> 2.964e-05 | L60: =IF($C$8>=$D$19,VLOOKUP($D60,Point_Sources_All!$A$5:$AK$204,$C$4+16),0)/1000 -> 1.5126e-05 | M60: =IF($C$8>=$D$20,VLOOKUP($D60,Point_Sources_All!$A$5:$AK$204,$C$4+19),0)/1000 -> 5.2779e-05 | N60: =IF($C$8>=$D$21,VLOOKUP($D60,Point_Sources_All!$A$5:$AK$204,$C$4+22),0)/1000 -> 0 | O60: =IF($C$8>=$D$22,VLOOKUP($D60,Point_Sources_All!$A$5:$AK$204,$C$4+25),0)/1000 -> 0 | P60: =IF($C$8>=$D$23,VLOOKUP($D60,Point_Sources_All!$A$5:$AK$204,$C$4+28),0)/1000 -> 0 | Q60: =IF($C$8>=$D$24,VLOOKUP($D60,Point_Sources_All!$A$5:$AK$204,$C$4+31),0)/1000 -> 0 | R60: =IF($C$8>=$D$25,VLOOKUP($D60,Point_Sources_All!$A$5:$AK$204,$C$4+34),0)/1000 -> 0.028
D61: 33 | E61: =VLOOKUP($D61,Background_All!$A$5:$Y$204,3*($C$8-1)+$C$4+1)/1000 -> 0.01052915 | F61: =VLOOKUP($D61,Background_All!$AA$5:$AY$204,3*($C$8-1)+$C$4+1)/1000 -> 0.03065263583 | G61: =IF($C$8>=$D$14,VLOOKUP($D61,Point_Sources_All!$A$5:$AK$204,$C$4+1),0)/1000 -> 0.0020288 | H61: =IF($C$8>=$D$15,VLOOKUP($D61,Point_Sources_All!$A$5:$AK$204,$C$4+4),0)/1000 -> 0 | I61: =IF($C$8>=$D$16,VLOOKUP($D61,Point_Sources_All!$A$5:$AK$204,$C$4+7),0)/1000 -> 0.000156 | J61: =IF($C$8>=$D$17,VLOOKUP($D61,Point_Sources_All!$A$5:$AK$204,$C$4+10),0)/1000 -> 1.6187e-05 | K61: =IF($C$8>=$D$18,VLOOKUP($D61,Point_Sources_All!$A$5:$AK$204,$C$4+13),0)/1000 -> 2.964e-05 | L61: =IF($C$8>=$D$19,VLOOKUP($D61,Point_Sources_All!$A$5:$AK$204,$C$4+16),0)/1000 -> 1.50805e-05 | M61: =IF($C$8>=$D$20,VLOOKUP($D61,Point_Sources_All!$A$5:$AK$204,$C$4+19),0)/1000 -> 5.2779e-05 | N61: =IF($C$8>=$D$21,VLOOKUP($D61,Point_Sources_All!$A$5:$AK$204,$C$4+22),0)/1000 -> 0 | O61: =IF($C$8>=$D$22,VLOOKUP($D61,Point_Sources_All!$A$5:$AK$204,$C$4+25),0)/1000 -> 0 | P61: =IF($C$8>=$D$23,VLOOKUP($D61,Point_Sources_All!$A$5:$AK$204,$C$4+28),0)/1000 -> 0 | Q61: =IF($C$8>=$D$24,VLOOKUP($D61,Point_Sources_All!$A$5:$AK$204,$C$4+31),0)/1000 -> 0 | R61: =IF($C$8>=$D$25,VLOOKUP($D61,Point_Sources_All!$A$5:$AK$204,$C$4+34),0)/1000 -> 0.028
D62: 34 | E62: =VLOOKUP($D62,Background_All!$A$5:$Y$204,3*($C$8-1)+$C$4+1)/1000 -> 0.01042058333 | F62: =VLOOKUP($D62,Background_All!$AA$5:$AY$204,3*($C$8-1)+$C$4+1)/1000 -> 0.02767426333 | G62: =IF($C$8>=$D$14,VLOOKUP($D62,Point_Sources_All!$A$5:$AK$204,$C$4+1),0)/1000 -> 0.0020288 | H62: =IF($C$8>=$D$15,VLOOKUP($D62,Point_Sources_All!$A$5:$AK$204,$C$4+4),0)/1000 -> 0 | I62: =IF($C$8>=$D$16,VLOOKUP($D62,Point_Sources_All!$A$5:$AK$204,$C$4+7),0)/1000 -> 0.000156 | J62: =IF($C$8>=$D$17,VLOOKUP($D62,Point_Sources_All!$A$5:$AK$204,$C$4+10),0)/1000 -> 1.6187e-05 | K62: =IF($C$8>=$D$18,VLOOKUP($D62,Point_Sources_All!$A$5:$AK$204,$C$4+13),0)/1000 -> 2.964e-05 | L62: =IF($C$8>=$D$19,VLOOKUP($D62,Point_Sources_All!$A$5:$AK$204,$C$4+16),0)/1000 -> 1.504e-05 | M62: =IF($C$8>=$D$20,VLOOKUP($D62,Point_Sources_All!$A$5:$AK$204,$C$4+19),0)/1000 -> 5.2779e-05 | N62: =IF($C$8>=$D$21,VLOOKUP($D62,Point_Sources_All!$A$5:$AK$204,$C$4+22),0)/1000 -> 0 | O62: =IF($C$8>=$D$22,VLOOKUP($D62,Point_Sources_All!$A$5:$AK$204,$C$4+25),0)/1000 -> 0 | P62: =IF($C$8>=$D$23,VLOOKUP($D62,Point_Sources_All!$A$5:$AK$204,$C$4+28),0)/1000 -> 0 | Q62: =IF($C$8>=$D$24,VLOOKUP($D62,Point_Sources_All!$A$5:$AK$204,$C$4+31),0)/1000 -> 0 | R62: =IF($C$8>=$D$25,VLOOKUP($D62,Point_Sources_All!$A$5:$AK$204,$C$4+34),0)/1000 -> 0.028
D63: 35 | E63: =VLOOKUP($D63,Background_All!$A$5:$Y$204,3*($C$8-1)+$C$4+1)/1000 -> 0.0105833 | F63: =VLOOKUP($D63,Background_All!$AA$5:$AY$204,3*($C$8-1)+$C$4+1)/1000 -> 0.0275377075 | G63: =IF($C$8>=$D$14,VLOOKUP($D63,Point_Sources_All!$A$5:$AK$204,$C$4+1),0)/1000 -> 0.0020288 | H63: =IF($C$8>=$D$15,VLOOKUP($D63,Point_Sources_All!$A$5:$AK$204,$C$4+4),0)/1000 -> 0 | I63: =IF($C$8>=$D$16,VLOOKUP($D63,Point_Sources_All!$A$5:$AK$204,$C$4+7),0)/1000 -> 0.000156 | J63: =IF($C$8>=$D$17,VLOOKUP($D63,Point_Sources_All!$A$5:$AK$204,$C$4+10),0)/1000 -> 1.6187e-05 | K63: =IF($C$8>=$D$18,VLOOKUP($D63,Point_Sources_All!$A$5:$AK$204,$C$4+13),0)/1000 -> 2.964e-05 | L63: =IF($C$8>=$D$19,VLOOKUP($D63,Point_Sources_All!$A$5:$AK$204,$C$4+16),0)/1000 -> 1.502666667e-05 | M63: =IF($C$8>=$D$20,VLOOKUP($D63,Point_Sources_All!$A$5:$AK$204,$C$4+19),0)/1000 -> 5.2779e-05 | N63: =IF($C$8>=$D$21,VLOOKUP($D63,Point_Sources_All!$A$5:$AK$204,$C$4+22),0)/1000 -> 0 | O63: =IF($C$8>=$D$22,VLOOKUP($D63,Point_Sources_All!$A$5:$AK$204,$C$4+25),0)/1000 -> 0 | P63: =IF($C$8>=$D$23,VLOOKUP($D63,Point_Sources_All!$A$5:$AK$204,$C$4+28),0)/1000 -> 0 | Q63: =IF($C$8>=$D$24,VLOOKUP($D63,Point_Sources_All!$A$5:$AK$204,$C$4+31),0)/1000 -> 0 | R63: =IF($C$8>=$D$25,VLOOKUP($D63,Point_Sources_All!$A$5:$AK$204,$C$4+34),0)/1000 -> 0.028
D64: 36 | E64: =VLOOKUP($D64,Background_All!$A$5:$Y$204,3*($C$8-1)+$C$4+1)/1000 -> 0.01051904167 | F64: =VLOOKUP($D64,Background_All!$AA$5:$AY$204,3*($C$8-1)+$C$4+1)/1000 -> 0.03097796583 | G64: =IF($C$8>=$D$14,VLOOKUP($D64,Point_Sources_All!$A$5:$AK$204,$C$4+1),0)/1000 -> 0.0020288 | H64: =IF($C$8>=$D$15,VLOOKUP($D64,Point_Sources_All!$A$5:$AK$204,$C$4+4),0)/1000 -> 0 | I64: =IF($C$8>=$D$16,VLOOKUP($D64,Point_Sources_All!$A$5:$AK$204,$C$4+7),0)/1000 -> 0.000156 | J64: =IF($C$8>=$D$17,VLOOKUP($D64,Point_Sources_All!$A$5:$AK$204,$C$4+10),0)/1000 -> 1.6187e-05 | K64: =IF($C$8>=$D$18,VLOOKUP($D64,Point_Sources_All!$A$5:$AK$204,$C$4+13),0)/1000 -> 2.964e-05 | L64: =IF($C$8>=$D$19,VLOOKUP($D64,Point_Sources_All!$A$5:$AK$204,$C$4+16),0)/1000 -> 1.5024e-05 | M64: =IF($C$8>=$D$20,VLOOKUP($D64,Point_Sources_All!$A$5:$AK$204,$C$4+19),0)/1000 -> 5.2779e-05 | N64: =IF($C$8>=$D$21,VLOOKUP($D64,Point_Sources_All!$A$5:$AK$204,$C$4+22),0)/1000 -> 0 | O64: =IF($C$8>=$D$22,VLOOKUP($D64,Point_Sources_All!$A$5:$AK$204,$C$4+25),0)/1000 -> 0 | P64: =IF($C$8>=$D$23,VLOOKUP($D64,Point_Sources_All!$A$5:$AK$204,$C$4+28),0)/1000 -> 0 | Q64: =IF($C$8>=$D$24,VLOOKUP($D64,Point_Sources_All!$A$5:$AK$204,$C$4+31),0)/1000 -> 0 | R64: =IF($C$8>=$D$25,VLOOKUP($D64,Point_Sources_All!$A$5:$AK$204,$C$4+34),0)/1000 -> 0.028
D65: 37 | E65: =VLOOKUP($D65,Background_All!$A$5:$Y$204,3*($C$8-1)+$C$4+1)/1000 -> 0.01041404167 | F65: =VLOOKUP($D65,Background_All!$AA$5:$AY$204,3*($C$8-1)+$C$4+1)/1000 -> 0.03055562583 | G65: =IF($C$8>=$D$14,VLOOKUP($D65,Point_Sources_All!$A$5:$AK$204,$C$4+1),0)/1000 -> 0.0020288 | H65: =IF($C$8>=$D$15,VLOOKUP($D65,Point_Sources_All!$A$5:$AK$204,$C$4+4),0)/1000 -> 0 | I65: =IF($C$8>=$D$16,VLOOKUP($D65,Point_Sources_All!$A$5:$AK$204,$C$4+7),0)/1000 -> 0.000156 | J65: =IF($C$8>=$D$17,VLOOKUP($D65,Point_Sources_All!$A$5:$AK$204,$C$4+10),0)/1000 -> 1.6187e-05 | K65: =IF($C$8>=$D$18,VLOOKUP($D65,Point_Sources_All!$A$5:$AK$204,$C$4+13),0)/1000 -> 2.964e-05 | L65: =IF($C$8>=$D$19,VLOOKUP($D65,Point_Sources_All!$A$5:$AK$204,$C$4+16),0)/1000 -> 1.501166667e-05 | M65: =IF($C$8>=$D$20,VLOOKUP($D65,Point_Sources_All!$A$5:$AK$204,$C$4+19),0)/1000 -> 5.2779e-05 | N65: =IF($C$8>=$D$21,VLOOKUP($D65,Point_Sources_All!$A$5:$AK$204,$C$4+22),0)/1000 -> 0 | O65: =IF($C$8>=$D$22,VLOOKUP($D65,Point_Sources_All!$A$5:$AK$204,$C$4+25),0)/1000 -> 0 | P65: =IF($C$8>=$D$23,VLOOKUP($D65,Point_Sources_All!$A$5:$AK$204,$C$4+28),0)/1000 -> 0 | Q65: =IF($C$8>=$D$24,VLOOKUP($D65,Point_Sources_All!$A$5:$AK$204,$C$4+31),0)/1000 -> 0 | R65: =IF($C$8>=$D$25,VLOOKUP($D65,Point_Sources_All!$A$5:$AK$204,$C$4+34),0)/1000 -> 0.028
D66: 38 | E66: =VLOOKUP($D66,Background_All!$A$5:$Y$204,3*($C$8-1)+$C$4+1)/1000 -> 0.01058449167 | F66: =VLOOKUP($D66,Background_All!$AA$5:$AY$204,3*($C$8-1)+$C$4+1)/1000 -> 0.02757825083 | G66: =IF($C$8>=$D$14,VLOOKUP($D66,Point_Sources_All!$A$5:$AK$204,$C$4+1),0)/1000 -> 0.0020288 | H66: =IF($C$8>=$D$15,VLOOKUP($D66,Point_Sources_All!$A$5:$AK$204,$C$4+4),0)/1000 -> 0 | I66: =IF($C$8>=$D$16,VLOOKUP($D66,Point_Sources_All!$A$5:$AK$204,$C$4+7),0)/1000 -> 0.000156 | J66: =IF($C$8>=$D$17,VLOOKUP($D66,Point_Sources_All!$A$5:$AK$204,$C$4+10),0)/1000 -> 1.6187e-05 | K66: =IF($C$8>=$D$18,VLOOKUP($D66,Point_Sources_All!$A$5:$AK$204,$C$4+13),0)/1000 -> 2.964e-05 | L66: =IF($C$8>=$D$19,VLOOKUP($D66,Point_Sources_All!$A$5:$AK$204,$C$4+16),0)/1000 -> 1.5004e-05 | M66: =IF($C$8>=$D$20,VLOOKUP($D66,Point_Sources_All!$A$5:$AK$204,$C$4+19),0)/1000 -> 5.2779e-05 | N66: =IF($C$8>=$D$21,VLOOKUP($D66,Point_Sources_All!$A$5:$AK$204,$C$4+22),0)/1000 -> 0 | O66: =IF($C$8>=$D$22,VLOOKUP($D66,Point_Sources_All!$A$5:$AK$204,$C$4+25),0)/1000 -> 0 | P66: =IF($C$8>=$D$23,VLOOKUP($D66,Point_Sources_All!$A$5:$AK$204,$C$4+28),0)/1000 -> 0 | Q66: =IF($C$8>=$D$24,VLOOKUP($D66,Point_Sources_All!$A$5:$AK$204,$C$4+31),0)/1000 -> 0 | R66: =IF($C$8>=$D$25,VLOOKUP($D66,Point_Sources_All!$A$5:$AK$204,$C$4+34),0)/1000 -> 0.028
D67: 39 | E67: =VLOOKUP($D67,Background_All!$A$5:$Y$204,3*($C$8-1)+$C$4+1)/1000 -> 0.01060935833 | F67: =VLOOKUP($D67,Background_All!$AA$5:$AY$204,3*($C$8-1)+$C$4+1)/1000 -> 0.0295601425 | G67: =IF($C$8>=$D$14,VLOOKUP($D67,Point_Sources_All!$A$5:$AK$204,$C$4+1),0)/1000 -> 0.0020288 | H67: =IF($C$8>=$D$15,VLOOKUP($D67,Point_Sources_All!$A$5:$AK$204,$C$4+4),0)/1000 -> 0 | I67: =IF($C$8>=$D$16,VLOOKUP($D67,Point_Sources_All!$A$5:$AK$204,$C$4+7),0)/1000 -> 0.000156 | J67: =IF($C$8>=$D$17,VLOOKUP($D67,Point_Sources_All!$A$5:$AK$204,$C$4+10),0)/1000 -> 1.6187e-05 | K67: =IF($C$8>=$D$18,VLOOKUP($D67,Point_Sources_All!$A$5:$AK$204,$C$4+13),0)/1000 -> 2.964e-05 | L67: =IF($C$8>=$D$19,VLOOKUP($D67,Point_Sources_All!$A$5:$AK$204,$C$4+16),0)/1000 -> 1.5004e-05 | M67: =IF($C$8>=$D$20,VLOOKUP($D67,Point_Sources_All!$A$5:$AK$204,$C$4+19),0)/1000 -> 5.2779e-05 | N67: =IF($C$8>=$D$21,VLOOKUP($D67,Point_Sources_All!$A$5:$AK$204,$C$4+22),0)/1000 -> 0 | O67: =IF($C$8>=$D$22,VLOOKUP($D67,Point_Sources_All!$A$5:$AK$204,$C$4+25),0)/1000 -> 0 | P67: =IF($C$8>=$D$23,VLOOKUP($D67,Point_Sources_All!$A$5:$AK$204,$C$4+28),0)/1000 -> 0 | Q67: =IF($C$8>=$D$24,VLOOKUP($D67,Point_Sources_All!$A$5:$AK$204,$C$4+31),0)/1000 -> 0 | R67: =IF($C$8>=$D$25,VLOOKUP($D67,Point_Sources_All!$A$5:$AK$204,$C$4+34),0)/1000 -> 0.028
D68: 40 | E68: =VLOOKUP($D68,Background_All!$A$5:$Y$204,3*($C$8-1)+$C$4+1)/1000 -> 0.01048800833 | F68: =VLOOKUP($D68,Background_All!$AA$5:$AY$204,3*($C$8-1)+$C$4+1)/1000 -> 0.02998032258 | G68: =IF($C$8>=$D$14,VLOOKUP($D68,Point_Sources_All!$A$5:$AK$204,$C$4+1),0)/1000 -> 0.0020288 | H68: =IF($C$8>=$D$15,VLOOKUP($D68,Point_Sources_All!$A$5:$AK$204,$C$4+4),0)/1000 -> 0 | I68: =IF($C$8>=$D$16,VLOOKUP($D68,Point_Sources_All!$A$5:$AK$204,$C$4+7),0)/1000 -> 0.000156 | J68: =IF($C$8>=$D$17,VLOOKUP($D68,Point_Sources_All!$A$5:$AK$204,$C$4+10),0)/1000 -> 1.6187e-05 | K68: =IF($C$8>=$D$18,VLOOKUP($D68,Point_Sources_All!$A$5:$AK$204,$C$4+13),0)/1000 -> 2.964e-05 | L68: =IF($C$8>=$D$19,VLOOKUP($D68,Point_Sources_All!$A$5:$AK$204,$C$4+16),0)/1000 -> 1.5004e-05 | M68: =IF($C$8>=$D$20,VLOOKUP($D68,Point_Sources_All!$A$5:$AK$204,$C$4+19),0)/1000 -> 5.2779e-05 | N68: =IF($C$8>=$D$21,VLOOKUP($D68,Point_Sources_All!$A$5:$AK$204,$C$4+22),0)/1000 -> 0 | O68: =IF($C$8>=$D$22,VLOOKUP($D68,Point_Sources_All!$A$5:$AK$204,$C$4+25),0)/1000 -> 0 | P68: =IF($C$8>=$D$23,VLOOKUP($D68,Point_Sources_All!$A$5:$AK$204,$C$4+28),0)/1000 -> 0 | Q68: =IF($C$8>=$D$24,VLOOKUP($D68,Point_Sources_All!$A$5:$AK$204,$C$4+31),0)/1000 -> 0 | R68: =IF($C$8>=$D$25,VLOOKUP($D68,Point_Sources_All!$A$5:$AK$204,$C$4+34),0)/1000 -> 0.028
D69: 41 | E69: =VLOOKUP($D69,Background_All!$A$5:$Y$204,3*($C$8-1)+$C$4+1)/1000 -> 0.01046246667 | F69: =VLOOKUP($D69,Background_All!$AA$5:$AY$204,3*($C$8-1)+$C$4+1)/1000 -> 0.02790748417 | G69: =IF($C$8>=$D$14,VLOOKUP($D69,Point_Sources_All!$A$5:$AK$204,$C$4+1),0)/1000 -> 0.0020288 | H69: =IF($C$8>=$D$15,VLOOKUP($D69,Point_Sources_All!$A$5:$AK$204,$C$4+4),0)/1000 -> 0 | I69: =IF($C$8>=$D$16,VLOOKUP($D69,Point_Sources_All!$A$5:$AK$204,$C$4+7),0)/1000 -> 0.000156 | J69: =IF($C$8>=$D$17,VLOOKUP($D69,Point_Sources_All!$A$5:$AK$204,$C$4+10),0)/1000 -> 1.6187e-05 | K69: =IF($C$8>=$D$18,VLOOKUP($D69,Point_Sources_All!$A$5:$AK$204,$C$4+13),0)/1000 -> 2.964e-05 | L69: =IF($C$8>=$D$19,VLOOKUP($D69,Point_Sources_All!$A$5:$AK$204,$C$4+16),0)/1000 -> 1.5004e-05 | M69: =IF($C$8>=$D$20,VLOOKUP($D69,Point_Sources_All!$A$5:$AK$204,$C$4+19),0)/1000 -> 5.2779e-05 | N69: =IF($C$8>=$D$21,VLOOKUP($D69,Point_Sources_All!$A$5:$AK$204,$C$4+22),0)/1000 -> 0 | O69: =IF($C$8>=$D$22,VLOOKUP($D69,Point_Sources_All!$A$5:$AK$204,$C$4+25),0)/1000 -> 0 | P69: =IF($C$8>=$D$23,VLOOKUP($D69,Point_Sources_All!$A$5:$AK$204,$C$4+28),0)/1000 -> 0 | Q69: =IF($C$8>=$D$24,VLOOKUP($D69,Point_Sources_All!$A$5:$AK$204,$C$4+31),0)/1000 -> 0 | R69: =IF($C$8>=$D$25,VLOOKUP($D69,Point_Sources_All!$A$5:$AK$204,$C$4+34),0)/1000 -> 0.028
D70: 42 | E70: =VLOOKUP($D70,Background_All!$A$5:$Y$204,3*($C$8-1)+$C$4+1)/1000 -> 0.010450125 | F70: =VLOOKUP($D70,Background_All!$AA$5:$AY$204,3*($C$8-1)+$C$4+1)/1000 -> 0.03056100417 | G70: =IF($C$8>=$D$14,VLOOKUP($D70,Point_Sources_All!$A$5:$AK$204,$C$4+1),0)/1000 -> 0.0020288 | H70: =IF($C$8>=$D$15,VLOOKUP($D70,Point_Sources_All!$A$5:$AK$204,$C$4+4),0)/1000 -> 0 | I70: =IF($C$8>=$D$16,VLOOKUP($D70,Point_Sources_All!$A$5:$AK$204,$C$4+7),0)/1000 -> 0.000156 | J70: =IF($C$8>=$D$17,VLOOKUP($D70,Point_Sources_All!$A$5:$AK$204,$C$4+10),0)/1000 -> 1.6187e-05 | K70: =IF($C$8>=$D$18,VLOOKUP($D70,Point_Sources_All!$A$5:$AK$204,$C$4+13),0)/1000 -> 2.964e-05 | L70: =IF($C$8>=$D$19,VLOOKUP($D70,Point_Sources_All!$A$5:$AK$204,$C$4+16),0)/1000 -> 1.5004e-05 | M70: =IF($C$8>=$D$20,VLOOKUP($D70,Point_Sources_All!$A$5:$AK$204,$C$4+19),0)/1000 -> 5.2779e-05 | N70: =IF($C$8>=$D$21,VLOOKUP($D70,Point_Sources_All!$A$5:$AK$204,$C$4+22),0)/1000 -> 0 | O70: =IF($C$8>=$D$22,VLOOKUP($D70,Point_Sources_All!$A$5:$AK$204,$C$4+25),0)/1000 -> 0 | P70: =IF($C$8>=$D$23,VLOOKUP($D70,Point_Sources_All!$A$5:$AK$204,$C$4+28),0)/1000 -> 0 | Q70: =IF($C$8>=$D$24,VLOOKUP($D70,Point_Sources_All!$A$5:$AK$204,$C$4+31),0)/1000 -> 0 | R70: =IF($C$8>=$D$25,VLOOKUP($D70,Point_Sources_All!$A$5:$AK$204,$C$4+34),0)/1000 -> 0.028
D71: 43 | E71: =VLOOKUP($D71,Background_All!$A$5:$Y$204,3*($C$8-1)+$C$4+1)/1000 -> 0.01049453333 | F71: =VLOOKUP($D71,Background_All!$AA$5:$AY$204,3*($C$8-1)+$C$4+1)/1000 -> 0.02947991608 | G71: =IF($C$8>=$D$14,VLOOKUP($D71,Point_Sources_All!$A$5:$AK$204,$C$4+1),0)/1000 -> 0.0020288 | H71: =IF($C$8>=$D$15,VLOOKUP($D71,Point_Sources_All!$A$5:$AK$204,$C$4+4),0)/1000 -> 0 | I71: =IF($C$8>=$D$16,VLOOKUP($D71,Point_Sources_All!$A$5:$AK$204,$C$4+7),0)/1000 -> 0.000156 | J71: =IF($C$8>=$D$17,VLOOKUP($D71,Point_Sources_All!$A$5:$AK$204,$C$4+10),0)/1000 -> 1.6187e-05 | K71: =IF($C$8>=$D$18,VLOOKUP($D71,Point_Sources_All!$A$5:$AK$204,$C$4+13),0)/1000 -> 2.964e-05 | L71: =IF($C$8>=$D$19,VLOOKUP($D71,Point_Sources_All!$A$5:$AK$204,$C$4+16),0)/1000 -> 1.5004e-05 | M71: =IF($C$8>=$D$20,VLOOKUP($D71,Point_Sources_All!$A$5:$AK$204,$C$4+19),0)/1000 -> 5.2779e-05 | N71: =IF($C$8>=$D$21,VLOOKUP($D71,Point_Sources_All!$A$5:$AK$204,$C$4+22),0)/1000 -> 0 | O71: =IF($C$8>=$D$22,VLOOKUP($D71,Point_Sources_All!$A$5:$AK$204,$C$4+25),0)/1000 -> 0 | P71: =IF($C$8>=$D$23,VLOOKUP($D71,Point_Sources_All!$A$5:$AK$204,$C$4+28),0)/1000 -> 0 | Q71: =IF($C$8>=$D$24,VLOOKUP($D71,Point_Sources_All!$A$5:$AK$204,$C$4+31),0)/1000 -> 0 | R71: =IF($C$8>=$D$25,VLOOKUP($D71,Point_Sources_All!$A$5:$AK$204,$C$4+34),0)/1000 -> 0.028
D72: 44 | E72: =VLOOKUP($D72,Background_All!$A$5:$Y$204,3*($C$8-1)+$C$4+1)/1000 -> 0.0105102 | F72: =VLOOKUP($D72,Background_All!$AA$5:$AY$204,3*($C$8-1)+$C$4+1)/1000 -> 0.03116777333 | G72: =IF($C$8>=$D$14,VLOOKUP($D72,Point_Sources_All!$A$5:$AK$204,$C$4+1),0)/1000 -> 0.0020288 | H72: =IF($C$8>=$D$15,VLOOKUP($D72,Point_Sources_All!$A$5:$AK$204,$C$4+4),0)/1000 -> 0 | I72: =IF($C$8>=$D$16,VLOOKUP($D72,Point_Sources_All!$A$5:$AK$204,$C$4+7),0)/1000 -> 0.000156 | J72: =IF($C$8>=$D$17,VLOOKUP($D72,Point_Sources_All!$A$5:$AK$204,$C$4+10),0)/1000 -> 1.6187e-05 | K72: =IF($C$8>=$D$18,VLOOKUP($D72,Point_Sources_All!$A$5:$AK$204,$C$4+13),0)/1000 -> 2.964e-05 | L72: =IF($C$8>=$D$19,VLOOKUP($D72,Point_Sources_All!$A$5:$AK$204,$C$4+16),0)/1000 -> 1.5004e-05 | M72: =IF($C$8>=$D$20,VLOOKUP($D72,Point_Sources_All!$A$5:$AK$204,$C$4+19),0)/1000 -> 5.2779e-05 | N72: =IF($C$8>=$D$21,VLOOKUP($D72,Point_Sources_All!$A$5:$AK$204,$C$4+22),0)/1000 -> 0 | O72: =IF($C$8>=$D$22,VLOOKUP($D72,Point_Sources_All!$A$5:$AK$204,$C$4+25),0)/1000 -> 0 | P72: =IF($C$8>=$D$23,VLOOKUP($D72,Point_Sources_All!$A$5:$AK$204,$C$4+28),0)/1000 -> 0 | Q72: =IF($C$8>=$D$24,VLOOKUP($D72,Point_Sources_All!$A$5:$AK$204,$C$4+31),0)/1000 -> 0 | R72: =IF($C$8>=$D$25,VLOOKUP($D72,Point_Sources_All!$A$5:$AK$204,$C$4+34),0)/1000 -> 0.028
D73: 45 | E73: =VLOOKUP($D73,Background_All!$A$5:$Y$204,3*($C$8-1)+$C$4+1)/1000 -> 0.01047325 | F73: =VLOOKUP($D73,Background_All!$AA$5:$AY$204,3*($C$8-1)+$C$4+1)/1000 -> 0.02928644167 | G73: =IF($C$8>=$D$14,VLOOKUP($D73,Point_Sources_All!$A$5:$AK$204,$C$4+1),0)/1000 -> 0.0020288 | H73: =IF($C$8>=$D$15,VLOOKUP($D73,Point_Sources_All!$A$5:$AK$204,$C$4+4),0)/1000 -> 0 | I73: =IF($C$8>=$D$16,VLOOKUP($D73,Point_Sources_All!$A$5:$AK$204,$C$4+7),0)/1000 -> 0.000156 | J73: =IF($C$8>=$D$17,VLOOKUP($D73,Point_Sources_All!$A$5:$AK$204,$C$4+10),0)/1000 -> 1.6187e-05 | K73: =IF($C$8>=$D$18,VLOOKUP($D73,Point_Sources_All!$A$5:$AK$204,$C$4+13),0)/1000 -> 2.964e-05 | L73: =IF($C$8>=$D$19,VLOOKUP($D73,Point_Sources_All!$A$5:$AK$204,$C$4+16),0)/1000 -> 1.5004e-05 | M73: =IF($C$8>=$D$20,VLOOKUP($D73,Point_Sources_All!$A$5:$AK$204,$C$4+19),0)/1000 -> 5.2779e-05 | N73: =IF($C$8>=$D$21,VLOOKUP($D73,Point_Sources_All!$A$5:$AK$204,$C$4+22),0)/1000 -> 0 | O73: =IF($C$8>=$D$22,VLOOKUP($D73,Point_Sources_All!$A$5:$AK$204,$C$4+25),0)/1000 -> 0 | P73: =IF($C$8>=$D$23,VLOOKUP($D73,Point_Sources_All!$A$5:$AK$204,$C$4+28),0)/1000 -> 0 | Q73: =IF($C$8>=$D$24,VLOOKUP($D73,Point_Sources_All!$A$5:$AK$204,$C$4+31),0)/1000 -> 0 | R73: =IF($C$8>=$D$25,VLOOKUP($D73,Point_Sources_All!$A$5:$AK$204,$C$4+34),0)/1000 -> 0.028
D74: 46 | E74: =VLOOKUP($D74,Background_All!$A$5:$Y$204,3*($C$8-1)+$C$4+1)/1000 -> 0.01051291667 | F74: =VLOOKUP($D74,Background_All!$AA$5:$AY$204,3*($C$8-1)+$C$4+1)/1000 -> 0.02864277667 | G74: =IF($C$8>=$D$14,VLOOKUP($D74,Point_Sources_All!$A$5:$AK$204,$C$4+1),0)/1000 -> 0.0020288 | H74: =IF($C$8>=$D$15,VLOOKUP($D74,Point_Sources_All!$A$5:$AK$204,$C$4+4),0)/1000 -> 0 | I74: =IF($C$8>=$D$16,VLOOKUP($D74,Point_Sources_All!$A$5:$AK$204,$C$4+7),0)/1000 -> 0.000156 | J74: =IF($C$8>=$D$17,VLOOKUP($D74,Point_Sources_All!$A$5:$AK$204,$C$4+10),0)/1000 -> 1.6187e-05 | K74: =IF($C$8>=$D$18,VLOOKUP($D74,Point_Sources_All!$A$5:$AK$204,$C$4+13),0)/1000 -> 2.964e-05 | L74: =IF($C$8>=$D$19,VLOOKUP($D74,Point_Sources_All!$A$5:$AK$204,$C$4+16),0)/1000 -> 1.5004e-05 | M74: =IF($C$8>=$D$20,VLOOKUP($D74,Point_Sources_All!$A$5:$AK$204,$C$4+19),0)/1000 -> 5.2779e-05 | N74: =IF($C$8>=$D$21,VLOOKUP($D74,Point_Sources_All!$A$5:$AK$204,$C$4+22),0)/1000 -> 0 | O74: =IF($C$8>=$D$22,VLOOKUP($D74,Point_Sources_All!$A$5:$AK$204,$C$4+25),0)/1000 -> 0 | P74: =IF($C$8>=$D$23,VLOOKUP($D74,Point_Sources_All!$A$5:$AK$204,$C$4+28),0)/1000 -> 0 | Q74: =IF($C$8>=$D$24,VLOOKUP($D74,Point_Sources_All!$A$5:$AK$204,$C$4+31),0)/1000 -> 0 | R74: =IF($C$8>=$D$25,VLOOKUP($D74,Point_Sources_All!$A$5:$AK$204,$C$4+34),0)/1000 -> 0.028
D75: 47 | E75: =VLOOKUP($D75,Background_All!$A$5:$Y$204,3*($C$8-1)+$C$4+1)/1000 -> 0.010462475 | F75: =VLOOKUP($D75,Background_All!$AA$5:$AY$204,3*($C$8-1)+$C$4+1)/1000 -> 0.0284851975 | G75: =IF($C$8>=$D$14,VLOOKUP($D75,Point_Sources_All!$A$5:$AK$204,$C$4+1),0)/1000 -> 0.0020288 | H75: =IF($C$8>=$D$15,VLOOKUP($D75,Point_Sources_All!$A$5:$AK$204,$C$4+4),0)/1000 -> 0 | I75: =IF($C$8>=$D$16,VLOOKUP($D75,Point_Sources_All!$A$5:$AK$204,$C$4+7),0)/1000 -> 0.000156 | J75: =IF($C$8>=$D$17,VLOOKUP($D75,Point_Sources_All!$A$5:$AK$204,$C$4+10),0)/1000 -> 1.6187e-05 | K75: =IF($C$8>=$D$18,VLOOKUP($D75,Point_Sources_All!$A$5:$AK$204,$C$4+13),0)/1000 -> 2.964e-05 | L75: =IF($C$8>=$D$19,VLOOKUP($D75,Point_Sources_All!$A$5:$AK$204,$C$4+16),0)/1000 -> 1.5004e-05 | M75: =IF($C$8>=$D$20,VLOOKUP($D75,Point_Sources_All!$A$5:$AK$204,$C$4+19),0)/1000 -> 5.2779e-05 | N75: =IF($C$8>=$D$21,VLOOKUP($D75,Point_Sources_All!$A$5:$AK$204,$C$4+22),0)/1000 -> 0 | O75: =IF($C$8>=$D$22,VLOOKUP($D75,Point_Sources_All!$A$5:$AK$204,$C$4+25),0)/1000 -> 0 | P75: =IF($C$8>=$D$23,VLOOKUP($D75,Point_Sources_All!$A$5:$AK$204,$C$4+28),0)/1000 -> 0 | Q75: =IF($C$8>=$D$24,VLOOKUP($D75,Point_Sources_All!$A$5:$AK$204,$C$4+31),0)/1000 -> 0 | R75: =IF($C$8>=$D$25,VLOOKUP($D75,Point_Sources_All!$A$5:$AK$204,$C$4+34),0)/1000 -> 0.028
D76: 48 | E76: =VLOOKUP($D76,Background_All!$A$5:$Y$204,3*($C$8-1)+$C$4+1)/1000 -> 0.01045065 | F76: =VLOOKUP($D76,Background_All!$AA$5:$AY$204,3*($C$8-1)+$C$4+1)/1000 -> 0.02747645833 | G76: =IF($C$8>=$D$14,VLOOKUP($D76,Point_Sources_All!$A$5:$AK$204,$C$4+1),0)/1000 -> 0.0020288 | H76: =IF($C$8>=$D$15,VLOOKUP($D76,Point_Sources_All!$A$5:$AK$204,$C$4+4),0)/1000 -> 0 | I76: =IF($C$8>=$D$16,VLOOKUP($D76,Point_Sources_All!$A$5:$AK$204,$C$4+7),0)/1000 -> 0.000156 | J76: =IF($C$8>=$D$17,VLOOKUP($D76,Point_Sources_All!$A$5:$AK$204,$C$4+10),0)/1000 -> 1.6187e-05 | K76: =IF($C$8>=$D$18,VLOOKUP($D76,Point_Sources_All!$A$5:$AK$204,$C$4+13),0)/1000 -> 2.964e-05 | L76: =IF($C$8>=$D$19,VLOOKUP($D76,Point_Sources_All!$A$5:$AK$204,$C$4+16),0)/1000 -> 1.5004e-05 | M76: =IF($C$8>=$D$20,VLOOKUP($D76,Point_Sources_All!$A$5:$AK$204,$C$4+19),0)/1000 -> 5.2779e-05 | N76: =IF($C$8>=$D$21,VLOOKUP($D76,Point_Sources_All!$A$5:$AK$204,$C$4+22),0)/1000 -> 7.746416667e-07 | O76: =IF($C$8>=$D$22,VLOOKUP($D76,Point_Sources_All!$A$5:$AK$204,$C$4+25),0)/1000 -> 1.03745e-05 | P76: =IF($C$8>=$D$23,VLOOKUP($D76,Point_Sources_All!$A$5:$AK$204,$C$4+28),0)/1000 -> 1.216991667e-06 | Q76: =IF($C$8>=$D$24,VLOOKUP($D76,Point_Sources_All!$A$5:$AK$204,$C$4+31),0)/1000 -> 0 | R76: =IF($C$8>=$D$25,VLOOKUP($D76,Point_Sources_All!$A$5:$AK$204,$C$4+34),0)/1000 -> 0.028
D77: 49 | E77: =VLOOKUP($D77,Background_All!$A$5:$Y$204,3*($C$8-1)+$C$4+1)/1000 -> 0.0104468 | F77: =VLOOKUP($D77,Background_All!$AA$5:$AY$204,3*($C$8-1)+$C$4+1)/1000 -> 0.03441993892 | G77: =IF($C$8>=$D$14,VLOOKUP($D77,Point_Sources_All!$A$5:$AK$204,$C$4+1),0)/1000 -> 0.0020288 | H77: =IF($C$8>=$D$15,VLOOKUP($D77,Point_Sources_All!$A$5:$AK$204,$C$4+4),0)/1000 -> 0 | I77: =IF($C$8>=$D$16,VLOOKUP($D77,Point_Sources_All!$A$5:$AK$204,$C$4+7),0)/1000 -> 0.000156 | J77: =IF($C$8>=$D$17,VLOOKUP($D77,Point_Sources_All!$A$5:$AK$204,$C$4+10),0)/1000 -> 1.6187e-05 | K77: =IF($C$8>=$D$18,VLOOKUP($D77,Point_Sources_All!$A$5:$AK$204,$C$4+13),0)/1000 -> 2.964e-05 | L77: =IF($C$8>=$D$19,VLOOKUP($D77,Point_Sources_All!$A$5:$AK$204,$C$4+16),0)/1000 -> 1.4992e-05 | M77: =IF($C$8>=$D$20,VLOOKUP($D77,Point_Sources_All!$A$5:$AK$204,$C$4+19),0)/1000 -> 5.2779e-05 | N77: =IF($C$8>=$D$21,VLOOKUP($D77,Point_Sources_All!$A$5:$AK$204,$C$4+22),0)/1000 -> 3.48915e-06 | O77: =IF($C$8>=$D$22,VLOOKUP($D77,Point_Sources_All!$A$5:$AK$204,$C$4+25),0)/1000 -> 4.426166667e-05 | P77: =IF($C$8>=$D$23,VLOOKUP($D77,Point_Sources_All!$A$5:$AK$204,$C$4+28),0)/1000 -> 5.615725e-06 | Q77: =IF($C$8>=$D$24,VLOOKUP($D77,Point_Sources_All!$A$5:$AK$204,$C$4+31),0)/1000 -> 0 | R77: =IF($C$8>=$D$25,VLOOKUP($D77,Point_Sources_All!$A$5:$AK$204,$C$4+34),0)/1000 -> 0.028
D78: 50 | E78: =VLOOKUP($D78,Background_All!$A$5:$Y$204,3*($C$8-1)+$C$4+1)/1000 -> 0.01045301667 | F78: =VLOOKUP($D78,Background_All!$AA$5:$AY$204,3*($C$8-1)+$C$4+1)/1000 -> 0.03173477 | G78: =IF($C$8>=$D$14,VLOOKUP($D78,Point_Sources_All!$A$5:$AK$204,$C$4+1),0)/1000 -> 0.0020288 | H78: =IF($C$8>=$D$15,VLOOKUP($D78,Point_Sources_All!$A$5:$AK$204,$C$4+4),0)/1000 -> 0 | I78: =IF($C$8>=$D$16,VLOOKUP($D78,Point_Sources_All!$A$5:$AK$204,$C$4+7),0)/1000 -> 0.000156 | J78: =IF($C$8>=$D$17,VLOOKUP($D78,Point_Sources_All!$A$5:$AK$204,$C$4+10),0)/1000 -> 1.6187e-05 | K78: =IF($C$8>=$D$18,VLOOKUP($D78,Point_Sources_All!$A$5:$AK$204,$C$4+13),0)/1000 -> 2.964e-05 | L78: =IF($C$8>=$D$19,VLOOKUP($D78,Point_Sources_All!$A$5:$AK$204,$C$4+16),0)/1000 -> 1.4968e-05 | M78: =IF($C$8>=$D$20,VLOOKUP($D78,Point_Sources_All!$A$5:$AK$204,$C$4+19),0)/1000 -> 5.2779e-05 | N78: =IF($C$8>=$D$21,VLOOKUP($D78,Point_Sources_All!$A$5:$AK$204,$C$4+22),0)/1000 -> 4.402975e-06 | O78: =IF($C$8>=$D$22,VLOOKUP($D78,Point_Sources_All!$A$5:$AK$204,$C$4+25),0)/1000 -> 5.509033333e-05 | P78: =IF($C$8>=$D$23,VLOOKUP($D78,Point_Sources_All!$A$5:$AK$204,$C$4+28),0)/1000 -> 7.165358333e-06 | Q78: =IF($C$8>=$D$24,VLOOKUP($D78,Point_Sources_All!$A$5:$AK$204,$C$4+31),0)/1000 -> 0 | R78: =IF($C$8>=$D$25,VLOOKUP($D78,Point_Sources_All!$A$5:$AK$204,$C$4+34),0)/1000 -> 0.028
D79: 51 | E79: =VLOOKUP($D79,Background_All!$A$5:$Y$204,3*($C$8-1)+$C$4+1)/1000 -> 0.01056921667 | F79: =VLOOKUP($D79,Background_All!$AA$5:$AY$204,3*($C$8-1)+$C$4+1)/1000 -> 0.02905129083 | G79: =IF($C$8>=$D$14,VLOOKUP($D79,Point_Sources_All!$A$5:$AK$204,$C$4+1),0)/1000 -> 0.0020288 | H79: =IF($C$8>=$D$15,VLOOKUP($D79,Point_Sources_All!$A$5:$AK$204,$C$4+4),0)/1000 -> 0 | I79: =IF($C$8>=$D$16,VLOOKUP($D79,Point_Sources_All!$A$5:$AK$204,$C$4+7),0)/1000 -> 0.000156 | J79: =IF($C$8>=$D$17,VLOOKUP($D79,Point_Sources_All!$A$5:$AK$204,$C$4+10),0)/1000 -> 1.6187e-05 | K79: =IF($C$8>=$D$18,VLOOKUP($D79,Point_Sources_All!$A$5:$AK$204,$C$4+13),0)/1000 -> 2.964e-05 | L79: =IF($C$8>=$D$19,VLOOKUP($D79,Point_Sources_All!$A$5:$AK$204,$C$4+16),0)/1000 -> 1.4968e-05 | M79: =IF($C$8>=$D$20,VLOOKUP($D79,Point_Sources_All!$A$5:$AK$204,$C$4+19),0)/1000 -> 5.2779e-05 | N79: =IF($C$8>=$D$21,VLOOKUP($D79,Point_Sources_All!$A$5:$AK$204,$C$4+22),0)/1000 -> 4.906375e-06 | O79: =IF($C$8>=$D$22,VLOOKUP($D79,Point_Sources_All!$A$5:$AK$204,$C$4+25),0)/1000 -> 6.232625e-05 | P79: =IF($C$8>=$D$23,VLOOKUP($D79,Point_Sources_All!$A$5:$AK$204,$C$4+28),0)/1000 -> 7.974841667e-06 | Q79: =IF($C$8>=$D$24,VLOOKUP($D79,Point_Sources_All!$A$5:$AK$204,$C$4+31),0)/1000 -> 0 | R79: =IF($C$8>=$D$25,VLOOKUP($D79,Point_Sources_All!$A$5:$AK$204,$C$4+34),0)/1000 -> 0.028
D80: 52 | E80: =VLOOKUP($D80,Background_All!$A$5:$Y$204,3*($C$8-1)+$C$4+1)/1000 -> 0.010418175 | F80: =VLOOKUP($D80,Background_All!$AA$5:$AY$204,3*($C$8-1)+$C$4+1)/1000 -> 0.02849492333 | G80: =IF($C$8>=$D$14,VLOOKUP($D80,Point_Sources_All!$A$5:$AK$204,$C$4+1),0)/1000 -> 0.0020288 | H80: =IF($C$8>=$D$15,VLOOKUP($D80,Point_Sources_All!$A$5:$AK$204,$C$4+4),0)/1000 -> 0 | I80: =IF($C$8>=$D$16,VLOOKUP($D80,Point_Sources_All!$A$5:$AK$204,$C$4+7),0)/1000 -> 0.000156 | J80: =IF($C$8>=$D$17,VLOOKUP($D80,Point_Sources_All!$A$5:$AK$204,$C$4+10),0)/1000 -> 1.6187e-05 | K80: =IF($C$8>=$D$18,VLOOKUP($D80,Point_Sources_All!$A$5:$AK$204,$C$4+13),0)/1000 -> 2.964e-05 | L80: =IF($C$8>=$D$19,VLOOKUP($D80,Point_Sources_All!$A$5:$AK$204,$C$4+16),0)/1000 -> 1.4968e-05 | M80: =IF($C$8>=$D$20,VLOOKUP($D80,Point_Sources_All!$A$5:$AK$204,$C$4+19),0)/1000 -> 5.2779e-05 | N80: =IF($C$8>=$D$21,VLOOKUP($D80,Point_Sources_All!$A$5:$AK$204,$C$4+22),0)/1000 -> 5.190616667e-06 | O80: =IF($C$8>=$D$22,VLOOKUP($D80,Point_Sources_All!$A$5:$AK$204,$C$4+25),0)/1000 -> 6.561825e-05 | P80: =IF($C$8>=$D$23,VLOOKUP($D80,Point_Sources_All!$A$5:$AK$204,$C$4+28),0)/1000 -> 8.421858333e-06 | Q80: =IF($C$8>=$D$24,VLOOKUP($D80,Point_Sources_All!$A$5:$AK$204,$C$4+31),0)/1000 -> 0.009457166667 | R80: =IF($C$8>=$D$25,VLOOKUP($D80,Point_Sources_All!$A$5:$AK$204,$C$4+34),0)/1000 -> 0.028
D81: 53 | E81: =VLOOKUP($D81,Background_All!$A$5:$Y$204,3*($C$8-1)+$C$4+1)/1000 -> 0.0103987 | F81: =VLOOKUP($D81,Background_All!$AA$5:$AY$204,3*($C$8-1)+$C$4+1)/1000 -> 0.03130283958 | G81: =IF($C$8>=$D$14,VLOOKUP($D81,Point_Sources_All!$A$5:$AK$204,$C$4+1),0)/1000 -> 0.0020288 | H81: =IF($C$8>=$D$15,VLOOKUP($D81,Point_Sources_All!$A$5:$AK$204,$C$4+4),0)/1000 -> 0 | I81: =IF($C$8>=$D$16,VLOOKUP($D81,Point_Sources_All!$A$5:$AK$204,$C$4+7),0)/1000 -> 0.000156 | J81: =IF($C$8>=$D$17,VLOOKUP($D81,Point_Sources_All!$A$5:$AK$204,$C$4+10),0)/1000 -> 1.6187e-05 | K81: =IF($C$8>=$D$18,VLOOKUP($D81,Point_Sources_All!$A$5:$AK$204,$C$4+13),0)/1000 -> 2.964e-05 | L81: =IF($C$8>=$D$19,VLOOKUP($D81,Point_Sources_All!$A$5:$AK$204,$C$4+16),0)/1000 -> 1.4968e-05 | M81: =IF($C$8>=$D$20,VLOOKUP($D81,Point_Sources_All!$A$5:$AK$204,$C$4+19),0)/1000 -> 5.2779e-05 | N81: =IF($C$8>=$D$21,VLOOKUP($D81,Point_Sources_All!$A$5:$AK$204,$C$4+22),0)/1000 -> 5.31285e-06 | O81: =IF($C$8>=$D$22,VLOOKUP($D81,Point_Sources_All!$A$5:$AK$204,$C$4+25),0)/1000 -> 6.66395e-05 | P81: =IF($C$8>=$D$23,VLOOKUP($D81,Point_Sources_All!$A$5:$AK$204,$C$4+28),0)/1000 -> 8.602716667e-06 | Q81: =IF($C$8>=$D$24,VLOOKUP($D81,Point_Sources_All!$A$5:$AK$204,$C$4+31),0)/1000 -> 0.02482475 | R81: =IF($C$8>=$D$25,VLOOKUP($D81,Point_Sources_All!$A$5:$AK$204,$C$4+34),0)/1000 -> 0.028
D82: 54 | E82: =VLOOKUP($D82,Background_All!$A$5:$Y$204,3*($C$8-1)+$C$4+1)/1000 -> 0.0104464 | F82: =VLOOKUP($D82,Background_All!$AA$5:$AY$204,3*($C$8-1)+$C$4+1)/1000 -> 0.02864389367 | G82: =IF($C$8>=$D$14,VLOOKUP($D82,Point_Sources_All!$A$5:$AK$204,$C$4+1),0)/1000 -> 0.0020288 | H82: =IF($C$8>=$D$15,VLOOKUP($D82,Point_Sources_All!$A$5:$AK$204,$C$4+4),0)/1000 -> 0 | I82: =IF($C$8>=$D$16,VLOOKUP($D82,Point_Sources_All!$A$5:$AK$204,$C$4+7),0)/1000 -> 0.000156 | J82: =IF($C$8>=$D$17,VLOOKUP($D82,Point_Sources_All!$A$5:$AK$204,$C$4+10),0)/1000 -> 1.6187e-05 | K82: =IF($C$8>=$D$18,VLOOKUP($D82,Point_Sources_All!$A$5:$AK$204,$C$4+13),0)/1000 -> 2.964e-05 | L82: =IF($C$8>=$D$19,VLOOKUP($D82,Point_Sources_All!$A$5:$AK$204,$C$4+16),0)/1000 -> 1.4968e-05 | M82: =IF($C$8>=$D$20,VLOOKUP($D82,Point_Sources_All!$A$5:$AK$204,$C$4+19),0)/1000 -> 5.2779e-05 | N82: =IF($C$8>=$D$21,VLOOKUP($D82,Point_Sources_All!$A$5:$AK$204,$C$4+22),0)/1000 -> 5.3335e-06 | O82: =IF($C$8>=$D$22,VLOOKUP($D82,Point_Sources_All!$A$5:$AK$204,$C$4+25),0)/1000 -> 6.723033333e-05 | P82: =IF($C$8>=$D$23,VLOOKUP($D82,Point_Sources_All!$A$5:$AK$204,$C$4+28),0)/1000 -> 8.69455e-06 | Q82: =IF($C$8>=$D$24,VLOOKUP($D82,Point_Sources_All!$A$5:$AK$204,$C$4+31),0)/1000 -> 0.028371 | R82: =IF($C$8>=$D$25,VLOOKUP($D82,Point_Sources_All!$A$5:$AK$204,$C$4+34),0)/1000 -> 0.028
D83: 55 | E83: =VLOOKUP($D83,Background_All!$A$5:$Y$204,3*($C$8-1)+$C$4+1)/1000 -> 0.01042720833 | F83: =VLOOKUP($D83,Background_All!$AA$5:$AY$204,3*($C$8-1)+$C$4+1)/1000 -> 0.0305125475 | G83: =IF($C$8>=$D$14,VLOOKUP($D83,Point_Sources_All!$A$5:$AK$204,$C$4+1),0)/1000 -> 0.0020288 | H83: =IF($C$8>=$D$15,VLOOKUP($D83,Point_Sources_All!$A$5:$AK$204,$C$4+4),0)/1000 -> 0 | I83: =IF($C$8>=$D$16,VLOOKUP($D83,Point_Sources_All!$A$5:$AK$204,$C$4+7),0)/1000 -> 0.000156 | J83: =IF($C$8>=$D$17,VLOOKUP($D83,Point_Sources_All!$A$5:$AK$204,$C$4+10),0)/1000 -> 1.6187e-05 | K83: =IF($C$8>=$D$18,VLOOKUP($D83,Point_Sources_All!$A$5:$AK$204,$C$4+13),0)/1000 -> 2.964e-05 | L83: =IF($C$8>=$D$19,VLOOKUP($D83,Point_Sources_All!$A$5:$AK$204,$C$4+16),0)/1000 -> 1.4968e-05 | M83: =IF($C$8>=$D$20,VLOOKUP($D83,Point_Sources_All!$A$5:$AK$204,$C$4+19),0)/1000 -> 5.2779e-05 | N83: =IF($C$8>=$D$21,VLOOKUP($D83,Point_Sources_All!$A$5:$AK$204,$C$4+22),0)/1000 -> 5.3335e-06 | O83: =IF($C$8>=$D$22,VLOOKUP($D83,Point_Sources_All!$A$5:$AK$204,$C$4+25),0)/1000 -> 6.7307e-05 | P83: =IF($C$8>=$D$23,VLOOKUP($D83,Point_Sources_All!$A$5:$AK$204,$C$4+28),0)/1000 -> 8.783466667e-06 | Q83: =IF($C$8>=$D$24,VLOOKUP($D83,Point_Sources_All!$A$5:$AK$204,$C$4+31),0)/1000 -> 0.028371 | R83: =IF($C$8>=$D$25,VLOOKUP($D83,Point_Sources_All!$A$5:$AK$204,$C$4+34),0)/1000 -> 0.028
D84: 56 | E84: =VLOOKUP($D84,Background_All!$A$5:$Y$204,3*($C$8-1)+$C$4+1)/1000 -> 0.01048429167 | F84: =VLOOKUP($D84,Background_All!$AA$5:$AY$204,3*($C$8-1)+$C$4+1)/1000 -> 0.02946040472 | G84: =IF($C$8>=$D$14,VLOOKUP($D84,Point_Sources_All!$A$5:$AK$204,$C$4+1),0)/1000 -> 0.0001690666667 | H84: =IF($C$8>=$D$15,VLOOKUP($D84,Point_Sources_All!$A$5:$AK$204,$C$4+4),0)/1000 -> 0 | I84: =IF($C$8>=$D$16,VLOOKUP($D84,Point_Sources_All!$A$5:$AK$204,$C$4+7),0)/1000 -> 0.000156 | J84: =IF($C$8>=$D$17,VLOOKUP($D84,Point_Sources_All!$A$5:$AK$204,$C$4+10),0)/1000 -> 1.6187e-05 | K84: =IF($C$8>=$D$18,VLOOKUP($D84,Point_Sources_All!$A$5:$AK$204,$C$4+13),0)/1000 -> 2.964e-05 | L84: =IF($C$8>=$D$19,VLOOKUP($D84,Point_Sources_All!$A$5:$AK$204,$C$4+16),0)/1000 -> 1.4968e-05 | M84: =IF($C$8>=$D$20,VLOOKUP($D84,Point_Sources_All!$A$5:$AK$204,$C$4+19),0)/1000 -> 5.2779e-05 | N84: =IF($C$8>=$D$21,VLOOKUP($D84,Point_Sources_All!$A$5:$AK$204,$C$4+22),0)/1000 -> 5.3335e-06 | O84: =IF($C$8>=$D$22,VLOOKUP($D84,Point_Sources_All!$A$5:$AK$204,$C$4+25),0)/1000 -> 6.7307e-05 | P84: =IF($C$8>=$D$23,VLOOKUP($D84,Point_Sources_All!$A$5:$AK$204,$C$4+28),0)/1000 -> 8.8028e-06 | Q84: =IF($C$8>=$D$24,VLOOKUP($D84,Point_Sources_All!$A$5:$AK$204,$C$4+31),0)/1000 -> 0.028371 | R84: =IF($C$8>=$D$25,VLOOKUP($D84,Point_Sources_All!$A$5:$AK$204,$C$4+34),0)/1000 -> 0.028
D85: 57 | E85: =VLOOKUP($D85,Background_All!$A$5:$Y$204,3*($C$8-1)+$C$4+1)/1000 -> 0.01039370833 | F85: =VLOOKUP($D85,Background_All!$AA$5:$AY$204,3*($C$8-1)+$C$4+1)/1000 -> 0.03028204667 | G85: =IF($C$8>=$D$14,VLOOKUP($D85,Point_Sources_All!$A$5:$AK$204,$C$4+1),0)/1000 -> 0 | H85: =IF($C$8>=$D$15,VLOOKUP($D85,Point_Sources_All!$A$5:$AK$204,$C$4+4),0)/1000 -> 0 | I85: =IF($C$8>=$D$16,VLOOKUP($D85,Point_Sources_All!$A$5:$AK$204,$C$4+7),0)/1000 -> 0.000156 | J85: =IF($C$8>=$D$17,VLOOKUP($D85,Point_Sources_All!$A$5:$AK$204,$C$4+10),0)/1000 -> 1.6187e-05 | K85: =IF($C$8>=$D$18,VLOOKUP($D85,Point_Sources_All!$A$5:$AK$204,$C$4+13),0)/1000 -> 2.964e-05 | L85: =IF($C$8>=$D$19,VLOOKUP($D85,Point_Sources_All!$A$5:$AK$204,$C$4+16),0)/1000 -> 1.4968e-05 | M85: =IF($C$8>=$D$20,VLOOKUP($D85,Point_Sources_All!$A$5:$AK$204,$C$4+19),0)/1000 -> 5.2779e-05 | N85: =IF($C$8>=$D$21,VLOOKUP($D85,Point_Sources_All!$A$5:$AK$204,$C$4+22),0)/1000 -> 5.3335e-06 | O85: =IF($C$8>=$D$22,VLOOKUP($D85,Point_Sources_All!$A$5:$AK$204,$C$4+25),0)/1000 -> 6.7307e-05 | P85: =IF($C$8>=$D$23,VLOOKUP($D85,Point_Sources_All!$A$5:$AK$204,$C$4+28),0)/1000 -> 8.8028e-06 | Q85: =IF($C$8>=$D$24,VLOOKUP($D85,Point_Sources_All!$A$5:$AK$204,$C$4+31),0)/1000 -> 0.028371 | R85: =IF($C$8>=$D$25,VLOOKUP($D85,Point_Sources_All!$A$5:$AK$204,$C$4+34),0)/1000 -> 0.028
D86: 58 | E86: =VLOOKUP($D86,Background_All!$A$5:$Y$204,3*($C$8-1)+$C$4+1)/1000 -> 0.01058903333 | F86: =VLOOKUP($D86,Background_All!$AA$5:$AY$204,3*($C$8-1)+$C$4+1)/1000 -> 0.0303210675 | G86: =IF($C$8>=$D$14,VLOOKUP($D86,Point_Sources_All!$A$5:$AK$204,$C$4+1),0)/1000 -> 0 | H86: =IF($C$8>=$D$15,VLOOKUP($D86,Point_Sources_All!$A$5:$AK$204,$C$4+4),0)/1000 -> 0 | I86: =IF($C$8>=$D$16,VLOOKUP($D86,Point_Sources_All!$A$5:$AK$204,$C$4+7),0)/1000 -> 0.000156 | J86: =IF($C$8>=$D$17,VLOOKUP($D86,Point_Sources_All!$A$5:$AK$204,$C$4+10),0)/1000 -> 1.6187e-05 | K86: =IF($C$8>=$D$18,VLOOKUP($D86,Point_Sources_All!$A$5:$AK$204,$C$4+13),0)/1000 -> 2.964e-05 | L86: =IF($C$8>=$D$19,VLOOKUP($D86,Point_Sources_All!$A$5:$AK$204,$C$4+16),0)/1000 -> 1.4968e-05 | M86: =IF($C$8>=$D$20,VLOOKUP($D86,Point_Sources_All!$A$5:$AK$204,$C$4+19),0)/1000 -> 5.2779e-05 | N86: =IF($C$8>=$D$21,VLOOKUP($D86,Point_Sources_All!$A$5:$AK$204,$C$4+22),0)/1000 -> 5.3335e-06 | O86: =IF($C$8>=$D$22,VLOOKUP($D86,Point_Sources_All!$A$5:$AK$204,$C$4+25),0)/1000 -> 6.7307e-05 | P86: =IF($C$8>=$D$23,VLOOKUP($D86,Point_Sources_All!$A$5:$AK$204,$C$4+28),0)/1000 -> 8.8028e-06 | Q86: =IF($C$8>=$D$24,VLOOKUP($D86,Point_Sources_All!$A$5:$AK$204,$C$4+31),0)/1000 -> 0.028371 | R86: =IF($C$8>=$D$25,VLOOKUP($D86,Point_Sources_All!$A$5:$AK$204,$C$4+34),0)/1000 -> 0.028
D87: 59 | E87: =VLOOKUP($D87,Background_All!$A$5:$Y$204,3*($C$8-1)+$C$4+1)/1000 -> 0.01041029167 | F87: =VLOOKUP($D87,Background_All!$AA$5:$AY$204,3*($C$8-1)+$C$4+1)/1000 -> 0.02828408833 | G87: =IF($C$8>=$D$14,VLOOKUP($D87,Point_Sources_All!$A$5:$AK$204,$C$4+1),0)/1000 -> 0 | H87: =IF($C$8>=$D$15,VLOOKUP($D87,Point_Sources_All!$A$5:$AK$204,$C$4+4),0)/1000 -> 0 | I87: =IF($C$8>=$D$16,VLOOKUP($D87,Point_Sources_All!$A$5:$AK$204,$C$4+7),0)/1000 -> 0.000156 | J87: =IF($C$8>=$D$17,VLOOKUP($D87,Point_Sources_All!$A$5:$AK$204,$C$4+10),0)/1000 -> 1.6187e-05 | K87: =IF($C$8>=$D$18,VLOOKUP($D87,Point_Sources_All!$A$5:$AK$204,$C$4+13),0)/1000 -> 2.964e-05 | L87: =IF($C$8>=$D$19,VLOOKUP($D87,Point_Sources_All!$A$5:$AK$204,$C$4+16),0)/1000 -> 1.4968e-05 | M87: =IF($C$8>=$D$20,VLOOKUP($D87,Point_Sources_All!$A$5:$AK$204,$C$4+19),0)/1000 -> 5.2779e-05 | N87: =IF($C$8>=$D$21,VLOOKUP($D87,Point_Sources_All!$A$5:$AK$204,$C$4+22),0)/1000 -> 5.3335e-06 | O87: =IF($C$8>=$D$22,VLOOKUP($D87,Point_Sources_All!$A$5:$AK$204,$C$4+25),0)/1000 -> 6.7307e-05 | P87: =IF($C$8>=$D$23,VLOOKUP($D87,Point_Sources_All!$A$5:$AK$204,$C$4+28),0)/1000 -> 8.8028e-06 | Q87: =IF($C$8>=$D$24,VLOOKUP($D87,Point_Sources_All!$A$5:$AK$204,$C$4+31),0)/1000 -> 0.028371 | R87: =IF($C$8>=$D$25,VLOOKUP($D87,Point_Sources_All!$A$5:$AK$204,$C$4+34),0)/1000 -> 0.028
D88: 60 | E88: =VLOOKUP($D88,Background_All!$A$5:$Y$204,3*($C$8-1)+$C$4+1)/1000 -> 0.01042631667 | F88: =VLOOKUP($D88,Background_All!$AA$5:$AY$204,3*($C$8-1)+$C$4+1)/1000 -> 0.02826671292 | G88: =IF($C$8>=$D$14,VLOOKUP($D88,Point_Sources_All!$A$5:$AK$204,$C$4+1),0)/1000 -> 0 | H88: =IF($C$8>=$D$15,VLOOKUP($D88,Point_Sources_All!$A$5:$AK$204,$C$4+4),0)/1000 -> 0 | I88: =IF($C$8>=$D$16,VLOOKUP($D88,Point_Sources_All!$A$5:$AK$204,$C$4+7),0)/1000 -> 0.000156 | J88: =IF($C$8>=$D$17,VLOOKUP($D88,Point_Sources_All!$A$5:$AK$204,$C$4+10),0)/1000 -> 1.6187e-05 | K88: =IF($C$8>=$D$18,VLOOKUP($D88,Point_Sources_All!$A$5:$AK$204,$C$4+13),0)/1000 -> 2.964e-05 | L88: =IF($C$8>=$D$19,VLOOKUP($D88,Point_Sources_All!$A$5:$AK$204,$C$4+16),0)/1000 -> 1.4968e-05 | M88: =IF($C$8>=$D$20,VLOOKUP($D88,Point_Sources_All!$A$5:$AK$204,$C$4+19),0)/1000 -> 5.2779e-05 | N88: =IF($C$8>=$D$21,VLOOKUP($D88,Point_Sources_All!$A$5:$AK$204,$C$4+22),0)/1000 -> 5.3335e-06 | O88: =IF($C$8>=$D$22,VLOOKUP($D88,Point_Sources_All!$A$5:$AK$204,$C$4+25),0)/1000 -> 6.7307e-05 | P88: =IF($C$8>=$D$23,VLOOKUP($D88,Point_Sources_All!$A$5:$AK$204,$C$4+28),0)/1000 -> 8.8028e-06 | Q88: =IF($C$8>=$D$24,VLOOKUP($D88,Point_Sources_All!$A$5:$AK$204,$C$4+31),0)/1000 -> 0.028371 | R88: =IF($C$8>=$D$25,VLOOKUP($D88,Point_Sources_All!$A$5:$AK$204,$C$4+34),0)/1000 -> 0.028
D89: 61 | E89: =VLOOKUP($D89,Background_All!$A$5:$Y$204,3*($C$8-1)+$C$4+1)/1000 -> 0.01068376667 | F89: =VLOOKUP($D89,Background_All!$AA$5:$AY$204,3*($C$8-1)+$C$4+1)/1000 -> 0.02915578183 | G89: =IF($C$8>=$D$14,VLOOKUP($D89,Point_Sources_All!$A$5:$AK$204,$C$4+1),0)/1000 -> 0 | H89: =IF($C$8>=$D$15,VLOOKUP($D89,Point_Sources_All!$A$5:$AK$204,$C$4+4),0)/1000 -> 0 | I89: =IF($C$8>=$D$16,VLOOKUP($D89,Point_Sources_All!$A$5:$AK$204,$C$4+7),0)/1000 -> 0.000156 | J89: =IF($C$8>=$D$17,VLOOKUP($D89,Point_Sources_All!$A$5:$AK$204,$C$4+10),0)/1000 -> 1.6187e-05 | K89: =IF($C$8>=$D$18,VLOOKUP($D89,Point_Sources_All!$A$5:$AK$204,$C$4+13),0)/1000 -> 2.964e-05 | L89: =IF($C$8>=$D$19,VLOOKUP($D89,Point_Sources_All!$A$5:$AK$204,$C$4+16),0)/1000 -> 1.4968e-05 | M89: =IF($C$8>=$D$20,VLOOKUP($D89,Point_Sources_All!$A$5:$AK$204,$C$4+19),0)/1000 -> 5.2779e-05 | N89: =IF($C$8>=$D$21,VLOOKUP($D89,Point_Sources_All!$A$5:$AK$204,$C$4+22),0)/1000 -> 5.3335e-06 | O89: =IF($C$8>=$D$22,VLOOKUP($D89,Point_Sources_All!$A$5:$AK$204,$C$4+25),0)/1000 -> 6.7307e-05 | P89: =IF($C$8>=$D$23,VLOOKUP($D89,Point_Sources_All!$A$5:$AK$204,$C$4+28),0)/1000 -> 8.8028e-06 | Q89: =IF($C$8>=$D$24,VLOOKUP($D89,Point_Sources_All!$A$5:$AK$204,$C$4+31),0)/1000 -> 0.028371 | R89: =IF($C$8>=$D$25,VLOOKUP($D89,Point_Sources_All!$A$5:$AK$204,$C$4+34),0)/1000 -> 0.028
D90: 62 | E90: =VLOOKUP($D90,Background_All!$A$5:$Y$204,3*($C$8-1)+$C$4+1)/1000 -> 0.01042506667 | F90: =VLOOKUP($D90,Background_All!$AA$5:$AY$204,3*($C$8-1)+$C$4+1)/1000 -> 0.02971716583 | G90: =IF($C$8>=$D$14,VLOOKUP($D90,Point_Sources_All!$A$5:$AK$204,$C$4+1),0)/1000 -> 0 | H90: =IF($C$8>=$D$15,VLOOKUP($D90,Point_Sources_All!$A$5:$AK$204,$C$4+4),0)/1000 -> 0 | I90: =IF($C$8>=$D$16,VLOOKUP($D90,Point_Sources_All!$A$5:$AK$204,$C$4+7),0)/1000 -> 0.000156 | J90: =IF($C$8>=$D$17,VLOOKUP($D90,Point_Sources_All!$A$5:$AK$204,$C$4+10),0)/1000 -> 1.6187e-05 | K90: =IF($C$8>=$D$18,VLOOKUP($D90,Point_Sources_All!$A$5:$AK$204,$C$4+13),0)/1000 -> 2.964e-05 | L90: =IF($C$8>=$D$19,VLOOKUP($D90,Point_Sources_All!$A$5:$AK$204,$C$4+16),0)/1000 -> 1.4968e-05 | M90: =IF($C$8>=$D$20,VLOOKUP($D90,Point_Sources_All!$A$5:$AK$204,$C$4+19),0)/1000 -> 5.2779e-05 | N90: =IF($C$8>=$D$21,VLOOKUP($D90,Point_Sources_All!$A$5:$AK$204,$C$4+22),0)/1000 -> 5.3335e-06 | O90: =IF($C$8>=$D$22,VLOOKUP($D90,Point_Sources_All!$A$5:$AK$204,$C$4+25),0)/1000 -> 6.7307e-05 | P90: =IF($C$8>=$D$23,VLOOKUP($D90,Point_Sources_All!$A$5:$AK$204,$C$4+28),0)/1000 -> 8.8028e-06 | Q90: =IF($C$8>=$D$24,VLOOKUP($D90,Point_Sources_All!$A$5:$AK$204,$C$4+31),0)/1000 -> 0.028371 | R90: =IF($C$8>=$D$25,VLOOKUP($D90,Point_Sources_All!$A$5:$AK$204,$C$4+34),0)/1000 -> 0.028
D91: 63 | E91: =VLOOKUP($D91,Background_All!$A$5:$Y$204,3*($C$8-1)+$C$4+1)/1000 -> 0.010436975 | F91: =VLOOKUP($D91,Background_All!$AA$5:$AY$204,3*($C$8-1)+$C$4+1)/1000 -> 0.03056711667 | G91: =IF($C$8>=$D$14,VLOOKUP($D91,Point_Sources_All!$A$5:$AK$204,$C$4+1),0)/1000 -> 0 | H91: =IF($C$8>=$D$15,VLOOKUP($D91,Point_Sources_All!$A$5:$AK$204,$C$4+4),0)/1000 -> 0 | I91: =IF($C$8>=$D$16,VLOOKUP($D91,Point_Sources_All!$A$5:$AK$204,$C$4+7),0)/1000 -> 0.000156 | J91: =IF($C$8>=$D$17,VLOOKUP($D91,Point_Sources_All!$A$5:$AK$204,$C$4+10),0)/1000 -> 1.6187e-05 | K91: =IF($C$8>=$D$18,VLOOKUP($D91,Point_Sources_All!$A$5:$AK$204,$C$4+13),0)/1000 -> 2.964e-05 | L91: =IF($C$8>=$D$19,VLOOKUP($D91,Point_Sources_All!$A$5:$AK$204,$C$4+16),0)/1000 -> 1.4968e-05 | M91: =IF($C$8>=$D$20,VLOOKUP($D91,Point_Sources_All!$A$5:$AK$204,$C$4+19),0)/1000 -> 5.2779e-05 | N91: =IF($C$8>=$D$21,VLOOKUP($D91,Point_Sources_All!$A$5:$AK$204,$C$4+22),0)/1000 -> 5.3335e-06 | O91: =IF($C$8>=$D$22,VLOOKUP($D91,Point_Sources_All!$A$5:$AK$204,$C$4+25),0)/1000 -> 6.7307e-05 | P91: =IF($C$8>=$D$23,VLOOKUP($D91,Point_Sources_All!$A$5:$AK$204,$C$4+28),0)/1000 -> 8.8028e-06 | Q91: =IF($C$8>=$D$24,VLOOKUP($D91,Point_Sources_All!$A$5:$AK$204,$C$4+31),0)/1000 -> 0.028371 | R91: =IF($C$8>=$D$25,VLOOKUP($D91,Point_Sources_All!$A$5:$AK$204,$C$4+34),0)/1000 -> 0.028
D92: 64 | E92: =VLOOKUP($D92,Background_All!$A$5:$Y$204,3*($C$8-1)+$C$4+1)/1000 -> 0.01052134167 | F92: =VLOOKUP($D92,Background_All!$AA$5:$AY$204,3*($C$8-1)+$C$4+1)/1000 -> 0.03133519565 | G92: =IF($C$8>=$D$14,VLOOKUP($D92,Point_Sources_All!$A$5:$AK$204,$C$4+1),0)/1000 -> 0 | H92: =IF($C$8>=$D$15,VLOOKUP($D92,Point_Sources_All!$A$5:$AK$204,$C$4+4),0)/1000 -> 0 | I92: =IF($C$8>=$D$16,VLOOKUP($D92,Point_Sources_All!$A$5:$AK$204,$C$4+7),0)/1000 -> 0.000156 | J92: =IF($C$8>=$D$17,VLOOKUP($D92,Point_Sources_All!$A$5:$AK$204,$C$4+10),0)/1000 -> 1.6187e-05 | K92: =IF($C$8>=$D$18,VLOOKUP($D92,Point_Sources_All!$A$5:$AK$204,$C$4+13),0)/1000 -> 2.964e-05 | L92: =IF($C$8>=$D$19,VLOOKUP($D92,Point_Sources_All!$A$5:$AK$204,$C$4+16),0)/1000 -> 1.4968e-05 | M92: =IF($C$8>=$D$20,VLOOKUP($D92,Point_Sources_All!$A$5:$AK$204,$C$4+19),0)/1000 -> 5.2779e-05 | N92: =IF($C$8>=$D$21,VLOOKUP($D92,Point_Sources_All!$A$5:$AK$204,$C$4+22),0)/1000 -> 5.3335e-06 | O92: =IF($C$8>=$D$22,VLOOKUP($D92,Point_Sources_All!$A$5:$AK$204,$C$4+25),0)/1000 -> 6.7307e-05 | P92: =IF($C$8>=$D$23,VLOOKUP($D92,Point_Sources_All!$A$5:$AK$204,$C$4+28),0)/1000 -> 8.8028e-06 | Q92: =IF($C$8>=$D$24,VLOOKUP($D92,Point_Sources_All!$A$5:$AK$204,$C$4+31),0)/1000 -> 0.028371 | R92: =IF($C$8>=$D$25,VLOOKUP($D92,Point_Sources_All!$A$5:$AK$204,$C$4+34),0)/1000 -> 0.028
D93: 65 | E93: =VLOOKUP($D93,Background_All!$A$5:$Y$204,3*($C$8-1)+$C$4+1)/1000 -> 0.01050323333 | F93: =VLOOKUP($D93,Background_All!$AA$5:$AY$204,3*($C$8-1)+$C$4+1)/1000 -> 0.02660915333 | G93: =IF($C$8>=$D$14,VLOOKUP($D93,Point_Sources_All!$A$5:$AK$204,$C$4+1),0)/1000 -> 0 | H93: =IF($C$8>=$D$15,VLOOKUP($D93,Point_Sources_All!$A$5:$AK$204,$C$4+4),0)/1000 -> 0 | I93: =IF($C$8>=$D$16,VLOOKUP($D93,Point_Sources_All!$A$5:$AK$204,$C$4+7),0)/1000 -> 0.000156 | J93: =IF($C$8>=$D$17,VLOOKUP($D93,Point_Sources_All!$A$5:$AK$204,$C$4+10),0)/1000 -> 1.6187e-05 | K93: =IF($C$8>=$D$18,VLOOKUP($D93,Point_Sources_All!$A$5:$AK$204,$C$4+13),0)/1000 -> 2.964e-05 | L93: =IF($C$8>=$D$19,VLOOKUP($D93,Point_Sources_All!$A$5:$AK$204,$C$4+16),0)/1000 -> 1.4968e-05 | M93: =IF($C$8>=$D$20,VLOOKUP($D93,Point_Sources_All!$A$5:$AK$204,$C$4+19),0)/1000 -> 5.2779e-05 | N93: =IF($C$8>=$D$21,VLOOKUP($D93,Point_Sources_All!$A$5:$AK$204,$C$4+22),0)/1000 -> 5.3335e-06 | O93: =IF($C$8>=$D$22,VLOOKUP($D93,Point_Sources_All!$A$5:$AK$204,$C$4+25),0)/1000 -> 6.7307e-05 | P93: =IF($C$8>=$D$23,VLOOKUP($D93,Point_Sources_All!$A$5:$AK$204,$C$4+28),0)/1000 -> 8.8028e-06 | Q93: =IF($C$8>=$D$24,VLOOKUP($D93,Point_Sources_All!$A$5:$AK$204,$C$4+31),0)/1000 -> 0.028371 | R93: =IF($C$8>=$D$25,VLOOKUP($D93,Point_Sources_All!$A$5:$AK$204,$C$4+34),0)/1000 -> 0.028
D94: 66 | E94: =VLOOKUP($D94,Background_All!$A$5:$Y$204,3*($C$8-1)+$C$4+1)/1000 -> 0.01039340833 | F94: =VLOOKUP($D94,Background_All!$AA$5:$AY$204,3*($C$8-1)+$C$4+1)/1000 -> 0.0294194825 | G94: =IF($C$8>=$D$14,VLOOKUP($D94,Point_Sources_All!$A$5:$AK$204,$C$4+1),0)/1000 -> 0 | H94: =IF($C$8>=$D$15,VLOOKUP($D94,Point_Sources_All!$A$5:$AK$204,$C$4+4),0)/1000 -> 0 | I94: =IF($C$8>=$D$16,VLOOKUP($D94,Point_Sources_All!$A$5:$AK$204,$C$4+7),0)/1000 -> 0.000156 | J94: =IF($C$8>=$D$17,VLOOKUP($D94,Point_Sources_All!$A$5:$AK$204,$C$4+10),0)/1000 -> 1.6187e-05 | K94: =IF($C$8>=$D$18,VLOOKUP($D94,Point_Sources_All!$A$5:$AK$204,$C$4+13),0)/1000 -> 2.964e-05 | L94: =IF($C$8>=$D$19,VLOOKUP($D94,Point_Sources_All!$A$5:$AK$204,$C$4+16),0)/1000 -> 1.4968e-05 | M94: =IF($C$8>=$D$20,VLOOKUP($D94,Point_Sources_All!$A$5:$AK$204,$C$4+19),0)/1000 -> 5.2779e-05 | N94: =IF($C$8>=$D$21,VLOOKUP($D94,Point_Sources_All!$A$5:$AK$204,$C$4+22),0)/1000 -> 5.3335e-06 | O94: =IF($C$8>=$D$22,VLOOKUP($D94,Point_Sources_All!$A$5:$AK$204,$C$4+25),0)/1000 -> 6.7307e-05 | P94: =IF($C$8>=$D$23,VLOOKUP($D94,Point_Sources_All!$A$5:$AK$204,$C$4+28),0)/1000 -> 8.8028e-06 | Q94: =IF($C$8>=$D$24,VLOOKUP($D94,Point_Sources_All!$A$5:$AK$204,$C$4+31),0)/1000 -> 0.028371 | R94: =IF($C$8>=$D$25,VLOOKUP($D94,Point_Sources_All!$A$5:$AK$204,$C$4+34),0)/1000 -> 0.028
D95: 67 | E95: =VLOOKUP($D95,Background_All!$A$5:$Y$204,3*($C$8-1)+$C$4+1)/1000 -> 0.010431925 | F95: =VLOOKUP($D95,Background_All!$AA$5:$AY$204,3*($C$8-1)+$C$4+1)/1000 -> 0.03096728083 | G95: =IF($C$8>=$D$14,VLOOKUP($D95,Point_Sources_All!$A$5:$AK$204,$C$4+1),0)/1000 -> 0 | H95: =IF($C$8>=$D$15,VLOOKUP($D95,Point_Sources_All!$A$5:$AK$204,$C$4+4),0)/1000 -> 0 | I95: =IF($C$8>=$D$16,VLOOKUP($D95,Point_Sources_All!$A$5:$AK$204,$C$4+7),0)/1000 -> 0.000156 | J95: =IF($C$8>=$D$17,VLOOKUP($D95,Point_Sources_All!$A$5:$AK$204,$C$4+10),0)/1000 -> 1.6187e-05 | K95: =IF($C$8>=$D$18,VLOOKUP($D95,Point_Sources_All!$A$5:$AK$204,$C$4+13),0)/1000 -> 2.964e-05 | L95: =IF($C$8>=$D$19,VLOOKUP($D95,Point_Sources_All!$A$5:$AK$204,$C$4+16),0)/1000 -> 1.4968e-05 | M95: =IF($C$8>=$D$20,VLOOKUP($D95,Point_Sources_All!$A$5:$AK$204,$C$4+19),0)/1000 -> 5.2779e-05 | N95: =IF($C$8>=$D$21,VLOOKUP($D95,Point_Sources_All!$A$5:$AK$204,$C$4+22),0)/1000 -> 5.3335e-06 | O95: =IF($C$8>=$D$22,VLOOKUP($D95,Point_Sources_All!$A$5:$AK$204,$C$4+25),0)/1000 -> 6.7307e-05 | P95: =IF($C$8>=$D$23,VLOOKUP($D95,Point_Sources_All!$A$5:$AK$204,$C$4+28),0)/1000 -> 8.8028e-06 | Q95: =IF($C$8>=$D$24,VLOOKUP($D95,Point_Sources_All!$A$5:$AK$204,$C$4+31),0)/1000 -> 0.028371 | R95: =IF($C$8>=$D$25,VLOOKUP($D95,Point_Sources_All!$A$5:$AK$204,$C$4+34),0)/1000 -> 0.028
D96: 68 | E96: =VLOOKUP($D96,Background_All!$A$5:$Y$204,3*($C$8-1)+$C$4+1)/1000 -> 0.01049029167 | F96: =VLOOKUP($D96,Background_All!$AA$5:$AY$204,3*($C$8-1)+$C$4+1)/1000 -> 0.03015816967 | G96: =IF($C$8>=$D$14,VLOOKUP($D96,Point_Sources_All!$A$5:$AK$204,$C$4+1),0)/1000 -> 0 | H96: =IF($C$8>=$D$15,VLOOKUP($D96,Point_Sources_All!$A$5:$AK$204,$C$4+4),0)/1000 -> 0 | I96: =IF($C$8>=$D$16,VLOOKUP($D96,Point_Sources_All!$A$5:$AK$204,$C$4+7),0)/1000 -> 0.000156 | J96: =IF($C$8>=$D$17,VLOOKUP($D96,Point_Sources_All!$A$5:$AK$204,$C$4+10),0)/1000 -> 1.6187e-05 | K96: =IF($C$8>=$D$18,VLOOKUP($D96,Point_Sources_All!$A$5:$AK$204,$C$4+13),0)/1000 -> 2.964e-05 | L96: =IF($C$8>=$D$19,VLOOKUP($D96,Point_Sources_All!$A$5:$AK$204,$C$4+16),0)/1000 -> 1.4968e-05 | M96: =IF($C$8>=$D$20,VLOOKUP($D96,Point_Sources_All!$A$5:$AK$204,$C$4+19),0)/1000 -> 5.2779e-05 | N96: =IF($C$8>=$D$21,VLOOKUP($D96,Point_Sources_All!$A$5:$AK$204,$C$4+22),0)/1000 -> 5.3335e-06 | O96: =IF($C$8>=$D$22,VLOOKUP($D96,Point_Sources_All!$A$5:$AK$204,$C$4+25),0)/1000 -> 6.7307e-05 | P96: =IF($C$8>=$D$23,VLOOKUP($D96,Point_Sources_All!$A$5:$AK$204,$C$4+28),0)/1000 -> 8.8028e-06 | Q96: =IF($C$8>=$D$24,VLOOKUP($D96,Point_Sources_All!$A$5:$AK$204,$C$4+31),0)/1000 -> 0.028371 | R96: =IF($C$8>=$D$25,VLOOKUP($D96,Point_Sources_All!$A$5:$AK$204,$C$4+34),0)/1000 -> 0.028
D97: 69 | E97: =VLOOKUP($D97,Background_All!$A$5:$Y$204,3*($C$8-1)+$C$4+1)/1000 -> 0.01041853333 | F97: =VLOOKUP($D97,Background_All!$AA$5:$AY$204,3*($C$8-1)+$C$4+1)/1000 -> 0.02983831167 | G97: =IF($C$8>=$D$14,VLOOKUP($D97,Point_Sources_All!$A$5:$AK$204,$C$4+1),0)/1000 -> 0 | H97: =IF($C$8>=$D$15,VLOOKUP($D97,Point_Sources_All!$A$5:$AK$204,$C$4+4),0)/1000 -> 0 | I97: =IF($C$8>=$D$16,VLOOKUP($D97,Point_Sources_All!$A$5:$AK$204,$C$4+7),0)/1000 -> 0.000156 | J97: =IF($C$8>=$D$17,VLOOKUP($D97,Point_Sources_All!$A$5:$AK$204,$C$4+10),0)/1000 -> 1.6187e-05 | K97: =IF($C$8>=$D$18,VLOOKUP($D97,Point_Sources_All!$A$5:$AK$204,$C$4+13),0)/1000 -> 2.964e-05 | L97: =IF($C$8>=$D$19,VLOOKUP($D97,Point_Sources_All!$A$5:$AK$204,$C$4+16),0)/1000 -> 1.4968e-05 | M97: =IF($C$8>=$D$20,VLOOKUP($D97,Point_Sources_All!$A$5:$AK$204,$C$4+19),0)/1000 -> 5.2779e-05 | N97: =IF($C$8>=$D$21,VLOOKUP($D97,Point_Sources_All!$A$5:$AK$204,$C$4+22),0)/1000 -> 5.3335e-06 | O97: =IF($C$8>=$D$22,VLOOKUP($D97,Point_Sources_All!$A$5:$AK$204,$C$4+25),0)/1000 -> 6.7307e-05 | P97: =IF($C$8>=$D$23,VLOOKUP($D97,Point_Sources_All!$A$5:$AK$204,$C$4+28),0)/1000 -> 8.8028e-06 | Q97: =IF($C$8>=$D$24,VLOOKUP($D97,Point_Sources_All!$A$5:$AK$204,$C$4+31),0)/1000 -> 0.028371 | R97: =IF($C$8>=$D$25,VLOOKUP($D97,Point_Sources_All!$A$5:$AK$204,$C$4+34),0)/1000 -> 0.028
D98: 70 | E98: =VLOOKUP($D98,Background_All!$A$5:$Y$204,3*($C$8-1)+$C$4+1)/1000 -> 0.0106105 | F98: =VLOOKUP($D98,Background_All!$AA$5:$AY$204,3*($C$8-1)+$C$4+1)/1000 -> 0.03017911917 | G98: =IF($C$8>=$D$14,VLOOKUP($D98,Point_Sources_All!$A$5:$AK$204,$C$4+1),0)/1000 -> 0 | H98: =IF($C$8>=$D$15,VLOOKUP($D98,Point_Sources_All!$A$5:$AK$204,$C$4+4),0)/1000 -> 0 | I98: =IF($C$8>=$D$16,VLOOKUP($D98,Point_Sources_All!$A$5:$AK$204,$C$4+7),0)/1000 -> 0.000156 | J98: =IF($C$8>=$D$17,VLOOKUP($D98,Point_Sources_All!$A$5:$AK$204,$C$4+10),0)/1000 -> 1.6187e-05 | K98: =IF($C$8>=$D$18,VLOOKUP($D98,Point_Sources_All!$A$5:$AK$204,$C$4+13),0)/1000 -> 2.964e-05 | L98: =IF($C$8>=$D$19,VLOOKUP($D98,Point_Sources_All!$A$5:$AK$204,$C$4+16),0)/1000 -> 1.4968e-05 | M98: =IF($C$8>=$D$20,VLOOKUP($D98,Point_Sources_All!$A$5:$AK$204,$C$4+19),0)/1000 -> 5.2779e-05 | N98: =IF($C$8>=$D$21,VLOOKUP($D98,Point_Sources_All!$A$5:$AK$204,$C$4+22),0)/1000 -> 5.3335e-06 | O98: =IF($C$8>=$D$22,VLOOKUP($D98,Point_Sources_All!$A$5:$AK$204,$C$4+25),0)/1000 -> 6.7307e-05 | P98: =IF($C$8>=$D$23,VLOOKUP($D98,Point_Sources_All!$A$5:$AK$204,$C$4+28),0)/1000 -> 8.8028e-06 | Q98: =IF($C$8>=$D$24,VLOOKUP($D98,Point_Sources_All!$A$5:$AK$204,$C$4+31),0)/1000 -> 0.028371 | R98: =IF($C$8>=$D$25,VLOOKUP($D98,Point_Sources_All!$A$5:$AK$204,$C$4+34),0)/1000 -> 0.028
D99: 71 | E99: =VLOOKUP($D99,Background_All!$A$5:$Y$204,3*($C$8-1)+$C$4+1)/1000 -> 0.01049681667 | F99: =VLOOKUP($D99,Background_All!$AA$5:$AY$204,3*($C$8-1)+$C$4+1)/1000 -> 0.03128198917 | G99: =IF($C$8>=$D$14,VLOOKUP($D99,Point_Sources_All!$A$5:$AK$204,$C$4+1),0)/1000 -> 0 | H99: =IF($C$8>=$D$15,VLOOKUP($D99,Point_Sources_All!$A$5:$AK$204,$C$4+4),0)/1000 -> 0 | I99: =IF($C$8>=$D$16,VLOOKUP($D99,Point_Sources_All!$A$5:$AK$204,$C$4+7),0)/1000 -> 0.000156 | J99: =IF($C$8>=$D$17,VLOOKUP($D99,Point_Sources_All!$A$5:$AK$204,$C$4+10),0)/1000 -> 1.6187e-05 | K99: =IF($C$8>=$D$18,VLOOKUP($D99,Point_Sources_All!$A$5:$AK$204,$C$4+13),0)/1000 -> 2.964e-05 | L99: =IF($C$8>=$D$19,VLOOKUP($D99,Point_Sources_All!$A$5:$AK$204,$C$4+16),0)/1000 -> 1.4968e-05 | M99: =IF($C$8>=$D$20,VLOOKUP($D99,Point_Sources_All!$A$5:$AK$204,$C$4+19),0)/1000 -> 5.2779e-05 | N99: =IF($C$8>=$D$21,VLOOKUP($D99,Point_Sources_All!$A$5:$AK$204,$C$4+22),0)/1000 -> 5.3335e-06 | O99: =IF($C$8>=$D$22,VLOOKUP($D99,Point_Sources_All!$A$5:$AK$204,$C$4+25),0)/1000 -> 6.7307e-05 | P99: =IF($C$8>=$D$23,VLOOKUP($D99,Point_Sources_All!$A$5:$AK$204,$C$4+28),0)/1000 -> 8.8028e-06 | Q99: =IF($C$8>=$D$24,VLOOKUP($D99,Point_Sources_All!$A$5:$AK$204,$C$4+31),0)/1000 -> 0.028371 | R99: =IF($C$8>=$D$25,VLOOKUP($D99,Point_Sources_All!$A$5:$AK$204,$C$4+34),0)/1000 -> 0.028
D100: 72 | E100: =VLOOKUP($D100,Background_All!$A$5:$Y$204,3*($C$8-1)+$C$4+1)/1000 -> 0.0103946 | F100: =VLOOKUP($D100,Background_All!$AA$5:$AY$204,3*($C$8-1)+$C$4+1)/1000 -> 0.03282169833 | G100: =IF($C$8>=$D$14,VLOOKUP($D100,Point_Sources_All!$A$5:$AK$204,$C$4+1),0)/1000 -> 0 | H100: =IF($C$8>=$D$15,VLOOKUP($D100,Point_Sources_All!$A$5:$AK$204,$C$4+4),0)/1000 -> 0 | I100: =IF($C$8>=$D$16,VLOOKUP($D100,Point_Sources_All!$A$5:$AK$204,$C$4+7),0)/1000 -> 0.000156 | J100: =IF($C$8>=$D$17,VLOOKUP($D100,Point_Sources_All!$A$5:$AK$204,$C$4+10),0)/1000 -> 1.6187e-05 | K100: =IF($C$8>=$D$18,VLOOKUP($D100,Point_Sources_All!$A$5:$AK$204,$C$4+13),0)/1000 -> 2.964e-05 | L100: =IF($C$8>=$D$19,VLOOKUP($D100,Point_Sources_All!$A$5:$AK$204,$C$4+16),0)/1000 -> 1.4968e-05 | M100: =IF($C$8>=$D$20,VLOOKUP($D100,Point_Sources_All!$A$5:$AK$204,$C$4+19),0)/1000 -> 5.2779e-05 | N100: =IF($C$8>=$D$21,VLOOKUP($D100,Point_Sources_All!$A$5:$AK$204,$C$4+22),0)/1000 -> 5.3335e-06 | O100: =IF($C$8>=$D$22,VLOOKUP($D100,Point_Sources_All!$A$5:$AK$204,$C$4+25),0)/1000 -> 6.7307e-05 | P100: =IF($C$8>=$D$23,VLOOKUP($D100,Point_Sources_All!$A$5:$AK$204,$C$4+28),0)/1000 -> 8.8028e-06 | Q100: =IF($C$8>=$D$24,VLOOKUP($D100,Point_Sources_All!$A$5:$AK$204,$C$4+31),0)/1000 -> 0.028371 | R100: =IF($C$8>=$D$25,VLOOKUP($D100,Point_Sources_All!$A$5:$AK$204,$C$4+34),0)/1000 -> 0.028
D101: 73 | E101: =VLOOKUP($D101,Background_All!$A$5:$Y$204,3*($C$8-1)+$C$4+1)/1000 -> 0.01049228333 | F101: =VLOOKUP($D101,Background_All!$AA$5:$AY$204,3*($C$8-1)+$C$4+1)/1000 -> 0.02947566333 | G101: =IF($C$8>=$D$14,VLOOKUP($D101,Point_Sources_All!$A$5:$AK$204,$C$4+1),0)/1000 -> 0 | H101: =IF($C$8>=$D$15,VLOOKUP($D101,Point_Sources_All!$A$5:$AK$204,$C$4+4),0)/1000 -> 0 | I101: =IF($C$8>=$D$16,VLOOKUP($D101,Point_Sources_All!$A$5:$AK$204,$C$4+7),0)/1000 -> 0.000156 | J101: =IF($C$8>=$D$17,VLOOKUP($D101,Point_Sources_All!$A$5:$AK$204,$C$4+10),0)/1000 -> 1.6187e-05 | K101: =IF($C$8>=$D$18,VLOOKUP($D101,Point_Sources_All!$A$5:$AK$204,$C$4+13),0)/1000 -> 2.964e-05 | L101: =IF($C$8>=$D$19,VLOOKUP($D101,Point_Sources_All!$A$5:$AK$204,$C$4+16),0)/1000 -> 1.4968e-05 | M101: =IF($C$8>=$D$20,VLOOKUP($D101,Point_Sources_All!$A$5:$AK$204,$C$4+19),0)/1000 -> 5.2779e-05 | N101: =IF($C$8>=$D$21,VLOOKUP($D101,Point_Sources_All!$A$5:$AK$204,$C$4+22),0)/1000 -> 5.3335e-06 | O101: =IF($C$8>=$D$22,VLOOKUP($D101,Point_Sources_All!$A$5:$AK$204,$C$4+25),0)/1000 -> 6.7307e-05 | P101: =IF($C$8>=$D$23,VLOOKUP($D101,Point_Sources_All!$A$5:$AK$204,$C$4+28),0)/1000 -> 8.8028e-06 | Q101: =IF($C$8>=$D$24,VLOOKUP($D101,Point_Sources_All!$A$5:$AK$204,$C$4+31),0)/1000 -> 0.028371 | R101: =IF($C$8>=$D$25,VLOOKUP($D101,Point_Sources_All!$A$5:$AK$204,$C$4+34),0)/1000 -> 0.028
D102: 74 | E102: =VLOOKUP($D102,Background_All!$A$5:$Y$204,3*($C$8-1)+$C$4+1)/1000 -> 0.01042723333 | F102: =VLOOKUP($D102,Background_All!$AA$5:$AY$204,3*($C$8-1)+$C$4+1)/1000 -> 0.03051777583 | G102: =IF($C$8>=$D$14,VLOOKUP($D102,Point_Sources_All!$A$5:$AK$204,$C$4+1),0)/1000 -> 0 | H102: =IF($C$8>=$D$15,VLOOKUP($D102,Point_Sources_All!$A$5:$AK$204,$C$4+4),0)/1000 -> 0 | I102: =IF($C$8>=$D$16,VLOOKUP($D102,Point_Sources_All!$A$5:$AK$204,$C$4+7),0)/1000 -> 0.000156 | J102: =IF($C$8>=$D$17,VLOOKUP($D102,Point_Sources_All!$A$5:$AK$204,$C$4+10),0)/1000 -> 1.6187e-05 | K102: =IF($C$8>=$D$18,VLOOKUP($D102,Point_Sources_All!$A$5:$AK$204,$C$4+13),0)/1000 -> 2.964e-05 | L102: =IF($C$8>=$D$19,VLOOKUP($D102,Point_Sources_All!$A$5:$AK$204,$C$4+16),0)/1000 -> 1.4968e-05 | M102: =IF($C$8>=$D$20,VLOOKUP($D102,Point_Sources_All!$A$5:$AK$204,$C$4+19),0)/1000 -> 5.2779e-05 | N102: =IF($C$8>=$D$21,VLOOKUP($D102,Point_Sources_All!$A$5:$AK$204,$C$4+22),0)/1000 -> 5.3335e-06 | O102: =IF($C$8>=$D$22,VLOOKUP($D102,Point_Sources_All!$A$5:$AK$204,$C$4+25),0)/1000 -> 6.7307e-05 | P102: =IF($C$8>=$D$23,VLOOKUP($D102,Point_Sources_All!$A$5:$AK$204,$C$4+28),0)/1000 -> 8.8028e-06 | Q102: =IF($C$8>=$D$24,VLOOKUP($D102,Point_Sources_All!$A$5:$AK$204,$C$4+31),0)/1000 -> 0.028371 | R102: =IF($C$8>=$D$25,VLOOKUP($D102,Point_Sources_All!$A$5:$AK$204,$C$4+34),0)/1000 -> 0.028
D103: 75 | E103: =VLOOKUP($D103,Background_All!$A$5:$Y$204,3*($C$8-1)+$C$4+1)/1000 -> 0.0104451 | F103: =VLOOKUP($D103,Background_All!$AA$5:$AY$204,3*($C$8-1)+$C$4+1)/1000 -> 0.0275364675 | G103: =IF($C$8>=$D$14,VLOOKUP($D103,Point_Sources_All!$A$5:$AK$204,$C$4+1),0)/1000 -> 0 | H103: =IF($C$8>=$D$15,VLOOKUP($D103,Point_Sources_All!$A$5:$AK$204,$C$4+4),0)/1000 -> 0 | I103: =IF($C$8>=$D$16,VLOOKUP($D103,Point_Sources_All!$A$5:$AK$204,$C$4+7),0)/1000 -> 0.000156 | J103: =IF($C$8>=$D$17,VLOOKUP($D103,Point_Sources_All!$A$5:$AK$204,$C$4+10),0)/1000 -> 1.6187e-05 | K103: =IF($C$8>=$D$18,VLOOKUP($D103,Point_Sources_All!$A$5:$AK$204,$C$4+13),0)/1000 -> 2.964e-05 | L103: =IF($C$8>=$D$19,VLOOKUP($D103,Point_Sources_All!$A$5:$AK$204,$C$4+16),0)/1000 -> 1.4968e-05 | M103: =IF($C$8>=$D$20,VLOOKUP($D103,Point_Sources_All!$A$5:$AK$204,$C$4+19),0)/1000 -> 5.2779e-05 | N103: =IF($C$8>=$D$21,VLOOKUP($D103,Point_Sources_All!$A$5:$AK$204,$C$4+22),0)/1000 -> 5.3335e-06 | O103: =IF($C$8>=$D$22,VLOOKUP($D103,Point_Sources_All!$A$5:$AK$204,$C$4+25),0)/1000 -> 6.7307e-05 | P103: =IF($C$8>=$D$23,VLOOKUP($D103,Point_Sources_All!$A$5:$AK$204,$C$4+28),0)/1000 -> 8.8028e-06 | Q103: =IF($C$8>=$D$24,VLOOKUP($D103,Point_Sources_All!$A$5:$AK$204,$C$4+31),0)/1000 -> 0.028371 | R103: =IF($C$8>=$D$25,VLOOKUP($D103,Point_Sources_All!$A$5:$AK$204,$C$4+34),0)/1000 -> 0.028
D104: 76 | E104: =VLOOKUP($D104,Background_All!$A$5:$Y$204,3*($C$8-1)+$C$4+1)/1000 -> 0.01053725833 | F104: =VLOOKUP($D104,Background_All!$AA$5:$AY$204,3*($C$8-1)+$C$4+1)/1000 -> 0.02903648333 | G104: =IF($C$8>=$D$14,VLOOKUP($D104,Point_Sources_All!$A$5:$AK$204,$C$4+1),0)/1000 -> 0 | H104: =IF($C$8>=$D$15,VLOOKUP($D104,Point_Sources_All!$A$5:$AK$204,$C$4+4),0)/1000 -> 0 | I104: =IF($C$8>=$D$16,VLOOKUP($D104,Point_Sources_All!$A$5:$AK$204,$C$4+7),0)/1000 -> 0.000156 | J104: =IF($C$8>=$D$17,VLOOKUP($D104,Point_Sources_All!$A$5:$AK$204,$C$4+10),0)/1000 -> 1.6187e-05 | K104: =IF($C$8>=$D$18,VLOOKUP($D104,Point_Sources_All!$A$5:$AK$204,$C$4+13),0)/1000 -> 2.964e-05 | L104: =IF($C$8>=$D$19,VLOOKUP($D104,Point_Sources_All!$A$5:$AK$204,$C$4+16),0)/1000 -> 1.4968e-05 | M104: =IF($C$8>=$D$20,VLOOKUP($D104,Point_Sources_All!$A$5:$AK$204,$C$4+19),0)/1000 -> 5.2779e-05 | N104: =IF($C$8>=$D$21,VLOOKUP($D104,Point_Sources_All!$A$5:$AK$204,$C$4+22),0)/1000 -> 5.3335e-06 | O104: =IF($C$8>=$D$22,VLOOKUP($D104,Point_Sources_All!$A$5:$AK$204,$C$4+25),0)/1000 -> 6.7307e-05 | P104: =IF($C$8>=$D$23,VLOOKUP($D104,Point_Sources_All!$A$5:$AK$204,$C$4+28),0)/1000 -> 8.8028e-06 | Q104: =IF($C$8>=$D$24,VLOOKUP($D104,Point_Sources_All!$A$5:$AK$204,$C$4+31),0)/1000 -> 0.028371 | R104: =IF($C$8>=$D$25,VLOOKUP($D104,Point_Sources_All!$A$5:$AK$204,$C$4+34),0)/1000 -> 0.028
D105: 77 | E105: =VLOOKUP($D105,Background_All!$A$5:$Y$204,3*($C$8-1)+$C$4+1)/1000 -> 0.010441075 | F105: =VLOOKUP($D105,Background_All!$AA$5:$AY$204,3*($C$8-1)+$C$4+1)/1000 -> 0.02954031 | G105: =IF($C$8>=$D$14,VLOOKUP($D105,Point_Sources_All!$A$5:$AK$204,$C$4+1),0)/1000 -> 0 | H105: =IF($C$8>=$D$15,VLOOKUP($D105,Point_Sources_All!$A$5:$AK$204,$C$4+4),0)/1000 -> 0 | I105: =IF($C$8>=$D$16,VLOOKUP($D105,Point_Sources_All!$A$5:$AK$204,$C$4+7),0)/1000 -> 0.000156 | J105: =IF($C$8>=$D$17,VLOOKUP($D105,Point_Sources_All!$A$5:$AK$204,$C$4+10),0)/1000 -> 1.6187e-05 | K105: =IF($C$8>=$D$18,VLOOKUP($D105,Point_Sources_All!$A$5:$AK$204,$C$4+13),0)/1000 -> 2.964e-05 | L105: =IF($C$8>=$D$19,VLOOKUP($D105,Point_Sources_All!$A$5:$AK$204,$C$4+16),0)/1000 -> 1.4968e-05 | M105: =IF($C$8>=$D$20,VLOOKUP($D105,Point_Sources_All!$A$5:$AK$204,$C$4+19),0)/1000 -> 5.2779e-05 | N105: =IF($C$8>=$D$21,VLOOKUP($D105,Point_Sources_All!$A$5:$AK$204,$C$4+22),0)/1000 -> 5.3335e-06 | O105: =IF($C$8>=$D$22,VLOOKUP($D105,Point_Sources_All!$A$5:$AK$204,$C$4+25),0)/1000 -> 6.7307e-05 | P105: =IF($C$8>=$D$23,VLOOKUP($D105,Point_Sources_All!$A$5:$AK$204,$C$4+28),0)/1000 -> 8.8028e-06 | Q105: =IF($C$8>=$D$24,VLOOKUP($D105,Point_Sources_All!$A$5:$AK$204,$C$4+31),0)/1000 -> 0.028371 | R105: =IF($C$8>=$D$25,VLOOKUP($D105,Point_Sources_All!$A$5:$AK$204,$C$4+34),0)/1000 -> 0.028
D106: 78 | E106: =VLOOKUP($D106,Background_All!$A$5:$Y$204,3*($C$8-1)+$C$4+1)/1000 -> 0.01043330833 | F106: =VLOOKUP($D106,Background_All!$AA$5:$AY$204,3*($C$8-1)+$C$4+1)/1000 -> 0.02906190083 | G106: =IF($C$8>=$D$14,VLOOKUP($D106,Point_Sources_All!$A$5:$AK$204,$C$4+1),0)/1000 -> 0 | H106: =IF($C$8>=$D$15,VLOOKUP($D106,Point_Sources_All!$A$5:$AK$204,$C$4+4),0)/1000 -> 0 | I106: =IF($C$8>=$D$16,VLOOKUP($D106,Point_Sources_All!$A$5:$AK$204,$C$4+7),0)/1000 -> 0.000156 | J106: =IF($C$8>=$D$17,VLOOKUP($D106,Point_Sources_All!$A$5:$AK$204,$C$4+10),0)/1000 -> 1.6187e-05 | K106: =IF($C$8>=$D$18,VLOOKUP($D106,Point_Sources_All!$A$5:$AK$204,$C$4+13),0)/1000 -> 2.964e-05 | L106: =IF($C$8>=$D$19,VLOOKUP($D106,Point_Sources_All!$A$5:$AK$204,$C$4+16),0)/1000 -> 1.4968e-05 | M106: =IF($C$8>=$D$20,VLOOKUP($D106,Point_Sources_All!$A$5:$AK$204,$C$4+19),0)/1000 -> 5.2779e-05 | N106: =IF($C$8>=$D$21,VLOOKUP($D106,Point_Sources_All!$A$5:$AK$204,$C$4+22),0)/1000 -> 5.3335e-06 | O106: =IF($C$8>=$D$22,VLOOKUP($D106,Point_Sources_All!$A$5:$AK$204,$C$4+25),0)/1000 -> 6.7307e-05 | P106: =IF($C$8>=$D$23,VLOOKUP($D106,Point_Sources_All!$A$5:$AK$204,$C$4+28),0)/1000 -> 8.8028e-06 | Q106: =IF($C$8>=$D$24,VLOOKUP($D106,Point_Sources_All!$A$5:$AK$204,$C$4+31),0)/1000 -> 0.028371 | R106: =IF($C$8>=$D$25,VLOOKUP($D106,Point_Sources_All!$A$5:$AK$204,$C$4+34),0)/1000 -> 0.028
D107: 79 | E107: =VLOOKUP($D107,Background_All!$A$5:$Y$204,3*($C$8-1)+$C$4+1)/1000 -> 0.01046303333 | F107: =VLOOKUP($D107,Background_All!$AA$5:$AY$204,3*($C$8-1)+$C$4+1)/1000 -> 0.03008303717 | G107: =IF($C$8>=$D$14,VLOOKUP($D107,Point_Sources_All!$A$5:$AK$204,$C$4+1),0)/1000 -> 0 | H107: =IF($C$8>=$D$15,VLOOKUP($D107,Point_Sources_All!$A$5:$AK$204,$C$4+4),0)/1000 -> 0 | I107: =IF($C$8>=$D$16,VLOOKUP($D107,Point_Sources_All!$A$5:$AK$204,$C$4+7),0)/1000 -> 0.000156 | J107: =IF($C$8>=$D$17,VLOOKUP($D107,Point_Sources_All!$A$5:$AK$204,$C$4+10),0)/1000 -> 1.6187e-05 | K107: =IF($C$8>=$D$18,VLOOKUP($D107,Point_Sources_All!$A$5:$AK$204,$C$4+13),0)/1000 -> 2.964e-05 | L107: =IF($C$8>=$D$19,VLOOKUP($D107,Point_Sources_All!$A$5:$AK$204,$C$4+16),0)/1000 -> 1.4968e-05 | M107: =IF($C$8>=$D$20,VLOOKUP($D107,Point_Sources_All!$A$5:$AK$204,$C$4+19),0)/1000 -> 5.2779e-05 | N107: =IF($C$8>=$D$21,VLOOKUP($D107,Point_Sources_All!$A$5:$AK$204,$C$4+22),0)/1000 -> 5.3335e-06 | O107: =IF($C$8>=$D$22,VLOOKUP($D107,Point_Sources_All!$A$5:$AK$204,$C$4+25),0)/1000 -> 6.7307e-05 | P107: =IF($C$8>=$D$23,VLOOKUP($D107,Point_Sources_All!$A$5:$AK$204,$C$4+28),0)/1000 -> 8.8028e-06 | Q107: =IF($C$8>=$D$24,VLOOKUP($D107,Point_Sources_All!$A$5:$AK$204,$C$4+31),0)/1000 -> 0.028371 | R107: =IF($C$8>=$D$25,VLOOKUP($D107,Point_Sources_All!$A$5:$AK$204,$C$4+34),0)/1000 -> 0.028
D108: 80 | E108: =VLOOKUP($D108,Background_All!$A$5:$Y$204,3*($C$8-1)+$C$4+1)/1000 -> 0.010472425 | F108: =VLOOKUP($D108,Background_All!$AA$5:$AY$204,3*($C$8-1)+$C$4+1)/1000 -> 0.03152482608 | G108: =IF($C$8>=$D$14,VLOOKUP($D108,Point_Sources_All!$A$5:$AK$204,$C$4+1),0)/1000 -> 0 | H108: =IF($C$8>=$D$15,VLOOKUP($D108,Point_Sources_All!$A$5:$AK$204,$C$4+4),0)/1000 -> 0 | I108: =IF($C$8>=$D$16,VLOOKUP($D108,Point_Sources_All!$A$5:$AK$204,$C$4+7),0)/1000 -> 0.000156 | J108: =IF($C$8>=$D$17,VLOOKUP($D108,Point_Sources_All!$A$5:$AK$204,$C$4+10),0)/1000 -> 1.6187e-05 | K108: =IF($C$8>=$D$18,VLOOKUP($D108,Point_Sources_All!$A$5:$AK$204,$C$4+13),0)/1000 -> 2.964e-05 | L108: =IF($C$8>=$D$19,VLOOKUP($D108,Point_Sources_All!$A$5:$AK$204,$C$4+16),0)/1000 -> 1.4968e-05 | M108: =IF($C$8>=$D$20,VLOOKUP($D108,Point_Sources_All!$A$5:$AK$204,$C$4+19),0)/1000 -> 5.2779e-05 | N108: =IF($C$8>=$D$21,VLOOKUP($D108,Point_Sources_All!$A$5:$AK$204,$C$4+22),0)/1000 -> 5.3335e-06 | O108: =IF($C$8>=$D$22,VLOOKUP($D108,Point_Sources_All!$A$5:$AK$204,$C$4+25),0)/1000 -> 6.7307e-05 | P108: =IF($C$8>=$D$23,VLOOKUP($D108,Point_Sources_All!$A$5:$AK$204,$C$4+28),0)/1000 -> 8.8028e-06 | Q108: =IF($C$8>=$D$24,VLOOKUP($D108,Point_Sources_All!$A$5:$AK$204,$C$4+31),0)/1000 -> 0.028371 | R108: =IF($C$8>=$D$25,VLOOKUP($D108,Point_Sources_All!$A$5:$AK$204,$C$4+34),0)/1000 -> 0.028
D109: 81 | E109: =VLOOKUP($D109,Background_All!$A$5:$Y$204,3*($C$8-1)+$C$4+1)/1000 -> 0.010431975 | F109: =VLOOKUP($D109,Background_All!$AA$5:$AY$204,3*($C$8-1)+$C$4+1)/1000 -> 0.03154137917 | G109: =IF($C$8>=$D$14,VLOOKUP($D109,Point_Sources_All!$A$5:$AK$204,$C$4+1),0)/1000 -> 0 | H109: =IF($C$8>=$D$15,VLOOKUP($D109,Point_Sources_All!$A$5:$AK$204,$C$4+4),0)/1000 -> 0 | I109: =IF($C$8>=$D$16,VLOOKUP($D109,Point_Sources_All!$A$5:$AK$204,$C$4+7),0)/1000 -> 0.000156 | J109: =IF($C$8>=$D$17,VLOOKUP($D109,Point_Sources_All!$A$5:$AK$204,$C$4+10),0)/1000 -> 1.6187e-05 | K109: =IF($C$8>=$D$18,VLOOKUP($D109,Point_Sources_All!$A$5:$AK$204,$C$4+13),0)/1000 -> 2.964e-05 | L109: =IF($C$8>=$D$19,VLOOKUP($D109,Point_Sources_All!$A$5:$AK$204,$C$4+16),0)/1000 -> 1.4968e-05 | M109: =IF($C$8>=$D$20,VLOOKUP($D109,Point_Sources_All!$A$5:$AK$204,$C$4+19),0)/1000 -> 5.2779e-05 | N109: =IF($C$8>=$D$21,VLOOKUP($D109,Point_Sources_All!$A$5:$AK$204,$C$4+22),0)/1000 -> 5.3335e-06 | O109: =IF($C$8>=$D$22,VLOOKUP($D109,Point_Sources_All!$A$5:$AK$204,$C$4+25),0)/1000 -> 6.7307e-05 | P109: =IF($C$8>=$D$23,VLOOKUP($D109,Point_Sources_All!$A$5:$AK$204,$C$4+28),0)/1000 -> 8.8028e-06 | Q109: =IF($C$8>=$D$24,VLOOKUP($D109,Point_Sources_All!$A$5:$AK$204,$C$4+31),0)/1000 -> 0.028371 | R109: =IF($C$8>=$D$25,VLOOKUP($D109,Point_Sources_All!$A$5:$AK$204,$C$4+34),0)/1000 -> 0.028
D110: 82 | E110: =VLOOKUP($D110,Background_All!$A$5:$Y$204,3*($C$8-1)+$C$4+1)/1000 -> 0.01048465 | F110: =VLOOKUP($D110,Background_All!$AA$5:$AY$204,3*($C$8-1)+$C$4+1)/1000 -> 0.02689873167 | G110: =IF($C$8>=$D$14,VLOOKUP($D110,Point_Sources_All!$A$5:$AK$204,$C$4+1),0)/1000 -> 0 | H110: =IF($C$8>=$D$15,VLOOKUP($D110,Point_Sources_All!$A$5:$AK$204,$C$4+4),0)/1000 -> 0 | I110: =IF($C$8>=$D$16,VLOOKUP($D110,Point_Sources_All!$A$5:$AK$204,$C$4+7),0)/1000 -> 0.000156 | J110: =IF($C$8>=$D$17,VLOOKUP($D110,Point_Sources_All!$A$5:$AK$204,$C$4+10),0)/1000 -> 1.6187e-05 | K110: =IF($C$8>=$D$18,VLOOKUP($D110,Point_Sources_All!$A$5:$AK$204,$C$4+13),0)/1000 -> 2.964e-05 | L110: =IF($C$8>=$D$19,VLOOKUP($D110,Point_Sources_All!$A$5:$AK$204,$C$4+16),0)/1000 -> 1.4968e-05 | M110: =IF($C$8>=$D$20,VLOOKUP($D110,Point_Sources_All!$A$5:$AK$204,$C$4+19),0)/1000 -> 5.2779e-05 | N110: =IF($C$8>=$D$21,VLOOKUP($D110,Point_Sources_All!$A$5:$AK$204,$C$4+22),0)/1000 -> 5.3335e-06 | O110: =IF($C$8>=$D$22,VLOOKUP($D110,Point_Sources_All!$A$5:$AK$204,$C$4+25),0)/1000 -> 6.7307e-05 | P110: =IF($C$8>=$D$23,VLOOKUP($D110,Point_Sources_All!$A$5:$AK$204,$C$4+28),0)/1000 -> 8.8028e-06 | Q110: =IF($C$8>=$D$24,VLOOKUP($D110,Point_Sources_All!$A$5:$AK$204,$C$4+31),0)/1000 -> 0.028371 | R110: =IF($C$8>=$D$25,VLOOKUP($D110,Point_Sources_All!$A$5:$AK$204,$C$4+34),0)/1000 -> 0.028
D111: 83 | E111: =VLOOKUP($D111,Background_All!$A$5:$Y$204,3*($C$8-1)+$C$4+1)/1000 -> 0.01054835 | F111: =VLOOKUP($D111,Background_All!$AA$5:$AY$204,3*($C$8-1)+$C$4+1)/1000 -> 0.03154006667 | G111: =IF($C$8>=$D$14,VLOOKUP($D111,Point_Sources_All!$A$5:$AK$204,$C$4+1),0)/1000 -> 0 | H111: =IF($C$8>=$D$15,VLOOKUP($D111,Point_Sources_All!$A$5:$AK$204,$C$4+4),0)/1000 -> 0 | I111: =IF($C$8>=$D$16,VLOOKUP($D111,Point_Sources_All!$A$5:$AK$204,$C$4+7),0)/1000 -> 0.000156 | J111: =IF($C$8>=$D$17,VLOOKUP($D111,Point_Sources_All!$A$5:$AK$204,$C$4+10),0)/1000 -> 1.6187e-05 | K111: =IF($C$8>=$D$18,VLOOKUP($D111,Point_Sources_All!$A$5:$AK$204,$C$4+13),0)/1000 -> 2.964e-05 | L111: =IF($C$8>=$D$19,VLOOKUP($D111,Point_Sources_All!$A$5:$AK$204,$C$4+16),0)/1000 -> 1.4968e-05 | M111: =IF($C$8>=$D$20,VLOOKUP($D111,Point_Sources_All!$A$5:$AK$204,$C$4+19),0)/1000 -> 5.2779e-05 | N111: =IF($C$8>=$D$21,VLOOKUP($D111,Point_Sources_All!$A$5:$AK$204,$C$4+22),0)/1000 -> 5.3335e-06 | O111: =IF($C$8>=$D$22,VLOOKUP($D111,Point_Sources_All!$A$5:$AK$204,$C$4+25),0)/1000 -> 6.7307e-05 | P111: =IF($C$8>=$D$23,VLOOKUP($D111,Point_Sources_All!$A$5:$AK$204,$C$4+28),0)/1000 -> 8.8028e-06 | Q111: =IF($C$8>=$D$24,VLOOKUP($D111,Point_Sources_All!$A$5:$AK$204,$C$4+31),0)/1000 -> 0.028371 | R111: =IF($C$8>=$D$25,VLOOKUP($D111,Point_Sources_All!$A$5:$AK$204,$C$4+34),0)/1000 -> 0.028
D112: 84 | E112: =VLOOKUP($D112,Background_All!$A$5:$Y$204,3*($C$8-1)+$C$4+1)/1000 -> 0.01039663333 | F112: =VLOOKUP($D112,Background_All!$AA$5:$AY$204,3*($C$8-1)+$C$4+1)/1000 -> 0.03019751333 | G112: =IF($C$8>=$D$14,VLOOKUP($D112,Point_Sources_All!$A$5:$AK$204,$C$4+1),0)/1000 -> 0 | H112: =IF($C$8>=$D$15,VLOOKUP($D112,Point_Sources_All!$A$5:$AK$204,$C$4+4),0)/1000 -> 0 | I112: =IF($C$8>=$D$16,VLOOKUP($D112,Point_Sources_All!$A$5:$AK$204,$C$4+7),0)/1000 -> 0.000156 | J112: =IF($C$8>=$D$17,VLOOKUP($D112,Point_Sources_All!$A$5:$AK$204,$C$4+10),0)/1000 -> 1.6187e-05 | K112: =IF($C$8>=$D$18,VLOOKUP($D112,Point_Sources_All!$A$5:$AK$204,$C$4+13),0)/1000 -> 2.964e-05 | L112: =IF($C$8>=$D$19,VLOOKUP($D112,Point_Sources_All!$A$5:$AK$204,$C$4+16),0)/1000 -> 1.4968e-05 | M112: =IF($C$8>=$D$20,VLOOKUP($D112,Point_Sources_All!$A$5:$AK$204,$C$4+19),0)/1000 -> 5.2779e-05 | N112: =IF($C$8>=$D$21,VLOOKUP($D112,Point_Sources_All!$A$5:$AK$204,$C$4+22),0)/1000 -> 5.3335e-06 | O112: =IF($C$8>=$D$22,VLOOKUP($D112,Point_Sources_All!$A$5:$AK$204,$C$4+25),0)/1000 -> 6.7307e-05 | P112: =IF($C$8>=$D$23,VLOOKUP($D112,Point_Sources_All!$A$5:$AK$204,$C$4+28),0)/1000 -> 8.8028e-06 | Q112: =IF($C$8>=$D$24,VLOOKUP($D112,Point_Sources_All!$A$5:$AK$204,$C$4+31),0)/1000 -> 0.028371 | R112: =IF($C$8>=$D$25,VLOOKUP($D112,Point_Sources_All!$A$5:$AK$204,$C$4+34),0)/1000 -> 0.028
D113: 85 | E113: =VLOOKUP($D113,Background_All!$A$5:$Y$204,3*($C$8-1)+$C$4+1)/1000 -> 0.01040245833 | F113: =VLOOKUP($D113,Background_All!$AA$5:$AY$204,3*($C$8-1)+$C$4+1)/1000 -> 0.0301793925 | G113: =IF($C$8>=$D$14,VLOOKUP($D113,Point_Sources_All!$A$5:$AK$204,$C$4+1),0)/1000 -> 0 | H113: =IF($C$8>=$D$15,VLOOKUP($D113,Point_Sources_All!$A$5:$AK$204,$C$4+4),0)/1000 -> 0 | I113: =IF($C$8>=$D$16,VLOOKUP($D113,Point_Sources_All!$A$5:$AK$204,$C$4+7),0)/1000 -> 0.000156 | J113: =IF($C$8>=$D$17,VLOOKUP($D113,Point_Sources_All!$A$5:$AK$204,$C$4+10),0)/1000 -> 1.6187e-05 | K113: =IF($C$8>=$D$18,VLOOKUP($D113,Point_Sources_All!$A$5:$AK$204,$C$4+13),0)/1000 -> 2.964e-05 | L113: =IF($C$8>=$D$19,VLOOKUP($D113,Point_Sources_All!$A$5:$AK$204,$C$4+16),0)/1000 -> 1.4968e-05 | M113: =IF($C$8>=$D$20,VLOOKUP($D113,Point_Sources_All!$A$5:$AK$204,$C$4+19),0)/1000 -> 5.2779e-05 | N113: =IF($C$8>=$D$21,VLOOKUP($D113,Point_Sources_All!$A$5:$AK$204,$C$4+22),0)/1000 -> 5.3335e-06 | O113: =IF($C$8>=$D$22,VLOOKUP($D113,Point_Sources_All!$A$5:$AK$204,$C$4+25),0)/1000 -> 6.7307e-05 | P113: =IF($C$8>=$D$23,VLOOKUP($D113,Point_Sources_All!$A$5:$AK$204,$C$4+28),0)/1000 -> 8.8028e-06 | Q113: =IF($C$8>=$D$24,VLOOKUP($D113,Point_Sources_All!$A$5:$AK$204,$C$4+31),0)/1000 -> 0.028371 | R113: =IF($C$8>=$D$25,VLOOKUP($D113,Point_Sources_All!$A$5:$AK$204,$C$4+34),0)/1000 -> 0.028
D114: 86 | E114: =VLOOKUP($D114,Background_All!$A$5:$Y$204,3*($C$8-1)+$C$4+1)/1000 -> 0.010441075 | F114: =VLOOKUP($D114,Background_All!$AA$5:$AY$204,3*($C$8-1)+$C$4+1)/1000 -> 0.02634441917 | G114: =IF($C$8>=$D$14,VLOOKUP($D114,Point_Sources_All!$A$5:$AK$204,$C$4+1),0)/1000 -> 0 | H114: =IF($C$8>=$D$15,VLOOKUP($D114,Point_Sources_All!$A$5:$AK$204,$C$4+4),0)/1000 -> 0 | I114: =IF($C$8>=$D$16,VLOOKUP($D114,Point_Sources_All!$A$5:$AK$204,$C$4+7),0)/1000 -> 0.000156 | J114: =IF($C$8>=$D$17,VLOOKUP($D114,Point_Sources_All!$A$5:$AK$204,$C$4+10),0)/1000 -> 1.6187e-05 | K114: =IF($C$8>=$D$18,VLOOKUP($D114,Point_Sources_All!$A$5:$AK$204,$C$4+13),0)/1000 -> 2.964e-05 | L114: =IF($C$8>=$D$19,VLOOKUP($D114,Point_Sources_All!$A$5:$AK$204,$C$4+16),0)/1000 -> 1.4968e-05 | M114: =IF($C$8>=$D$20,VLOOKUP($D114,Point_Sources_All!$A$5:$AK$204,$C$4+19),0)/1000 -> 5.2779e-05 | N114: =IF($C$8>=$D$21,VLOOKUP($D114,Point_Sources_All!$A$5:$AK$204,$C$4+22),0)/1000 -> 5.3335e-06 | O114: =IF($C$8>=$D$22,VLOOKUP($D114,Point_Sources_All!$A$5:$AK$204,$C$4+25),0)/1000 -> 6.7307e-05 | P114: =IF($C$8>=$D$23,VLOOKUP($D114,Point_Sources_All!$A$5:$AK$204,$C$4+28),0)/1000 -> 8.8028e-06 | Q114: =IF($C$8>=$D$24,VLOOKUP($D114,Point_Sources_All!$A$5:$AK$204,$C$4+31),0)/1000 -> 0.028371 | R114: =IF($C$8>=$D$25,VLOOKUP($D114,Point_Sources_All!$A$5:$AK$204,$C$4+34),0)/1000 -> 0.028
D115: 87 | E115: =VLOOKUP($D115,Background_All!$A$5:$Y$204,3*($C$8-1)+$C$4+1)/1000 -> 0.0104195 | F115: =VLOOKUP($D115,Background_All!$AA$5:$AY$204,3*($C$8-1)+$C$4+1)/1000 -> 0.029479665 | G115: =IF($C$8>=$D$14,VLOOKUP($D115,Point_Sources_All!$A$5:$AK$204,$C$4+1),0)/1000 -> 0 | H115: =IF($C$8>=$D$15,VLOOKUP($D115,Point_Sources_All!$A$5:$AK$204,$C$4+4),0)/1000 -> 0 | I115: =IF($C$8>=$D$16,VLOOKUP($D115,Point_Sources_All!$A$5:$AK$204,$C$4+7),0)/1000 -> 0.000156 | J115: =IF($C$8>=$D$17,VLOOKUP($D115,Point_Sources_All!$A$5:$AK$204,$C$4+10),0)/1000 -> 1.6187e-05 | K115: =IF($C$8>=$D$18,VLOOKUP($D115,Point_Sources_All!$A$5:$AK$204,$C$4+13),0)/1000 -> 2.964e-05 | L115: =IF($C$8>=$D$19,VLOOKUP($D115,Point_Sources_All!$A$5:$AK$204,$C$4+16),0)/1000 -> 1.4968e-05 | M115: =IF($C$8>=$D$20,VLOOKUP($D115,Point_Sources_All!$A$5:$AK$204,$C$4+19),0)/1000 -> 5.2779e-05 | N115: =IF($C$8>=$D$21,VLOOKUP($D115,Point_Sources_All!$A$5:$AK$204,$C$4+22),0)/1000 -> 5.3335e-06 | O115: =IF($C$8>=$D$22,VLOOKUP($D115,Point_Sources_All!$A$5:$AK$204,$C$4+25),0)/1000 -> 6.7307e-05 | P115: =IF($C$8>=$D$23,VLOOKUP($D115,Point_Sources_All!$A$5:$AK$204,$C$4+28),0)/1000 -> 8.8028e-06 | Q115: =IF($C$8>=$D$24,VLOOKUP($D115,Point_Sources_All!$A$5:$AK$204,$C$4+31),0)/1000 -> 0.028371 | R115: =IF($C$8>=$D$25,VLOOKUP($D115,Point_Sources_All!$A$5:$AK$204,$C$4+34),0)/1000 -> 0.028
D116: 88 | E116: =VLOOKUP($D116,Background_All!$A$5:$Y$204,3*($C$8-1)+$C$4+1)/1000 -> 0.01044130833 | F116: =VLOOKUP($D116,Background_All!$AA$5:$AY$204,3*($C$8-1)+$C$4+1)/1000 -> 0.02750512083 | G116: =IF($C$8>=$D$14,VLOOKUP($D116,Point_Sources_All!$A$5:$AK$204,$C$4+1),0)/1000 -> 0 | H116: =IF($C$8>=$D$15,VLOOKUP($D116,Point_Sources_All!$A$5:$AK$204,$C$4+4),0)/1000 -> 0 | I116: =IF($C$8>=$D$16,VLOOKUP($D116,Point_Sources_All!$A$5:$AK$204,$C$4+7),0)/1000 -> 0.000156 | J116: =IF($C$8>=$D$17,VLOOKUP($D116,Point_Sources_All!$A$5:$AK$204,$C$4+10),0)/1000 -> 1.6187e-05 | K116: =IF($C$8>=$D$18,VLOOKUP($D116,Point_Sources_All!$A$5:$AK$204,$C$4+13),0)/1000 -> 2.964e-05 | L116: =IF($C$8>=$D$19,VLOOKUP($D116,Point_Sources_All!$A$5:$AK$204,$C$4+16),0)/1000 -> 1.4968e-05 | M116: =IF($C$8>=$D$20,VLOOKUP($D116,Point_Sources_All!$A$5:$AK$204,$C$4+19),0)/1000 -> 5.2779e-05 | N116: =IF($C$8>=$D$21,VLOOKUP($D116,Point_Sources_All!$A$5:$AK$204,$C$4+22),0)/1000 -> 5.3335e-06 | O116: =IF($C$8>=$D$22,VLOOKUP($D116,Point_Sources_All!$A$5:$AK$204,$C$4+25),0)/1000 -> 6.7307e-05 | P116: =IF($C$8>=$D$23,VLOOKUP($D116,Point_Sources_All!$A$5:$AK$204,$C$4+28),0)/1000 -> 8.8028e-06 | Q116: =IF($C$8>=$D$24,VLOOKUP($D116,Point_Sources_All!$A$5:$AK$204,$C$4+31),0)/1000 -> 0.028371 | R116: =IF($C$8>=$D$25,VLOOKUP($D116,Point_Sources_All!$A$5:$AK$204,$C$4+34),0)/1000 -> 0.028
D117: 89 | E117: =VLOOKUP($D117,Background_All!$A$5:$Y$204,3*($C$8-1)+$C$4+1)/1000 -> 0.01044868333 | F117: =VLOOKUP($D117,Background_All!$AA$5:$AY$204,3*($C$8-1)+$C$4+1)/1000 -> 0.02987251892 | G117: =IF($C$8>=$D$14,VLOOKUP($D117,Point_Sources_All!$A$5:$AK$204,$C$4+1),0)/1000 -> 0 | H117: =IF($C$8>=$D$15,VLOOKUP($D117,Point_Sources_All!$A$5:$AK$204,$C$4+4),0)/1000 -> 0 | I117: =IF($C$8>=$D$16,VLOOKUP($D117,Point_Sources_All!$A$5:$AK$204,$C$4+7),0)/1000 -> 0.000156 | J117: =IF($C$8>=$D$17,VLOOKUP($D117,Point_Sources_All!$A$5:$AK$204,$C$4+10),0)/1000 -> 1.6187e-05 | K117: =IF($C$8>=$D$18,VLOOKUP($D117,Point_Sources_All!$A$5:$AK$204,$C$4+13),0)/1000 -> 2.964e-05 | L117: =IF($C$8>=$D$19,VLOOKUP($D117,Point_Sources_All!$A$5:$AK$204,$C$4+16),0)/1000 -> 1.4968e-05 | M117: =IF($C$8>=$D$20,VLOOKUP($D117,Point_Sources_All!$A$5:$AK$204,$C$4+19),0)/1000 -> 5.2779e-05 | N117: =IF($C$8>=$D$21,VLOOKUP($D117,Point_Sources_All!$A$5:$AK$204,$C$4+22),0)/1000 -> 5.3335e-06 | O117: =IF($C$8>=$D$22,VLOOKUP($D117,Point_Sources_All!$A$5:$AK$204,$C$4+25),0)/1000 -> 6.7307e-05 | P117: =IF($C$8>=$D$23,VLOOKUP($D117,Point_Sources_All!$A$5:$AK$204,$C$4+28),0)/1000 -> 8.8028e-06 | Q117: =IF($C$8>=$D$24,VLOOKUP($D117,Point_Sources_All!$A$5:$AK$204,$C$4+31),0)/1000 -> 0.028371 | R117: =IF($C$8>=$D$25,VLOOKUP($D117,Point_Sources_All!$A$5:$AK$204,$C$4+34),0)/1000 -> 0.028
D118: 90 | E118: =VLOOKUP($D118,Background_All!$A$5:$Y$204,3*($C$8-1)+$C$4+1)/1000 -> 0.01039071667 | F118: =VLOOKUP($D118,Background_All!$AA$5:$AY$204,3*($C$8-1)+$C$4+1)/1000 -> 0.029653415 | G118: =IF($C$8>=$D$14,VLOOKUP($D118,Point_Sources_All!$A$5:$AK$204,$C$4+1),0)/1000 -> 0 | H118: =IF($C$8>=$D$15,VLOOKUP($D118,Point_Sources_All!$A$5:$AK$204,$C$4+4),0)/1000 -> 0 | I118: =IF($C$8>=$D$16,VLOOKUP($D118,Point_Sources_All!$A$5:$AK$204,$C$4+7),0)/1000 -> 0.000156 | J118: =IF($C$8>=$D$17,VLOOKUP($D118,Point_Sources_All!$A$5:$AK$204,$C$4+10),0)/1000 -> 1.6187e-05 | K118: =IF($C$8>=$D$18,VLOOKUP($D118,Point_Sources_All!$A$5:$AK$204,$C$4+13),0)/1000 -> 2.964e-05 | L118: =IF($C$8>=$D$19,VLOOKUP($D118,Point_Sources_All!$A$5:$AK$204,$C$4+16),0)/1000 -> 1.4968e-05 | M118: =IF($C$8>=$D$20,VLOOKUP($D118,Point_Sources_All!$A$5:$AK$204,$C$4+19),0)/1000 -> 5.2779e-05 | N118: =IF($C$8>=$D$21,VLOOKUP($D118,Point_Sources_All!$A$5:$AK$204,$C$4+22),0)/1000 -> 5.3335e-06 | O118: =IF($C$8>=$D$22,VLOOKUP($D118,Point_Sources_All!$A$5:$AK$204,$C$4+25),0)/1000 -> 6.7307e-05 | P118: =IF($C$8>=$D$23,VLOOKUP($D118,Point_Sources_All!$A$5:$AK$204,$C$4+28),0)/1000 -> 8.8028e-06 | Q118: =IF($C$8>=$D$24,VLOOKUP($D118,Point_Sources_All!$A$5:$AK$204,$C$4+31),0)/1000 -> 0.028371 | R118: =IF($C$8>=$D$25,VLOOKUP($D118,Point_Sources_All!$A$5:$AK$204,$C$4+34),0)/1000 -> 0.028
D119: 91 | E119: =VLOOKUP($D119,Background_All!$A$5:$Y$204,3*($C$8-1)+$C$4+1)/1000 -> 0.01052545 | F119: =VLOOKUP($D119,Background_All!$AA$5:$AY$204,3*($C$8-1)+$C$4+1)/1000 -> 0.02894817667 | G119: =IF($C$8>=$D$14,VLOOKUP($D119,Point_Sources_All!$A$5:$AK$204,$C$4+1),0)/1000 -> 0 | H119: =IF($C$8>=$D$15,VLOOKUP($D119,Point_Sources_All!$A$5:$AK$204,$C$4+4),0)/1000 -> 0 | I119: =IF($C$8>=$D$16,VLOOKUP($D119,Point_Sources_All!$A$5:$AK$204,$C$4+7),0)/1000 -> 0.000156 | J119: =IF($C$8>=$D$17,VLOOKUP($D119,Point_Sources_All!$A$5:$AK$204,$C$4+10),0)/1000 -> 1.6187e-05 | K119: =IF($C$8>=$D$18,VLOOKUP($D119,Point_Sources_All!$A$5:$AK$204,$C$4+13),0)/1000 -> 2.964e-05 | L119: =IF($C$8>=$D$19,VLOOKUP($D119,Point_Sources_All!$A$5:$AK$204,$C$4+16),0)/1000 -> 1.4968e-05 | M119: =IF($C$8>=$D$20,VLOOKUP($D119,Point_Sources_All!$A$5:$AK$204,$C$4+19),0)/1000 -> 5.2779e-05 | N119: =IF($C$8>=$D$21,VLOOKUP($D119,Point_Sources_All!$A$5:$AK$204,$C$4+22),0)/1000 -> 5.3335e-06 | O119: =IF($C$8>=$D$22,VLOOKUP($D119,Point_Sources_All!$A$5:$AK$204,$C$4+25),0)/1000 -> 6.7307e-05 | P119: =IF($C$8>=$D$23,VLOOKUP($D119,Point_Sources_All!$A$5:$AK$204,$C$4+28),0)/1000 -> 8.8028e-06 | Q119: =IF($C$8>=$D$24,VLOOKUP($D119,Point_Sources_All!$A$5:$AK$204,$C$4+31),0)/1000 -> 0.028371 | R119: =IF($C$8>=$D$25,VLOOKUP($D119,Point_Sources_All!$A$5:$AK$204,$C$4+34),0)/1000 -> 0.028
D120: 92 | E120: =VLOOKUP($D120,Background_All!$A$5:$Y$204,3*($C$8-1)+$C$4+1)/1000 -> 0.010377775 | F120: =VLOOKUP($D120,Background_All!$AA$5:$AY$204,3*($C$8-1)+$C$4+1)/1000 -> 0.02871701667 | G120: =IF($C$8>=$D$14,VLOOKUP($D120,Point_Sources_All!$A$5:$AK$204,$C$4+1),0)/1000 -> 0 | H120: =IF($C$8>=$D$15,VLOOKUP($D120,Point_Sources_All!$A$5:$AK$204,$C$4+4),0)/1000 -> 0 | I120: =IF($C$8>=$D$16,VLOOKUP($D120,Point_Sources_All!$A$5:$AK$204,$C$4+7),0)/1000 -> 0.000156 | J120: =IF($C$8>=$D$17,VLOOKUP($D120,Point_Sources_All!$A$5:$AK$204,$C$4+10),0)/1000 -> 1.6187e-05 | K120: =IF($C$8>=$D$18,VLOOKUP($D120,Point_Sources_All!$A$5:$AK$204,$C$4+13),0)/1000 -> 2.964e-05 | L120: =IF($C$8>=$D$19,VLOOKUP($D120,Point_Sources_All!$A$5:$AK$204,$C$4+16),0)/1000 -> 1.4968e-05 | M120: =IF($C$8>=$D$20,VLOOKUP($D120,Point_Sources_All!$A$5:$AK$204,$C$4+19),0)/1000 -> 5.2779e-05 | N120: =IF($C$8>=$D$21,VLOOKUP($D120,Point_Sources_All!$A$5:$AK$204,$C$4+22),0)/1000 -> 5.3335e-06 | O120: =IF($C$8>=$D$22,VLOOKUP($D120,Point_Sources_All!$A$5:$AK$204,$C$4+25),0)/1000 -> 6.7307e-05 | P120: =IF($C$8>=$D$23,VLOOKUP($D120,Point_Sources_All!$A$5:$AK$204,$C$4+28),0)/1000 -> 8.8028e-06 | Q120: =IF($C$8>=$D$24,VLOOKUP($D120,Point_Sources_All!$A$5:$AK$204,$C$4+31),0)/1000 -> 0.028371 | R120: =IF($C$8>=$D$25,VLOOKUP($D120,Point_Sources_All!$A$5:$AK$204,$C$4+34),0)/1000 -> 0.028
D121: 93 | E121: =VLOOKUP($D121,Background_All!$A$5:$Y$204,3*($C$8-1)+$C$4+1)/1000 -> 0.01048649167 | F121: =VLOOKUP($D121,Background_All!$AA$5:$AY$204,3*($C$8-1)+$C$4+1)/1000 -> 0.02786202892 | G121: =IF($C$8>=$D$14,VLOOKUP($D121,Point_Sources_All!$A$5:$AK$204,$C$4+1),0)/1000 -> 0 | H121: =IF($C$8>=$D$15,VLOOKUP($D121,Point_Sources_All!$A$5:$AK$204,$C$4+4),0)/1000 -> 0 | I121: =IF($C$8>=$D$16,VLOOKUP($D121,Point_Sources_All!$A$5:$AK$204,$C$4+7),0)/1000 -> 0.000156 | J121: =IF($C$8>=$D$17,VLOOKUP($D121,Point_Sources_All!$A$5:$AK$204,$C$4+10),0)/1000 -> 1.6187e-05 | K121: =IF($C$8>=$D$18,VLOOKUP($D121,Point_Sources_All!$A$5:$AK$204,$C$4+13),0)/1000 -> 2.964e-05 | L121: =IF($C$8>=$D$19,VLOOKUP($D121,Point_Sources_All!$A$5:$AK$204,$C$4+16),0)/1000 -> 1.4968e-05 | M121: =IF($C$8>=$D$20,VLOOKUP($D121,Point_Sources_All!$A$5:$AK$204,$C$4+19),0)/1000 -> 5.2779e-05 | N121: =IF($C$8>=$D$21,VLOOKUP($D121,Point_Sources_All!$A$5:$AK$204,$C$4+22),0)/1000 -> 5.3335e-06 | O121: =IF($C$8>=$D$22,VLOOKUP($D121,Point_Sources_All!$A$5:$AK$204,$C$4+25),0)/1000 -> 6.7307e-05 | P121: =IF($C$8>=$D$23,VLOOKUP($D121,Point_Sources_All!$A$5:$AK$204,$C$4+28),0)/1000 -> 8.8028e-06 | Q121: =IF($C$8>=$D$24,VLOOKUP($D121,Point_Sources_All!$A$5:$AK$204,$C$4+31),0)/1000 -> 0.028371 | R121: =IF($C$8>=$D$25,VLOOKUP($D121,Point_Sources_All!$A$5:$AK$204,$C$4+34),0)/1000 -> 0.028
D122: 94 | E122: =VLOOKUP($D122,Background_All!$A$5:$Y$204,3*($C$8-1)+$C$4+1)/1000 -> 0.010414625 | F122: =VLOOKUP($D122,Background_All!$AA$5:$AY$204,3*($C$8-1)+$C$4+1)/1000 -> 0.030557375 | G122: =IF($C$8>=$D$14,VLOOKUP($D122,Point_Sources_All!$A$5:$AK$204,$C$4+1),0)/1000 -> 0 | H122: =IF($C$8>=$D$15,VLOOKUP($D122,Point_Sources_All!$A$5:$AK$204,$C$4+4),0)/1000 -> 0 | I122: =IF($C$8>=$D$16,VLOOKUP($D122,Point_Sources_All!$A$5:$AK$204,$C$4+7),0)/1000 -> 0.000156 | J122: =IF($C$8>=$D$17,VLOOKUP($D122,Point_Sources_All!$A$5:$AK$204,$C$4+10),0)/1000 -> 1.6187e-05 | K122: =IF($C$8>=$D$18,VLOOKUP($D122,Point_Sources_All!$A$5:$AK$204,$C$4+13),0)/1000 -> 2.964e-05 | L122: =IF($C$8>=$D$19,VLOOKUP($D122,Point_Sources_All!$A$5:$AK$204,$C$4+16),0)/1000 -> 1.4968e-05 | M122: =IF($C$8>=$D$20,VLOOKUP($D122,Point_Sources_All!$A$5:$AK$204,$C$4+19),0)/1000 -> 5.2779e-05 | N122: =IF($C$8>=$D$21,VLOOKUP($D122,Point_Sources_All!$A$5:$AK$204,$C$4+22),0)/1000 -> 5.3335e-06 | O122: =IF($C$8>=$D$22,VLOOKUP($D122,Point_Sources_All!$A$5:$AK$204,$C$4+25),0)/1000 -> 6.7307e-05 | P122: =IF($C$8>=$D$23,VLOOKUP($D122,Point_Sources_All!$A$5:$AK$204,$C$4+28),0)/1000 -> 8.8028e-06 | Q122: =IF($C$8>=$D$24,VLOOKUP($D122,Point_Sources_All!$A$5:$AK$204,$C$4+31),0)/1000 -> 0.028371 | R122: =IF($C$8>=$D$25,VLOOKUP($D122,Point_Sources_All!$A$5:$AK$204,$C$4+34),0)/1000 -> 0.028
D123: 95 | E123: =VLOOKUP($D123,Background_All!$A$5:$Y$204,3*($C$8-1)+$C$4+1)/1000 -> 0.01043946667 | F123: =VLOOKUP($D123,Background_All!$AA$5:$AY$204,3*($C$8-1)+$C$4+1)/1000 -> 0.02890434167 | G123: =IF($C$8>=$D$14,VLOOKUP($D123,Point_Sources_All!$A$5:$AK$204,$C$4+1),0)/1000 -> 0 | H123: =IF($C$8>=$D$15,VLOOKUP($D123,Point_Sources_All!$A$5:$AK$204,$C$4+4),0)/1000 -> 0 | I123: =IF($C$8>=$D$16,VLOOKUP($D123,Point_Sources_All!$A$5:$AK$204,$C$4+7),0)/1000 -> 0.000156 | J123: =IF($C$8>=$D$17,VLOOKUP($D123,Point_Sources_All!$A$5:$AK$204,$C$4+10),0)/1000 -> 1.6187e-05 | K123: =IF($C$8>=$D$18,VLOOKUP($D123,Point_Sources_All!$A$5:$AK$204,$C$4+13),0)/1000 -> 2.964e-05 | L123: =IF($C$8>=$D$19,VLOOKUP($D123,Point_Sources_All!$A$5:$AK$204,$C$4+16),0)/1000 -> 1.4968e-05 | M123: =IF($C$8>=$D$20,VLOOKUP($D123,Point_Sources_All!$A$5:$AK$204,$C$4+19),0)/1000 -> 5.2779e-05 | N123: =IF($C$8>=$D$21,VLOOKUP($D123,Point_Sources_All!$A$5:$AK$204,$C$4+22),0)/1000 -> 5.3335e-06 | O123: =IF($C$8>=$D$22,VLOOKUP($D123,Point_Sources_All!$A$5:$AK$204,$C$4+25),0)/1000 -> 6.7307e-05 | P123: =IF($C$8>=$D$23,VLOOKUP($D123,Point_Sources_All!$A$5:$AK$204,$C$4+28),0)/1000 -> 8.8028e-06 | Q123: =IF($C$8>=$D$24,VLOOKUP($D123,Point_Sources_All!$A$5:$AK$204,$C$4+31),0)/1000 -> 0.028371 | R123: =IF($C$8>=$D$25,VLOOKUP($D123,Point_Sources_All!$A$5:$AK$204,$C$4+34),0)/1000 -> 0.028
D124: 96 | E124: =VLOOKUP($D124,Background_All!$A$5:$Y$204,3*($C$8-1)+$C$4+1)/1000 -> 0.0104299 | F124: =VLOOKUP($D124,Background_All!$AA$5:$AY$204,3*($C$8-1)+$C$4+1)/1000 -> 0.03074530333 | G124: =IF($C$8>=$D$14,VLOOKUP($D124,Point_Sources_All!$A$5:$AK$204,$C$4+1),0)/1000 -> 0 | H124: =IF($C$8>=$D$15,VLOOKUP($D124,Point_Sources_All!$A$5:$AK$204,$C$4+4),0)/1000 -> 0 | I124: =IF($C$8>=$D$16,VLOOKUP($D124,Point_Sources_All!$A$5:$AK$204,$C$4+7),0)/1000 -> 0.000156 | J124: =IF($C$8>=$D$17,VLOOKUP($D124,Point_Sources_All!$A$5:$AK$204,$C$4+10),0)/1000 -> 1.6187e-05 | K124: =IF($C$8>=$D$18,VLOOKUP($D124,Point_Sources_All!$A$5:$AK$204,$C$4+13),0)/1000 -> 2.964e-05 | L124: =IF($C$8>=$D$19,VLOOKUP($D124,Point_Sources_All!$A$5:$AK$204,$C$4+16),0)/1000 -> 1.4968e-05 | M124: =IF($C$8>=$D$20,VLOOKUP($D124,Point_Sources_All!$A$5:$AK$204,$C$4+19),0)/1000 -> 5.2779e-05 | N124: =IF($C$8>=$D$21,VLOOKUP($D124,Point_Sources_All!$A$5:$AK$204,$C$4+22),0)/1000 -> 5.3335e-06 | O124: =IF($C$8>=$D$22,VLOOKUP($D124,Point_Sources_All!$A$5:$AK$204,$C$4+25),0)/1000 -> 6.7307e-05 | P124: =IF($C$8>=$D$23,VLOOKUP($D124,Point_Sources_All!$A$5:$AK$204,$C$4+28),0)/1000 -> 8.8028e-06 | Q124: =IF($C$8>=$D$24,VLOOKUP($D124,Point_Sources_All!$A$5:$AK$204,$C$4+31),0)/1000 -> 0.028371 | R124: =IF($C$8>=$D$25,VLOOKUP($D124,Point_Sources_All!$A$5:$AK$204,$C$4+34),0)/1000 -> 0.028
D125: 97 | E125: =VLOOKUP($D125,Background_All!$A$5:$Y$204,3*($C$8-1)+$C$4+1)/1000 -> 0.010485925 | F125: =VLOOKUP($D125,Background_All!$AA$5:$AY$204,3*($C$8-1)+$C$4+1)/1000 -> 0.028280905 | G125: =IF($C$8>=$D$14,VLOOKUP($D125,Point_Sources_All!$A$5:$AK$204,$C$4+1),0)/1000 -> 0 | H125: =IF($C$8>=$D$15,VLOOKUP($D125,Point_Sources_All!$A$5:$AK$204,$C$4+4),0)/1000 -> 0 | I125: =IF($C$8>=$D$16,VLOOKUP($D125,Point_Sources_All!$A$5:$AK$204,$C$4+7),0)/1000 -> 0.000156 | J125: =IF($C$8>=$D$17,VLOOKUP($D125,Point_Sources_All!$A$5:$AK$204,$C$4+10),0)/1000 -> 1.6187e-05 | K125: =IF($C$8>=$D$18,VLOOKUP($D125,Point_Sources_All!$A$5:$AK$204,$C$4+13),0)/1000 -> 2.964e-05 | L125: =IF($C$8>=$D$19,VLOOKUP($D125,Point_Sources_All!$A$5:$AK$204,$C$4+16),0)/1000 -> 1.4968e-05 | M125: =IF($C$8>=$D$20,VLOOKUP($D125,Point_Sources_All!$A$5:$AK$204,$C$4+19),0)/1000 -> 5.2779e-05 | N125: =IF($C$8>=$D$21,VLOOKUP($D125,Point_Sources_All!$A$5:$AK$204,$C$4+22),0)/1000 -> 5.3335e-06 | O125: =IF($C$8>=$D$22,VLOOKUP($D125,Point_Sources_All!$A$5:$AK$204,$C$4+25),0)/1000 -> 6.7307e-05 | P125: =IF($C$8>=$D$23,VLOOKUP($D125,Point_Sources_All!$A$5:$AK$204,$C$4+28),0)/1000 -> 8.8028e-06 | Q125: =IF($C$8>=$D$24,VLOOKUP($D125,Point_Sources_All!$A$5:$AK$204,$C$4+31),0)/1000 -> 0.028371 | R125: =IF($C$8>=$D$25,VLOOKUP($D125,Point_Sources_All!$A$5:$AK$204,$C$4+34),0)/1000 -> 0.028
D126: 98 | E126: =VLOOKUP($D126,Background_All!$A$5:$Y$204,3*($C$8-1)+$C$4+1)/1000 -> 0.0104528 | F126: =VLOOKUP($D126,Background_All!$AA$5:$AY$204,3*($C$8-1)+$C$4+1)/1000 -> 0.028965581 | G126: =IF($C$8>=$D$14,VLOOKUP($D126,Point_Sources_All!$A$5:$AK$204,$C$4+1),0)/1000 -> 0 | H126: =IF($C$8>=$D$15,VLOOKUP($D126,Point_Sources_All!$A$5:$AK$204,$C$4+4),0)/1000 -> 0 | I126: =IF($C$8>=$D$16,VLOOKUP($D126,Point_Sources_All!$A$5:$AK$204,$C$4+7),0)/1000 -> 0.000156 | J126: =IF($C$8>=$D$17,VLOOKUP($D126,Point_Sources_All!$A$5:$AK$204,$C$4+10),0)/1000 -> 1.6187e-05 | K126: =IF($C$8>=$D$18,VLOOKUP($D126,Point_Sources_All!$A$5:$AK$204,$C$4+13),0)/1000 -> 2.964e-05 | L126: =IF($C$8>=$D$19,VLOOKUP($D126,Point_Sources_All!$A$5:$AK$204,$C$4+16),0)/1000 -> 1.4968e-05 | M126: =IF($C$8>=$D$20,VLOOKUP($D126,Point_Sources_All!$A$5:$AK$204,$C$4+19),0)/1000 -> 5.2779e-05 | N126: =IF($C$8>=$D$21,VLOOKUP($D126,Point_Sources_All!$A$5:$AK$204,$C$4+22),0)/1000 -> 5.3335e-06 | O126: =IF($C$8>=$D$22,VLOOKUP($D126,Point_Sources_All!$A$5:$AK$204,$C$4+25),0)/1000 -> 6.7307e-05 | P126: =IF($C$8>=$D$23,VLOOKUP($D126,Point_Sources_All!$A$5:$AK$204,$C$4+28),0)/1000 -> 8.8028e-06 | Q126: =IF($C$8>=$D$24,VLOOKUP($D126,Point_Sources_All!$A$5:$AK$204,$C$4+31),0)/1000 -> 0.028371 | R126: =IF($C$8>=$D$25,VLOOKUP($D126,Point_Sources_All!$A$5:$AK$204,$C$4+34),0)/1000 -> 0.028
D127: 99 | E127: =VLOOKUP($D127,Background_All!$A$5:$Y$204,3*($C$8-1)+$C$4+1)/1000 -> 0.01041769167 | F127: =VLOOKUP($D127,Background_All!$AA$5:$AY$204,3*($C$8-1)+$C$4+1)/1000 -> 0.03097008833 | G127: =IF($C$8>=$D$14,VLOOKUP($D127,Point_Sources_All!$A$5:$AK$204,$C$4+1),0)/1000 -> 0 | H127: =IF($C$8>=$D$15,VLOOKUP($D127,Point_Sources_All!$A$5:$AK$204,$C$4+4),0)/1000 -> 0 | I127: =IF($C$8>=$D$16,VLOOKUP($D127,Point_Sources_All!$A$5:$AK$204,$C$4+7),0)/1000 -> 0.000156 | J127: =IF($C$8>=$D$17,VLOOKUP($D127,Point_Sources_All!$A$5:$AK$204,$C$4+10),0)/1000 -> 1.6187e-05 | K127: =IF($C$8>=$D$18,VLOOKUP($D127,Point_Sources_All!$A$5:$AK$204,$C$4+13),0)/1000 -> 2.964e-05 | L127: =IF($C$8>=$D$19,VLOOKUP($D127,Point_Sources_All!$A$5:$AK$204,$C$4+16),0)/1000 -> 1.4968e-05 | M127: =IF($C$8>=$D$20,VLOOKUP($D127,Point_Sources_All!$A$5:$AK$204,$C$4+19),0)/1000 -> 5.2779e-05 | N127: =IF($C$8>=$D$21,VLOOKUP($D127,Point_Sources_All!$A$5:$AK$204,$C$4+22),0)/1000 -> 5.3335e-06 | O127: =IF($C$8>=$D$22,VLOOKUP($D127,Point_Sources_All!$A$5:$AK$204,$C$4+25),0)/1000 -> 6.7307e-05 | P127: =IF($C$8>=$D$23,VLOOKUP($D127,Point_Sources_All!$A$5:$AK$204,$C$4+28),0)/1000 -> 8.8028e-06 | Q127: =IF($C$8>=$D$24,VLOOKUP($D127,Point_Sources_All!$A$5:$AK$204,$C$4+31),0)/1000 -> 0.028371 | R127: =IF($C$8>=$D$25,VLOOKUP($D127,Point_Sources_All!$A$5:$AK$204,$C$4+34),0)/1000 -> 0.028
D128: 100 | E128: =VLOOKUP($D128,Background_All!$A$5:$Y$204,3*($C$8-1)+$C$4+1)/1000 -> 0.01042421667 | F128: =VLOOKUP($D128,Background_All!$AA$5:$AY$204,3*($C$8-1)+$C$4+1)/1000 -> 0.0285696165 | G128: =IF($C$8>=$D$14,VLOOKUP($D128,Point_Sources_All!$A$5:$AK$204,$C$4+1),0)/1000 -> 0 | H128: =IF($C$8>=$D$15,VLOOKUP($D128,Point_Sources_All!$A$5:$AK$204,$C$4+4),0)/1000 -> 0 | I128: =IF($C$8>=$D$16,VLOOKUP($D128,Point_Sources_All!$A$5:$AK$204,$C$4+7),0)/1000 -> 0.000156 | J128: =IF($C$8>=$D$17,VLOOKUP($D128,Point_Sources_All!$A$5:$AK$204,$C$4+10),0)/1000 -> 1.6187e-05 | K128: =IF($C$8>=$D$18,VLOOKUP($D128,Point_Sources_All!$A$5:$AK$204,$C$4+13),0)/1000 -> 2.964e-05 | L128: =IF($C$8>=$D$19,VLOOKUP($D128,Point_Sources_All!$A$5:$AK$204,$C$4+16),0)/1000 -> 1.4968e-05 | M128: =IF($C$8>=$D$20,VLOOKUP($D128,Point_Sources_All!$A$5:$AK$204,$C$4+19),0)/1000 -> 5.2779e-05 | N128: =IF($C$8>=$D$21,VLOOKUP($D128,Point_Sources_All!$A$5:$AK$204,$C$4+22),0)/1000 -> 5.3335e-06 | O128: =IF($C$8>=$D$22,VLOOKUP($D128,Point_Sources_All!$A$5:$AK$204,$C$4+25),0)/1000 -> 6.7307e-05 | P128: =IF($C$8>=$D$23,VLOOKUP($D128,Point_Sources_All!$A$5:$AK$204,$C$4+28),0)/1000 -> 8.8028e-06 | Q128: =IF($C$8>=$D$24,VLOOKUP($D128,Point_Sources_All!$A$5:$AK$204,$C$4+31),0)/1000 -> 0.028371 | R128: =IF($C$8>=$D$25,VLOOKUP($D128,Point_Sources_All!$A$5:$AK$204,$C$4+34),0)/1000 -> 0.028
D129: 101 | E129: =VLOOKUP($D129,Background_All!$A$5:$Y$204,3*($C$8-1)+$C$4+1)/1000 -> 0.010536125 | F129: =VLOOKUP($D129,Background_All!$AA$5:$AY$204,3*($C$8-1)+$C$4+1)/1000 -> 0.0306212675 | G129: =IF($C$8>=$D$14,VLOOKUP($D129,Point_Sources_All!$A$5:$AK$204,$C$4+1),0)/1000 -> 0 | H129: =IF($C$8>=$D$15,VLOOKUP($D129,Point_Sources_All!$A$5:$AK$204,$C$4+4),0)/1000 -> 0 | I129: =IF($C$8>=$D$16,VLOOKUP($D129,Point_Sources_All!$A$5:$AK$204,$C$4+7),0)/1000 -> 0.000156 | J129: =IF($C$8>=$D$17,VLOOKUP($D129,Point_Sources_All!$A$5:$AK$204,$C$4+10),0)/1000 -> 1.6187e-05 | K129: =IF($C$8>=$D$18,VLOOKUP($D129,Point_Sources_All!$A$5:$AK$204,$C$4+13),0)/1000 -> 2.964e-05 | L129: =IF($C$8>=$D$19,VLOOKUP($D129,Point_Sources_All!$A$5:$AK$204,$C$4+16),0)/1000 -> 1.4968e-05 | M129: =IF($C$8>=$D$20,VLOOKUP($D129,Point_Sources_All!$A$5:$AK$204,$C$4+19),0)/1000 -> 5.2779e-05 | N129: =IF($C$8>=$D$21,VLOOKUP($D129,Point_Sources_All!$A$5:$AK$204,$C$4+22),0)/1000 -> 5.3335e-06 | O129: =IF($C$8>=$D$22,VLOOKUP($D129,Point_Sources_All!$A$5:$AK$204,$C$4+25),0)/1000 -> 6.7307e-05 | P129: =IF($C$8>=$D$23,VLOOKUP($D129,Point_Sources_All!$A$5:$AK$204,$C$4+28),0)/1000 -> 8.8028e-06 | Q129: =IF($C$8>=$D$24,VLOOKUP($D129,Point_Sources_All!$A$5:$AK$204,$C$4+31),0)/1000 -> 0.028371 | R129: =IF($C$8>=$D$25,VLOOKUP($D129,Point_Sources_All!$A$5:$AK$204,$C$4+34),0)/1000 -> 0.028
D130: 102 | E130: =VLOOKUP($D130,Background_All!$A$5:$Y$204,3*($C$8-1)+$C$4+1)/1000 -> 0.0103857 | F130: =VLOOKUP($D130,Background_All!$AA$5:$AY$204,3*($C$8-1)+$C$4+1)/1000 -> 0.029929265 | G130: =IF($C$8>=$D$14,VLOOKUP($D130,Point_Sources_All!$A$5:$AK$204,$C$4+1),0)/1000 -> 0 | H130: =IF($C$8>=$D$15,VLOOKUP($D130,Point_Sources_All!$A$5:$AK$204,$C$4+4),0)/1000 -> 0 | I130: =IF($C$8>=$D$16,VLOOKUP($D130,Point_Sources_All!$A$5:$AK$204,$C$4+7),0)/1000 -> 0.000156 | J130: =IF($C$8>=$D$17,VLOOKUP($D130,Point_Sources_All!$A$5:$AK$204,$C$4+10),0)/1000 -> 1.6187e-05 | K130: =IF($C$8>=$D$18,VLOOKUP($D130,Point_Sources_All!$A$5:$AK$204,$C$4+13),0)/1000 -> 2.964e-05 | L130: =IF($C$8>=$D$19,VLOOKUP($D130,Point_Sources_All!$A$5:$AK$204,$C$4+16),0)/1000 -> 1.4968e-05 | M130: =IF($C$8>=$D$20,VLOOKUP($D130,Point_Sources_All!$A$5:$AK$204,$C$4+19),0)/1000 -> 5.2779e-05 | N130: =IF($C$8>=$D$21,VLOOKUP($D130,Point_Sources_All!$A$5:$AK$204,$C$4+22),0)/1000 -> 5.3335e-06 | O130: =IF($C$8>=$D$22,VLOOKUP($D130,Point_Sources_All!$A$5:$AK$204,$C$4+25),0)/1000 -> 6.7307e-05 | P130: =IF($C$8>=$D$23,VLOOKUP($D130,Point_Sources_All!$A$5:$AK$204,$C$4+28),0)/1000 -> 8.8028e-06 | Q130: =IF($C$8>=$D$24,VLOOKUP($D130,Point_Sources_All!$A$5:$AK$204,$C$4+31),0)/1000 -> 0.028371 | R130: =IF($C$8>=$D$25,VLOOKUP($D130,Point_Sources_All!$A$5:$AK$204,$C$4+34),0)/1000 -> 0.028
D131: 103 | E131: =VLOOKUP($D131,Background_All!$A$5:$Y$204,3*($C$8-1)+$C$4+1)/1000 -> 0.01041630833 | F131: =VLOOKUP($D131,Background_All!$AA$5:$AY$204,3*($C$8-1)+$C$4+1)/1000 -> 0.03070240083 | G131: =IF($C$8>=$D$14,VLOOKUP($D131,Point_Sources_All!$A$5:$AK$204,$C$4+1),0)/1000 -> 0 | H131: =IF($C$8>=$D$15,VLOOKUP($D131,Point_Sources_All!$A$5:$AK$204,$C$4+4),0)/1000 -> 0 | I131: =IF($C$8>=$D$16,VLOOKUP($D131,Point_Sources_All!$A$5:$AK$204,$C$4+7),0)/1000 -> 0.000156 | J131: =IF($C$8>=$D$17,VLOOKUP($D131,Point_Sources_All!$A$5:$AK$204,$C$4+10),0)/1000 -> 1.6187e-05 | K131: =IF($C$8>=$D$18,VLOOKUP($D131,Point_Sources_All!$A$5:$AK$204,$C$4+13),0)/1000 -> 2.964e-05 | L131: =IF($C$8>=$D$19,VLOOKUP($D131,Point_Sources_All!$A$5:$AK$204,$C$4+16),0)/1000 -> 1.4968e-05 | M131: =IF($C$8>=$D$20,VLOOKUP($D131,Point_Sources_All!$A$5:$AK$204,$C$4+19),0)/1000 -> 5.2779e-05 | N131: =IF($C$8>=$D$21,VLOOKUP($D131,Point_Sources_All!$A$5:$AK$204,$C$4+22),0)/1000 -> 5.3335e-06 | O131: =IF($C$8>=$D$22,VLOOKUP($D131,Point_Sources_All!$A$5:$AK$204,$C$4+25),0)/1000 -> 6.7307e-05 | P131: =IF($C$8>=$D$23,VLOOKUP($D131,Point_Sources_All!$A$5:$AK$204,$C$4+28),0)/1000 -> 8.8028e-06 | Q131: =IF($C$8>=$D$24,VLOOKUP($D131,Point_Sources_All!$A$5:$AK$204,$C$4+31),0)/1000 -> 0.028371 | R131: =IF($C$8>=$D$25,VLOOKUP($D131,Point_Sources_All!$A$5:$AK$204,$C$4+34),0)/1000 -> 0.028
D132: 104 | E132: =VLOOKUP($D132,Background_All!$A$5:$Y$204,3*($C$8-1)+$C$4+1)/1000 -> 0.01043095833 | F132: =VLOOKUP($D132,Background_All!$AA$5:$AY$204,3*($C$8-1)+$C$4+1)/1000 -> 0.03037690983 | G132: =IF($C$8>=$D$14,VLOOKUP($D132,Point_Sources_All!$A$5:$AK$204,$C$4+1),0)/1000 -> 0 | H132: =IF($C$8>=$D$15,VLOOKUP($D132,Point_Sources_All!$A$5:$AK$204,$C$4+4),0)/1000 -> 0 | I132: =IF($C$8>=$D$16,VLOOKUP($D132,Point_Sources_All!$A$5:$AK$204,$C$4+7),0)/1000 -> 0.000156 | J132: =IF($C$8>=$D$17,VLOOKUP($D132,Point_Sources_All!$A$5:$AK$204,$C$4+10),0)/1000 -> 1.6187e-05 | K132: =IF($C$8>=$D$18,VLOOKUP($D132,Point_Sources_All!$A$5:$AK$204,$C$4+13),0)/1000 -> 2.964e-05 | L132: =IF($C$8>=$D$19,VLOOKUP($D132,Point_Sources_All!$A$5:$AK$204,$C$4+16),0)/1000 -> 1.4968e-05 | M132: =IF($C$8>=$D$20,VLOOKUP($D132,Point_Sources_All!$A$5:$AK$204,$C$4+19),0)/1000 -> 5.2779e-05 | N132: =IF($C$8>=$D$21,VLOOKUP($D132,Point_Sources_All!$A$5:$AK$204,$C$4+22),0)/1000 -> 5.3335e-06 | O132: =IF($C$8>=$D$22,VLOOKUP($D132,Point_Sources_All!$A$5:$AK$204,$C$4+25),0)/1000 -> 6.7307e-05 | P132: =IF($C$8>=$D$23,VLOOKUP($D132,Point_Sources_All!$A$5:$AK$204,$C$4+28),0)/1000 -> 8.8028e-06 | Q132: =IF($C$8>=$D$24,VLOOKUP($D132,Point_Sources_All!$A$5:$AK$204,$C$4+31),0)/1000 -> 0.028371 | R132: =IF($C$8>=$D$25,VLOOKUP($D132,Point_Sources_All!$A$5:$AK$204,$C$4+34),0)/1000 -> 0.028
D133: 105 | E133: =VLOOKUP($D133,Background_All!$A$5:$Y$204,3*($C$8-1)+$C$4+1)/1000 -> 0.01048563333 | F133: =VLOOKUP($D133,Background_All!$AA$5:$AY$204,3*($C$8-1)+$C$4+1)/1000 -> 0.02962717083 | G133: =IF($C$8>=$D$14,VLOOKUP($D133,Point_Sources_All!$A$5:$AK$204,$C$4+1),0)/1000 -> 0 | H133: =IF($C$8>=$D$15,VLOOKUP($D133,Point_Sources_All!$A$5:$AK$204,$C$4+4),0)/1000 -> 0 | I133: =IF($C$8>=$D$16,VLOOKUP($D133,Point_Sources_All!$A$5:$AK$204,$C$4+7),0)/1000 -> 0.000156 | J133: =IF($C$8>=$D$17,VLOOKUP($D133,Point_Sources_All!$A$5:$AK$204,$C$4+10),0)/1000 -> 1.6187e-05 | K133: =IF($C$8>=$D$18,VLOOKUP($D133,Point_Sources_All!$A$5:$AK$204,$C$4+13),0)/1000 -> 2.964e-05 | L133: =IF($C$8>=$D$19,VLOOKUP($D133,Point_Sources_All!$A$5:$AK$204,$C$4+16),0)/1000 -> 1.4968e-05 | M133: =IF($C$8>=$D$20,VLOOKUP($D133,Point_Sources_All!$A$5:$AK$204,$C$4+19),0)/1000 -> 5.2779e-05 | N133: =IF($C$8>=$D$21,VLOOKUP($D133,Point_Sources_All!$A$5:$AK$204,$C$4+22),0)/1000 -> 5.3335e-06 | O133: =IF($C$8>=$D$22,VLOOKUP($D133,Point_Sources_All!$A$5:$AK$204,$C$4+25),0)/1000 -> 6.7307e-05 | P133: =IF($C$8>=$D$23,VLOOKUP($D133,Point_Sources_All!$A$5:$AK$204,$C$4+28),0)/1000 -> 8.8028e-06 | Q133: =IF($C$8>=$D$24,VLOOKUP($D133,Point_Sources_All!$A$5:$AK$204,$C$4+31),0)/1000 -> 0.028371 | R133: =IF($C$8>=$D$25,VLOOKUP($D133,Point_Sources_All!$A$5:$AK$204,$C$4+34),0)/1000 -> 0.028
D134: 106 | E134: =VLOOKUP($D134,Background_All!$A$5:$Y$204,3*($C$8-1)+$C$4+1)/1000 -> 0.01040181667 | F134: =VLOOKUP($D134,Background_All!$AA$5:$AY$204,3*($C$8-1)+$C$4+1)/1000 -> 0.02931793917 | G134: =IF($C$8>=$D$14,VLOOKUP($D134,Point_Sources_All!$A$5:$AK$204,$C$4+1),0)/1000 -> 0 | H134: =IF($C$8>=$D$15,VLOOKUP($D134,Point_Sources_All!$A$5:$AK$204,$C$4+4),0)/1000 -> 0 | I134: =IF($C$8>=$D$16,VLOOKUP($D134,Point_Sources_All!$A$5:$AK$204,$C$4+7),0)/1000 -> 0.000156 | J134: =IF($C$8>=$D$17,VLOOKUP($D134,Point_Sources_All!$A$5:$AK$204,$C$4+10),0)/1000 -> 1.6187e-05 | K134: =IF($C$8>=$D$18,VLOOKUP($D134,Point_Sources_All!$A$5:$AK$204,$C$4+13),0)/1000 -> 2.964e-05 | L134: =IF($C$8>=$D$19,VLOOKUP($D134,Point_Sources_All!$A$5:$AK$204,$C$4+16),0)/1000 -> 1.4968e-05 | M134: =IF($C$8>=$D$20,VLOOKUP($D134,Point_Sources_All!$A$5:$AK$204,$C$4+19),0)/1000 -> 5.2779e-05 | N134: =IF($C$8>=$D$21,VLOOKUP($D134,Point_Sources_All!$A$5:$AK$204,$C$4+22),0)/1000 -> 5.3335e-06 | O134: =IF($C$8>=$D$22,VLOOKUP($D134,Point_Sources_All!$A$5:$AK$204,$C$4+25),0)/1000 -> 6.7307e-05 | P134: =IF($C$8>=$D$23,VLOOKUP($D134,Point_Sources_All!$A$5:$AK$204,$C$4+28),0)/1000 -> 8.8028e-06 | Q134: =IF($C$8>=$D$24,VLOOKUP($D134,Point_Sources_All!$A$5:$AK$204,$C$4+31),0)/1000 -> 0.028371 | R134: =IF($C$8>=$D$25,VLOOKUP($D134,Point_Sources_All!$A$5:$AK$204,$C$4+34),0)/1000 -> 0.028
D135: 107 | E135: =VLOOKUP($D135,Background_All!$A$5:$Y$204,3*($C$8-1)+$C$4+1)/1000 -> 0.0105214 | F135: =VLOOKUP($D135,Background_All!$AA$5:$AY$204,3*($C$8-1)+$C$4+1)/1000 -> 0.02840203642 | G135: =IF($C$8>=$D$14,VLOOKUP($D135,Point_Sources_All!$A$5:$AK$204,$C$4+1),0)/1000 -> 0 | H135: =IF($C$8>=$D$15,VLOOKUP($D135,Point_Sources_All!$A$5:$AK$204,$C$4+4),0)/1000 -> 0 | I135: =IF($C$8>=$D$16,VLOOKUP($D135,Point_Sources_All!$A$5:$AK$204,$C$4+7),0)/1000 -> 0.000156 | J135: =IF($C$8>=$D$17,VLOOKUP($D135,Point_Sources_All!$A$5:$AK$204,$C$4+10),0)/1000 -> 1.6187e-05 | K135: =IF($C$8>=$D$18,VLOOKUP($D135,Point_Sources_All!$A$5:$AK$204,$C$4+13),0)/1000 -> 2.964e-05 | L135: =IF($C$8>=$D$19,VLOOKUP($D135,Point_Sources_All!$A$5:$AK$204,$C$4+16),0)/1000 -> 1.4968e-05 | M135: =IF($C$8>=$D$20,VLOOKUP($D135,Point_Sources_All!$A$5:$AK$204,$C$4+19),0)/1000 -> 5.2779e-05 | N135: =IF($C$8>=$D$21,VLOOKUP($D135,Point_Sources_All!$A$5:$AK$204,$C$4+22),0)/1000 -> 5.3335e-06 | O135: =IF($C$8>=$D$22,VLOOKUP($D135,Point_Sources_All!$A$5:$AK$204,$C$4+25),0)/1000 -> 6.7307e-05 | P135: =IF($C$8>=$D$23,VLOOKUP($D135,Point_Sources_All!$A$5:$AK$204,$C$4+28),0)/1000 -> 8.8028e-06 | Q135: =IF($C$8>=$D$24,VLOOKUP($D135,Point_Sources_All!$A$5:$AK$204,$C$4+31),0)/1000 -> 0.028371 | R135: =IF($C$8>=$D$25,VLOOKUP($D135,Point_Sources_All!$A$5:$AK$204,$C$4+34),0)/1000 -> 0.028
D136: 108 | E136: =VLOOKUP($D136,Background_All!$A$5:$Y$204,3*($C$8-1)+$C$4+1)/1000 -> 0.01046994167 | F136: =VLOOKUP($D136,Background_All!$AA$5:$AY$204,3*($C$8-1)+$C$4+1)/1000 -> 0.0283104175 | G136: =IF($C$8>=$D$14,VLOOKUP($D136,Point_Sources_All!$A$5:$AK$204,$C$4+1),0)/1000 -> 0 | H136: =IF($C$8>=$D$15,VLOOKUP($D136,Point_Sources_All!$A$5:$AK$204,$C$4+4),0)/1000 -> 0 | I136: =IF($C$8>=$D$16,VLOOKUP($D136,Point_Sources_All!$A$5:$AK$204,$C$4+7),0)/1000 -> 0.000156 | J136: =IF($C$8>=$D$17,VLOOKUP($D136,Point_Sources_All!$A$5:$AK$204,$C$4+10),0)/1000 -> 1.6187e-05 | K136: =IF($C$8>=$D$18,VLOOKUP($D136,Point_Sources_All!$A$5:$AK$204,$C$4+13),0)/1000 -> 2.964e-05 | L136: =IF($C$8>=$D$19,VLOOKUP($D136,Point_Sources_All!$A$5:$AK$204,$C$4+16),0)/1000 -> 1.4968e-05 | M136: =IF($C$8>=$D$20,VLOOKUP($D136,Point_Sources_All!$A$5:$AK$204,$C$4+19),0)/1000 -> 5.2779e-05 | N136: =IF($C$8>=$D$21,VLOOKUP($D136,Point_Sources_All!$A$5:$AK$204,$C$4+22),0)/1000 -> 5.3335e-06 | O136: =IF($C$8>=$D$22,VLOOKUP($D136,Point_Sources_All!$A$5:$AK$204,$C$4+25),0)/1000 -> 6.7307e-05 | P136: =IF($C$8>=$D$23,VLOOKUP($D136,Point_Sources_All!$A$5:$AK$204,$C$4+28),0)/1000 -> 8.8028e-06 | Q136: =IF($C$8>=$D$24,VLOOKUP($D136,Point_Sources_All!$A$5:$AK$204,$C$4+31),0)/1000 -> 0.028371 | R136: =IF($C$8>=$D$25,VLOOKUP($D136,Point_Sources_All!$A$5:$AK$204,$C$4+34),0)/1000 -> 0.028
D137: 109 | E137: =VLOOKUP($D137,Background_All!$A$5:$Y$204,3*($C$8-1)+$C$4+1)/1000 -> 0.010498825 | F137: =VLOOKUP($D137,Background_All!$AA$5:$AY$204,3*($C$8-1)+$C$4+1)/1000 -> 0.02678591083 | G137: =IF($C$8>=$D$14,VLOOKUP($D137,Point_Sources_All!$A$5:$AK$204,$C$4+1),0)/1000 -> 0 | H137: =IF($C$8>=$D$15,VLOOKUP($D137,Point_Sources_All!$A$5:$AK$204,$C$4+4),0)/1000 -> 0 | I137: =IF($C$8>=$D$16,VLOOKUP($D137,Point_Sources_All!$A$5:$AK$204,$C$4+7),0)/1000 -> 0.000156 | J137: =IF($C$8>=$D$17,VLOOKUP($D137,Point_Sources_All!$A$5:$AK$204,$C$4+10),0)/1000 -> 1.6187e-05 | K137: =IF($C$8>=$D$18,VLOOKUP($D137,Point_Sources_All!$A$5:$AK$204,$C$4+13),0)/1000 -> 2.964e-05 | L137: =IF($C$8>=$D$19,VLOOKUP($D137,Point_Sources_All!$A$5:$AK$204,$C$4+16),0)/1000 -> 1.4968e-05 | M137: =IF($C$8>=$D$20,VLOOKUP($D137,Point_Sources_All!$A$5:$AK$204,$C$4+19),0)/1000 -> 5.2779e-05 | N137: =IF($C$8>=$D$21,VLOOKUP($D137,Point_Sources_All!$A$5:$AK$204,$C$4+22),0)/1000 -> 5.3335e-06 | O137: =IF($C$8>=$D$22,VLOOKUP($D137,Point_Sources_All!$A$5:$AK$204,$C$4+25),0)/1000 -> 6.7307e-05 | P137: =IF($C$8>=$D$23,VLOOKUP($D137,Point_Sources_All!$A$5:$AK$204,$C$4+28),0)/1000 -> 8.8028e-06 | Q137: =IF($C$8>=$D$24,VLOOKUP($D137,Point_Sources_All!$A$5:$AK$204,$C$4+31),0)/1000 -> 0.028371 | R137: =IF($C$8>=$D$25,VLOOKUP($D137,Point_Sources_All!$A$5:$AK$204,$C$4+34),0)/1000 -> 0.028
D138: 110 | E138: =VLOOKUP($D138,Background_All!$A$5:$Y$204,3*($C$8-1)+$C$4+1)/1000 -> 0.010497175 | F138: =VLOOKUP($D138,Background_All!$AA$5:$AY$204,3*($C$8-1)+$C$4+1)/1000 -> 0.030580455 | G138: =IF($C$8>=$D$14,VLOOKUP($D138,Point_Sources_All!$A$5:$AK$204,$C$4+1),0)/1000 -> 0 | H138: =IF($C$8>=$D$15,VLOOKUP($D138,Point_Sources_All!$A$5:$AK$204,$C$4+4),0)/1000 -> 0 | I138: =IF($C$8>=$D$16,VLOOKUP($D138,Point_Sources_All!$A$5:$AK$204,$C$4+7),0)/1000 -> 0.000156 | J138: =IF($C$8>=$D$17,VLOOKUP($D138,Point_Sources_All!$A$5:$AK$204,$C$4+10),0)/1000 -> 1.6187e-05 | K138: =IF($C$8>=$D$18,VLOOKUP($D138,Point_Sources_All!$A$5:$AK$204,$C$4+13),0)/1000 -> 2.964e-05 | L138: =IF($C$8>=$D$19,VLOOKUP($D138,Point_Sources_All!$A$5:$AK$204,$C$4+16),0)/1000 -> 1.4968e-05 | M138: =IF($C$8>=$D$20,VLOOKUP($D138,Point_Sources_All!$A$5:$AK$204,$C$4+19),0)/1000 -> 5.2779e-05 | N138: =IF($C$8>=$D$21,VLOOKUP($D138,Point_Sources_All!$A$5:$AK$204,$C$4+22),0)/1000 -> 5.3335e-06 | O138: =IF($C$8>=$D$22,VLOOKUP($D138,Point_Sources_All!$A$5:$AK$204,$C$4+25),0)/1000 -> 6.7307e-05 | P138: =IF($C$8>=$D$23,VLOOKUP($D138,Point_Sources_All!$A$5:$AK$204,$C$4+28),0)/1000 -> 8.8028e-06 | Q138: =IF($C$8>=$D$24,VLOOKUP($D138,Point_Sources_All!$A$5:$AK$204,$C$4+31),0)/1000 -> 0.028371 | R138: =IF($C$8>=$D$25,VLOOKUP($D138,Point_Sources_All!$A$5:$AK$204,$C$4+34),0)/1000 -> 0.028
D139: 111 | E139: =VLOOKUP($D139,Background_All!$A$5:$Y$204,3*($C$8-1)+$C$4+1)/1000 -> 0.01050355 | F139: =VLOOKUP($D139,Background_All!$AA$5:$AY$204,3*($C$8-1)+$C$4+1)/1000 -> 0.0311703075 | G139: =IF($C$8>=$D$14,VLOOKUP($D139,Point_Sources_All!$A$5:$AK$204,$C$4+1),0)/1000 -> 0 | H139: =IF($C$8>=$D$15,VLOOKUP($D139,Point_Sources_All!$A$5:$AK$204,$C$4+4),0)/1000 -> 0 | I139: =IF($C$8>=$D$16,VLOOKUP($D139,Point_Sources_All!$A$5:$AK$204,$C$4+7),0)/1000 -> 0.000156 | J139: =IF($C$8>=$D$17,VLOOKUP($D139,Point_Sources_All!$A$5:$AK$204,$C$4+10),0)/1000 -> 1.6187e-05 | K139: =IF($C$8>=$D$18,VLOOKUP($D139,Point_Sources_All!$A$5:$AK$204,$C$4+13),0)/1000 -> 2.964e-05 | L139: =IF($C$8>=$D$19,VLOOKUP($D139,Point_Sources_All!$A$5:$AK$204,$C$4+16),0)/1000 -> 1.4968e-05 | M139: =IF($C$8>=$D$20,VLOOKUP($D139,Point_Sources_All!$A$5:$AK$204,$C$4+19),0)/1000 -> 5.2779e-05 | N139: =IF($C$8>=$D$21,VLOOKUP($D139,Point_Sources_All!$A$5:$AK$204,$C$4+22),0)/1000 -> 5.3335e-06 | O139: =IF($C$8>=$D$22,VLOOKUP($D139,Point_Sources_All!$A$5:$AK$204,$C$4+25),0)/1000 -> 6.7307e-05 | P139: =IF($C$8>=$D$23,VLOOKUP($D139,Point_Sources_All!$A$5:$AK$204,$C$4+28),0)/1000 -> 8.8028e-06 | Q139: =IF($C$8>=$D$24,VLOOKUP($D139,Point_Sources_All!$A$5:$AK$204,$C$4+31),0)/1000 -> 0.028371 | R139: =IF($C$8>=$D$25,VLOOKUP($D139,Point_Sources_All!$A$5:$AK$204,$C$4+34),0)/1000 -> 0.028
D140: 112 | E140: =VLOOKUP($D140,Background_All!$A$5:$Y$204,3*($C$8-1)+$C$4+1)/1000 -> 0.01041019167 | F140: =VLOOKUP($D140,Background_All!$AA$5:$AY$204,3*($C$8-1)+$C$4+1)/1000 -> 0.02774415658 | G140: =IF($C$8>=$D$14,VLOOKUP($D140,Point_Sources_All!$A$5:$AK$204,$C$4+1),0)/1000 -> 0 | H140: =IF($C$8>=$D$15,VLOOKUP($D140,Point_Sources_All!$A$5:$AK$204,$C$4+4),0)/1000 -> 0 | I140: =IF($C$8>=$D$16,VLOOKUP($D140,Point_Sources_All!$A$5:$AK$204,$C$4+7),0)/1000 -> 0.000156 | J140: =IF($C$8>=$D$17,VLOOKUP($D140,Point_Sources_All!$A$5:$AK$204,$C$4+10),0)/1000 -> 1.6187e-05 | K140: =IF($C$8>=$D$18,VLOOKUP($D140,Point_Sources_All!$A$5:$AK$204,$C$4+13),0)/1000 -> 2.964e-05 | L140: =IF($C$8>=$D$19,VLOOKUP($D140,Point_Sources_All!$A$5:$AK$204,$C$4+16),0)/1000 -> 1.4968e-05 | M140: =IF($C$8>=$D$20,VLOOKUP($D140,Point_Sources_All!$A$5:$AK$204,$C$4+19),0)/1000 -> 5.2779e-05 | N140: =IF($C$8>=$D$21,VLOOKUP($D140,Point_Sources_All!$A$5:$AK$204,$C$4+22),0)/1000 -> 5.3335e-06 | O140: =IF($C$8>=$D$22,VLOOKUP($D140,Point_Sources_All!$A$5:$AK$204,$C$4+25),0)/1000 -> 6.7307e-05 | P140: =IF($C$8>=$D$23,VLOOKUP($D140,Point_Sources_All!$A$5:$AK$204,$C$4+28),0)/1000 -> 8.8028e-06 | Q140: =IF($C$8>=$D$24,VLOOKUP($D140,Point_Sources_All!$A$5:$AK$204,$C$4+31),0)/1000 -> 0.028371 | R140: =IF($C$8>=$D$25,VLOOKUP($D140,Point_Sources_All!$A$5:$AK$204,$C$4+34),0)/1000 -> 0.028
D141: 113 | E141: =VLOOKUP($D141,Background_All!$A$5:$Y$204,3*($C$8-1)+$C$4+1)/1000 -> 0.01040080833 | F141: =VLOOKUP($D141,Background_All!$AA$5:$AY$204,3*($C$8-1)+$C$4+1)/1000 -> 0.0280986 | G141: =IF($C$8>=$D$14,VLOOKUP($D141,Point_Sources_All!$A$5:$AK$204,$C$4+1),0)/1000 -> 0 | H141: =IF($C$8>=$D$15,VLOOKUP($D141,Point_Sources_All!$A$5:$AK$204,$C$4+4),0)/1000 -> 0 | I141: =IF($C$8>=$D$16,VLOOKUP($D141,Point_Sources_All!$A$5:$AK$204,$C$4+7),0)/1000 -> 0.000156 | J141: =IF($C$8>=$D$17,VLOOKUP($D141,Point_Sources_All!$A$5:$AK$204,$C$4+10),0)/1000 -> 1.6187e-05 | K141: =IF($C$8>=$D$18,VLOOKUP($D141,Point_Sources_All!$A$5:$AK$204,$C$4+13),0)/1000 -> 2.964e-05 | L141: =IF($C$8>=$D$19,VLOOKUP($D141,Point_Sources_All!$A$5:$AK$204,$C$4+16),0)/1000 -> 1.4968e-05 | M141: =IF($C$8>=$D$20,VLOOKUP($D141,Point_Sources_All!$A$5:$AK$204,$C$4+19),0)/1000 -> 5.2779e-05 | N141: =IF($C$8>=$D$21,VLOOKUP($D141,Point_Sources_All!$A$5:$AK$204,$C$4+22),0)/1000 -> 5.3335e-06 | O141: =IF($C$8>=$D$22,VLOOKUP($D141,Point_Sources_All!$A$5:$AK$204,$C$4+25),0)/1000 -> 6.7307e-05 | P141: =IF($C$8>=$D$23,VLOOKUP($D141,Point_Sources_All!$A$5:$AK$204,$C$4+28),0)/1000 -> 8.8028e-06 | Q141: =IF($C$8>=$D$24,VLOOKUP($D141,Point_Sources_All!$A$5:$AK$204,$C$4+31),0)/1000 -> 0.028371 | R141: =IF($C$8>=$D$25,VLOOKUP($D141,Point_Sources_All!$A$5:$AK$204,$C$4+34),0)/1000 -> 0.028
D142: 114 | E142: =VLOOKUP($D142,Background_All!$A$5:$Y$204,3*($C$8-1)+$C$4+1)/1000 -> 0.01051993333 | F142: =VLOOKUP($D142,Background_All!$AA$5:$AY$204,3*($C$8-1)+$C$4+1)/1000 -> 0.0309520875 | G142: =IF($C$8>=$D$14,VLOOKUP($D142,Point_Sources_All!$A$5:$AK$204,$C$4+1),0)/1000 -> 0 | H142: =IF($C$8>=$D$15,VLOOKUP($D142,Point_Sources_All!$A$5:$AK$204,$C$4+4),0)/1000 -> 0 | I142: =IF($C$8>=$D$16,VLOOKUP($D142,Point_Sources_All!$A$5:$AK$204,$C$4+7),0)/1000 -> 0.000156 | J142: =IF($C$8>=$D$17,VLOOKUP($D142,Point_Sources_All!$A$5:$AK$204,$C$4+10),0)/1000 -> 1.6187e-05 | K142: =IF($C$8>=$D$18,VLOOKUP($D142,Point_Sources_All!$A$5:$AK$204,$C$4+13),0)/1000 -> 2.964e-05 | L142: =IF($C$8>=$D$19,VLOOKUP($D142,Point_Sources_All!$A$5:$AK$204,$C$4+16),0)/1000 -> 1.4968e-05 | M142: =IF($C$8>=$D$20,VLOOKUP($D142,Point_Sources_All!$A$5:$AK$204,$C$4+19),0)/1000 -> 5.2779e-05 | N142: =IF($C$8>=$D$21,VLOOKUP($D142,Point_Sources_All!$A$5:$AK$204,$C$4+22),0)/1000 -> 5.3335e-06 | O142: =IF($C$8>=$D$22,VLOOKUP($D142,Point_Sources_All!$A$5:$AK$204,$C$4+25),0)/1000 -> 6.7307e-05 | P142: =IF($C$8>=$D$23,VLOOKUP($D142,Point_Sources_All!$A$5:$AK$204,$C$4+28),0)/1000 -> 8.8028e-06 | Q142: =IF($C$8>=$D$24,VLOOKUP($D142,Point_Sources_All!$A$5:$AK$204,$C$4+31),0)/1000 -> 0.028371 | R142: =IF($C$8>=$D$25,VLOOKUP($D142,Point_Sources_All!$A$5:$AK$204,$C$4+34),0)/1000 -> 0.028
D143: 115 | E143: =VLOOKUP($D143,Background_All!$A$5:$Y$204,3*($C$8-1)+$C$4+1)/1000 -> 0.01040746667 | F143: =VLOOKUP($D143,Background_All!$AA$5:$AY$204,3*($C$8-1)+$C$4+1)/1000 -> 0.02906415167 | G143: =IF($C$8>=$D$14,VLOOKUP($D143,Point_Sources_All!$A$5:$AK$204,$C$4+1),0)/1000 -> 0 | H143: =IF($C$8>=$D$15,VLOOKUP($D143,Point_Sources_All!$A$5:$AK$204,$C$4+4),0)/1000 -> 0 | I143: =IF($C$8>=$D$16,VLOOKUP($D143,Point_Sources_All!$A$5:$AK$204,$C$4+7),0)/1000 -> 0.000156 | J143: =IF($C$8>=$D$17,VLOOKUP($D143,Point_Sources_All!$A$5:$AK$204,$C$4+10),0)/1000 -> 1.6187e-05 | K143: =IF($C$8>=$D$18,VLOOKUP($D143,Point_Sources_All!$A$5:$AK$204,$C$4+13),0)/1000 -> 2.964e-05 | L143: =IF($C$8>=$D$19,VLOOKUP($D143,Point_Sources_All!$A$5:$AK$204,$C$4+16),0)/1000 -> 1.4968e-05 | M143: =IF($C$8>=$D$20,VLOOKUP($D143,Point_Sources_All!$A$5:$AK$204,$C$4+19),0)/1000 -> 5.2779e-05 | N143: =IF($C$8>=$D$21,VLOOKUP($D143,Point_Sources_All!$A$5:$AK$204,$C$4+22),0)/1000 -> 5.3335e-06 | O143: =IF($C$8>=$D$22,VLOOKUP($D143,Point_Sources_All!$A$5:$AK$204,$C$4+25),0)/1000 -> 6.7307e-05 | P143: =IF($C$8>=$D$23,VLOOKUP($D143,Point_Sources_All!$A$5:$AK$204,$C$4+28),0)/1000 -> 8.8028e-06 | Q143: =IF($C$8>=$D$24,VLOOKUP($D143,Point_Sources_All!$A$5:$AK$204,$C$4+31),0)/1000 -> 0.028371 | R143: =IF($C$8>=$D$25,VLOOKUP($D143,Point_Sources_All!$A$5:$AK$204,$C$4+34),0)/1000 -> 0.028
D144: 116 | E144: =VLOOKUP($D144,Background_All!$A$5:$Y$204,3*($C$8-1)+$C$4+1)/1000 -> 0.01046158333 | F144: =VLOOKUP($D144,Background_All!$AA$5:$AY$204,3*($C$8-1)+$C$4+1)/1000 -> 0.02930542 | G144: =IF($C$8>=$D$14,VLOOKUP($D144,Point_Sources_All!$A$5:$AK$204,$C$4+1),0)/1000 -> 0 | H144: =IF($C$8>=$D$15,VLOOKUP($D144,Point_Sources_All!$A$5:$AK$204,$C$4+4),0)/1000 -> 0 | I144: =IF($C$8>=$D$16,VLOOKUP($D144,Point_Sources_All!$A$5:$AK$204,$C$4+7),0)/1000 -> 0.000156 | J144: =IF($C$8>=$D$17,VLOOKUP($D144,Point_Sources_All!$A$5:$AK$204,$C$4+10),0)/1000 -> 1.6187e-05 | K144: =IF($C$8>=$D$18,VLOOKUP($D144,Point_Sources_All!$A$5:$AK$204,$C$4+13),0)/1000 -> 2.964e-05 | L144: =IF($C$8>=$D$19,VLOOKUP($D144,Point_Sources_All!$A$5:$AK$204,$C$4+16),0)/1000 -> 1.4968e-05 | M144: =IF($C$8>=$D$20,VLOOKUP($D144,Point_Sources_All!$A$5:$AK$204,$C$4+19),0)/1000 -> 5.2779e-05 | N144: =IF($C$8>=$D$21,VLOOKUP($D144,Point_Sources_All!$A$5:$AK$204,$C$4+22),0)/1000 -> 5.3335e-06 | O144: =IF($C$8>=$D$22,VLOOKUP($D144,Point_Sources_All!$A$5:$AK$204,$C$4+25),0)/1000 -> 6.7307e-05 | P144: =IF($C$8>=$D$23,VLOOKUP($D144,Point_Sources_All!$A$5:$AK$204,$C$4+28),0)/1000 -> 8.8028e-06 | Q144: =IF($C$8>=$D$24,VLOOKUP($D144,Point_Sources_All!$A$5:$AK$204,$C$4+31),0)/1000 -> 0.028371 | R144: =IF($C$8>=$D$25,VLOOKUP($D144,Point_Sources_All!$A$5:$AK$204,$C$4+34),0)/1000 -> 0.028
D145: 117 | E145: =VLOOKUP($D145,Background_All!$A$5:$Y$204,3*($C$8-1)+$C$4+1)/1000 -> 0.0103948 | F145: =VLOOKUP($D145,Background_All!$AA$5:$AY$204,3*($C$8-1)+$C$4+1)/1000 -> 0.029974825 | G145: =IF($C$8>=$D$14,VLOOKUP($D145,Point_Sources_All!$A$5:$AK$204,$C$4+1),0)/1000 -> 0 | H145: =IF($C$8>=$D$15,VLOOKUP($D145,Point_Sources_All!$A$5:$AK$204,$C$4+4),0)/1000 -> 0 | I145: =IF($C$8>=$D$16,VLOOKUP($D145,Point_Sources_All!$A$5:$AK$204,$C$4+7),0)/1000 -> 0.000156 | J145: =IF($C$8>=$D$17,VLOOKUP($D145,Point_Sources_All!$A$5:$AK$204,$C$4+10),0)/1000 -> 1.6187e-05 | K145: =IF($C$8>=$D$18,VLOOKUP($D145,Point_Sources_All!$A$5:$AK$204,$C$4+13),0)/1000 -> 2.964e-05 | L145: =IF($C$8>=$D$19,VLOOKUP($D145,Point_Sources_All!$A$5:$AK$204,$C$4+16),0)/1000 -> 1.4968e-05 | M145: =IF($C$8>=$D$20,VLOOKUP($D145,Point_Sources_All!$A$5:$AK$204,$C$4+19),0)/1000 -> 5.2779e-05 | N145: =IF($C$8>=$D$21,VLOOKUP($D145,Point_Sources_All!$A$5:$AK$204,$C$4+22),0)/1000 -> 5.3335e-06 | O145: =IF($C$8>=$D$22,VLOOKUP($D145,Point_Sources_All!$A$5:$AK$204,$C$4+25),0)/1000 -> 6.7307e-05 | P145: =IF($C$8>=$D$23,VLOOKUP($D145,Point_Sources_All!$A$5:$AK$204,$C$4+28),0)/1000 -> 8.8028e-06 | Q145: =IF($C$8>=$D$24,VLOOKUP($D145,Point_Sources_All!$A$5:$AK$204,$C$4+31),0)/1000 -> 0.028371 | R145: =IF($C$8>=$D$25,VLOOKUP($D145,Point_Sources_All!$A$5:$AK$204,$C$4+34),0)/1000 -> 0.028
D146: 118 | E146: =VLOOKUP($D146,Background_All!$A$5:$Y$204,3*($C$8-1)+$C$4+1)/1000 -> 0.01042415 | F146: =VLOOKUP($D146,Background_All!$AA$5:$AY$204,3*($C$8-1)+$C$4+1)/1000 -> 0.0312214575 | G146: =IF($C$8>=$D$14,VLOOKUP($D146,Point_Sources_All!$A$5:$AK$204,$C$4+1),0)/1000 -> 0 | H146: =IF($C$8>=$D$15,VLOOKUP($D146,Point_Sources_All!$A$5:$AK$204,$C$4+4),0)/1000 -> 0 | I146: =IF($C$8>=$D$16,VLOOKUP($D146,Point_Sources_All!$A$5:$AK$204,$C$4+7),0)/1000 -> 0.000156 | J146: =IF($C$8>=$D$17,VLOOKUP($D146,Point_Sources_All!$A$5:$AK$204,$C$4+10),0)/1000 -> 1.6187e-05 | K146: =IF($C$8>=$D$18,VLOOKUP($D146,Point_Sources_All!$A$5:$AK$204,$C$4+13),0)/1000 -> 2.964e-05 | L146: =IF($C$8>=$D$19,VLOOKUP($D146,Point_Sources_All!$A$5:$AK$204,$C$4+16),0)/1000 -> 1.4968e-05 | M146: =IF($C$8>=$D$20,VLOOKUP($D146,Point_Sources_All!$A$5:$AK$204,$C$4+19),0)/1000 -> 5.2779e-05 | N146: =IF($C$8>=$D$21,VLOOKUP($D146,Point_Sources_All!$A$5:$AK$204,$C$4+22),0)/1000 -> 5.3335e-06 | O146: =IF($C$8>=$D$22,VLOOKUP($D146,Point_Sources_All!$A$5:$AK$204,$C$4+25),0)/1000 -> 6.7307e-05 | P146: =IF($C$8>=$D$23,VLOOKUP($D146,Point_Sources_All!$A$5:$AK$204,$C$4+28),0)/1000 -> 8.8028e-06 | Q146: =IF($C$8>=$D$24,VLOOKUP($D146,Point_Sources_All!$A$5:$AK$204,$C$4+31),0)/1000 -> 0.028371 | R146: =IF($C$8>=$D$25,VLOOKUP($D146,Point_Sources_All!$A$5:$AK$204,$C$4+34),0)/1000 -> 0.028
D147: 119 | E147: =VLOOKUP($D147,Background_All!$A$5:$Y$204,3*($C$8-1)+$C$4+1)/1000 -> 0.01047141667 | F147: =VLOOKUP($D147,Background_All!$AA$5:$AY$204,3*($C$8-1)+$C$4+1)/1000 -> 0.02892497258 | G147: =IF($C$8>=$D$14,VLOOKUP($D147,Point_Sources_All!$A$5:$AK$204,$C$4+1),0)/1000 -> 0 | H147: =IF($C$8>=$D$15,VLOOKUP($D147,Point_Sources_All!$A$5:$AK$204,$C$4+4),0)/1000 -> 0 | I147: =IF($C$8>=$D$16,VLOOKUP($D147,Point_Sources_All!$A$5:$AK$204,$C$4+7),0)/1000 -> 0.000156 | J147: =IF($C$8>=$D$17,VLOOKUP($D147,Point_Sources_All!$A$5:$AK$204,$C$4+10),0)/1000 -> 1.6187e-05 | K147: =IF($C$8>=$D$18,VLOOKUP($D147,Point_Sources_All!$A$5:$AK$204,$C$4+13),0)/1000 -> 2.964e-05 | L147: =IF($C$8>=$D$19,VLOOKUP($D147,Point_Sources_All!$A$5:$AK$204,$C$4+16),0)/1000 -> 1.4968e-05 | M147: =IF($C$8>=$D$20,VLOOKUP($D147,Point_Sources_All!$A$5:$AK$204,$C$4+19),0)/1000 -> 5.2779e-05 | N147: =IF($C$8>=$D$21,VLOOKUP($D147,Point_Sources_All!$A$5:$AK$204,$C$4+22),0)/1000 -> 5.3335e-06 | O147: =IF($C$8>=$D$22,VLOOKUP($D147,Point_Sources_All!$A$5:$AK$204,$C$4+25),0)/1000 -> 6.7307e-05 | P147: =IF($C$8>=$D$23,VLOOKUP($D147,Point_Sources_All!$A$5:$AK$204,$C$4+28),0)/1000 -> 8.8028e-06 | Q147: =IF($C$8>=$D$24,VLOOKUP($D147,Point_Sources_All!$A$5:$AK$204,$C$4+31),0)/1000 -> 0.028371 | R147: =IF($C$8>=$D$25,VLOOKUP($D147,Point_Sources_All!$A$5:$AK$204,$C$4+34),0)/1000 -> 0.028
D148: 120 | E148: =VLOOKUP($D148,Background_All!$A$5:$Y$204,3*($C$8-1)+$C$4+1)/1000 -> 0.01046228333 | F148: =VLOOKUP($D148,Background_All!$AA$5:$AY$204,3*($C$8-1)+$C$4+1)/1000 -> 0.03340683642 | G148: =IF($C$8>=$D$14,VLOOKUP($D148,Point_Sources_All!$A$5:$AK$204,$C$4+1),0)/1000 -> 0 | H148: =IF($C$8>=$D$15,VLOOKUP($D148,Point_Sources_All!$A$5:$AK$204,$C$4+4),0)/1000 -> 0 | I148: =IF($C$8>=$D$16,VLOOKUP($D148,Point_Sources_All!$A$5:$AK$204,$C$4+7),0)/1000 -> 0.000156 | J148: =IF($C$8>=$D$17,VLOOKUP($D148,Point_Sources_All!$A$5:$AK$204,$C$4+10),0)/1000 -> 1.6187e-05 | K148: =IF($C$8>=$D$18,VLOOKUP($D148,Point_Sources_All!$A$5:$AK$204,$C$4+13),0)/1000 -> 2.964e-05 | L148: =IF($C$8>=$D$19,VLOOKUP($D148,Point_Sources_All!$A$5:$AK$204,$C$4+16),0)/1000 -> 1.4968e-05 | M148: =IF($C$8>=$D$20,VLOOKUP($D148,Point_Sources_All!$A$5:$AK$204,$C$4+19),0)/1000 -> 5.2779e-05 | N148: =IF($C$8>=$D$21,VLOOKUP($D148,Point_Sources_All!$A$5:$AK$204,$C$4+22),0)/1000 -> 5.3335e-06 | O148: =IF($C$8>=$D$22,VLOOKUP($D148,Point_Sources_All!$A$5:$AK$204,$C$4+25),0)/1000 -> 6.7307e-05 | P148: =IF($C$8>=$D$23,VLOOKUP($D148,Point_Sources_All!$A$5:$AK$204,$C$4+28),0)/1000 -> 8.8028e-06 | Q148: =IF($C$8>=$D$24,VLOOKUP($D148,Point_Sources_All!$A$5:$AK$204,$C$4+31),0)/1000 -> 0.028371 | R148: =IF($C$8>=$D$25,VLOOKUP($D148,Point_Sources_All!$A$5:$AK$204,$C$4+34),0)/1000 -> 0.028
D149: 121 | E149: =VLOOKUP($D149,Background_All!$A$5:$Y$204,3*($C$8-1)+$C$4+1)/1000 -> 0.01045909167 | F149: =VLOOKUP($D149,Background_All!$AA$5:$AY$204,3*($C$8-1)+$C$4+1)/1000 -> 0.0282448175 | G149: =IF($C$8>=$D$14,VLOOKUP($D149,Point_Sources_All!$A$5:$AK$204,$C$4+1),0)/1000 -> 0 | H149: =IF($C$8>=$D$15,VLOOKUP($D149,Point_Sources_All!$A$5:$AK$204,$C$4+4),0)/1000 -> 0 | I149: =IF($C$8>=$D$16,VLOOKUP($D149,Point_Sources_All!$A$5:$AK$204,$C$4+7),0)/1000 -> 0.000156 | J149: =IF($C$8>=$D$17,VLOOKUP($D149,Point_Sources_All!$A$5:$AK$204,$C$4+10),0)/1000 -> 1.6187e-05 | K149: =IF($C$8>=$D$18,VLOOKUP($D149,Point_Sources_All!$A$5:$AK$204,$C$4+13),0)/1000 -> 2.964e-05 | L149: =IF($C$8>=$D$19,VLOOKUP($D149,Point_Sources_All!$A$5:$AK$204,$C$4+16),0)/1000 -> 1.4968e-05 | M149: =IF($C$8>=$D$20,VLOOKUP($D149,Point_Sources_All!$A$5:$AK$204,$C$4+19),0)/1000 -> 5.2779e-05 | N149: =IF($C$8>=$D$21,VLOOKUP($D149,Point_Sources_All!$A$5:$AK$204,$C$4+22),0)/1000 -> 5.3335e-06 | O149: =IF($C$8>=$D$22,VLOOKUP($D149,Point_Sources_All!$A$5:$AK$204,$C$4+25),0)/1000 -> 6.7307e-05 | P149: =IF($C$8>=$D$23,VLOOKUP($D149,Point_Sources_All!$A$5:$AK$204,$C$4+28),0)/1000 -> 8.8028e-06 | Q149: =IF($C$8>=$D$24,VLOOKUP($D149,Point_Sources_All!$A$5:$AK$204,$C$4+31),0)/1000 -> 0.028371 | R149: =IF($C$8>=$D$25,VLOOKUP($D149,Point_Sources_All!$A$5:$AK$204,$C$4+34),0)/1000 -> 0.028
D150: 122 | E150: =VLOOKUP($D150,Background_All!$A$5:$Y$204,3*($C$8-1)+$C$4+1)/1000 -> 0.0104521 | F150: =VLOOKUP($D150,Background_All!$AA$5:$AY$204,3*($C$8-1)+$C$4+1)/1000 -> 0.02840634883 | G150: =IF($C$8>=$D$14,VLOOKUP($D150,Point_Sources_All!$A$5:$AK$204,$C$4+1),0)/1000 -> 0 | H150: =IF($C$8>=$D$15,VLOOKUP($D150,Point_Sources_All!$A$5:$AK$204,$C$4+4),0)/1000 -> 0 | I150: =IF($C$8>=$D$16,VLOOKUP($D150,Point_Sources_All!$A$5:$AK$204,$C$4+7),0)/1000 -> 0.000156 | J150: =IF($C$8>=$D$17,VLOOKUP($D150,Point_Sources_All!$A$5:$AK$204,$C$4+10),0)/1000 -> 1.6187e-05 | K150: =IF($C$8>=$D$18,VLOOKUP($D150,Point_Sources_All!$A$5:$AK$204,$C$4+13),0)/1000 -> 2.964e-05 | L150: =IF($C$8>=$D$19,VLOOKUP($D150,Point_Sources_All!$A$5:$AK$204,$C$4+16),0)/1000 -> 1.4968e-05 | M150: =IF($C$8>=$D$20,VLOOKUP($D150,Point_Sources_All!$A$5:$AK$204,$C$4+19),0)/1000 -> 5.2779e-05 | N150: =IF($C$8>=$D$21,VLOOKUP($D150,Point_Sources_All!$A$5:$AK$204,$C$4+22),0)/1000 -> 5.3335e-06 | O150: =IF($C$8>=$D$22,VLOOKUP($D150,Point_Sources_All!$A$5:$AK$204,$C$4+25),0)/1000 -> 6.7307e-05 | P150: =IF($C$8>=$D$23,VLOOKUP($D150,Point_Sources_All!$A$5:$AK$204,$C$4+28),0)/1000 -> 8.8028e-06 | Q150: =IF($C$8>=$D$24,VLOOKUP($D150,Point_Sources_All!$A$5:$AK$204,$C$4+31),0)/1000 -> 0.028371 | R150: =IF($C$8>=$D$25,VLOOKUP($D150,Point_Sources_All!$A$5:$AK$204,$C$4+34),0)/1000 -> 0.028
D151: 123 | E151: =VLOOKUP($D151,Background_All!$A$5:$Y$204,3*($C$8-1)+$C$4+1)/1000 -> 0.01041960833 | F151: =VLOOKUP($D151,Background_All!$AA$5:$AY$204,3*($C$8-1)+$C$4+1)/1000 -> 0.0319080975 | G151: =IF($C$8>=$D$14,VLOOKUP($D151,Point_Sources_All!$A$5:$AK$204,$C$4+1),0)/1000 -> 0 | H151: =IF($C$8>=$D$15,VLOOKUP($D151,Point_Sources_All!$A$5:$AK$204,$C$4+4),0)/1000 -> 0 | I151: =IF($C$8>=$D$16,VLOOKUP($D151,Point_Sources_All!$A$5:$AK$204,$C$4+7),0)/1000 -> 0.000156 | J151: =IF($C$8>=$D$17,VLOOKUP($D151,Point_Sources_All!$A$5:$AK$204,$C$4+10),0)/1000 -> 1.6187e-05 | K151: =IF($C$8>=$D$18,VLOOKUP($D151,Point_Sources_All!$A$5:$AK$204,$C$4+13),0)/1000 -> 2.964e-05 | L151: =IF($C$8>=$D$19,VLOOKUP($D151,Point_Sources_All!$A$5:$AK$204,$C$4+16),0)/1000 -> 1.4968e-05 | M151: =IF($C$8>=$D$20,VLOOKUP($D151,Point_Sources_All!$A$5:$AK$204,$C$4+19),0)/1000 -> 5.2779e-05 | N151: =IF($C$8>=$D$21,VLOOKUP($D151,Point_Sources_All!$A$5:$AK$204,$C$4+22),0)/1000 -> 5.3335e-06 | O151: =IF($C$8>=$D$22,VLOOKUP($D151,Point_Sources_All!$A$5:$AK$204,$C$4+25),0)/1000 -> 6.7307e-05 | P151: =IF($C$8>=$D$23,VLOOKUP($D151,Point_Sources_All!$A$5:$AK$204,$C$4+28),0)/1000 -> 8.8028e-06 | Q151: =IF($C$8>=$D$24,VLOOKUP($D151,Point_Sources_All!$A$5:$AK$204,$C$4+31),0)/1000 -> 0.028371 | R151: =IF($C$8>=$D$25,VLOOKUP($D151,Point_Sources_All!$A$5:$AK$204,$C$4+34),0)/1000 -> 0.028
D152: 124 | E152: =VLOOKUP($D152,Background_All!$A$5:$Y$204,3*($C$8-1)+$C$4+1)/1000 -> 0.01060309167 | F152: =VLOOKUP($D152,Background_All!$AA$5:$AY$204,3*($C$8-1)+$C$4+1)/1000 -> 0.03014011667 | G152: =IF($C$8>=$D$14,VLOOKUP($D152,Point_Sources_All!$A$5:$AK$204,$C$4+1),0)/1000 -> 0 | H152: =IF($C$8>=$D$15,VLOOKUP($D152,Point_Sources_All!$A$5:$AK$204,$C$4+4),0)/1000 -> 0 | I152: =IF($C$8>=$D$16,VLOOKUP($D152,Point_Sources_All!$A$5:$AK$204,$C$4+7),0)/1000 -> 0.000156 | J152: =IF($C$8>=$D$17,VLOOKUP($D152,Point_Sources_All!$A$5:$AK$204,$C$4+10),0)/1000 -> 1.6187e-05 | K152: =IF($C$8>=$D$18,VLOOKUP($D152,Point_Sources_All!$A$5:$AK$204,$C$4+13),0)/1000 -> 2.964e-05 | L152: =IF($C$8>=$D$19,VLOOKUP($D152,Point_Sources_All!$A$5:$AK$204,$C$4+16),0)/1000 -> 1.4968e-05 | M152: =IF($C$8>=$D$20,VLOOKUP($D152,Point_Sources_All!$A$5:$AK$204,$C$4+19),0)/1000 -> 5.2779e-05 | N152: =IF($C$8>=$D$21,VLOOKUP($D152,Point_Sources_All!$A$5:$AK$204,$C$4+22),0)/1000 -> 5.3335e-06 | O152: =IF($C$8>=$D$22,VLOOKUP($D152,Point_Sources_All!$A$5:$AK$204,$C$4+25),0)/1000 -> 6.7307e-05 | P152: =IF($C$8>=$D$23,VLOOKUP($D152,Point_Sources_All!$A$5:$AK$204,$C$4+28),0)/1000 -> 8.8028e-06 | Q152: =IF($C$8>=$D$24,VLOOKUP($D152,Point_Sources_All!$A$5:$AK$204,$C$4+31),0)/1000 -> 0.028371 | R152: =IF($C$8>=$D$25,VLOOKUP($D152,Point_Sources_All!$A$5:$AK$204,$C$4+34),0)/1000 -> 0.028
D153: 125 | E153: =VLOOKUP($D153,Background_All!$A$5:$Y$204,3*($C$8-1)+$C$4+1)/1000 -> 0.01040489167 | F153: =VLOOKUP($D153,Background_All!$AA$5:$AY$204,3*($C$8-1)+$C$4+1)/1000 -> 0.02881891583 | G153: =IF($C$8>=$D$14,VLOOKUP($D153,Point_Sources_All!$A$5:$AK$204,$C$4+1),0)/1000 -> 0 | H153: =IF($C$8>=$D$15,VLOOKUP($D153,Point_Sources_All!$A$5:$AK$204,$C$4+4),0)/1000 -> 0 | I153: =IF($C$8>=$D$16,VLOOKUP($D153,Point_Sources_All!$A$5:$AK$204,$C$4+7),0)/1000 -> 0.000156 | J153: =IF($C$8>=$D$17,VLOOKUP($D153,Point_Sources_All!$A$5:$AK$204,$C$4+10),0)/1000 -> 1.6187e-05 | K153: =IF($C$8>=$D$18,VLOOKUP($D153,Point_Sources_All!$A$5:$AK$204,$C$4+13),0)/1000 -> 2.964e-05 | L153: =IF($C$8>=$D$19,VLOOKUP($D153,Point_Sources_All!$A$5:$AK$204,$C$4+16),0)/1000 -> 1.4968e-05 | M153: =IF($C$8>=$D$20,VLOOKUP($D153,Point_Sources_All!$A$5:$AK$204,$C$4+19),0)/1000 -> 5.2779e-05 | N153: =IF($C$8>=$D$21,VLOOKUP($D153,Point_Sources_All!$A$5:$AK$204,$C$4+22),0)/1000 -> 5.3335e-06 | O153: =IF($C$8>=$D$22,VLOOKUP($D153,Point_Sources_All!$A$5:$AK$204,$C$4+25),0)/1000 -> 6.7307e-05 | P153: =IF($C$8>=$D$23,VLOOKUP($D153,Point_Sources_All!$A$5:$AK$204,$C$4+28),0)/1000 -> 8.8028e-06 | Q153: =IF($C$8>=$D$24,VLOOKUP($D153,Point_Sources_All!$A$5:$AK$204,$C$4+31),0)/1000 -> 0.028371 | R153: =IF($C$8>=$D$25,VLOOKUP($D153,Point_Sources_All!$A$5:$AK$204,$C$4+34),0)/1000 -> 0.028
D154: 126 | E154: =VLOOKUP($D154,Background_All!$A$5:$Y$204,3*($C$8-1)+$C$4+1)/1000 -> 0.01053068333 | F154: =VLOOKUP($D154,Background_All!$AA$5:$AY$204,3*($C$8-1)+$C$4+1)/1000 -> 0.02922673833 | G154: =IF($C$8>=$D$14,VLOOKUP($D154,Point_Sources_All!$A$5:$AK$204,$C$4+1),0)/1000 -> 0 | H154: =IF($C$8>=$D$15,VLOOKUP($D154,Point_Sources_All!$A$5:$AK$204,$C$4+4),0)/1000 -> 0 | I154: =IF($C$8>=$D$16,VLOOKUP($D154,Point_Sources_All!$A$5:$AK$204,$C$4+7),0)/1000 -> 0.000156 | J154: =IF($C$8>=$D$17,VLOOKUP($D154,Point_Sources_All!$A$5:$AK$204,$C$4+10),0)/1000 -> 1.6187e-05 | K154: =IF($C$8>=$D$18,VLOOKUP($D154,Point_Sources_All!$A$5:$AK$204,$C$4+13),0)/1000 -> 2.964e-05 | L154: =IF($C$8>=$D$19,VLOOKUP($D154,Point_Sources_All!$A$5:$AK$204,$C$4+16),0)/1000 -> 1.4968e-05 | M154: =IF($C$8>=$D$20,VLOOKUP($D154,Point_Sources_All!$A$5:$AK$204,$C$4+19),0)/1000 -> 5.2779e-05 | N154: =IF($C$8>=$D$21,VLOOKUP($D154,Point_Sources_All!$A$5:$AK$204,$C$4+22),0)/1000 -> 5.3335e-06 | O154: =IF($C$8>=$D$22,VLOOKUP($D154,Point_Sources_All!$A$5:$AK$204,$C$4+25),0)/1000 -> 6.7307e-05 | P154: =IF($C$8>=$D$23,VLOOKUP($D154,Point_Sources_All!$A$5:$AK$204,$C$4+28),0)/1000 -> 8.8028e-06 | Q154: =IF($C$8>=$D$24,VLOOKUP($D154,Point_Sources_All!$A$5:$AK$204,$C$4+31),0)/1000 -> 0.028371 | R154: =IF($C$8>=$D$25,VLOOKUP($D154,Point_Sources_All!$A$5:$AK$204,$C$4+34),0)/1000 -> 0.028
D155: 127 | E155: =VLOOKUP($D155,Background_All!$A$5:$Y$204,3*($C$8-1)+$C$4+1)/1000 -> 0.01047284167 | F155: =VLOOKUP($D155,Background_All!$AA$5:$AY$204,3*($C$8-1)+$C$4+1)/1000 -> 0.03000788583 | G155: =IF($C$8>=$D$14,VLOOKUP($D155,Point_Sources_All!$A$5:$AK$204,$C$4+1),0)/1000 -> 0 | H155: =IF($C$8>=$D$15,VLOOKUP($D155,Point_Sources_All!$A$5:$AK$204,$C$4+4),0)/1000 -> 0 | I155: =IF($C$8>=$D$16,VLOOKUP($D155,Point_Sources_All!$A$5:$AK$204,$C$4+7),0)/1000 -> 0.000156 | J155: =IF($C$8>=$D$17,VLOOKUP($D155,Point_Sources_All!$A$5:$AK$204,$C$4+10),0)/1000 -> 1.6187e-05 | K155: =IF($C$8>=$D$18,VLOOKUP($D155,Point_Sources_All!$A$5:$AK$204,$C$4+13),0)/1000 -> 2.964e-05 | L155: =IF($C$8>=$D$19,VLOOKUP($D155,Point_Sources_All!$A$5:$AK$204,$C$4+16),0)/1000 -> 1.4968e-05 | M155: =IF($C$8>=$D$20,VLOOKUP($D155,Point_Sources_All!$A$5:$AK$204,$C$4+19),0)/1000 -> 5.2779e-05 | N155: =IF($C$8>=$D$21,VLOOKUP($D155,Point_Sources_All!$A$5:$AK$204,$C$4+22),0)/1000 -> 5.3335e-06 | O155: =IF($C$8>=$D$22,VLOOKUP($D155,Point_Sources_All!$A$5:$AK$204,$C$4+25),0)/1000 -> 6.7307e-05 | P155: =IF($C$8>=$D$23,VLOOKUP($D155,Point_Sources_All!$A$5:$AK$204,$C$4+28),0)/1000 -> 8.8028e-06 | Q155: =IF($C$8>=$D$24,VLOOKUP($D155,Point_Sources_All!$A$5:$AK$204,$C$4+31),0)/1000 -> 0.028371 | R155: =IF($C$8>=$D$25,VLOOKUP($D155,Point_Sources_All!$A$5:$AK$204,$C$4+34),0)/1000 -> 0.028
D156: 128 | E156: =VLOOKUP($D156,Background_All!$A$5:$Y$204,3*($C$8-1)+$C$4+1)/1000 -> 0.01040998333 | F156: =VLOOKUP($D156,Background_All!$AA$5:$AY$204,3*($C$8-1)+$C$4+1)/1000 -> 0.03275465 | G156: =IF($C$8>=$D$14,VLOOKUP($D156,Point_Sources_All!$A$5:$AK$204,$C$4+1),0)/1000 -> 0 | H156: =IF($C$8>=$D$15,VLOOKUP($D156,Point_Sources_All!$A$5:$AK$204,$C$4+4),0)/1000 -> 0 | I156: =IF($C$8>=$D$16,VLOOKUP($D156,Point_Sources_All!$A$5:$AK$204,$C$4+7),0)/1000 -> 0.000156 | J156: =IF($C$8>=$D$17,VLOOKUP($D156,Point_Sources_All!$A$5:$AK$204,$C$4+10),0)/1000 -> 1.6187e-05 | K156: =IF($C$8>=$D$18,VLOOKUP($D156,Point_Sources_All!$A$5:$AK$204,$C$4+13),0)/1000 -> 2.964e-05 | L156: =IF($C$8>=$D$19,VLOOKUP($D156,Point_Sources_All!$A$5:$AK$204,$C$4+16),0)/1000 -> 1.4968e-05 | M156: =IF($C$8>=$D$20,VLOOKUP($D156,Point_Sources_All!$A$5:$AK$204,$C$4+19),0)/1000 -> 5.2779e-05 | N156: =IF($C$8>=$D$21,VLOOKUP($D156,Point_Sources_All!$A$5:$AK$204,$C$4+22),0)/1000 -> 5.3335e-06 | O156: =IF($C$8>=$D$22,VLOOKUP($D156,Point_Sources_All!$A$5:$AK$204,$C$4+25),0)/1000 -> 6.7307e-05 | P156: =IF($C$8>=$D$23,VLOOKUP($D156,Point_Sources_All!$A$5:$AK$204,$C$4+28),0)/1000 -> 8.8028e-06 | Q156: =IF($C$8>=$D$24,VLOOKUP($D156,Point_Sources_All!$A$5:$AK$204,$C$4+31),0)/1000 -> 0.028371 | R156: =IF($C$8>=$D$25,VLOOKUP($D156,Point_Sources_All!$A$5:$AK$204,$C$4+34),0)/1000 -> 0.028
D157: 129 | E157: =VLOOKUP($D157,Background_All!$A$5:$Y$204,3*($C$8-1)+$C$4+1)/1000 -> 0.01038910833 | F157: =VLOOKUP($D157,Background_All!$AA$5:$AY$204,3*($C$8-1)+$C$4+1)/1000 -> 0.03008490083 | G157: =IF($C$8>=$D$14,VLOOKUP($D157,Point_Sources_All!$A$5:$AK$204,$C$4+1),0)/1000 -> 0 | H157: =IF($C$8>=$D$15,VLOOKUP($D157,Point_Sources_All!$A$5:$AK$204,$C$4+4),0)/1000 -> 0 | I157: =IF($C$8>=$D$16,VLOOKUP($D157,Point_Sources_All!$A$5:$AK$204,$C$4+7),0)/1000 -> 0.000156 | J157: =IF($C$8>=$D$17,VLOOKUP($D157,Point_Sources_All!$A$5:$AK$204,$C$4+10),0)/1000 -> 1.6187e-05 | K157: =IF($C$8>=$D$18,VLOOKUP($D157,Point_Sources_All!$A$5:$AK$204,$C$4+13),0)/1000 -> 2.964e-05 | L157: =IF($C$8>=$D$19,VLOOKUP($D157,Point_Sources_All!$A$5:$AK$204,$C$4+16),0)/1000 -> 1.4968e-05 | M157: =IF($C$8>=$D$20,VLOOKUP($D157,Point_Sources_All!$A$5:$AK$204,$C$4+19),0)/1000 -> 5.2779e-05 | N157: =IF($C$8>=$D$21,VLOOKUP($D157,Point_Sources_All!$A$5:$AK$204,$C$4+22),0)/1000 -> 5.3335e-06 | O157: =IF($C$8>=$D$22,VLOOKUP($D157,Point_Sources_All!$A$5:$AK$204,$C$4+25),0)/1000 -> 6.7307e-05 | P157: =IF($C$8>=$D$23,VLOOKUP($D157,Point_Sources_All!$A$5:$AK$204,$C$4+28),0)/1000 -> 8.8028e-06 | Q157: =IF($C$8>=$D$24,VLOOKUP($D157,Point_Sources_All!$A$5:$AK$204,$C$4+31),0)/1000 -> 0.028371 | R157: =IF($C$8>=$D$25,VLOOKUP($D157,Point_Sources_All!$A$5:$AK$204,$C$4+34),0)/1000 -> 0.028
D158: 130 | E158: =VLOOKUP($D158,Background_All!$A$5:$Y$204,3*($C$8-1)+$C$4+1)/1000 -> 0.01043388333 | F158: =VLOOKUP($D158,Background_All!$AA$5:$AY$204,3*($C$8-1)+$C$4+1)/1000 -> 0.02871085392 | G158: =IF($C$8>=$D$14,VLOOKUP($D158,Point_Sources_All!$A$5:$AK$204,$C$4+1),0)/1000 -> 0 | H158: =IF($C$8>=$D$15,VLOOKUP($D158,Point_Sources_All!$A$5:$AK$204,$C$4+4),0)/1000 -> 0 | I158: =IF($C$8>=$D$16,VLOOKUP($D158,Point_Sources_All!$A$5:$AK$204,$C$4+7),0)/1000 -> 0.000156 | J158: =IF($C$8>=$D$17,VLOOKUP($D158,Point_Sources_All!$A$5:$AK$204,$C$4+10),0)/1000 -> 1.6187e-05 | K158: =IF($C$8>=$D$18,VLOOKUP($D158,Point_Sources_All!$A$5:$AK$204,$C$4+13),0)/1000 -> 2.964e-05 | L158: =IF($C$8>=$D$19,VLOOKUP($D158,Point_Sources_All!$A$5:$AK$204,$C$4+16),0)/1000 -> 1.4968e-05 | M158: =IF($C$8>=$D$20,VLOOKUP($D158,Point_Sources_All!$A$5:$AK$204,$C$4+19),0)/1000 -> 5.2779e-05 | N158: =IF($C$8>=$D$21,VLOOKUP($D158,Point_Sources_All!$A$5:$AK$204,$C$4+22),0)/1000 -> 5.3335e-06 | O158: =IF($C$8>=$D$22,VLOOKUP($D158,Point_Sources_All!$A$5:$AK$204,$C$4+25),0)/1000 -> 6.7307e-05 | P158: =IF($C$8>=$D$23,VLOOKUP($D158,Point_Sources_All!$A$5:$AK$204,$C$4+28),0)/1000 -> 8.8028e-06 | Q158: =IF($C$8>=$D$24,VLOOKUP($D158,Point_Sources_All!$A$5:$AK$204,$C$4+31),0)/1000 -> 0.028371 | R158: =IF($C$8>=$D$25,VLOOKUP($D158,Point_Sources_All!$A$5:$AK$204,$C$4+34),0)/1000 -> 0.028
D159: 131 | E159: =VLOOKUP($D159,Background_All!$A$5:$Y$204,3*($C$8-1)+$C$4+1)/1000 -> 0.01061440833 | F159: =VLOOKUP($D159,Background_All!$AA$5:$AY$204,3*($C$8-1)+$C$4+1)/1000 -> 0.03007761583 | G159: =IF($C$8>=$D$14,VLOOKUP($D159,Point_Sources_All!$A$5:$AK$204,$C$4+1),0)/1000 -> 0 | H159: =IF($C$8>=$D$15,VLOOKUP($D159,Point_Sources_All!$A$5:$AK$204,$C$4+4),0)/1000 -> 0 | I159: =IF($C$8>=$D$16,VLOOKUP($D159,Point_Sources_All!$A$5:$AK$204,$C$4+7),0)/1000 -> 0.000156 | J159: =IF($C$8>=$D$17,VLOOKUP($D159,Point_Sources_All!$A$5:$AK$204,$C$4+10),0)/1000 -> 1.6187e-05 | K159: =IF($C$8>=$D$18,VLOOKUP($D159,Point_Sources_All!$A$5:$AK$204,$C$4+13),0)/1000 -> 2.964e-05 | L159: =IF($C$8>=$D$19,VLOOKUP($D159,Point_Sources_All!$A$5:$AK$204,$C$4+16),0)/1000 -> 1.4968e-05 | M159: =IF($C$8>=$D$20,VLOOKUP($D159,Point_Sources_All!$A$5:$AK$204,$C$4+19),0)/1000 -> 5.2779e-05 | N159: =IF($C$8>=$D$21,VLOOKUP($D159,Point_Sources_All!$A$5:$AK$204,$C$4+22),0)/1000 -> 5.3335e-06 | O159: =IF($C$8>=$D$22,VLOOKUP($D159,Point_Sources_All!$A$5:$AK$204,$C$4+25),0)/1000 -> 6.7307e-05 | P159: =IF($C$8>=$D$23,VLOOKUP($D159,Point_Sources_All!$A$5:$AK$204,$C$4+28),0)/1000 -> 8.8028e-06 | Q159: =IF($C$8>=$D$24,VLOOKUP($D159,Point_Sources_All!$A$5:$AK$204,$C$4+31),0)/1000 -> 0.028371 | R159: =IF($C$8>=$D$25,VLOOKUP($D159,Point_Sources_All!$A$5:$AK$204,$C$4+34),0)/1000 -> 0.028
D160: 132 | E160: =VLOOKUP($D160,Background_All!$A$5:$Y$204,3*($C$8-1)+$C$4+1)/1000 -> 0.01041185 | F160: =VLOOKUP($D160,Background_All!$AA$5:$AY$204,3*($C$8-1)+$C$4+1)/1000 -> 0.02886665667 | G160: =IF($C$8>=$D$14,VLOOKUP($D160,Point_Sources_All!$A$5:$AK$204,$C$4+1),0)/1000 -> 0 | H160: =IF($C$8>=$D$15,VLOOKUP($D160,Point_Sources_All!$A$5:$AK$204,$C$4+4),0)/1000 -> 0 | I160: =IF($C$8>=$D$16,VLOOKUP($D160,Point_Sources_All!$A$5:$AK$204,$C$4+7),0)/1000 -> 0.000156 | J160: =IF($C$8>=$D$17,VLOOKUP($D160,Point_Sources_All!$A$5:$AK$204,$C$4+10),0)/1000 -> 1.6187e-05 | K160: =IF($C$8>=$D$18,VLOOKUP($D160,Point_Sources_All!$A$5:$AK$204,$C$4+13),0)/1000 -> 2.964e-05 | L160: =IF($C$8>=$D$19,VLOOKUP($D160,Point_Sources_All!$A$5:$AK$204,$C$4+16),0)/1000 -> 1.4968e-05 | M160: =IF($C$8>=$D$20,VLOOKUP($D160,Point_Sources_All!$A$5:$AK$204,$C$4+19),0)/1000 -> 5.2779e-05 | N160: =IF($C$8>=$D$21,VLOOKUP($D160,Point_Sources_All!$A$5:$AK$204,$C$4+22),0)/1000 -> 5.3335e-06 | O160: =IF($C$8>=$D$22,VLOOKUP($D160,Point_Sources_All!$A$5:$AK$204,$C$4+25),0)/1000 -> 6.7307e-05 | P160: =IF($C$8>=$D$23,VLOOKUP($D160,Point_Sources_All!$A$5:$AK$204,$C$4+28),0)/1000 -> 8.8028e-06 | Q160: =IF($C$8>=$D$24,VLOOKUP($D160,Point_Sources_All!$A$5:$AK$204,$C$4+31),0)/1000 -> 0.028371 | R160: =IF($C$8>=$D$25,VLOOKUP($D160,Point_Sources_All!$A$5:$AK$204,$C$4+34),0)/1000 -> 0.028
D161: 133 | E161: =VLOOKUP($D161,Background_All!$A$5:$Y$204,3*($C$8-1)+$C$4+1)/1000 -> 0.010411225 | F161: =VLOOKUP($D161,Background_All!$AA$5:$AY$204,3*($C$8-1)+$C$4+1)/1000 -> 0.02985222917 | G161: =IF($C$8>=$D$14,VLOOKUP($D161,Point_Sources_All!$A$5:$AK$204,$C$4+1),0)/1000 -> 0 | H161: =IF($C$8>=$D$15,VLOOKUP($D161,Point_Sources_All!$A$5:$AK$204,$C$4+4),0)/1000 -> 0 | I161: =IF($C$8>=$D$16,VLOOKUP($D161,Point_Sources_All!$A$5:$AK$204,$C$4+7),0)/1000 -> 0.000156 | J161: =IF($C$8>=$D$17,VLOOKUP($D161,Point_Sources_All!$A$5:$AK$204,$C$4+10),0)/1000 -> 1.6187e-05 | K161: =IF($C$8>=$D$18,VLOOKUP($D161,Point_Sources_All!$A$5:$AK$204,$C$4+13),0)/1000 -> 2.964e-05 | L161: =IF($C$8>=$D$19,VLOOKUP($D161,Point_Sources_All!$A$5:$AK$204,$C$4+16),0)/1000 -> 1.4968e-05 | M161: =IF($C$8>=$D$20,VLOOKUP($D161,Point_Sources_All!$A$5:$AK$204,$C$4+19),0)/1000 -> 5.2779e-05 | N161: =IF($C$8>=$D$21,VLOOKUP($D161,Point_Sources_All!$A$5:$AK$204,$C$4+22),0)/1000 -> 5.3335e-06 | O161: =IF($C$8>=$D$22,VLOOKUP($D161,Point_Sources_All!$A$5:$AK$204,$C$4+25),0)/1000 -> 6.7307e-05 | P161: =IF($C$8>=$D$23,VLOOKUP($D161,Point_Sources_All!$A$5:$AK$204,$C$4+28),0)/1000 -> 8.8028e-06 | Q161: =IF($C$8>=$D$24,VLOOKUP($D161,Point_Sources_All!$A$5:$AK$204,$C$4+31),0)/1000 -> 0.028371 | R161: =IF($C$8>=$D$25,VLOOKUP($D161,Point_Sources_All!$A$5:$AK$204,$C$4+34),0)/1000 -> 0.028
D162: 134 | E162: =VLOOKUP($D162,Background_All!$A$5:$Y$204,3*($C$8-1)+$C$4+1)/1000 -> 0.01041259167 | F162: =VLOOKUP($D162,Background_All!$AA$5:$AY$204,3*($C$8-1)+$C$4+1)/1000 -> 0.03019168083 | G162: =IF($C$8>=$D$14,VLOOKUP($D162,Point_Sources_All!$A$5:$AK$204,$C$4+1),0)/1000 -> 0 | H162: =IF($C$8>=$D$15,VLOOKUP($D162,Point_Sources_All!$A$5:$AK$204,$C$4+4),0)/1000 -> 0 | I162: =IF($C$8>=$D$16,VLOOKUP($D162,Point_Sources_All!$A$5:$AK$204,$C$4+7),0)/1000 -> 0.000156 | J162: =IF($C$8>=$D$17,VLOOKUP($D162,Point_Sources_All!$A$5:$AK$204,$C$4+10),0)/1000 -> 1.6187e-05 | K162: =IF($C$8>=$D$18,VLOOKUP($D162,Point_Sources_All!$A$5:$AK$204,$C$4+13),0)/1000 -> 2.964e-05 | L162: =IF($C$8>=$D$19,VLOOKUP($D162,Point_Sources_All!$A$5:$AK$204,$C$4+16),0)/1000 -> 1.4968e-05 | M162: =IF($C$8>=$D$20,VLOOKUP($D162,Point_Sources_All!$A$5:$AK$204,$C$4+19),0)/1000 -> 5.2779e-05 | N162: =IF($C$8>=$D$21,VLOOKUP($D162,Point_Sources_All!$A$5:$AK$204,$C$4+22),0)/1000 -> 5.3335e-06 | O162: =IF($C$8>=$D$22,VLOOKUP($D162,Point_Sources_All!$A$5:$AK$204,$C$4+25),0)/1000 -> 6.7307e-05 | P162: =IF($C$8>=$D$23,VLOOKUP($D162,Point_Sources_All!$A$5:$AK$204,$C$4+28),0)/1000 -> 8.8028e-06 | Q162: =IF($C$8>=$D$24,VLOOKUP($D162,Point_Sources_All!$A$5:$AK$204,$C$4+31),0)/1000 -> 0.028371 | R162: =IF($C$8>=$D$25,VLOOKUP($D162,Point_Sources_All!$A$5:$AK$204,$C$4+34),0)/1000 -> 0.028
D163: 135 | E163: =VLOOKUP($D163,Background_All!$A$5:$Y$204,3*($C$8-1)+$C$4+1)/1000 -> 0.010385575 | F163: =VLOOKUP($D163,Background_All!$AA$5:$AY$204,3*($C$8-1)+$C$4+1)/1000 -> 0.02864606583 | G163: =IF($C$8>=$D$14,VLOOKUP($D163,Point_Sources_All!$A$5:$AK$204,$C$4+1),0)/1000 -> 0 | H163: =IF($C$8>=$D$15,VLOOKUP($D163,Point_Sources_All!$A$5:$AK$204,$C$4+4),0)/1000 -> 0 | I163: =IF($C$8>=$D$16,VLOOKUP($D163,Point_Sources_All!$A$5:$AK$204,$C$4+7),0)/1000 -> 0.000156 | J163: =IF($C$8>=$D$17,VLOOKUP($D163,Point_Sources_All!$A$5:$AK$204,$C$4+10),0)/1000 -> 1.6187e-05 | K163: =IF($C$8>=$D$18,VLOOKUP($D163,Point_Sources_All!$A$5:$AK$204,$C$4+13),0)/1000 -> 2.964e-05 | L163: =IF($C$8>=$D$19,VLOOKUP($D163,Point_Sources_All!$A$5:$AK$204,$C$4+16),0)/1000 -> 1.4968e-05 | M163: =IF($C$8>=$D$20,VLOOKUP($D163,Point_Sources_All!$A$5:$AK$204,$C$4+19),0)/1000 -> 5.2779e-05 | N163: =IF($C$8>=$D$21,VLOOKUP($D163,Point_Sources_All!$A$5:$AK$204,$C$4+22),0)/1000 -> 5.3335e-06 | O163: =IF($C$8>=$D$22,VLOOKUP($D163,Point_Sources_All!$A$5:$AK$204,$C$4+25),0)/1000 -> 6.7307e-05 | P163: =IF($C$8>=$D$23,VLOOKUP($D163,Point_Sources_All!$A$5:$AK$204,$C$4+28),0)/1000 -> 8.8028e-06 | Q163: =IF($C$8>=$D$24,VLOOKUP($D163,Point_Sources_All!$A$5:$AK$204,$C$4+31),0)/1000 -> 0.028371 | R163: =IF($C$8>=$D$25,VLOOKUP($D163,Point_Sources_All!$A$5:$AK$204,$C$4+34),0)/1000 -> 0.028
D164: 136 | E164: =VLOOKUP($D164,Background_All!$A$5:$Y$204,3*($C$8-1)+$C$4+1)/1000 -> 0.01041384167 | F164: =VLOOKUP($D164,Background_All!$AA$5:$AY$204,3*($C$8-1)+$C$4+1)/1000 -> 0.02996553583 | G164: =IF($C$8>=$D$14,VLOOKUP($D164,Point_Sources_All!$A$5:$AK$204,$C$4+1),0)/1000 -> 0 | H164: =IF($C$8>=$D$15,VLOOKUP($D164,Point_Sources_All!$A$5:$AK$204,$C$4+4),0)/1000 -> 0 | I164: =IF($C$8>=$D$16,VLOOKUP($D164,Point_Sources_All!$A$5:$AK$204,$C$4+7),0)/1000 -> 0.000156 | J164: =IF($C$8>=$D$17,VLOOKUP($D164,Point_Sources_All!$A$5:$AK$204,$C$4+10),0)/1000 -> 1.6187e-05 | K164: =IF($C$8>=$D$18,VLOOKUP($D164,Point_Sources_All!$A$5:$AK$204,$C$4+13),0)/1000 -> 2.964e-05 | L164: =IF($C$8>=$D$19,VLOOKUP($D164,Point_Sources_All!$A$5:$AK$204,$C$4+16),0)/1000 -> 1.4968e-05 | M164: =IF($C$8>=$D$20,VLOOKUP($D164,Point_Sources_All!$A$5:$AK$204,$C$4+19),0)/1000 -> 5.2779e-05 | N164: =IF($C$8>=$D$21,VLOOKUP($D164,Point_Sources_All!$A$5:$AK$204,$C$4+22),0)/1000 -> 5.3335e-06 | O164: =IF($C$8>=$D$22,VLOOKUP($D164,Point_Sources_All!$A$5:$AK$204,$C$4+25),0)/1000 -> 6.7307e-05 | P164: =IF($C$8>=$D$23,VLOOKUP($D164,Point_Sources_All!$A$5:$AK$204,$C$4+28),0)/1000 -> 8.8028e-06 | Q164: =IF($C$8>=$D$24,VLOOKUP($D164,Point_Sources_All!$A$5:$AK$204,$C$4+31),0)/1000 -> 0.028371 | R164: =IF($C$8>=$D$25,VLOOKUP($D164,Point_Sources_All!$A$5:$AK$204,$C$4+34),0)/1000 -> 0.028
D165: 137 | E165: =VLOOKUP($D165,Background_All!$A$5:$Y$204,3*($C$8-1)+$C$4+1)/1000 -> 0.01050220833 | F165: =VLOOKUP($D165,Background_All!$AA$5:$AY$204,3*($C$8-1)+$C$4+1)/1000 -> 0.0296643075 | G165: =IF($C$8>=$D$14,VLOOKUP($D165,Point_Sources_All!$A$5:$AK$204,$C$4+1),0)/1000 -> 0 | H165: =IF($C$8>=$D$15,VLOOKUP($D165,Point_Sources_All!$A$5:$AK$204,$C$4+4),0)/1000 -> 0 | I165: =IF($C$8>=$D$16,VLOOKUP($D165,Point_Sources_All!$A$5:$AK$204,$C$4+7),0)/1000 -> 0.000156 | J165: =IF($C$8>=$D$17,VLOOKUP($D165,Point_Sources_All!$A$5:$AK$204,$C$4+10),0)/1000 -> 1.6187e-05 | K165: =IF($C$8>=$D$18,VLOOKUP($D165,Point_Sources_All!$A$5:$AK$204,$C$4+13),0)/1000 -> 2.964e-05 | L165: =IF($C$8>=$D$19,VLOOKUP($D165,Point_Sources_All!$A$5:$AK$204,$C$4+16),0)/1000 -> 1.4968e-05 | M165: =IF($C$8>=$D$20,VLOOKUP($D165,Point_Sources_All!$A$5:$AK$204,$C$4+19),0)/1000 -> 5.2779e-05 | N165: =IF($C$8>=$D$21,VLOOKUP($D165,Point_Sources_All!$A$5:$AK$204,$C$4+22),0)/1000 -> 5.3335e-06 | O165: =IF($C$8>=$D$22,VLOOKUP($D165,Point_Sources_All!$A$5:$AK$204,$C$4+25),0)/1000 -> 6.7307e-05 | P165: =IF($C$8>=$D$23,VLOOKUP($D165,Point_Sources_All!$A$5:$AK$204,$C$4+28),0)/1000 -> 8.8028e-06 | Q165: =IF($C$8>=$D$24,VLOOKUP($D165,Point_Sources_All!$A$5:$AK$204,$C$4+31),0)/1000 -> 0.028371 | R165: =IF($C$8>=$D$25,VLOOKUP($D165,Point_Sources_All!$A$5:$AK$204,$C$4+34),0)/1000 -> 0.028
D166: 138 | E166: =VLOOKUP($D166,Background_All!$A$5:$Y$204,3*($C$8-1)+$C$4+1)/1000 -> 0.0105133 | F166: =VLOOKUP($D166,Background_All!$AA$5:$AY$204,3*($C$8-1)+$C$4+1)/1000 -> 0.02801410167 | G166: =IF($C$8>=$D$14,VLOOKUP($D166,Point_Sources_All!$A$5:$AK$204,$C$4+1),0)/1000 -> 0 | H166: =IF($C$8>=$D$15,VLOOKUP($D166,Point_Sources_All!$A$5:$AK$204,$C$4+4),0)/1000 -> 0 | I166: =IF($C$8>=$D$16,VLOOKUP($D166,Point_Sources_All!$A$5:$AK$204,$C$4+7),0)/1000 -> 0.000156 | J166: =IF($C$8>=$D$17,VLOOKUP($D166,Point_Sources_All!$A$5:$AK$204,$C$4+10),0)/1000 -> 1.6187e-05 | K166: =IF($C$8>=$D$18,VLOOKUP($D166,Point_Sources_All!$A$5:$AK$204,$C$4+13),0)/1000 -> 2.964e-05 | L166: =IF($C$8>=$D$19,VLOOKUP($D166,Point_Sources_All!$A$5:$AK$204,$C$4+16),0)/1000 -> 1.4968e-05 | M166: =IF($C$8>=$D$20,VLOOKUP($D166,Point_Sources_All!$A$5:$AK$204,$C$4+19),0)/1000 -> 5.2779e-05 | N166: =IF($C$8>=$D$21,VLOOKUP($D166,Point_Sources_All!$A$5:$AK$204,$C$4+22),0)/1000 -> 5.3335e-06 | O166: =IF($C$8>=$D$22,VLOOKUP($D166,Point_Sources_All!$A$5:$AK$204,$C$4+25),0)/1000 -> 6.7307e-05 | P166: =IF($C$8>=$D$23,VLOOKUP($D166,Point_Sources_All!$A$5:$AK$204,$C$4+28),0)/1000 -> 8.8028e-06 | Q166: =IF($C$8>=$D$24,VLOOKUP($D166,Point_Sources_All!$A$5:$AK$204,$C$4+31),0)/1000 -> 0.028371 | R166: =IF($C$8>=$D$25,VLOOKUP($D166,Point_Sources_All!$A$5:$AK$204,$C$4+34),0)/1000 -> 0.028
D167: 139 | E167: =VLOOKUP($D167,Background_All!$A$5:$Y$204,3*($C$8-1)+$C$4+1)/1000 -> 0.01046199167 | F167: =VLOOKUP($D167,Background_All!$AA$5:$AY$204,3*($C$8-1)+$C$4+1)/1000 -> 0.02968819333 | G167: =IF($C$8>=$D$14,VLOOKUP($D167,Point_Sources_All!$A$5:$AK$204,$C$4+1),0)/1000 -> 0 | H167: =IF($C$8>=$D$15,VLOOKUP($D167,Point_Sources_All!$A$5:$AK$204,$C$4+4),0)/1000 -> 0 | I167: =IF($C$8>=$D$16,VLOOKUP($D167,Point_Sources_All!$A$5:$AK$204,$C$4+7),0)/1000 -> 0.000156 | J167: =IF($C$8>=$D$17,VLOOKUP($D167,Point_Sources_All!$A$5:$AK$204,$C$4+10),0)/1000 -> 1.6187e-05 | K167: =IF($C$8>=$D$18,VLOOKUP($D167,Point_Sources_All!$A$5:$AK$204,$C$4+13),0)/1000 -> 2.964e-05 | L167: =IF($C$8>=$D$19,VLOOKUP($D167,Point_Sources_All!$A$5:$AK$204,$C$4+16),0)/1000 -> 1.4968e-05 | M167: =IF($C$8>=$D$20,VLOOKUP($D167,Point_Sources_All!$A$5:$AK$204,$C$4+19),0)/1000 -> 5.2779e-05 | N167: =IF($C$8>=$D$21,VLOOKUP($D167,Point_Sources_All!$A$5:$AK$204,$C$4+22),0)/1000 -> 5.3335e-06 | O167: =IF($C$8>=$D$22,VLOOKUP($D167,Point_Sources_All!$A$5:$AK$204,$C$4+25),0)/1000 -> 6.7307e-05 | P167: =IF($C$8>=$D$23,VLOOKUP($D167,Point_Sources_All!$A$5:$AK$204,$C$4+28),0)/1000 -> 8.8028e-06 | Q167: =IF($C$8>=$D$24,VLOOKUP($D167,Point_Sources_All!$A$5:$AK$204,$C$4+31),0)/1000 -> 0.028371 | R167: =IF($C$8>=$D$25,VLOOKUP($D167,Point_Sources_All!$A$5:$AK$204,$C$4+34),0)/1000 -> 0.028
D168: 140 | E168: =VLOOKUP($D168,Background_All!$A$5:$Y$204,3*($C$8-1)+$C$4+1)/1000 -> 0.01045558333 | F168: =VLOOKUP($D168,Background_All!$AA$5:$AY$204,3*($C$8-1)+$C$4+1)/1000 -> 0.03013470083 | G168: =IF($C$8>=$D$14,VLOOKUP($D168,Point_Sources_All!$A$5:$AK$204,$C$4+1),0)/1000 -> 0 | H168: =IF($C$8>=$D$15,VLOOKUP($D168,Point_Sources_All!$A$5:$AK$204,$C$4+4),0)/1000 -> 0 | I168: =IF($C$8>=$D$16,VLOOKUP($D168,Point_Sources_All!$A$5:$AK$204,$C$4+7),0)/1000 -> 0.000156 | J168: =IF($C$8>=$D$17,VLOOKUP($D168,Point_Sources_All!$A$5:$AK$204,$C$4+10),0)/1000 -> 1.6187e-05 | K168: =IF($C$8>=$D$18,VLOOKUP($D168,Point_Sources_All!$A$5:$AK$204,$C$4+13),0)/1000 -> 2.964e-05 | L168: =IF($C$8>=$D$19,VLOOKUP($D168,Point_Sources_All!$A$5:$AK$204,$C$4+16),0)/1000 -> 1.4968e-05 | M168: =IF($C$8>=$D$20,VLOOKUP($D168,Point_Sources_All!$A$5:$AK$204,$C$4+19),0)/1000 -> 5.2779e-05 | N168: =IF($C$8>=$D$21,VLOOKUP($D168,Point_Sources_All!$A$5:$AK$204,$C$4+22),0)/1000 -> 5.3335e-06 | O168: =IF($C$8>=$D$22,VLOOKUP($D168,Point_Sources_All!$A$5:$AK$204,$C$4+25),0)/1000 -> 6.7307e-05 | P168: =IF($C$8>=$D$23,VLOOKUP($D168,Point_Sources_All!$A$5:$AK$204,$C$4+28),0)/1000 -> 8.8028e-06 | Q168: =IF($C$8>=$D$24,VLOOKUP($D168,Point_Sources_All!$A$5:$AK$204,$C$4+31),0)/1000 -> 0.028371 | R168: =IF($C$8>=$D$25,VLOOKUP($D168,Point_Sources_All!$A$5:$AK$204,$C$4+34),0)/1000 -> 0.028
D169: 141 | E169: =VLOOKUP($D169,Background_All!$A$5:$Y$204,3*($C$8-1)+$C$4+1)/1000 -> 0.01041818333 | F169: =VLOOKUP($D169,Background_All!$AA$5:$AY$204,3*($C$8-1)+$C$4+1)/1000 -> 0.03095479 | G169: =IF($C$8>=$D$14,VLOOKUP($D169,Point_Sources_All!$A$5:$AK$204,$C$4+1),0)/1000 -> 0 | H169: =IF($C$8>=$D$15,VLOOKUP($D169,Point_Sources_All!$A$5:$AK$204,$C$4+4),0)/1000 -> 0 | I169: =IF($C$8>=$D$16,VLOOKUP($D169,Point_Sources_All!$A$5:$AK$204,$C$4+7),0)/1000 -> 0.000156 | J169: =IF($C$8>=$D$17,VLOOKUP($D169,Point_Sources_All!$A$5:$AK$204,$C$4+10),0)/1000 -> 1.6187e-05 | K169: =IF($C$8>=$D$18,VLOOKUP($D169,Point_Sources_All!$A$5:$AK$204,$C$4+13),0)/1000 -> 2.964e-05 | L169: =IF($C$8>=$D$19,VLOOKUP($D169,Point_Sources_All!$A$5:$AK$204,$C$4+16),0)/1000 -> 1.4968e-05 | M169: =IF($C$8>=$D$20,VLOOKUP($D169,Point_Sources_All!$A$5:$AK$204,$C$4+19),0)/1000 -> 5.2779e-05 | N169: =IF($C$8>=$D$21,VLOOKUP($D169,Point_Sources_All!$A$5:$AK$204,$C$4+22),0)/1000 -> 5.3335e-06 | O169: =IF($C$8>=$D$22,VLOOKUP($D169,Point_Sources_All!$A$5:$AK$204,$C$4+25),0)/1000 -> 6.7307e-05 | P169: =IF($C$8>=$D$23,VLOOKUP($D169,Point_Sources_All!$A$5:$AK$204,$C$4+28),0)/1000 -> 8.8028e-06 | Q169: =IF($C$8>=$D$24,VLOOKUP($D169,Point_Sources_All!$A$5:$AK$204,$C$4+31),0)/1000 -> 0.028371 | R169: =IF($C$8>=$D$25,VLOOKUP($D169,Point_Sources_All!$A$5:$AK$204,$C$4+34),0)/1000 -> 0.028
D170: 142 | E170: =VLOOKUP($D170,Background_All!$A$5:$Y$204,3*($C$8-1)+$C$4+1)/1000 -> 0.01042214167 | F170: =VLOOKUP($D170,Background_All!$AA$5:$AY$204,3*($C$8-1)+$C$4+1)/1000 -> 0.02893674833 | G170: =IF($C$8>=$D$14,VLOOKUP($D170,Point_Sources_All!$A$5:$AK$204,$C$4+1),0)/1000 -> 0 | H170: =IF($C$8>=$D$15,VLOOKUP($D170,Point_Sources_All!$A$5:$AK$204,$C$4+4),0)/1000 -> 0 | I170: =IF($C$8>=$D$16,VLOOKUP($D170,Point_Sources_All!$A$5:$AK$204,$C$4+7),0)/1000 -> 0.000156 | J170: =IF($C$8>=$D$17,VLOOKUP($D170,Point_Sources_All!$A$5:$AK$204,$C$4+10),0)/1000 -> 1.6187e-05 | K170: =IF($C$8>=$D$18,VLOOKUP($D170,Point_Sources_All!$A$5:$AK$204,$C$4+13),0)/1000 -> 2.964e-05 | L170: =IF($C$8>=$D$19,VLOOKUP($D170,Point_Sources_All!$A$5:$AK$204,$C$4+16),0)/1000 -> 1.4968e-05 | M170: =IF($C$8>=$D$20,VLOOKUP($D170,Point_Sources_All!$A$5:$AK$204,$C$4+19),0)/1000 -> 5.2779e-05 | N170: =IF($C$8>=$D$21,VLOOKUP($D170,Point_Sources_All!$A$5:$AK$204,$C$4+22),0)/1000 -> 5.3335e-06 | O170: =IF($C$8>=$D$22,VLOOKUP($D170,Point_Sources_All!$A$5:$AK$204,$C$4+25),0)/1000 -> 6.7307e-05 | P170: =IF($C$8>=$D$23,VLOOKUP($D170,Point_Sources_All!$A$5:$AK$204,$C$4+28),0)/1000 -> 8.8028e-06 | Q170: =IF($C$8>=$D$24,VLOOKUP($D170,Point_Sources_All!$A$5:$AK$204,$C$4+31),0)/1000 -> 0.028371 | R170: =IF($C$8>=$D$25,VLOOKUP($D170,Point_Sources_All!$A$5:$AK$204,$C$4+34),0)/1000 -> 0.028
D171: 143 | E171: =VLOOKUP($D171,Background_All!$A$5:$Y$204,3*($C$8-1)+$C$4+1)/1000 -> 0.01046468333 | F171: =VLOOKUP($D171,Background_All!$AA$5:$AY$204,3*($C$8-1)+$C$4+1)/1000 -> 0.02917793292 | G171: =IF($C$8>=$D$14,VLOOKUP($D171,Point_Sources_All!$A$5:$AK$204,$C$4+1),0)/1000 -> 0 | H171: =IF($C$8>=$D$15,VLOOKUP($D171,Point_Sources_All!$A$5:$AK$204,$C$4+4),0)/1000 -> 0 | I171: =IF($C$8>=$D$16,VLOOKUP($D171,Point_Sources_All!$A$5:$AK$204,$C$4+7),0)/1000 -> 0.000156 | J171: =IF($C$8>=$D$17,VLOOKUP($D171,Point_Sources_All!$A$5:$AK$204,$C$4+10),0)/1000 -> 1.6187e-05 | K171: =IF($C$8>=$D$18,VLOOKUP($D171,Point_Sources_All!$A$5:$AK$204,$C$4+13),0)/1000 -> 2.964e-05 | L171: =IF($C$8>=$D$19,VLOOKUP($D171,Point_Sources_All!$A$5:$AK$204,$C$4+16),0)/1000 -> 1.4968e-05 | M171: =IF($C$8>=$D$20,VLOOKUP($D171,Point_Sources_All!$A$5:$AK$204,$C$4+19),0)/1000 -> 5.2779e-05 | N171: =IF($C$8>=$D$21,VLOOKUP($D171,Point_Sources_All!$A$5:$AK$204,$C$4+22),0)/1000 -> 5.3335e-06 | O171: =IF($C$8>=$D$22,VLOOKUP($D171,Point_Sources_All!$A$5:$AK$204,$C$4+25),0)/1000 -> 6.7307e-05 | P171: =IF($C$8>=$D$23,VLOOKUP($D171,Point_Sources_All!$A$5:$AK$204,$C$4+28),0)/1000 -> 8.8028e-06 | Q171: =IF($C$8>=$D$24,VLOOKUP($D171,Point_Sources_All!$A$5:$AK$204,$C$4+31),0)/1000 -> 0.028371 | R171: =IF($C$8>=$D$25,VLOOKUP($D171,Point_Sources_All!$A$5:$AK$204,$C$4+34),0)/1000 -> 0.028
D172: 144 | E172: =VLOOKUP($D172,Background_All!$A$5:$Y$204,3*($C$8-1)+$C$4+1)/1000 -> 0.01053738333 | F172: =VLOOKUP($D172,Background_All!$AA$5:$AY$204,3*($C$8-1)+$C$4+1)/1000 -> 0.02894860883 | G172: =IF($C$8>=$D$14,VLOOKUP($D172,Point_Sources_All!$A$5:$AK$204,$C$4+1),0)/1000 -> 0 | H172: =IF($C$8>=$D$15,VLOOKUP($D172,Point_Sources_All!$A$5:$AK$204,$C$4+4),0)/1000 -> 0 | I172: =IF($C$8>=$D$16,VLOOKUP($D172,Point_Sources_All!$A$5:$AK$204,$C$4+7),0)/1000 -> 0.000156 | J172: =IF($C$8>=$D$17,VLOOKUP($D172,Point_Sources_All!$A$5:$AK$204,$C$4+10),0)/1000 -> 1.6187e-05 | K172: =IF($C$8>=$D$18,VLOOKUP($D172,Point_Sources_All!$A$5:$AK$204,$C$4+13),0)/1000 -> 2.964e-05 | L172: =IF($C$8>=$D$19,VLOOKUP($D172,Point_Sources_All!$A$5:$AK$204,$C$4+16),0)/1000 -> 1.4968e-05 | M172: =IF($C$8>=$D$20,VLOOKUP($D172,Point_Sources_All!$A$5:$AK$204,$C$4+19),0)/1000 -> 5.2779e-05 | N172: =IF($C$8>=$D$21,VLOOKUP($D172,Point_Sources_All!$A$5:$AK$204,$C$4+22),0)/1000 -> 5.3335e-06 | O172: =IF($C$8>=$D$22,VLOOKUP($D172,Point_Sources_All!$A$5:$AK$204,$C$4+25),0)/1000 -> 6.7307e-05 | P172: =IF($C$8>=$D$23,VLOOKUP($D172,Point_Sources_All!$A$5:$AK$204,$C$4+28),0)/1000 -> 8.8028e-06 | Q172: =IF($C$8>=$D$24,VLOOKUP($D172,Point_Sources_All!$A$5:$AK$204,$C$4+31),0)/1000 -> 0.028371 | R172: =IF($C$8>=$D$25,VLOOKUP($D172,Point_Sources_All!$A$5:$AK$204,$C$4+34),0)/1000 -> 0.028
D173: 145 | E173: =VLOOKUP($D173,Background_All!$A$5:$Y$204,3*($C$8-1)+$C$4+1)/1000 -> 0.01054296667 | F173: =VLOOKUP($D173,Background_All!$AA$5:$AY$204,3*($C$8-1)+$C$4+1)/1000 -> 0.03201381333 | G173: =IF($C$8>=$D$14,VLOOKUP($D173,Point_Sources_All!$A$5:$AK$204,$C$4+1),0)/1000 -> 0 | H173: =IF($C$8>=$D$15,VLOOKUP($D173,Point_Sources_All!$A$5:$AK$204,$C$4+4),0)/1000 -> 0 | I173: =IF($C$8>=$D$16,VLOOKUP($D173,Point_Sources_All!$A$5:$AK$204,$C$4+7),0)/1000 -> 0.000156 | J173: =IF($C$8>=$D$17,VLOOKUP($D173,Point_Sources_All!$A$5:$AK$204,$C$4+10),0)/1000 -> 1.6187e-05 | K173: =IF($C$8>=$D$18,VLOOKUP($D173,Point_Sources_All!$A$5:$AK$204,$C$4+13),0)/1000 -> 2.964e-05 | L173: =IF($C$8>=$D$19,VLOOKUP($D173,Point_Sources_All!$A$5:$AK$204,$C$4+16),0)/1000 -> 1.4968e-05 | M173: =IF($C$8>=$D$20,VLOOKUP($D173,Point_Sources_All!$A$5:$AK$204,$C$4+19),0)/1000 -> 5.2779e-05 | N173: =IF($C$8>=$D$21,VLOOKUP($D173,Point_Sources_All!$A$5:$AK$204,$C$4+22),0)/1000 -> 5.3335e-06 | O173: =IF($C$8>=$D$22,VLOOKUP($D173,Point_Sources_All!$A$5:$AK$204,$C$4+25),0)/1000 -> 6.7307e-05 | P173: =IF($C$8>=$D$23,VLOOKUP($D173,Point_Sources_All!$A$5:$AK$204,$C$4+28),0)/1000 -> 8.8028e-06 | Q173: =IF($C$8>=$D$24,VLOOKUP($D173,Point_Sources_All!$A$5:$AK$204,$C$4+31),0)/1000 -> 0.028371 | R173: =IF($C$8>=$D$25,VLOOKUP($D173,Point_Sources_All!$A$5:$AK$204,$C$4+34),0)/1000 -> 0.028
D174: 146 | E174: =VLOOKUP($D174,Background_All!$A$5:$Y$204,3*($C$8-1)+$C$4+1)/1000 -> 0.01044116667 | F174: =VLOOKUP($D174,Background_All!$AA$5:$AY$204,3*($C$8-1)+$C$4+1)/1000 -> 0.02911351783 | G174: =IF($C$8>=$D$14,VLOOKUP($D174,Point_Sources_All!$A$5:$AK$204,$C$4+1),0)/1000 -> 0 | H174: =IF($C$8>=$D$15,VLOOKUP($D174,Point_Sources_All!$A$5:$AK$204,$C$4+4),0)/1000 -> 0 | I174: =IF($C$8>=$D$16,VLOOKUP($D174,Point_Sources_All!$A$5:$AK$204,$C$4+7),0)/1000 -> 0.000156 | J174: =IF($C$8>=$D$17,VLOOKUP($D174,Point_Sources_All!$A$5:$AK$204,$C$4+10),0)/1000 -> 1.6187e-05 | K174: =IF($C$8>=$D$18,VLOOKUP($D174,Point_Sources_All!$A$5:$AK$204,$C$4+13),0)/1000 -> 2.964e-05 | L174: =IF($C$8>=$D$19,VLOOKUP($D174,Point_Sources_All!$A$5:$AK$204,$C$4+16),0)/1000 -> 1.4968e-05 | M174: =IF($C$8>=$D$20,VLOOKUP($D174,Point_Sources_All!$A$5:$AK$204,$C$4+19),0)/1000 -> 5.2779e-05 | N174: =IF($C$8>=$D$21,VLOOKUP($D174,Point_Sources_All!$A$5:$AK$204,$C$4+22),0)/1000 -> 5.3335e-06 | O174: =IF($C$8>=$D$22,VLOOKUP($D174,Point_Sources_All!$A$5:$AK$204,$C$4+25),0)/1000 -> 6.7307e-05 | P174: =IF($C$8>=$D$23,VLOOKUP($D174,Point_Sources_All!$A$5:$AK$204,$C$4+28),0)/1000 -> 8.8028e-06 | Q174: =IF($C$8>=$D$24,VLOOKUP($D174,Point_Sources_All!$A$5:$AK$204,$C$4+31),0)/1000 -> 0.028371 | R174: =IF($C$8>=$D$25,VLOOKUP($D174,Point_Sources_All!$A$5:$AK$204,$C$4+34),0)/1000 -> 0.028
D175: 147 | E175: =VLOOKUP($D175,Background_All!$A$5:$Y$204,3*($C$8-1)+$C$4+1)/1000 -> 0.01050853333 | F175: =VLOOKUP($D175,Background_All!$AA$5:$AY$204,3*($C$8-1)+$C$4+1)/1000 -> 0.02908218417 | G175: =IF($C$8>=$D$14,VLOOKUP($D175,Point_Sources_All!$A$5:$AK$204,$C$4+1),0)/1000 -> 0 | H175: =IF($C$8>=$D$15,VLOOKUP($D175,Point_Sources_All!$A$5:$AK$204,$C$4+4),0)/1000 -> 0 | I175: =IF($C$8>=$D$16,VLOOKUP($D175,Point_Sources_All!$A$5:$AK$204,$C$4+7),0)/1000 -> 0.000156 | J175: =IF($C$8>=$D$17,VLOOKUP($D175,Point_Sources_All!$A$5:$AK$204,$C$4+10),0)/1000 -> 1.6187e-05 | K175: =IF($C$8>=$D$18,VLOOKUP($D175,Point_Sources_All!$A$5:$AK$204,$C$4+13),0)/1000 -> 2.964e-05 | L175: =IF($C$8>=$D$19,VLOOKUP($D175,Point_Sources_All!$A$5:$AK$204,$C$4+16),0)/1000 -> 1.4968e-05 | M175: =IF($C$8>=$D$20,VLOOKUP($D175,Point_Sources_All!$A$5:$AK$204,$C$4+19),0)/1000 -> 5.2779e-05 | N175: =IF($C$8>=$D$21,VLOOKUP($D175,Point_Sources_All!$A$5:$AK$204,$C$4+22),0)/1000 -> 5.3335e-06 | O175: =IF($C$8>=$D$22,VLOOKUP($D175,Point_Sources_All!$A$5:$AK$204,$C$4+25),0)/1000 -> 6.7307e-05 | P175: =IF($C$8>=$D$23,VLOOKUP($D175,Point_Sources_All!$A$5:$AK$204,$C$4+28),0)/1000 -> 8.8028e-06 | Q175: =IF($C$8>=$D$24,VLOOKUP($D175,Point_Sources_All!$A$5:$AK$204,$C$4+31),0)/1000 -> 0.028371 | R175: =IF($C$8>=$D$25,VLOOKUP($D175,Point_Sources_All!$A$5:$AK$204,$C$4+34),0)/1000 -> 0.028
D176: 148 | E176: =VLOOKUP($D176,Background_All!$A$5:$Y$204,3*($C$8-1)+$C$4+1)/1000 -> 0.010438 | F176: =VLOOKUP($D176,Background_All!$AA$5:$AY$204,3*($C$8-1)+$C$4+1)/1000 -> 0.03277536417 | G176: =IF($C$8>=$D$14,VLOOKUP($D176,Point_Sources_All!$A$5:$AK$204,$C$4+1),0)/1000 -> 0 | H176: =IF($C$8>=$D$15,VLOOKUP($D176,Point_Sources_All!$A$5:$AK$204,$C$4+4),0)/1000 -> 0 | I176: =IF($C$8>=$D$16,VLOOKUP($D176,Point_Sources_All!$A$5:$AK$204,$C$4+7),0)/1000 -> 0.000156 | J176: =IF($C$8>=$D$17,VLOOKUP($D176,Point_Sources_All!$A$5:$AK$204,$C$4+10),0)/1000 -> 1.6187e-05 | K176: =IF($C$8>=$D$18,VLOOKUP($D176,Point_Sources_All!$A$5:$AK$204,$C$4+13),0)/1000 -> 2.964e-05 | L176: =IF($C$8>=$D$19,VLOOKUP($D176,Point_Sources_All!$A$5:$AK$204,$C$4+16),0)/1000 -> 1.4968e-05 | M176: =IF($C$8>=$D$20,VLOOKUP($D176,Point_Sources_All!$A$5:$AK$204,$C$4+19),0)/1000 -> 5.2779e-05 | N176: =IF($C$8>=$D$21,VLOOKUP($D176,Point_Sources_All!$A$5:$AK$204,$C$4+22),0)/1000 -> 5.3335e-06 | O176: =IF($C$8>=$D$22,VLOOKUP($D176,Point_Sources_All!$A$5:$AK$204,$C$4+25),0)/1000 -> 6.7307e-05 | P176: =IF($C$8>=$D$23,VLOOKUP($D176,Point_Sources_All!$A$5:$AK$204,$C$4+28),0)/1000 -> 8.8028e-06 | Q176: =IF($C$8>=$D$24,VLOOKUP($D176,Point_Sources_All!$A$5:$AK$204,$C$4+31),0)/1000 -> 0.028371 | R176: =IF($C$8>=$D$25,VLOOKUP($D176,Point_Sources_All!$A$5:$AK$204,$C$4+34),0)/1000 -> 0.028
D177: 149 | E177: =VLOOKUP($D177,Background_All!$A$5:$Y$204,3*($C$8-1)+$C$4+1)/1000 -> 0.010596 | F177: =VLOOKUP($D177,Background_All!$AA$5:$AY$204,3*($C$8-1)+$C$4+1)/1000 -> 0.03007216567 | G177: =IF($C$8>=$D$14,VLOOKUP($D177,Point_Sources_All!$A$5:$AK$204,$C$4+1),0)/1000 -> 0 | H177: =IF($C$8>=$D$15,VLOOKUP($D177,Point_Sources_All!$A$5:$AK$204,$C$4+4),0)/1000 -> 0 | I177: =IF($C$8>=$D$16,VLOOKUP($D177,Point_Sources_All!$A$5:$AK$204,$C$4+7),0)/1000 -> 0.000156 | J177: =IF($C$8>=$D$17,VLOOKUP($D177,Point_Sources_All!$A$5:$AK$204,$C$4+10),0)/1000 -> 1.6187e-05 | K177: =IF($C$8>=$D$18,VLOOKUP($D177,Point_Sources_All!$A$5:$AK$204,$C$4+13),0)/1000 -> 2.964e-05 | L177: =IF($C$8>=$D$19,VLOOKUP($D177,Point_Sources_All!$A$5:$AK$204,$C$4+16),0)/1000 -> 1.4968e-05 | M177: =IF($C$8>=$D$20,VLOOKUP($D177,Point_Sources_All!$A$5:$AK$204,$C$4+19),0)/1000 -> 5.2779e-05 | N177: =IF($C$8>=$D$21,VLOOKUP($D177,Point_Sources_All!$A$5:$AK$204,$C$4+22),0)/1000 -> 5.3335e-06 | O177: =IF($C$8>=$D$22,VLOOKUP($D177,Point_Sources_All!$A$5:$AK$204,$C$4+25),0)/1000 -> 6.7307e-05 | P177: =IF($C$8>=$D$23,VLOOKUP($D177,Point_Sources_All!$A$5:$AK$204,$C$4+28),0)/1000 -> 8.8028e-06 | Q177: =IF($C$8>=$D$24,VLOOKUP($D177,Point_Sources_All!$A$5:$AK$204,$C$4+31),0)/1000 -> 0.028371 | R177: =IF($C$8>=$D$25,VLOOKUP($D177,Point_Sources_All!$A$5:$AK$204,$C$4+34),0)/1000 -> 0.028
D178: 150 | E178: =VLOOKUP($D178,Background_All!$A$5:$Y$204,3*($C$8-1)+$C$4+1)/1000 -> 0.01046133333 | F178: =VLOOKUP($D178,Background_All!$AA$5:$AY$204,3*($C$8-1)+$C$4+1)/1000 -> 0.03326634583 | G178: =IF($C$8>=$D$14,VLOOKUP($D178,Point_Sources_All!$A$5:$AK$204,$C$4+1),0)/1000 -> 0 | H178: =IF($C$8>=$D$15,VLOOKUP($D178,Point_Sources_All!$A$5:$AK$204,$C$4+4),0)/1000 -> 0 | I178: =IF($C$8>=$D$16,VLOOKUP($D178,Point_Sources_All!$A$5:$AK$204,$C$4+7),0)/1000 -> 0.000156 | J178: =IF($C$8>=$D$17,VLOOKUP($D178,Point_Sources_All!$A$5:$AK$204,$C$4+10),0)/1000 -> 1.6187e-05 | K178: =IF($C$8>=$D$18,VLOOKUP($D178,Point_Sources_All!$A$5:$AK$204,$C$4+13),0)/1000 -> 2.964e-05 | L178: =IF($C$8>=$D$19,VLOOKUP($D178,Point_Sources_All!$A$5:$AK$204,$C$4+16),0)/1000 -> 1.4968e-05 | M178: =IF($C$8>=$D$20,VLOOKUP($D178,Point_Sources_All!$A$5:$AK$204,$C$4+19),0)/1000 -> 5.2779e-05 | N178: =IF($C$8>=$D$21,VLOOKUP($D178,Point_Sources_All!$A$5:$AK$204,$C$4+22),0)/1000 -> 5.3335e-06 | O178: =IF($C$8>=$D$22,VLOOKUP($D178,Point_Sources_All!$A$5:$AK$204,$C$4+25),0)/1000 -> 6.7307e-05 | P178: =IF($C$8>=$D$23,VLOOKUP($D178,Point_Sources_All!$A$5:$AK$204,$C$4+28),0)/1000 -> 8.8028e-06 | Q178: =IF($C$8>=$D$24,VLOOKUP($D178,Point_Sources_All!$A$5:$AK$204,$C$4+31),0)/1000 -> 0.028371 | R178: =IF($C$8>=$D$25,VLOOKUP($D178,Point_Sources_All!$A$5:$AK$204,$C$4+34),0)/1000 -> 0.028
D179: 151 | E179: =VLOOKUP($D179,Background_All!$A$5:$Y$204,3*($C$8-1)+$C$4+1)/1000 -> 0.010587975 | F179: =VLOOKUP($D179,Background_All!$AA$5:$AY$204,3*($C$8-1)+$C$4+1)/1000 -> 0.0283618025 | G179: =IF($C$8>=$D$14,VLOOKUP($D179,Point_Sources_All!$A$5:$AK$204,$C$4+1),0)/1000 -> 0 | H179: =IF($C$8>=$D$15,VLOOKUP($D179,Point_Sources_All!$A$5:$AK$204,$C$4+4),0)/1000 -> 0 | I179: =IF($C$8>=$D$16,VLOOKUP($D179,Point_Sources_All!$A$5:$AK$204,$C$4+7),0)/1000 -> 0.000156 | J179: =IF($C$8>=$D$17,VLOOKUP($D179,Point_Sources_All!$A$5:$AK$204,$C$4+10),0)/1000 -> 1.6187e-05 | K179: =IF($C$8>=$D$18,VLOOKUP($D179,Point_Sources_All!$A$5:$AK$204,$C$4+13),0)/1000 -> 2.964e-05 | L179: =IF($C$8>=$D$19,VLOOKUP($D179,Point_Sources_All!$A$5:$AK$204,$C$4+16),0)/1000 -> 1.4968e-05 | M179: =IF($C$8>=$D$20,VLOOKUP($D179,Point_Sources_All!$A$5:$AK$204,$C$4+19),0)/1000 -> 5.2779e-05 | N179: =IF($C$8>=$D$21,VLOOKUP($D179,Point_Sources_All!$A$5:$AK$204,$C$4+22),0)/1000 -> 5.3335e-06 | O179: =IF($C$8>=$D$22,VLOOKUP($D179,Point_Sources_All!$A$5:$AK$204,$C$4+25),0)/1000 -> 6.7307e-05 | P179: =IF($C$8>=$D$23,VLOOKUP($D179,Point_Sources_All!$A$5:$AK$204,$C$4+28),0)/1000 -> 8.8028e-06 | Q179: =IF($C$8>=$D$24,VLOOKUP($D179,Point_Sources_All!$A$5:$AK$204,$C$4+31),0)/1000 -> 0.028371 | R179: =IF($C$8>=$D$25,VLOOKUP($D179,Point_Sources_All!$A$5:$AK$204,$C$4+34),0)/1000 -> 0.028
D180: 152 | E180: =VLOOKUP($D180,Background_All!$A$5:$Y$204,3*($C$8-1)+$C$4+1)/1000 -> 0.01040623333 | F180: =VLOOKUP($D180,Background_All!$AA$5:$AY$204,3*($C$8-1)+$C$4+1)/1000 -> 0.03156254583 | G180: =IF($C$8>=$D$14,VLOOKUP($D180,Point_Sources_All!$A$5:$AK$204,$C$4+1),0)/1000 -> 0 | H180: =IF($C$8>=$D$15,VLOOKUP($D180,Point_Sources_All!$A$5:$AK$204,$C$4+4),0)/1000 -> 0 | I180: =IF($C$8>=$D$16,VLOOKUP($D180,Point_Sources_All!$A$5:$AK$204,$C$4+7),0)/1000 -> 0.000156 | J180: =IF($C$8>=$D$17,VLOOKUP($D180,Point_Sources_All!$A$5:$AK$204,$C$4+10),0)/1000 -> 1.6187e-05 | K180: =IF($C$8>=$D$18,VLOOKUP($D180,Point_Sources_All!$A$5:$AK$204,$C$4+13),0)/1000 -> 2.964e-05 | L180: =IF($C$8>=$D$19,VLOOKUP($D180,Point_Sources_All!$A$5:$AK$204,$C$4+16),0)/1000 -> 1.4968e-05 | M180: =IF($C$8>=$D$20,VLOOKUP($D180,Point_Sources_All!$A$5:$AK$204,$C$4+19),0)/1000 -> 5.2779e-05 | N180: =IF($C$8>=$D$21,VLOOKUP($D180,Point_Sources_All!$A$5:$AK$204,$C$4+22),0)/1000 -> 5.3335e-06 | O180: =IF($C$8>=$D$22,VLOOKUP($D180,Point_Sources_All!$A$5:$AK$204,$C$4+25),0)/1000 -> 6.7307e-05 | P180: =IF($C$8>=$D$23,VLOOKUP($D180,Point_Sources_All!$A$5:$AK$204,$C$4+28),0)/1000 -> 8.8028e-06 | Q180: =IF($C$8>=$D$24,VLOOKUP($D180,Point_Sources_All!$A$5:$AK$204,$C$4+31),0)/1000 -> 0.028371 | R180: =IF($C$8>=$D$25,VLOOKUP($D180,Point_Sources_All!$A$5:$AK$204,$C$4+34),0)/1000 -> 0.028
D181: 153 | E181: =VLOOKUP($D181,Background_All!$A$5:$Y$204,3*($C$8-1)+$C$4+1)/1000 -> 0.01043093333 | F181: =VLOOKUP($D181,Background_All!$AA$5:$AY$204,3*($C$8-1)+$C$4+1)/1000 -> 0.03056584 | G181: =IF($C$8>=$D$14,VLOOKUP($D181,Point_Sources_All!$A$5:$AK$204,$C$4+1),0)/1000 -> 0 | H181: =IF($C$8>=$D$15,VLOOKUP($D181,Point_Sources_All!$A$5:$AK$204,$C$4+4),0)/1000 -> 0 | I181: =IF($C$8>=$D$16,VLOOKUP($D181,Point_Sources_All!$A$5:$AK$204,$C$4+7),0)/1000 -> 0.000156 | J181: =IF($C$8>=$D$17,VLOOKUP($D181,Point_Sources_All!$A$5:$AK$204,$C$4+10),0)/1000 -> 1.6187e-05 | K181: =IF($C$8>=$D$18,VLOOKUP($D181,Point_Sources_All!$A$5:$AK$204,$C$4+13),0)/1000 -> 2.964e-05 | L181: =IF($C$8>=$D$19,VLOOKUP($D181,Point_Sources_All!$A$5:$AK$204,$C$4+16),0)/1000 -> 1.4968e-05 | M181: =IF($C$8>=$D$20,VLOOKUP($D181,Point_Sources_All!$A$5:$AK$204,$C$4+19),0)/1000 -> 5.2779e-05 | N181: =IF($C$8>=$D$21,VLOOKUP($D181,Point_Sources_All!$A$5:$AK$204,$C$4+22),0)/1000 -> 5.3335e-06 | O181: =IF($C$8>=$D$22,VLOOKUP($D181,Point_Sources_All!$A$5:$AK$204,$C$4+25),0)/1000 -> 6.7307e-05 | P181: =IF($C$8>=$D$23,VLOOKUP($D181,Point_Sources_All!$A$5:$AK$204,$C$4+28),0)/1000 -> 8.8028e-06 | Q181: =IF($C$8>=$D$24,VLOOKUP($D181,Point_Sources_All!$A$5:$AK$204,$C$4+31),0)/1000 -> 0.028371 | R181: =IF($C$8>=$D$25,VLOOKUP($D181,Point_Sources_All!$A$5:$AK$204,$C$4+34),0)/1000 -> 0.028
D182: 154 | E182: =VLOOKUP($D182,Background_All!$A$5:$Y$204,3*($C$8-1)+$C$4+1)/1000 -> 0.01039306667 | F182: =VLOOKUP($D182,Background_All!$AA$5:$AY$204,3*($C$8-1)+$C$4+1)/1000 -> 0.0298758675 | G182: =IF($C$8>=$D$14,VLOOKUP($D182,Point_Sources_All!$A$5:$AK$204,$C$4+1),0)/1000 -> 0 | H182: =IF($C$8>=$D$15,VLOOKUP($D182,Point_Sources_All!$A$5:$AK$204,$C$4+4),0)/1000 -> 0 | I182: =IF($C$8>=$D$16,VLOOKUP($D182,Point_Sources_All!$A$5:$AK$204,$C$4+7),0)/1000 -> 0.000156 | J182: =IF($C$8>=$D$17,VLOOKUP($D182,Point_Sources_All!$A$5:$AK$204,$C$4+10),0)/1000 -> 1.6187e-05 | K182: =IF($C$8>=$D$18,VLOOKUP($D182,Point_Sources_All!$A$5:$AK$204,$C$4+13),0)/1000 -> 2.964e-05 | L182: =IF($C$8>=$D$19,VLOOKUP($D182,Point_Sources_All!$A$5:$AK$204,$C$4+16),0)/1000 -> 1.4968e-05 | M182: =IF($C$8>=$D$20,VLOOKUP($D182,Point_Sources_All!$A$5:$AK$204,$C$4+19),0)/1000 -> 5.2779e-05 | N182: =IF($C$8>=$D$21,VLOOKUP($D182,Point_Sources_All!$A$5:$AK$204,$C$4+22),0)/1000 -> 5.3335e-06 | O182: =IF($C$8>=$D$22,VLOOKUP($D182,Point_Sources_All!$A$5:$AK$204,$C$4+25),0)/1000 -> 6.7307e-05 | P182: =IF($C$8>=$D$23,VLOOKUP($D182,Point_Sources_All!$A$5:$AK$204,$C$4+28),0)/1000 -> 8.8028e-06 | Q182: =IF($C$8>=$D$24,VLOOKUP($D182,Point_Sources_All!$A$5:$AK$204,$C$4+31),0)/1000 -> 0.028371 | R182: =IF($C$8>=$D$25,VLOOKUP($D182,Point_Sources_All!$A$5:$AK$204,$C$4+34),0)/1000 -> 0.028
D183: 155 | E183: =VLOOKUP($D183,Background_All!$A$5:$Y$204,3*($C$8-1)+$C$4+1)/1000 -> 0.01043114167 | F183: =VLOOKUP($D183,Background_All!$AA$5:$AY$204,3*($C$8-1)+$C$4+1)/1000 -> 0.02863635417 | G183: =IF($C$8>=$D$14,VLOOKUP($D183,Point_Sources_All!$A$5:$AK$204,$C$4+1),0)/1000 -> 0 | H183: =IF($C$8>=$D$15,VLOOKUP($D183,Point_Sources_All!$A$5:$AK$204,$C$4+4),0)/1000 -> 0 | I183: =IF($C$8>=$D$16,VLOOKUP($D183,Point_Sources_All!$A$5:$AK$204,$C$4+7),0)/1000 -> 0.000156 | J183: =IF($C$8>=$D$17,VLOOKUP($D183,Point_Sources_All!$A$5:$AK$204,$C$4+10),0)/1000 -> 1.6187e-05 | K183: =IF($C$8>=$D$18,VLOOKUP($D183,Point_Sources_All!$A$5:$AK$204,$C$4+13),0)/1000 -> 2.964e-05 | L183: =IF($C$8>=$D$19,VLOOKUP($D183,Point_Sources_All!$A$5:$AK$204,$C$4+16),0)/1000 -> 1.4968e-05 | M183: =IF($C$8>=$D$20,VLOOKUP($D183,Point_Sources_All!$A$5:$AK$204,$C$4+19),0)/1000 -> 5.2779e-05 | N183: =IF($C$8>=$D$21,VLOOKUP($D183,Point_Sources_All!$A$5:$AK$204,$C$4+22),0)/1000 -> 5.3335e-06 | O183: =IF($C$8>=$D$22,VLOOKUP($D183,Point_Sources_All!$A$5:$AK$204,$C$4+25),0)/1000 -> 6.7307e-05 | P183: =IF($C$8>=$D$23,VLOOKUP($D183,Point_Sources_All!$A$5:$AK$204,$C$4+28),0)/1000 -> 8.8028e-06 | Q183: =IF($C$8>=$D$24,VLOOKUP($D183,Point_Sources_All!$A$5:$AK$204,$C$4+31),0)/1000 -> 0.028371 | R183: =IF($C$8>=$D$25,VLOOKUP($D183,Point_Sources_All!$A$5:$AK$204,$C$4+34),0)/1000 -> 0.028
D184: 156 | E184: =VLOOKUP($D184,Background_All!$A$5:$Y$204,3*($C$8-1)+$C$4+1)/1000 -> 0.010404975 | F184: =VLOOKUP($D184,Background_All!$AA$5:$AY$204,3*($C$8-1)+$C$4+1)/1000 -> 0.03064196417 | G184: =IF($C$8>=$D$14,VLOOKUP($D184,Point_Sources_All!$A$5:$AK$204,$C$4+1),0)/1000 -> 0 | H184: =IF($C$8>=$D$15,VLOOKUP($D184,Point_Sources_All!$A$5:$AK$204,$C$4+4),0)/1000 -> 0 | I184: =IF($C$8>=$D$16,VLOOKUP($D184,Point_Sources_All!$A$5:$AK$204,$C$4+7),0)/1000 -> 0.000156 | J184: =IF($C$8>=$D$17,VLOOKUP($D184,Point_Sources_All!$A$5:$AK$204,$C$4+10),0)/1000 -> 1.6187e-05 | K184: =IF($C$8>=$D$18,VLOOKUP($D184,Point_Sources_All!$A$5:$AK$204,$C$4+13),0)/1000 -> 2.964e-05 | L184: =IF($C$8>=$D$19,VLOOKUP($D184,Point_Sources_All!$A$5:$AK$204,$C$4+16),0)/1000 -> 1.4968e-05 | M184: =IF($C$8>=$D$20,VLOOKUP($D184,Point_Sources_All!$A$5:$AK$204,$C$4+19),0)/1000 -> 5.2779e-05 | N184: =IF($C$8>=$D$21,VLOOKUP($D184,Point_Sources_All!$A$5:$AK$204,$C$4+22),0)/1000 -> 5.3335e-06 | O184: =IF($C$8>=$D$22,VLOOKUP($D184,Point_Sources_All!$A$5:$AK$204,$C$4+25),0)/1000 -> 6.7307e-05 | P184: =IF($C$8>=$D$23,VLOOKUP($D184,Point_Sources_All!$A$5:$AK$204,$C$4+28),0)/1000 -> 8.8028e-06 | Q184: =IF($C$8>=$D$24,VLOOKUP($D184,Point_Sources_All!$A$5:$AK$204,$C$4+31),0)/1000 -> 0.028371 | R184: =IF($C$8>=$D$25,VLOOKUP($D184,Point_Sources_All!$A$5:$AK$204,$C$4+34),0)/1000 -> 0.028
D185: 157 | E185: =VLOOKUP($D185,Background_All!$A$5:$Y$204,3*($C$8-1)+$C$4+1)/1000 -> 0.0104181 | F185: =VLOOKUP($D185,Background_All!$AA$5:$AY$204,3*($C$8-1)+$C$4+1)/1000 -> 0.03013913333 | G185: =IF($C$8>=$D$14,VLOOKUP($D185,Point_Sources_All!$A$5:$AK$204,$C$4+1),0)/1000 -> 0 | H185: =IF($C$8>=$D$15,VLOOKUP($D185,Point_Sources_All!$A$5:$AK$204,$C$4+4),0)/1000 -> 0 | I185: =IF($C$8>=$D$16,VLOOKUP($D185,Point_Sources_All!$A$5:$AK$204,$C$4+7),0)/1000 -> 0.000156 | J185: =IF($C$8>=$D$17,VLOOKUP($D185,Point_Sources_All!$A$5:$AK$204,$C$4+10),0)/1000 -> 1.6187e-05 | K185: =IF($C$8>=$D$18,VLOOKUP($D185,Point_Sources_All!$A$5:$AK$204,$C$4+13),0)/1000 -> 2.964e-05 | L185: =IF($C$8>=$D$19,VLOOKUP($D185,Point_Sources_All!$A$5:$AK$204,$C$4+16),0)/1000 -> 1.4968e-05 | M185: =IF($C$8>=$D$20,VLOOKUP($D185,Point_Sources_All!$A$5:$AK$204,$C$4+19),0)/1000 -> 5.2779e-05 | N185: =IF($C$8>=$D$21,VLOOKUP($D185,Point_Sources_All!$A$5:$AK$204,$C$4+22),0)/1000 -> 5.3335e-06 | O185: =IF($C$8>=$D$22,VLOOKUP($D185,Point_Sources_All!$A$5:$AK$204,$C$4+25),0)/1000 -> 6.7307e-05 | P185: =IF($C$8>=$D$23,VLOOKUP($D185,Point_Sources_All!$A$5:$AK$204,$C$4+28),0)/1000 -> 8.8028e-06 | Q185: =IF($C$8>=$D$24,VLOOKUP($D185,Point_Sources_All!$A$5:$AK$204,$C$4+31),0)/1000 -> 0.028371 | R185: =IF($C$8>=$D$25,VLOOKUP($D185,Point_Sources_All!$A$5:$AK$204,$C$4+34),0)/1000 -> 0.028
D186: 158 | E186: =VLOOKUP($D186,Background_All!$A$5:$Y$204,3*($C$8-1)+$C$4+1)/1000 -> 0.01044745833 | F186: =VLOOKUP($D186,Background_All!$AA$5:$AY$204,3*($C$8-1)+$C$4+1)/1000 -> 0.0293406425 | G186: =IF($C$8>=$D$14,VLOOKUP($D186,Point_Sources_All!$A$5:$AK$204,$C$4+1),0)/1000 -> 0 | H186: =IF($C$8>=$D$15,VLOOKUP($D186,Point_Sources_All!$A$5:$AK$204,$C$4+4),0)/1000 -> 0 | I186: =IF($C$8>=$D$16,VLOOKUP($D186,Point_Sources_All!$A$5:$AK$204,$C$4+7),0)/1000 -> 0.000156 | J186: =IF($C$8>=$D$17,VLOOKUP($D186,Point_Sources_All!$A$5:$AK$204,$C$4+10),0)/1000 -> 1.6187e-05 | K186: =IF($C$8>=$D$18,VLOOKUP($D186,Point_Sources_All!$A$5:$AK$204,$C$4+13),0)/1000 -> 2.964e-05 | L186: =IF($C$8>=$D$19,VLOOKUP($D186,Point_Sources_All!$A$5:$AK$204,$C$4+16),0)/1000 -> 1.4968e-05 | M186: =IF($C$8>=$D$20,VLOOKUP($D186,Point_Sources_All!$A$5:$AK$204,$C$4+19),0)/1000 -> 5.2779e-05 | N186: =IF($C$8>=$D$21,VLOOKUP($D186,Point_Sources_All!$A$5:$AK$204,$C$4+22),0)/1000 -> 5.3335e-06 | O186: =IF($C$8>=$D$22,VLOOKUP($D186,Point_Sources_All!$A$5:$AK$204,$C$4+25),0)/1000 -> 6.7307e-05 | P186: =IF($C$8>=$D$23,VLOOKUP($D186,Point_Sources_All!$A$5:$AK$204,$C$4+28),0)/1000 -> 8.8028e-06 | Q186: =IF($C$8>=$D$24,VLOOKUP($D186,Point_Sources_All!$A$5:$AK$204,$C$4+31),0)/1000 -> 0.028371 | R186: =IF($C$8>=$D$25,VLOOKUP($D186,Point_Sources_All!$A$5:$AK$204,$C$4+34),0)/1000 -> 0.028
D187: 159 | E187: =VLOOKUP($D187,Background_All!$A$5:$Y$204,3*($C$8-1)+$C$4+1)/1000 -> 0.01042471667 | F187: =VLOOKUP($D187,Background_All!$AA$5:$AY$204,3*($C$8-1)+$C$4+1)/1000 -> 0.0297794825 | G187: =IF($C$8>=$D$14,VLOOKUP($D187,Point_Sources_All!$A$5:$AK$204,$C$4+1),0)/1000 -> 0 | H187: =IF($C$8>=$D$15,VLOOKUP($D187,Point_Sources_All!$A$5:$AK$204,$C$4+4),0)/1000 -> 0 | I187: =IF($C$8>=$D$16,VLOOKUP($D187,Point_Sources_All!$A$5:$AK$204,$C$4+7),0)/1000 -> 0.000156 | J187: =IF($C$8>=$D$17,VLOOKUP($D187,Point_Sources_All!$A$5:$AK$204,$C$4+10),0)/1000 -> 1.6187e-05 | K187: =IF($C$8>=$D$18,VLOOKUP($D187,Point_Sources_All!$A$5:$AK$204,$C$4+13),0)/1000 -> 2.964e-05 | L187: =IF($C$8>=$D$19,VLOOKUP($D187,Point_Sources_All!$A$5:$AK$204,$C$4+16),0)/1000 -> 1.4968e-05 | M187: =IF($C$8>=$D$20,VLOOKUP($D187,Point_Sources_All!$A$5:$AK$204,$C$4+19),0)/1000 -> 5.2779e-05 | N187: =IF($C$8>=$D$21,VLOOKUP($D187,Point_Sources_All!$A$5:$AK$204,$C$4+22),0)/1000 -> 5.3335e-06 | O187: =IF($C$8>=$D$22,VLOOKUP($D187,Point_Sources_All!$A$5:$AK$204,$C$4+25),0)/1000 -> 6.7307e-05 | P187: =IF($C$8>=$D$23,VLOOKUP($D187,Point_Sources_All!$A$5:$AK$204,$C$4+28),0)/1000 -> 8.8028e-06 | Q187: =IF($C$8>=$D$24,VLOOKUP($D187,Point_Sources_All!$A$5:$AK$204,$C$4+31),0)/1000 -> 0.028371 | R187: =IF($C$8>=$D$25,VLOOKUP($D187,Point_Sources_All!$A$5:$AK$204,$C$4+34),0)/1000 -> 0.028
D188: 160 | E188: =VLOOKUP($D188,Background_All!$A$5:$Y$204,3*($C$8-1)+$C$4+1)/1000 -> 0.01044261667 | F188: =VLOOKUP($D188,Background_All!$AA$5:$AY$204,3*($C$8-1)+$C$4+1)/1000 -> 0.02861097667 | G188: =IF($C$8>=$D$14,VLOOKUP($D188,Point_Sources_All!$A$5:$AK$204,$C$4+1),0)/1000 -> 0 | H188: =IF($C$8>=$D$15,VLOOKUP($D188,Point_Sources_All!$A$5:$AK$204,$C$4+4),0)/1000 -> 0 | I188: =IF($C$8>=$D$16,VLOOKUP($D188,Point_Sources_All!$A$5:$AK$204,$C$4+7),0)/1000 -> 0.000156 | J188: =IF($C$8>=$D$17,VLOOKUP($D188,Point_Sources_All!$A$5:$AK$204,$C$4+10),0)/1000 -> 1.6187e-05 | K188: =IF($C$8>=$D$18,VLOOKUP($D188,Point_Sources_All!$A$5:$AK$204,$C$4+13),0)/1000 -> 2.964e-05 | L188: =IF($C$8>=$D$19,VLOOKUP($D188,Point_Sources_All!$A$5:$AK$204,$C$4+16),0)/1000 -> 1.4968e-05 | M188: =IF($C$8>=$D$20,VLOOKUP($D188,Point_Sources_All!$A$5:$AK$204,$C$4+19),0)/1000 -> 5.2779e-05 | N188: =IF($C$8>=$D$21,VLOOKUP($D188,Point_Sources_All!$A$5:$AK$204,$C$4+22),0)/1000 -> 5.3335e-06 | O188: =IF($C$8>=$D$22,VLOOKUP($D188,Point_Sources_All!$A$5:$AK$204,$C$4+25),0)/1000 -> 6.7307e-05 | P188: =IF($C$8>=$D$23,VLOOKUP($D188,Point_Sources_All!$A$5:$AK$204,$C$4+28),0)/1000 -> 8.8028e-06 | Q188: =IF($C$8>=$D$24,VLOOKUP($D188,Point_Sources_All!$A$5:$AK$204,$C$4+31),0)/1000 -> 0.028371 | R188: =IF($C$8>=$D$25,VLOOKUP($D188,Point_Sources_All!$A$5:$AK$204,$C$4+34),0)/1000 -> 0.028
D189: 161 | E189: =VLOOKUP($D189,Background_All!$A$5:$Y$204,3*($C$8-1)+$C$4+1)/1000 -> 0.01054308333 | F189: =VLOOKUP($D189,Background_All!$AA$5:$AY$204,3*($C$8-1)+$C$4+1)/1000 -> 0.02936333883 | G189: =IF($C$8>=$D$14,VLOOKUP($D189,Point_Sources_All!$A$5:$AK$204,$C$4+1),0)/1000 -> 0 | H189: =IF($C$8>=$D$15,VLOOKUP($D189,Point_Sources_All!$A$5:$AK$204,$C$4+4),0)/1000 -> 0 | I189: =IF($C$8>=$D$16,VLOOKUP($D189,Point_Sources_All!$A$5:$AK$204,$C$4+7),0)/1000 -> 0.000156 | J189: =IF($C$8>=$D$17,VLOOKUP($D189,Point_Sources_All!$A$5:$AK$204,$C$4+10),0)/1000 -> 1.6187e-05 | K189: =IF($C$8>=$D$18,VLOOKUP($D189,Point_Sources_All!$A$5:$AK$204,$C$4+13),0)/1000 -> 2.964e-05 | L189: =IF($C$8>=$D$19,VLOOKUP($D189,Point_Sources_All!$A$5:$AK$204,$C$4+16),0)/1000 -> 1.4968e-05 | M189: =IF($C$8>=$D$20,VLOOKUP($D189,Point_Sources_All!$A$5:$AK$204,$C$4+19),0)/1000 -> 5.2779e-05 | N189: =IF($C$8>=$D$21,VLOOKUP($D189,Point_Sources_All!$A$5:$AK$204,$C$4+22),0)/1000 -> 5.3335e-06 | O189: =IF($C$8>=$D$22,VLOOKUP($D189,Point_Sources_All!$A$5:$AK$204,$C$4+25),0)/1000 -> 6.7307e-05 | P189: =IF($C$8>=$D$23,VLOOKUP($D189,Point_Sources_All!$A$5:$AK$204,$C$4+28),0)/1000 -> 8.8028e-06 | Q189: =IF($C$8>=$D$24,VLOOKUP($D189,Point_Sources_All!$A$5:$AK$204,$C$4+31),0)/1000 -> 0.028371 | R189: =IF($C$8>=$D$25,VLOOKUP($D189,Point_Sources_All!$A$5:$AK$204,$C$4+34),0)/1000 -> 0.028
D190: 162 | E190: =VLOOKUP($D190,Background_All!$A$5:$Y$204,3*($C$8-1)+$C$4+1)/1000 -> 0.01041220833 | F190: =VLOOKUP($D190,Background_All!$AA$5:$AY$204,3*($C$8-1)+$C$4+1)/1000 -> 0.03103792083 | G190: =IF($C$8>=$D$14,VLOOKUP($D190,Point_Sources_All!$A$5:$AK$204,$C$4+1),0)/1000 -> 0 | H190: =IF($C$8>=$D$15,VLOOKUP($D190,Point_Sources_All!$A$5:$AK$204,$C$4+4),0)/1000 -> 0 | I190: =IF($C$8>=$D$16,VLOOKUP($D190,Point_Sources_All!$A$5:$AK$204,$C$4+7),0)/1000 -> 0.000156 | J190: =IF($C$8>=$D$17,VLOOKUP($D190,Point_Sources_All!$A$5:$AK$204,$C$4+10),0)/1000 -> 1.6187e-05 | K190: =IF($C$8>=$D$18,VLOOKUP($D190,Point_Sources_All!$A$5:$AK$204,$C$4+13),0)/1000 -> 2.964e-05 | L190: =IF($C$8>=$D$19,VLOOKUP($D190,Point_Sources_All!$A$5:$AK$204,$C$4+16),0)/1000 -> 1.4968e-05 | M190: =IF($C$8>=$D$20,VLOOKUP($D190,Point_Sources_All!$A$5:$AK$204,$C$4+19),0)/1000 -> 5.2779e-05 | N190: =IF($C$8>=$D$21,VLOOKUP($D190,Point_Sources_All!$A$5:$AK$204,$C$4+22),0)/1000 -> 5.3335e-06 | O190: =IF($C$8>=$D$22,VLOOKUP($D190,Point_Sources_All!$A$5:$AK$204,$C$4+25),0)/1000 -> 6.7307e-05 | P190: =IF($C$8>=$D$23,VLOOKUP($D190,Point_Sources_All!$A$5:$AK$204,$C$4+28),0)/1000 -> 8.8028e-06 | Q190: =IF($C$8>=$D$24,VLOOKUP($D190,Point_Sources_All!$A$5:$AK$204,$C$4+31),0)/1000 -> 0.028371 | R190: =IF($C$8>=$D$25,VLOOKUP($D190,Point_Sources_All!$A$5:$AK$204,$C$4+34),0)/1000 -> 0.028
D191: 163 | E191: =VLOOKUP($D191,Background_All!$A$5:$Y$204,3*($C$8-1)+$C$4+1)/1000 -> 0.01040780833 | F191: =VLOOKUP($D191,Background_All!$AA$5:$AY$204,3*($C$8-1)+$C$4+1)/1000 -> 0.02880546417 | G191: =IF($C$8>=$D$14,VLOOKUP($D191,Point_Sources_All!$A$5:$AK$204,$C$4+1),0)/1000 -> 0 | H191: =IF($C$8>=$D$15,VLOOKUP($D191,Point_Sources_All!$A$5:$AK$204,$C$4+4),0)/1000 -> 0 | I191: =IF($C$8>=$D$16,VLOOKUP($D191,Point_Sources_All!$A$5:$AK$204,$C$4+7),0)/1000 -> 0.000156 | J191: =IF($C$8>=$D$17,VLOOKUP($D191,Point_Sources_All!$A$5:$AK$204,$C$4+10),0)/1000 -> 1.6187e-05 | K191: =IF($C$8>=$D$18,VLOOKUP($D191,Point_Sources_All!$A$5:$AK$204,$C$4+13),0)/1000 -> 2.964e-05 | L191: =IF($C$8>=$D$19,VLOOKUP($D191,Point_Sources_All!$A$5:$AK$204,$C$4+16),0)/1000 -> 1.4968e-05 | M191: =IF($C$8>=$D$20,VLOOKUP($D191,Point_Sources_All!$A$5:$AK$204,$C$4+19),0)/1000 -> 5.2779e-05 | N191: =IF($C$8>=$D$21,VLOOKUP($D191,Point_Sources_All!$A$5:$AK$204,$C$4+22),0)/1000 -> 5.3335e-06 | O191: =IF($C$8>=$D$22,VLOOKUP($D191,Point_Sources_All!$A$5:$AK$204,$C$4+25),0)/1000 -> 6.7307e-05 | P191: =IF($C$8>=$D$23,VLOOKUP($D191,Point_Sources_All!$A$5:$AK$204,$C$4+28),0)/1000 -> 8.8028e-06 | Q191: =IF($C$8>=$D$24,VLOOKUP($D191,Point_Sources_All!$A$5:$AK$204,$C$4+31),0)/1000 -> 0.028371 | R191: =IF($C$8>=$D$25,VLOOKUP($D191,Point_Sources_All!$A$5:$AK$204,$C$4+34),0)/1000 -> 0.028
D192: 164 | E192: =VLOOKUP($D192,Background_All!$A$5:$Y$204,3*($C$8-1)+$C$4+1)/1000 -> 0.010586875 | F192: =VLOOKUP($D192,Background_All!$AA$5:$AY$204,3*($C$8-1)+$C$4+1)/1000 -> 0.02892815308 | G192: =IF($C$8>=$D$14,VLOOKUP($D192,Point_Sources_All!$A$5:$AK$204,$C$4+1),0)/1000 -> 0 | H192: =IF($C$8>=$D$15,VLOOKUP($D192,Point_Sources_All!$A$5:$AK$204,$C$4+4),0)/1000 -> 0 | I192: =IF($C$8>=$D$16,VLOOKUP($D192,Point_Sources_All!$A$5:$AK$204,$C$4+7),0)/1000 -> 0.000156 | J192: =IF($C$8>=$D$17,VLOOKUP($D192,Point_Sources_All!$A$5:$AK$204,$C$4+10),0)/1000 -> 1.6187e-05 | K192: =IF($C$8>=$D$18,VLOOKUP($D192,Point_Sources_All!$A$5:$AK$204,$C$4+13),0)/1000 -> 2.964e-05 | L192: =IF($C$8>=$D$19,VLOOKUP($D192,Point_Sources_All!$A$5:$AK$204,$C$4+16),0)/1000 -> 1.4968e-05 | M192: =IF($C$8>=$D$20,VLOOKUP($D192,Point_Sources_All!$A$5:$AK$204,$C$4+19),0)/1000 -> 5.2779e-05 | N192: =IF($C$8>=$D$21,VLOOKUP($D192,Point_Sources_All!$A$5:$AK$204,$C$4+22),0)/1000 -> 5.3335e-06 | O192: =IF($C$8>=$D$22,VLOOKUP($D192,Point_Sources_All!$A$5:$AK$204,$C$4+25),0)/1000 -> 6.7307e-05 | P192: =IF($C$8>=$D$23,VLOOKUP($D192,Point_Sources_All!$A$5:$AK$204,$C$4+28),0)/1000 -> 8.8028e-06 | Q192: =IF($C$8>=$D$24,VLOOKUP($D192,Point_Sources_All!$A$5:$AK$204,$C$4+31),0)/1000 -> 0.028371 | R192: =IF($C$8>=$D$25,VLOOKUP($D192,Point_Sources_All!$A$5:$AK$204,$C$4+34),0)/1000 -> 0.028
D193: 165 | E193: =VLOOKUP($D193,Background_All!$A$5:$Y$204,3*($C$8-1)+$C$4+1)/1000 -> 0.01037234167 | F193: =VLOOKUP($D193,Background_All!$AA$5:$AY$204,3*($C$8-1)+$C$4+1)/1000 -> 0.02830761083 | G193: =IF($C$8>=$D$14,VLOOKUP($D193,Point_Sources_All!$A$5:$AK$204,$C$4+1),0)/1000 -> 0 | H193: =IF($C$8>=$D$15,VLOOKUP($D193,Point_Sources_All!$A$5:$AK$204,$C$4+4),0)/1000 -> 0 | I193: =IF($C$8>=$D$16,VLOOKUP($D193,Point_Sources_All!$A$5:$AK$204,$C$4+7),0)/1000 -> 0.000156 | J193: =IF($C$8>=$D$17,VLOOKUP($D193,Point_Sources_All!$A$5:$AK$204,$C$4+10),0)/1000 -> 1.6187e-05 | K193: =IF($C$8>=$D$18,VLOOKUP($D193,Point_Sources_All!$A$5:$AK$204,$C$4+13),0)/1000 -> 2.964e-05 | L193: =IF($C$8>=$D$19,VLOOKUP($D193,Point_Sources_All!$A$5:$AK$204,$C$4+16),0)/1000 -> 1.4968e-05 | M193: =IF($C$8>=$D$20,VLOOKUP($D193,Point_Sources_All!$A$5:$AK$204,$C$4+19),0)/1000 -> 5.2779e-05 | N193: =IF($C$8>=$D$21,VLOOKUP($D193,Point_Sources_All!$A$5:$AK$204,$C$4+22),0)/1000 -> 5.3335e-06 | O193: =IF($C$8>=$D$22,VLOOKUP($D193,Point_Sources_All!$A$5:$AK$204,$C$4+25),0)/1000 -> 6.7307e-05 | P193: =IF($C$8>=$D$23,VLOOKUP($D193,Point_Sources_All!$A$5:$AK$204,$C$4+28),0)/1000 -> 8.8028e-06 | Q193: =IF($C$8>=$D$24,VLOOKUP($D193,Point_Sources_All!$A$5:$AK$204,$C$4+31),0)/1000 -> 0.028371 | R193: =IF($C$8>=$D$25,VLOOKUP($D193,Point_Sources_All!$A$5:$AK$204,$C$4+34),0)/1000 -> 0.028
D194: 166 | E194: =VLOOKUP($D194,Background_All!$A$5:$Y$204,3*($C$8-1)+$C$4+1)/1000 -> 0.01043911667 | F194: =VLOOKUP($D194,Background_All!$AA$5:$AY$204,3*($C$8-1)+$C$4+1)/1000 -> 0.03252611958 | G194: =IF($C$8>=$D$14,VLOOKUP($D194,Point_Sources_All!$A$5:$AK$204,$C$4+1),0)/1000 -> 0 | H194: =IF($C$8>=$D$15,VLOOKUP($D194,Point_Sources_All!$A$5:$AK$204,$C$4+4),0)/1000 -> 0 | I194: =IF($C$8>=$D$16,VLOOKUP($D194,Point_Sources_All!$A$5:$AK$204,$C$4+7),0)/1000 -> 0.000156 | J194: =IF($C$8>=$D$17,VLOOKUP($D194,Point_Sources_All!$A$5:$AK$204,$C$4+10),0)/1000 -> 1.6187e-05 | K194: =IF($C$8>=$D$18,VLOOKUP($D194,Point_Sources_All!$A$5:$AK$204,$C$4+13),0)/1000 -> 2.964e-05 | L194: =IF($C$8>=$D$19,VLOOKUP($D194,Point_Sources_All!$A$5:$AK$204,$C$4+16),0)/1000 -> 1.4968e-05 | M194: =IF($C$8>=$D$20,VLOOKUP($D194,Point_Sources_All!$A$5:$AK$204,$C$4+19),0)/1000 -> 5.2779e-05 | N194: =IF($C$8>=$D$21,VLOOKUP($D194,Point_Sources_All!$A$5:$AK$204,$C$4+22),0)/1000 -> 5.3335e-06 | O194: =IF($C$8>=$D$22,VLOOKUP($D194,Point_Sources_All!$A$5:$AK$204,$C$4+25),0)/1000 -> 6.7307e-05 | P194: =IF($C$8>=$D$23,VLOOKUP($D194,Point_Sources_All!$A$5:$AK$204,$C$4+28),0)/1000 -> 8.8028e-06 | Q194: =IF($C$8>=$D$24,VLOOKUP($D194,Point_Sources_All!$A$5:$AK$204,$C$4+31),0)/1000 -> 0.028371 | R194: =IF($C$8>=$D$25,VLOOKUP($D194,Point_Sources_All!$A$5:$AK$204,$C$4+34),0)/1000 -> 0.028
D195: 167 | E195: =VLOOKUP($D195,Background_All!$A$5:$Y$204,3*($C$8-1)+$C$4+1)/1000 -> 0.01041253333 | F195: =VLOOKUP($D195,Background_All!$AA$5:$AY$204,3*($C$8-1)+$C$4+1)/1000 -> 0.02840273333 | G195: =IF($C$8>=$D$14,VLOOKUP($D195,Point_Sources_All!$A$5:$AK$204,$C$4+1),0)/1000 -> 0 | H195: =IF($C$8>=$D$15,VLOOKUP($D195,Point_Sources_All!$A$5:$AK$204,$C$4+4),0)/1000 -> 0 | I195: =IF($C$8>=$D$16,VLOOKUP($D195,Point_Sources_All!$A$5:$AK$204,$C$4+7),0)/1000 -> 0.000156 | J195: =IF($C$8>=$D$17,VLOOKUP($D195,Point_Sources_All!$A$5:$AK$204,$C$4+10),0)/1000 -> 1.6187e-05 | K195: =IF($C$8>=$D$18,VLOOKUP($D195,Point_Sources_All!$A$5:$AK$204,$C$4+13),0)/1000 -> 2.964e-05 | L195: =IF($C$8>=$D$19,VLOOKUP($D195,Point_Sources_All!$A$5:$AK$204,$C$4+16),0)/1000 -> 1.4968e-05 | M195: =IF($C$8>=$D$20,VLOOKUP($D195,Point_Sources_All!$A$5:$AK$204,$C$4+19),0)/1000 -> 5.2779e-05 | N195: =IF($C$8>=$D$21,VLOOKUP($D195,Point_Sources_All!$A$5:$AK$204,$C$4+22),0)/1000 -> 5.3335e-06 | O195: =IF($C$8>=$D$22,VLOOKUP($D195,Point_Sources_All!$A$5:$AK$204,$C$4+25),0)/1000 -> 6.7307e-05 | P195: =IF($C$8>=$D$23,VLOOKUP($D195,Point_Sources_All!$A$5:$AK$204,$C$4+28),0)/1000 -> 8.8028e-06 | Q195: =IF($C$8>=$D$24,VLOOKUP($D195,Point_Sources_All!$A$5:$AK$204,$C$4+31),0)/1000 -> 0.028371 | R195: =IF($C$8>=$D$25,VLOOKUP($D195,Point_Sources_All!$A$5:$AK$204,$C$4+34),0)/1000 -> 0.028
D196: 168 | E196: =VLOOKUP($D196,Background_All!$A$5:$Y$204,3*($C$8-1)+$C$4+1)/1000 -> 0.01048303333 | F196: =VLOOKUP($D196,Background_All!$AA$5:$AY$204,3*($C$8-1)+$C$4+1)/1000 -> 0.032509685 | G196: =IF($C$8>=$D$14,VLOOKUP($D196,Point_Sources_All!$A$5:$AK$204,$C$4+1),0)/1000 -> 0 | H196: =IF($C$8>=$D$15,VLOOKUP($D196,Point_Sources_All!$A$5:$AK$204,$C$4+4),0)/1000 -> 0 | I196: =IF($C$8>=$D$16,VLOOKUP($D196,Point_Sources_All!$A$5:$AK$204,$C$4+7),0)/1000 -> 0.000156 | J196: =IF($C$8>=$D$17,VLOOKUP($D196,Point_Sources_All!$A$5:$AK$204,$C$4+10),0)/1000 -> 1.6187e-05 | K196: =IF($C$8>=$D$18,VLOOKUP($D196,Point_Sources_All!$A$5:$AK$204,$C$4+13),0)/1000 -> 2.964e-05 | L196: =IF($C$8>=$D$19,VLOOKUP($D196,Point_Sources_All!$A$5:$AK$204,$C$4+16),0)/1000 -> 1.4968e-05 | M196: =IF($C$8>=$D$20,VLOOKUP($D196,Point_Sources_All!$A$5:$AK$204,$C$4+19),0)/1000 -> 5.2779e-05 | N196: =IF($C$8>=$D$21,VLOOKUP($D196,Point_Sources_All!$A$5:$AK$204,$C$4+22),0)/1000 -> 5.3335e-06 | O196: =IF($C$8>=$D$22,VLOOKUP($D196,Point_Sources_All!$A$5:$AK$204,$C$4+25),0)/1000 -> 6.7307e-05 | P196: =IF($C$8>=$D$23,VLOOKUP($D196,Point_Sources_All!$A$5:$AK$204,$C$4+28),0)/1000 -> 8.8028e-06 | Q196: =IF($C$8>=$D$24,VLOOKUP($D196,Point_Sources_All!$A$5:$AK$204,$C$4+31),0)/1000 -> 0.028371 | R196: =IF($C$8>=$D$25,VLOOKUP($D196,Point_Sources_All!$A$5:$AK$204,$C$4+34),0)/1000 -> 0.028
D197: 169 | E197: =VLOOKUP($D197,Background_All!$A$5:$Y$204,3*($C$8-1)+$C$4+1)/1000 -> 0.01055120833 | F197: =VLOOKUP($D197,Background_All!$AA$5:$AY$204,3*($C$8-1)+$C$4+1)/1000 -> 0.03055298975 | G197: =IF($C$8>=$D$14,VLOOKUP($D197,Point_Sources_All!$A$5:$AK$204,$C$4+1),0)/1000 -> 0 | H197: =IF($C$8>=$D$15,VLOOKUP($D197,Point_Sources_All!$A$5:$AK$204,$C$4+4),0)/1000 -> 0 | I197: =IF($C$8>=$D$16,VLOOKUP($D197,Point_Sources_All!$A$5:$AK$204,$C$4+7),0)/1000 -> 0.000156 | J197: =IF($C$8>=$D$17,VLOOKUP($D197,Point_Sources_All!$A$5:$AK$204,$C$4+10),0)/1000 -> 1.6187e-05 | K197: =IF($C$8>=$D$18,VLOOKUP($D197,Point_Sources_All!$A$5:$AK$204,$C$4+13),0)/1000 -> 2.964e-05 | L197: =IF($C$8>=$D$19,VLOOKUP($D197,Point_Sources_All!$A$5:$AK$204,$C$4+16),0)/1000 -> 1.4968e-05 | M197: =IF($C$8>=$D$20,VLOOKUP($D197,Point_Sources_All!$A$5:$AK$204,$C$4+19),0)/1000 -> 5.2779e-05 | N197: =IF($C$8>=$D$21,VLOOKUP($D197,Point_Sources_All!$A$5:$AK$204,$C$4+22),0)/1000 -> 5.3335e-06 | O197: =IF($C$8>=$D$22,VLOOKUP($D197,Point_Sources_All!$A$5:$AK$204,$C$4+25),0)/1000 -> 6.7307e-05 | P197: =IF($C$8>=$D$23,VLOOKUP($D197,Point_Sources_All!$A$5:$AK$204,$C$4+28),0)/1000 -> 8.8028e-06 | Q197: =IF($C$8>=$D$24,VLOOKUP($D197,Point_Sources_All!$A$5:$AK$204,$C$4+31),0)/1000 -> 0.028371 | R197: =IF($C$8>=$D$25,VLOOKUP($D197,Point_Sources_All!$A$5:$AK$204,$C$4+34),0)/1000 -> 0.028
D198: 170 | E198: =VLOOKUP($D198,Background_All!$A$5:$Y$204,3*($C$8-1)+$C$4+1)/1000 -> 0.01053924167 | F198: =VLOOKUP($D198,Background_All!$AA$5:$AY$204,3*($C$8-1)+$C$4+1)/1000 -> 0.0308957925 | G198: =IF($C$8>=$D$14,VLOOKUP($D198,Point_Sources_All!$A$5:$AK$204,$C$4+1),0)/1000 -> 0 | H198: =IF($C$8>=$D$15,VLOOKUP($D198,Point_Sources_All!$A$5:$AK$204,$C$4+4),0)/1000 -> 0 | I198: =IF($C$8>=$D$16,VLOOKUP($D198,Point_Sources_All!$A$5:$AK$204,$C$4+7),0)/1000 -> 0.000156 | J198: =IF($C$8>=$D$17,VLOOKUP($D198,Point_Sources_All!$A$5:$AK$204,$C$4+10),0)/1000 -> 1.6187e-05 | K198: =IF($C$8>=$D$18,VLOOKUP($D198,Point_Sources_All!$A$5:$AK$204,$C$4+13),0)/1000 -> 2.964e-05 | L198: =IF($C$8>=$D$19,VLOOKUP($D198,Point_Sources_All!$A$5:$AK$204,$C$4+16),0)/1000 -> 1.4968e-05 | M198: =IF($C$8>=$D$20,VLOOKUP($D198,Point_Sources_All!$A$5:$AK$204,$C$4+19),0)/1000 -> 5.2779e-05 | N198: =IF($C$8>=$D$21,VLOOKUP($D198,Point_Sources_All!$A$5:$AK$204,$C$4+22),0)/1000 -> 5.3335e-06 | O198: =IF($C$8>=$D$22,VLOOKUP($D198,Point_Sources_All!$A$5:$AK$204,$C$4+25),0)/1000 -> 6.7307e-05 | P198: =IF($C$8>=$D$23,VLOOKUP($D198,Point_Sources_All!$A$5:$AK$204,$C$4+28),0)/1000 -> 8.8028e-06 | Q198: =IF($C$8>=$D$24,VLOOKUP($D198,Point_Sources_All!$A$5:$AK$204,$C$4+31),0)/1000 -> 0.028371 | R198: =IF($C$8>=$D$25,VLOOKUP($D198,Point_Sources_All!$A$5:$AK$204,$C$4+34),0)/1000 -> 0.028
D199: 171 | E199: =VLOOKUP($D199,Background_All!$A$5:$Y$204,3*($C$8-1)+$C$4+1)/1000 -> 0.010429 | F199: =VLOOKUP($D199,Background_All!$AA$5:$AY$204,3*($C$8-1)+$C$4+1)/1000 -> 0.02809612167 | G199: =IF($C$8>=$D$14,VLOOKUP($D199,Point_Sources_All!$A$5:$AK$204,$C$4+1),0)/1000 -> 0 | H199: =IF($C$8>=$D$15,VLOOKUP($D199,Point_Sources_All!$A$5:$AK$204,$C$4+4),0)/1000 -> 0 | I199: =IF($C$8>=$D$16,VLOOKUP($D199,Point_Sources_All!$A$5:$AK$204,$C$4+7),0)/1000 -> 0.000156 | J199: =IF($C$8>=$D$17,VLOOKUP($D199,Point_Sources_All!$A$5:$AK$204,$C$4+10),0)/1000 -> 1.6187e-05 | K199: =IF($C$8>=$D$18,VLOOKUP($D199,Point_Sources_All!$A$5:$AK$204,$C$4+13),0)/1000 -> 2.964e-05 | L199: =IF($C$8>=$D$19,VLOOKUP($D199,Point_Sources_All!$A$5:$AK$204,$C$4+16),0)/1000 -> 1.4968e-05 | M199: =IF($C$8>=$D$20,VLOOKUP($D199,Point_Sources_All!$A$5:$AK$204,$C$4+19),0)/1000 -> 5.2779e-05 | N199: =IF($C$8>=$D$21,VLOOKUP($D199,Point_Sources_All!$A$5:$AK$204,$C$4+22),0)/1000 -> 5.3335e-06 | O199: =IF($C$8>=$D$22,VLOOKUP($D199,Point_Sources_All!$A$5:$AK$204,$C$4+25),0)/1000 -> 6.7307e-05 | P199: =IF($C$8>=$D$23,VLOOKUP($D199,Point_Sources_All!$A$5:$AK$204,$C$4+28),0)/1000 -> 8.8028e-06 | Q199: =IF($C$8>=$D$24,VLOOKUP($D199,Point_Sources_All!$A$5:$AK$204,$C$4+31),0)/1000 -> 0.028371 | R199: =IF($C$8>=$D$25,VLOOKUP($D199,Point_Sources_All!$A$5:$AK$204,$C$4+34),0)/1000 -> 0.028
D200: 172 | E200: =VLOOKUP($D200,Background_All!$A$5:$Y$204,3*($C$8-1)+$C$4+1)/1000 -> 0.01042306667 | F200: =VLOOKUP($D200,Background_All!$AA$5:$AY$204,3*($C$8-1)+$C$4+1)/1000 -> 0.02873814417 | G200: =IF($C$8>=$D$14,VLOOKUP($D200,Point_Sources_All!$A$5:$AK$204,$C$4+1),0)/1000 -> 0 | H200: =IF($C$8>=$D$15,VLOOKUP($D200,Point_Sources_All!$A$5:$AK$204,$C$4+4),0)/1000 -> 0 | I200: =IF($C$8>=$D$16,VLOOKUP($D200,Point_Sources_All!$A$5:$AK$204,$C$4+7),0)/1000 -> 0.000156 | J200: =IF($C$8>=$D$17,VLOOKUP($D200,Point_Sources_All!$A$5:$AK$204,$C$4+10),0)/1000 -> 1.6187e-05 | K200: =IF($C$8>=$D$18,VLOOKUP($D200,Point_Sources_All!$A$5:$AK$204,$C$4+13),0)/1000 -> 2.964e-05 | L200: =IF($C$8>=$D$19,VLOOKUP($D200,Point_Sources_All!$A$5:$AK$204,$C$4+16),0)/1000 -> 1.4968e-05 | M200: =IF($C$8>=$D$20,VLOOKUP($D200,Point_Sources_All!$A$5:$AK$204,$C$4+19),0)/1000 -> 5.2779e-05 | N200: =IF($C$8>=$D$21,VLOOKUP($D200,Point_Sources_All!$A$5:$AK$204,$C$4+22),0)/1000 -> 5.3335e-06 | O200: =IF($C$8>=$D$22,VLOOKUP($D200,Point_Sources_All!$A$5:$AK$204,$C$4+25),0)/1000 -> 6.7307e-05 | P200: =IF($C$8>=$D$23,VLOOKUP($D200,Point_Sources_All!$A$5:$AK$204,$C$4+28),0)/1000 -> 8.8028e-06 | Q200: =IF($C$8>=$D$24,VLOOKUP($D200,Point_Sources_All!$A$5:$AK$204,$C$4+31),0)/1000 -> 0.028371 | R200: =IF($C$8>=$D$25,VLOOKUP($D200,Point_Sources_All!$A$5:$AK$204,$C$4+34),0)/1000 -> 0.028
D201: 173 | E201: =VLOOKUP($D201,Background_All!$A$5:$Y$204,3*($C$8-1)+$C$4+1)/1000 -> 0.01062883333 | F201: =VLOOKUP($D201,Background_All!$AA$5:$AY$204,3*($C$8-1)+$C$4+1)/1000 -> 0.03072400667 | G201: =IF($C$8>=$D$14,VLOOKUP($D201,Point_Sources_All!$A$5:$AK$204,$C$4+1),0)/1000 -> 0 | H201: =IF($C$8>=$D$15,VLOOKUP($D201,Point_Sources_All!$A$5:$AK$204,$C$4+4),0)/1000 -> 0 | I201: =IF($C$8>=$D$16,VLOOKUP($D201,Point_Sources_All!$A$5:$AK$204,$C$4+7),0)/1000 -> 0.000156 | J201: =IF($C$8>=$D$17,VLOOKUP($D201,Point_Sources_All!$A$5:$AK$204,$C$4+10),0)/1000 -> 1.6187e-05 | K201: =IF($C$8>=$D$18,VLOOKUP($D201,Point_Sources_All!$A$5:$AK$204,$C$4+13),0)/1000 -> 2.964e-05 | L201: =IF($C$8>=$D$19,VLOOKUP($D201,Point_Sources_All!$A$5:$AK$204,$C$4+16),0)/1000 -> 1.4968e-05 | M201: =IF($C$8>=$D$20,VLOOKUP($D201,Point_Sources_All!$A$5:$AK$204,$C$4+19),0)/1000 -> 5.2779e-05 | N201: =IF($C$8>=$D$21,VLOOKUP($D201,Point_Sources_All!$A$5:$AK$204,$C$4+22),0)/1000 -> 5.3335e-06 | O201: =IF($C$8>=$D$22,VLOOKUP($D201,Point_Sources_All!$A$5:$AK$204,$C$4+25),0)/1000 -> 6.7307e-05 | P201: =IF($C$8>=$D$23,VLOOKUP($D201,Point_Sources_All!$A$5:$AK$204,$C$4+28),0)/1000 -> 8.8028e-06 | Q201: =IF($C$8>=$D$24,VLOOKUP($D201,Point_Sources_All!$A$5:$AK$204,$C$4+31),0)/1000 -> 0.028371 | R201: =IF($C$8>=$D$25,VLOOKUP($D201,Point_Sources_All!$A$5:$AK$204,$C$4+34),0)/1000 -> 0.028
D202: 174 | E202: =VLOOKUP($D202,Background_All!$A$5:$Y$204,3*($C$8-1)+$C$4+1)/1000 -> 0.0105104 | F202: =VLOOKUP($D202,Background_All!$AA$5:$AY$204,3*($C$8-1)+$C$4+1)/1000 -> 0.03108321686 | G202: =IF($C$8>=$D$14,VLOOKUP($D202,Point_Sources_All!$A$5:$AK$204,$C$4+1),0)/1000 -> 0 | H202: =IF($C$8>=$D$15,VLOOKUP($D202,Point_Sources_All!$A$5:$AK$204,$C$4+4),0)/1000 -> 0 | I202: =IF($C$8>=$D$16,VLOOKUP($D202,Point_Sources_All!$A$5:$AK$204,$C$4+7),0)/1000 -> 0.000156 | J202: =IF($C$8>=$D$17,VLOOKUP($D202,Point_Sources_All!$A$5:$AK$204,$C$4+10),0)/1000 -> 1.6187e-05 | K202: =IF($C$8>=$D$18,VLOOKUP($D202,Point_Sources_All!$A$5:$AK$204,$C$4+13),0)/1000 -> 2.964e-05 | L202: =IF($C$8>=$D$19,VLOOKUP($D202,Point_Sources_All!$A$5:$AK$204,$C$4+16),0)/1000 -> 1.4968e-05 | M202: =IF($C$8>=$D$20,VLOOKUP($D202,Point_Sources_All!$A$5:$AK$204,$C$4+19),0)/1000 -> 5.2779e-05 | N202: =IF($C$8>=$D$21,VLOOKUP($D202,Point_Sources_All!$A$5:$AK$204,$C$4+22),0)/1000 -> 5.3335e-06 | O202: =IF($C$8>=$D$22,VLOOKUP($D202,Point_Sources_All!$A$5:$AK$204,$C$4+25),0)/1000 -> 6.7307e-05 | P202: =IF($C$8>=$D$23,VLOOKUP($D202,Point_Sources_All!$A$5:$AK$204,$C$4+28),0)/1000 -> 8.8028e-06 | Q202: =IF($C$8>=$D$24,VLOOKUP($D202,Point_Sources_All!$A$5:$AK$204,$C$4+31),0)/1000 -> 0.028371 | R202: =IF($C$8>=$D$25,VLOOKUP($D202,Point_Sources_All!$A$5:$AK$204,$C$4+34),0)/1000 -> 0.028
D203: 175 | E203: =VLOOKUP($D203,Background_All!$A$5:$Y$204,3*($C$8-1)+$C$4+1)/1000 -> 0.01042119167 | F203: =VLOOKUP($D203,Background_All!$AA$5:$AY$204,3*($C$8-1)+$C$4+1)/1000 -> 0.03091047 | G203: =IF($C$8>=$D$14,VLOOKUP($D203,Point_Sources_All!$A$5:$AK$204,$C$4+1),0)/1000 -> 0 | H203: =IF($C$8>=$D$15,VLOOKUP($D203,Point_Sources_All!$A$5:$AK$204,$C$4+4),0)/1000 -> 0 | I203: =IF($C$8>=$D$16,VLOOKUP($D203,Point_Sources_All!$A$5:$AK$204,$C$4+7),0)/1000 -> 0.000156 | J203: =IF($C$8>=$D$17,VLOOKUP($D203,Point_Sources_All!$A$5:$AK$204,$C$4+10),0)/1000 -> 1.6187e-05 | K203: =IF($C$8>=$D$18,VLOOKUP($D203,Point_Sources_All!$A$5:$AK$204,$C$4+13),0)/1000 -> 2.964e-05 | L203: =IF($C$8>=$D$19,VLOOKUP($D203,Point_Sources_All!$A$5:$AK$204,$C$4+16),0)/1000 -> 1.4968e-05 | M203: =IF($C$8>=$D$20,VLOOKUP($D203,Point_Sources_All!$A$5:$AK$204,$C$4+19),0)/1000 -> 5.2779e-05 | N203: =IF($C$8>=$D$21,VLOOKUP($D203,Point_Sources_All!$A$5:$AK$204,$C$4+22),0)/1000 -> 5.3335e-06 | O203: =IF($C$8>=$D$22,VLOOKUP($D203,Point_Sources_All!$A$5:$AK$204,$C$4+25),0)/1000 -> 6.7307e-05 | P203: =IF($C$8>=$D$23,VLOOKUP($D203,Point_Sources_All!$A$5:$AK$204,$C$4+28),0)/1000 -> 8.8028e-06 | Q203: =IF($C$8>=$D$24,VLOOKUP($D203,Point_Sources_All!$A$5:$AK$204,$C$4+31),0)/1000 -> 0.028371 | R203: =IF($C$8>=$D$25,VLOOKUP($D203,Point_Sources_All!$A$5:$AK$204,$C$4+34),0)/1000 -> 0.028
D204: 176 | E204: =VLOOKUP($D204,Background_All!$A$5:$Y$204,3*($C$8-1)+$C$4+1)/1000 -> 0.01050299167 | F204: =VLOOKUP($D204,Background_All!$AA$5:$AY$204,3*($C$8-1)+$C$4+1)/1000 -> 0.03060791583 | G204: =IF($C$8>=$D$14,VLOOKUP($D204,Point_Sources_All!$A$5:$AK$204,$C$4+1),0)/1000 -> 0 | H204: =IF($C$8>=$D$15,VLOOKUP($D204,Point_Sources_All!$A$5:$AK$204,$C$4+4),0)/1000 -> 0 | I204: =IF($C$8>=$D$16,VLOOKUP($D204,Point_Sources_All!$A$5:$AK$204,$C$4+7),0)/1000 -> 0.000156 | J204: =IF($C$8>=$D$17,VLOOKUP($D204,Point_Sources_All!$A$5:$AK$204,$C$4+10),0)/1000 -> 1.6187e-05 | K204: =IF($C$8>=$D$18,VLOOKUP($D204,Point_Sources_All!$A$5:$AK$204,$C$4+13),0)/1000 -> 2.964e-05 | L204: =IF($C$8>=$D$19,VLOOKUP($D204,Point_Sources_All!$A$5:$AK$204,$C$4+16),0)/1000 -> 1.4968e-05 | M204: =IF($C$8>=$D$20,VLOOKUP($D204,Point_Sources_All!$A$5:$AK$204,$C$4+19),0)/1000 -> 5.2779e-05 | N204: =IF($C$8>=$D$21,VLOOKUP($D204,Point_Sources_All!$A$5:$AK$204,$C$4+22),0)/1000 -> 5.3335e-06 | O204: =IF($C$8>=$D$22,VLOOKUP($D204,Point_Sources_All!$A$5:$AK$204,$C$4+25),0)/1000 -> 6.7307e-05 | P204: =IF($C$8>=$D$23,VLOOKUP($D204,Point_Sources_All!$A$5:$AK$204,$C$4+28),0)/1000 -> 8.8028e-06 | Q204: =IF($C$8>=$D$24,VLOOKUP($D204,Point_Sources_All!$A$5:$AK$204,$C$4+31),0)/1000 -> 0.028371 | R204: =IF($C$8>=$D$25,VLOOKUP($D204,Point_Sources_All!$A$5:$AK$204,$C$4+34),0)/1000 -> 0.028
... 24 more rows

Sheet Background_All
B1: Values shown for constituent selected on PlotControl tab | AB1: Values shown for constituent selected on PlotControl tab
B2: SW002 | E2: SW003 | H2: SW004 | K2: SW004a | N2: SW004b | Q2: SW005 | T2: SW006 | W2: Colby Lake | AB2: SW002 | AE2: SW003 | AH2: SW004 | AK2: SW004a | AN2: SW004b | AQ2: SW005 | AT2: SW006 | AW2: Colby Lake
B3: Annual Groundwater Loading | E3: Annual Groundwater Loading | H3: Annual Groundwater Loading | K3: Annual Groundwater Loading | N3: Annual Groundwater Loading | Q3: Annual Groundwater Loading | T3: Annual Groundwater Loading | W3: Annual Groundwater Loading | AB3: Annual Runoff Loading | AE3: Annual Runoff Loading | AH3: Annual Runoff Loading | AK3: Annual Runoff Loading | AN3: Annual Runoff Loading | AQ3: Annual Runoff Loading | AT3: Annual Runoff Loading | AW3: Annual Runoff Loading
A4: Time | B4: P10 | C4: P50 | D4: P90 | E4: P10 | F4: P50 | G4: P90 | H4: P10 | I4: P50 | J4: P90 | K4: P10 | L4: P50 | M4: P90 | N4: P10 | O4: P50 | P4: P90 | Q4: P10 | R4: P50 | S4: P90 | T4: P10 | U4: P50 | V4: P90 | W4: P10 | X4: P50 | Y4: P90 | AA4: Time | AB4: P10 | AC4: P50 | AD4: P90 | AE4: P10 | AF4: P50 | AG4: P90 | AH4: P10 | AI4: P50 | AJ4: P90 | AK4: P10 | AL4: P50 | AM4: P90 | AN4: P10 | AO4: P50 | AP4: P90 | AQ4: P10 | AR4: P50 | AS4: P90 | AT4: P10 | AU4: P50 | AV4: P90 | AW4: P10 | AX4: P50 | AY4: P90
A5: 1 | B5: =AVERAGE(OFFSET(GW_SW002!$C$10,12*($A5-1),4*(PlotControl!$C$6-1),12,1)) -> 0.526915 | C5: =AVERAGE(OFFSET(GW_SW002!$D$10,12*($A5-1),4*(PlotControl!$C$6-1),12,1)) -> 0.6811141667 | D5: =AVERAGE(OFFSET(GW_SW002!$E$10,12*($A5-1),4*(PlotControl!$C$6-1),12,1)) -> 0.9351275 | E5: =AVERAGE(OFFSET(GW_SW003!$C$10,12*($A5-1),4*(PlotControl!$C$6-1),12,1)) -> 0.659575 | F5: =AVERAGE(OFFSET(GW_SW003!$D$10,12*($A5-1),4*(PlotControl!$C$6-1),12,1)) -> 0.8552241667 | G5: =AVERAGE(OFFSET(GW_SW003!$E$10,12*($A5-1),4*(PlotControl!$C$6-1),12,1)) -> 1.1777725 | H5: =AVERAGE(OFFSET(GW_SW004!$C$10,12*($A5-1),4*(PlotControl!$C$6-1),12,1)) -> 0.9731608333 | I5: =AVERAGE(OFFSET(GW_SW004!$D$10,12*($A5-1),4*(PlotControl!$C$6-1),12,1)) -> 1.276381667 | J5: =AVERAGE(OFFSET(GW_SW004!$E$10,12*($A5-1),4*(PlotControl!$C$6-1),12,1)) -> 1.823916667 | K5: =AVERAGE(OFFSET(GW_SW004a!$C$10,12*($A5-1),4*(PlotControl!$C$6-1),12,1)) -> 3.024076667 | L5: =AVERAGE(OFFSET(GW_SW004a!$D$10,12*($A5-1),4*(PlotControl!$C$6-1),12,1)) -> 3.889491667 | M5: =AVERAGE(OFFSET(GW_SW004a!$E$10,12*($A5-1),4*(PlotControl!$C$6-1),12,1)) -> 5.344691667 | N5: =AVERAGE(OFFSET(GW_SW004b!$C$10,12*($A5-1),4*(PlotControl!$C$6-1),12,1)) -> 4.837316667 | O5: =AVERAGE(OFFSET(GW_SW004b!$D$10,12*($A5-1),4*(PlotControl!$C$6-1),12,1)) -> 6.231408333 | P5: =AVERAGE(OFFSET(GW_SW004b!$E$10,12*($A5-1),4*(PlotControl!$C$6-1),12,1)) -> 8.585066667 | Q5: =AVERAGE(OFFSET(GW_SW005!$C$10,12*($A5-1),4*(PlotControl!$C$6-1),12,1)) -> 6.334325 | R5: =AVERAGE(OFFSET(GW_SW005!$D$10,12*($A5-1),4*(PlotControl!$C$6-1),12,1)) -> 8.114866667 | S5: =AVERAGE(OFFSET(GW_SW005!$E$10,12*($A5-1),4*(PlotControl!$C$6-1),12,1)) -> 11.124375 | T5: =AVERAGE(OFFSET(GW_SW006!$C$10,12*($A5-1),4*(PlotControl!$C$6-1),12,1)) -> 6.7998 | U5: =AVERAGE(OFFSET(GW_SW006!$D$10,12*($A5-1),4*(PlotControl!$C$6-1),12,1)) -> 8.7327 | V5: =AVERAGE(OFFSET(GW_SW006!$E$10,12*($A5-1),4*(PlotControl!$C$6-1),12,1)) -> 11.98715 | W5: =AVERAGE(OFFSET(GW_Colby!$C$10,12*($A5-1),4*(PlotControl!$C$6-1),12,1)) -> 8.208091667 | X5: =AVERAGE(OFFSET(GW_Colby!$D$10,12*($A5-1),4*(PlotControl!$C$6-1),12,1)) -> 10.53863333 | Y5: =AVERAGE(OFFSET(GW_Colby!$E$10,12*($A5-1),4*(PlotControl!$C$6-1),12,1)) -> 14.45508333 | AA5: 1 | AB5: =AVERAGE(OFFSET(RO_SW002!$C$10,12*($A5-1),4*(PlotControl!$C$6-1),12,1)) -> 0.1410409833 | AC5: =AVERAGE(OFFSET(RO_SW002!$D$10,12*($A5-1),4*(PlotControl!$C$6-1),12,1)) -> 1.865511583 | AD5: =AVERAGE(OFFSET(RO_SW002!$E$10,12*($A5-1),4*(PlotControl!$C$6-1),12,1)) -> 20.0486725 | AE5: =AVERAGE(OFFSET(RO_SW003!$C$10,12*($A5-1),4*(PlotControl!$C$6-1),12,1)) -> 0.17262775 | AF5: =AVERAGE(OFFSET(RO_SW003!$D$10,12*($A5-1),4*(PlotControl!$C$6-1),12,1)) -> 2.287095417 | AG5: =AVERAGE(OFFSET(RO_SW003!$E$10,12*($A5-1),4*(PlotControl!$C$6-1),12,1)) -> 24.52352917 | AH5: =AVERAGE(OFFSET(RO_SW004!$C$10,12*($A5-1),4*(PlotControl!$C$6-1),12,1)) -> 0.3365646667 | AI5: =AVERAGE(OFFSET(RO_SW004!$D$10,12*($A5-1),4*(PlotControl!$C$6-1),12,1)) -> 4.364232667 | AJ5: =AVERAGE(OFFSET(RO_SW004!$E$10,12*($A5-1),4*(PlotControl!$C$6-1),12,1)) -> 46.32505 | AK5: =AVERAGE(OFFSET(RO_SW004a!$C$10,12*($A5-1),4*(PlotControl!$C$6-1),12,1)) -> 0.9318558333 | AL5: =AVERAGE(OFFSET(RO_SW004a!$D$10,12*($A5-1),4*(PlotControl!$C$6-1),12,1)) -> 12.07525333 | AM5: =AVERAGE(OFFSET(RO_SW004a!$E$10,12*($A5-1),4*(PlotControl!$C$6-1),12,1)) -> 127.316675 | AN5: =AVERAGE(OFFSET(RO_SW004b!$C$10,12*($A5-1),4*(PlotControl!$C$6-1),12,1)) -> 1.3909925 | AO5: =AVERAGE(OFFSET(RO_SW004b!$D$10,12*($A5-1),4*(PlotControl!$C$6-1),12,1)) -> 18.259525 | AP5: =AVERAGE(OFFSET(RO_SW004b!$E$10,12*($A5-1),4*(PlotControl!$C$6-1),12,1)) -> 192.9883583 | AQ5: =AVERAGE(OFFSET(RO_SW005!$C$10,12*($A5-1),4*(PlotControl!$C$6-1),12,1)) -> 1.853283333 | AR5: =AVERAGE(OFFSET(RO_SW005!$D$10,12*($A5-1),4*(PlotControl!$C$6-1),12,1)) -> 24.21375 | AS5: =AVERAGE(OFFSET(RO_SW005!$E$10,12*($A5-1),4*(PlotControl!$C$6-1),12,1)) -> 255.0007083 | AT5: =AVERAGE(OFFSET(RO_SW006!$C$10,12*($A5-1),4*(PlotControl!$C$6-1),12,1)) -> 1.94053 | AU5: =AVERAGE(OFFSET(RO_SW006!$D$10,12*($A5-1),4*(PlotControl!$C$6-1),12,1)) -> 25.46779 | AV5: =AVERAGE(OFFSET(RO_SW006!$E$10,12*($A5-1),4*(PlotControl!$C$6-1),12,1)) -> 268.9726583 | AW5: =AVERAGE(OFFSET(RO_Colby!$C$10,12*($A5-1),4*(PlotControl!$C$6-1),12,1)) -> 2.323700833 | AX5: =AVERAGE(OFFSET(RO_Colby!$D$10,12*($A5-1),4*(PlotControl!$C$6-1),12,1)) -> 30.56328833 | AY5: =AVERAGE(OFFSET(RO_Colby!$E$10,12*($A5-1),4*(PlotControl!$C$6-1),12,1)) -> 322.8385
A6: 2 | B6: =AVERAGE(OFFSET(GW_SW002!$C$10,12*($A6-1),4*(PlotControl!$C$6-1),12,1)) -> 0.5162858333 | C6: =AVERAGE(OFFSET(GW_SW002!$D$10,12*($A6-1),4*(PlotControl!$C$6-1),12,1)) -> 0.6652433333 | D6: =AVERAGE(OFFSET(GW_SW002!$E$10,12*($A6-1),4*(PlotControl!$C$6-1),12,1)) -> 0.9085991667 | E6: =AVERAGE(OFFSET(GW_SW003!$C$10,12*($A6-1),4*(PlotControl!$C$6-1),12,1)) -> 0.6497675 | F6: =AVERAGE(OFFSET(GW_SW003!$D$10,12*($A6-1),4*(PlotControl!$C$6-1),12,1)) -> 0.8388866667 | G6: =AVERAGE(OFFSET(GW_SW003!$E$10,12*($A6-1),4*(PlotControl!$C$6-1),12,1)) -> 1.144254167 | H6: =AVERAGE(OFFSET(GW_SW004!$C$10,12*($A6-1),4*(PlotControl!$C$6-1),12,1)) -> 0.952395 | I6: =AVERAGE(OFFSET(GW_SW004!$D$10,12*($A6-1),4*(PlotControl!$C$6-1),12,1)) -> 1.233245833 | J6: =AVERAGE(OFFSET(GW_SW004!$E$10,12*($A6-1),4*(PlotControl!$C$6-1),12,1)) -> 1.703408333 | K6: =AVERAGE(OFFSET(GW_SW004a!$C$10,12*($A6-1),4*(PlotControl!$C$6-1),12,1)) -> 2.986979167 | L6: =AVERAGE(OFFSET(GW_SW004a!$D$10,12*($A6-1),4*(PlotControl!$C$6-1),12,1)) -> 3.827841667 | M6: =AVERAGE(OFFSET(GW_SW004a!$E$10,12*($A6-1),4*(PlotControl!$C$6-1),12,1)) -> 5.205241667 | N6: =AVERAGE(OFFSET(GW_SW004b!$C$10,12*($A6-1),4*(PlotControl!$C$6-1),12,1)) -> 4.810833333 | O6: =AVERAGE(OFFSET(GW_SW004b!$D$10,12*($A6-1),4*(PlotControl!$C$6-1),12,1)) -> 6.190633333 | P6: =AVERAGE(OFFSET(GW_SW004b!$E$10,12*($A6-1),4*(PlotControl!$C$6-1),12,1)) -> 8.429466667 | Q6: =AVERAGE(OFFSET(GW_SW005!$C$10,12*($A6-1),4*(PlotControl!$C$6-1),12,1)) -> 6.285575 | R6: =AVERAGE(OFFSET(GW_SW005!$D$10,12*($A6-1),4*(PlotControl!$C$6-1),12,1)) -> 8.08655 | S6: =AVERAGE(OFFSET(GW_SW005!$E$10,12*($A6-1),4*(PlotControl!$C$6-1),12,1)) -> 10.94715 | T6: =AVERAGE(OFFSET(GW_SW006!$C$10,12*($A6-1),4*(PlotControl!$C$6-1),12,1)) -> 6.783175 | U6: =AVERAGE(OFFSET(GW_SW006!$D$10,12*($A6-1),4*(PlotControl!$C$6-1),12,1)) -> 8.744283333 | V6: =AVERAGE(OFFSET(GW_SW006!$E$10,12*($A6-1),4*(PlotControl!$C$6-1),12,1)) -> 11.86476667 | W6: =AVERAGE(OFFSET(GW_Colby!$C$10,12*($A6-1),4*(PlotControl!$C$6-1),12,1)) -> 8.191641667 | X6: =AVERAGE(OFFSET(GW_Colby!$D$10,12*($A6-1),4*(PlotControl!$C$6-1),12,1)) -> 10.56825833 | Y6: =AVERAGE(OFFSET(GW_Colby!$E$10,12*($A6-1),4*(PlotControl!$C$6-1),12,1)) -> 14.32991667 | AA6: 2 | AB6: =AVERAGE(OFFSET(RO_SW002!$C$10,12*($A6-1),4*(PlotControl!$C$6-1),12,1)) -> 0.125775025 | AC6: =AVERAGE(OFFSET(RO_SW002!$D$10,12*($A6-1),4*(PlotControl!$C$6-1),12,1)) -> 1.716954633 | AD6: =AVERAGE(OFFSET(RO_SW002!$E$10,12*($A6-1),4*(PlotControl!$C$6-1),12,1)) -> 18.43574083 | AE6: =AVERAGE(OFFSET(RO_SW003!$C$10,12*($A6-1),4*(PlotControl!$C$6-1),12,1)) -> 0.15853625 | AF6: =AVERAGE(OFFSET(RO_SW003!$D$10,12*($A6-1),4*(PlotControl!$C$6-1),12,1)) -> 2.142697633 | AG6: =AVERAGE(OFFSET(RO_SW003!$E$10,12*($A6-1),4*(PlotControl!$C$6-1),12,1)) -> 22.95116833 | AH6: =AVERAGE(OFFSET(RO_SW004!$C$10,12*($A6-1),4*(PlotControl!$C$6-1),12,1)) -> 0.3041695 | AI6: =AVERAGE(OFFSET(RO_SW004!$D$10,12*($A6-1),4*(PlotControl!$C$6-1),12,1)) -> 4.02429878 | AJ6: =AVERAGE(OFFSET(RO_SW004!$E$10,12*($A6-1),4*(PlotControl!$C$6-1),12,1)) -> 42.85174167 | AK6: =AVERAGE(OFFSET(RO_SW004a!$C$10,12*($A6-1),4*(PlotControl!$C$6-1),12,1)) -> 0.8541366667 | AL6: =AVERAGE(OFFSET(RO_SW004a!$D$10,12*($A6-1),4*(PlotControl!$C$6-1),12,1)) -> 11.19035961 | AM6: =AVERAGE(OFFSET(RO_SW004a!$E$10,12*($A6-1),4*(PlotControl!$C$6-1),12,1)) -> 118.6678333 | AN6: =AVERAGE(OFFSET(RO_SW004b!$C$10,12*($A6-1),4*(PlotControl!$C$6-1),12,1)) -> 1.2848475 | AO6: =AVERAGE(OFFSET(RO_SW004b!$D$10,12*($A6-1),4*(PlotControl!$C$6-1),12,1)) -> 16.98579795 | AP6: =AVERAGE(OFFSET(RO_SW004b!$E$10,12*($A6-1),4*(PlotControl!$C$6-1),12,1)) -> 180.5942417 | AQ6: =AVERAGE(OFFSET(RO_SW005!$C$10,12*($A6-1),4*(PlotControl!$C$6-1),12,1)) -> 1.698285833 | AR6: =AVERAGE(OFFSET(RO_SW005!$D$10,12*($A6-1),4*(PlotControl!$C$6-1),12,1)) -> 22.47501295 | AS6: =AVERAGE(OFFSET(RO_SW005!$E$10,12*($A6-1),4*(PlotControl!$C$6-1),12,1)) -> 238.0827333 | AT6: =AVERAGE(OFFSET(RO_SW006!$C$10,12*($A6-1),4*(PlotControl!$C$6-1),12,1)) -> 1.7823125 | AU6: =AVERAGE(OFFSET(RO_SW006!$D$10,12*($A6-1),4*(PlotControl!$C$6-1),12,1)) -> 23.72225461 | AV6: =AVERAGE(OFFSET(RO_SW006!$E$10,12*($A6-1),4*(PlotControl!$C$6-1),12,1)) -> 252.1533 | AW6: =AVERAGE(OFFSET(RO_Colby!$C$10,12*($A6-1),4*(PlotControl!$C$6-1),12,1)) -> 2.138534167 | AX6: =AVERAGE(OFFSET(RO_Colby!$D$10,12*($A6-1),4*(PlotControl!$C$6-1),12,1)) -> 28.47126461 | AY6: =AVERAGE(OFFSET(RO_Colby!$E$10,12*($A6-1),4*(PlotControl!$C$6-1),12,1)) -> 302.7612167
A7: 3 | B7: =AVERAGE(OFFSET(GW_SW002!$C$10,12*($A7-1),4*(PlotControl!$C$6-1),12,1)) -> 0.5207641667 | C7: =AVERAGE(OFFSET(GW_SW002!$D$10,12*($A7-1),4*(PlotControl!$C$6-1),12,1)) -> 0.6637241667 | D7: =AVERAGE(OFFSET(GW_SW002!$E$10,12*($A7-1),4*(PlotControl!$C$6-1),12,1)) -> 0.902785 | E7: =AVERAGE(OFFSET(GW_SW003!$C$10,12*($A7-1),4*(PlotControl!$C$6-1),12,1)) -> 0.6561708333 | F7: =AVERAGE(OFFSET(GW_SW003!$D$10,12*($A7-1),4*(PlotControl!$C$6-1),12,1)) -> 0.83622 | G7: =AVERAGE(OFFSET(GW_SW003!$E$10,12*($A7-1),4*(PlotControl!$C$6-1),12,1)) -> 1.1381375 | H7: =AVERAGE(OFFSET(GW_SW004!$C$10,12*($A7-1),4*(PlotControl!$C$6-1),12,1)) -> 0.9496541667 | I7: =AVERAGE(OFFSET(GW_SW004!$D$10,12*($A7-1),4*(PlotControl!$C$6-1),12,1)) -> 1.23237 | J7: =AVERAGE(OFFSET(GW_SW004!$E$10,12*($A7-1),4*(PlotControl!$C$6-1),12,1)) -> 1.694233333 | K7: =AVERAGE(OFFSET(GW_SW004a!$C$10,12*($A7-1),4*(PlotControl!$C$6-1),12,1)) -> 2.993420833 | L7: =AVERAGE(OFFSET(GW_SW004a!$D$10,12*($A7-1),4*(PlotControl!$C$6-1),12,1)) -> 3.805816667 | M7: =AVERAGE(OFFSET(GW_SW004a!$E$10,12*($A7-1),4*(PlotControl!$C$6-1),12,1)) -> 5.154191667 | N7: =AVERAGE(OFFSET(GW_SW004b!$C$10,12*($A7-1),4*(PlotControl!$C$6-1),12,1)) -> 4.8373 | O7: =AVERAGE(OFFSET(GW_SW004b!$D$10,12*($A7-1),4*(PlotControl!$C$6-1),12,1)) -> 6.147591667 | P7: =AVERAGE(OFFSET(GW_SW004b!$E$10,12*($A7-1),4*(PlotControl!$C$6-1),12,1)) -> 8.34585 | Q7: =AVERAGE(OFFSET(GW_SW005!$C$10,12*($A7-1),4*(PlotControl!$C$6-1),12,1)) -> 6.294575 | R7: =AVERAGE(OFFSET(GW_SW005!$D$10,12*($A7-1),4*(PlotControl!$C$6-1),12,1)) -> 7.963808333 | S7: =AVERAGE(OFFSET(GW_SW005!$E$10,12*($A7-1),4*(PlotControl!$C$6-1),12,1)) -> 10.81586667 | T7: =AVERAGE(OFFSET(GW_SW006!$C$10,12*($A7-1),4*(PlotControl!$C$6-1),12,1)) -> 6.819858333 | U7: =AVERAGE(OFFSET(GW_SW006!$D$10,12*($A7-1),4*(PlotControl!$C$6-1),12,1)) -> 8.6555 | V7: =AVERAGE(OFFSET(GW_SW006!$E$10,12*($A7-1),4*(PlotControl!$C$6-1),12,1)) -> 11.770175 | W7: =AVERAGE(OFFSET(GW_Colby!$C$10,12*($A7-1),4*(PlotControl!$C$6-1),12,1)) -> 8.244875 | X7: =AVERAGE(OFFSET(GW_Colby!$D$10,12*($A7-1),4*(PlotControl!$C$6-1),12,1)) -> 10.46479167 | Y7: =AVERAGE(OFFSET(GW_Colby!$E$10,12*($A7-1),4*(PlotControl!$C$6-1),12,1)) -> 14.22575 | AA7: 3 | AB7: =AVERAGE(OFFSET(RO_SW002!$C$10,12*($A7-1),4*(PlotControl!$C$6-1),12,1)) -> 0.1247421183 | AC7: =AVERAGE(OFFSET(RO_SW002!$D$10,12*($A7-1),4*(PlotControl!$C$6-1),12,1)) -> 1.676282667 | AD7: =AVERAGE(OFFSET(RO_SW002!$E$10,12*($A7-1),4*(PlotControl!$C$6-1),12,1)) -> 18.01025167 | AE7: =AVERAGE(OFFSET(RO_SW003!$C$10,12*($A7-1),4*(PlotControl!$C$6-1),12,1)) -> 0.1564263333 | AF7: =AVERAGE(OFFSET(RO_SW003!$D$10,12*($A7-1),4*(PlotControl!$C$6-1),12,1)) -> 2.09422275 | AG7: =AVERAGE(OFFSET(RO_SW003!$E$10,12*($A7-1),4*(PlotControl!$C$6-1),12,1)) -> 22.38765333 | AH7: =AVERAGE(OFFSET(RO_SW004!$C$10,12*($A7-1),4*(PlotControl!$C$6-1),12,1)) -> 0.30497375 | AI7: =AVERAGE(OFFSET(RO_SW004!$D$10,12*($A7-1),4*(PlotControl!$C$6-1),12,1)) -> 3.942636 | AJ7: =AVERAGE(OFFSET(RO_SW004!$E$10,12*($A7-1),4*(PlotControl!$C$6-1),12,1)) -> 41.74818333 | AK7: =AVERAGE(OFFSET(RO_SW004a!$C$10,12*($A7-1),4*(PlotControl!$C$6-1),12,1)) -> 0.8552225 | AL7: =AVERAGE(OFFSET(RO_SW004a!$D$10,12*($A7-1),4*(PlotControl!$C$6-1),12,1)) -> 10.97392333 | AM7: =AVERAGE(OFFSET(RO_SW004a!$E$10,12*($A7-1),4*(PlotControl!$C$6-1),12,1)) -> 115.2754083 | AN7: =AVERAGE(OFFSET(RO_SW004b!$C$10,12*($A7-1),4*(PlotControl!$C$6-1),12,1)) -> 1.284935833 | AO7: =AVERAGE(OFFSET(RO_SW004b!$D$10,12*($A7-1),4*(PlotControl!$C$6-1),12,1)) -> 16.69222 | AP7: =AVERAGE(OFFSET(RO_SW004b!$E$10,12*($A7-1),4*(PlotControl!$C$6-1),12,1)) -> 175.4183167 | AQ7: =AVERAGE(OFFSET(RO_SW005!$C$10,12*($A7-1),4*(PlotControl!$C$6-1),12,1)) -> 1.697386667 | AR7: =AVERAGE(OFFSET(RO_SW005!$D$10,12*($A7-1),4*(PlotControl!$C$6-1),12,1)) -> 21.98295083 | AS7: =AVERAGE(OFFSET(RO_SW005!$E$10,12*($A7-1),4*(PlotControl!$C$6-1),12,1)) -> 230.4264083 | AT7: =AVERAGE(OFFSET(RO_SW006!$C$10,12*($A7-1),4*(PlotControl!$C$6-1),12,1)) -> 1.784815 | AU7: =AVERAGE(OFFSET(RO_SW006!$D$10,12*($A7-1),4*(PlotControl!$C$6-1),12,1)) -> 23.30186083 | AV7: =AVERAGE(OFFSET(RO_SW006!$E$10,12*($A7-1),4*(PlotControl!$C$6-1),12,1)) -> 244.9502 | AW7: =AVERAGE(OFFSET(RO_Colby!$C$10,12*($A7-1),4*(PlotControl!$C$6-1),12,1)) -> 2.142616667 | AX7: =AVERAGE(OFFSET(RO_Colby!$D$10,12*($A7-1),4*(PlotControl!$C$6-1),12,1)) -> 27.98447833 | AY7: =AVERAGE(OFFSET(RO_Colby!$E$10,12*($A7-1),4*(PlotControl!$C$6-1),12,1)) -> 294.1860583
A8: 4 | B8: =AVERAGE(OFFSET(GW_SW002!$C$10,12*($A8-1),4*(PlotControl!$C$6-1),12,1)) -> 0.5218291667 | C8: =AVERAGE(OFFSET(GW_SW002!$D$10,12*($A8-1),4*(PlotControl!$C$6-1),12,1)) -> 0.6668833333 | D8: =AVERAGE(OFFSET(GW_SW002!$E$10,12*($A8-1),4*(PlotControl!$C$6-1),12,1)) -> 0.9082125 | E8: =AVERAGE(OFFSET(GW_SW003!$C$10,12*($A8-1),4*(PlotControl!$C$6-1),12,1)) -> 0.657435 | F8: =AVERAGE(OFFSET(GW_SW003!$D$10,12*($A8-1),4*(PlotControl!$C$6-1),12,1)) -> 0.84096 | G8: =AVERAGE(OFFSET(GW_SW003!$E$10,12*($A8-1),4*(PlotControl!$C$6-1),12,1)) -> 1.1458475 | H8: =AVERAGE(OFFSET(GW_SW004!$C$10,12*($A8-1),4*(PlotControl!$C$6-1),12,1)) -> 0.9512075 | I8: =AVERAGE(OFFSET(GW_SW004!$D$10,12*($A8-1),4*(PlotControl!$C$6-1),12,1)) -> 1.239343333 | J8: =AVERAGE(OFFSET(GW_SW004!$E$10,12*($A8-1),4*(PlotControl!$C$6-1),12,1)) -> 1.702758333 | K8: =AVERAGE(OFFSET(GW_SW004a!$C$10,12*($A8-1),4*(PlotControl!$C$6-1),12,1)) -> 2.986335 | L8: =AVERAGE(OFFSET(GW_SW004a!$D$10,12*($A8-1),4*(PlotControl!$C$6-1),12,1)) -> 3.815475 | M8: =AVERAGE(OFFSET(GW_SW004a!$E$10,12*($A8-1),4*(PlotControl!$C$6-1),12,1)) -> 5.169608333 | N8: =AVERAGE(OFFSET(GW_SW004b!$C$10,12*($A8-1),4*(PlotControl!$C$6-1),12,1)) -> 4.833 | O8: =AVERAGE(OFFSET(GW_SW004b!$D$10,12*($A8-1),4*(PlotControl!$C$6-1),12,1)) -> 6.197983333 | P8: =AVERAGE(OFFSET(GW_SW004b!$E$10,12*($A8-1),4*(PlotControl!$C$6-1),12,1)) -> 8.394766667 | Q8: =AVERAGE(OFFSET(GW_SW005!$C$10,12*($A8-1),4*(PlotControl!$C$6-1),12,1)) -> 6.297916667 | R8: =AVERAGE(OFFSET(GW_SW005!$D$10,12*($A8-1),4*(PlotControl!$C$6-1),12,1)) -> 8.081883333 | S8: =AVERAGE(OFFSET(GW_SW005!$E$10,12*($A8-1),4*(PlotControl!$C$6-1),12,1)) -> 10.88791667 | T8: =AVERAGE(OFFSET(GW_SW006!$C$10,12*($A8-1),4*(PlotControl!$C$6-1),12,1)) -> 6.817408333 | U8: =AVERAGE(OFFSET(GW_SW006!$D$10,12*($A8-1),4*(PlotControl!$C$6-1),12,1)) -> 8.785633333 | V8: =AVERAGE(OFFSET(GW_SW006!$E$10,12*($A8-1),4*(PlotControl!$C$6-1),12,1)) -> 11.839925 | W8: =AVERAGE(OFFSET(GW_Colby!$C$10,12*($A8-1),4*(PlotControl!$C$6-1),12,1)) -> 8.246275 | X8: =AVERAGE(OFFSET(GW_Colby!$D$10,12*($A8-1),4*(PlotControl!$C$6-1),12,1)) -> 10.62110833 | Y8: =AVERAGE(OFFSET(GW_Colby!$E$10,12*($A8-1),4*(PlotControl!$C$6-1),12,1)) -> 14.30891667 | AA8: 4 | AB8: =AVERAGE(OFFSET(RO_SW002!$C$10,12*($A8-1),4*(PlotControl!$C$6-1),12,1)) -> 0.131399765 | AC8: =AVERAGE(OFFSET(RO_SW002!$D$10,12*($A8-1),4*(PlotControl!$C$6-1),12,1)) -> 1.69811475 | AD8: =AVERAGE(OFFSET(RO_SW002!$E$10,12*($A8-1),4*(PlotControl!$C$6-1),12,1)) -> 17.9035 | AE8: =AVERAGE(OFFSET(RO_SW003!$C$10,12*($A8-1),4*(PlotControl!$C$6-1),12,1)) -> 0.164901965 | AF8: =AVERAGE(OFFSET(RO_SW003!$D$10,12*($A8-1),4*(PlotControl!$C$6-1),12,1)) -> 2.118167583 | AG8: =AVERAGE(OFFSET(RO_SW003!$E$10,12*($A8-1),4*(PlotControl!$C$6-1),12,1)) -> 22.29640583 | AH8: =AVERAGE(OFFSET(RO_SW004!$C$10,12*($A8-1),4*(PlotControl!$C$6-1),12,1)) -> 0.3175597983 | AI8: =AVERAGE(OFFSET(RO_SW004!$D$10,12*($A8-1),4*(PlotControl!$C$6-1),12,1)) -> 3.971902167 | AJ8: =AVERAGE(OFFSET(RO_SW004!$E$10,12*($A8-1),4*(PlotControl!$C$6-1),12,1)) -> 41.61825 | AK8: =AVERAGE(OFFSET(RO_SW004a!$C$10,12*($A8-1),4*(PlotControl!$C$6-1),12,1)) -> 0.885647465 | AL8: =AVERAGE(OFFSET(RO_SW004a!$D$10,12*($A8-1),4*(PlotControl!$C$6-1),12,1)) -> 10.9847525 | AM8: =AVERAGE(OFFSET(RO_SW004a!$E$10,12*($A8-1),4*(PlotControl!$C$6-1),12,1)) -> 114.6686917 | AN8: =AVERAGE(OFFSET(RO_SW004b!$C$10,12*($A8-1),4*(PlotControl!$C$6-1),12,1)) -> 1.328897465 | AO8: =AVERAGE(OFFSET(RO_SW004b!$D$10,12*($A8-1),4*(PlotControl!$C$6-1),12,1)) -> 16.73284583 | AP8: =AVERAGE(OFFSET(RO_SW004b!$E$10,12*($A8-1),4*(PlotControl!$C$6-1),12,1)) -> 174.9941167 | AQ8: =AVERAGE(OFFSET(RO_SW005!$C$10,12*($A8-1),4*(PlotControl!$C$6-1),12,1)) -> 1.76156875 | AR8: =AVERAGE(OFFSET(RO_SW005!$D$10,12*($A8-1),4*(PlotControl!$C$6-1),12,1)) -> 22.06668667 | AS8: =AVERAGE(OFFSET(RO_SW005!$E$10,12*($A8-1),4*(PlotControl!$C$6-1),12,1)) -> 230.7256333 | AT8: =AVERAGE(OFFSET(RO_SW006!$C$10,12*($A8-1),4*(PlotControl!$C$6-1),12,1)) -> 1.844349583 | AU8: =AVERAGE(OFFSET(RO_SW006!$D$10,12*($A8-1),4*(PlotControl!$C$6-1),12,1)) -> 23.39363083 | AV8: =AVERAGE(OFFSET(RO_SW006!$E$10,12*($A8-1),4*(PlotControl!$C$6-1),12,1)) -> 244.9935333 | AW8: =AVERAGE(OFFSET(RO_Colby!$C$10,12*($A8-1),4*(PlotControl!$C$6-1),12,1)) -> 2.21324875 | AX8: =AVERAGE(OFFSET(RO_Colby!$D$10,12*($A8-1),4*(PlotControl!$C$6-1),12,1)) -> 28.0981925 | AY8: =AVERAGE(OFFSET(RO_Colby!$E$10,12*($A8-1),4*(PlotControl!$C$6-1),12,1)) -> 294.274075
A9: 5 | B9: =AVERAGE(OFFSET(GW_SW002!$C$10,12*($A9-1),4*(PlotControl!$C$6-1),12,1)) -> 0.5179208333 | C9: =AVERAGE(OFFSET(GW_SW002!$D$10,12*($A9-1),4*(PlotControl!$C$6-1),12,1)) -> 0.6685766667 | D9: =AVERAGE(OFFSET(GW_SW002!$E$10,12*($A9-1),4*(PlotControl!$C$6-1),12,1)) -> 0.8989058333 | E9: =AVERAGE(OFFSET(GW_SW003!$C$10,12*($A9-1),4*(PlotControl!$C$6-1),12,1)) -> 0.6523166667 | F9: =AVERAGE(OFFSET(GW_SW003!$D$10,12*($A9-1),4*(PlotControl!$C$6-1),12,1)) -> 0.8426875 | G9: =AVERAGE(OFFSET(GW_SW003!$E$10,12*($A9-1),4*(PlotControl!$C$6-1),12,1)) -> 1.1322925 | H9: =AVERAGE(OFFSET(GW_SW004!$C$10,12*($A9-1),4*(PlotControl!$C$6-1),12,1)) -> 0.9434366667 | I9: =AVERAGE(OFFSET(GW_SW004!$D$10,12*($A9-1),4*(PlotControl!$C$6-1),12,1)) -> 1.2381475 | J9: =AVERAGE(OFFSET(GW_SW004!$E$10,12*($A9-1),4*(PlotControl!$C$6-1),12,1)) -> 1.680908333 | K9: =AVERAGE(OFFSET(GW_SW004a!$C$10,12*($A9-1),4*(PlotControl!$C$6-1),12,1)) -> 2.960263333 | L9: =AVERAGE(OFFSET(GW_SW004a!$D$10,12*($A9-1),4*(PlotControl!$C$6-1),12,1)) -> 3.813316667 | M9: =AVERAGE(OFFSET(GW_SW004a!$E$10,12*($A9-1),4*(PlotControl!$C$6-1),12,1)) -> 5.091666667 | N9: =AVERAGE(OFFSET(GW_SW004b!$C$10,12*($A9-1),4*(PlotControl!$C$6-1),12,1)) -> 4.791458333 | O9: =AVERAGE(OFFSET(GW_SW004b!$D$10,12*($A9-1),4*(PlotControl!$C$6-1),12,1)) -> 6.184291667 | P9: =AVERAGE(OFFSET(GW_SW004b!$E$10,12*($A9-1),4*(PlotControl!$C$6-1),12,1)) -> 8.278983333 | Q9: =AVERAGE(OFFSET(GW_SW005!$C$10,12*($A9-1),4*(PlotControl!$C$6-1),12,1)) -> 6.264808333 | R9: =AVERAGE(OFFSET(GW_SW005!$D$10,12*($A9-1),4*(PlotControl!$C$6-1),12,1)) -> 8.060516667 | S9: =AVERAGE(OFFSET(GW_SW005!$E$10,12*($A9-1),4*(PlotControl!$C$6-1),12,1)) -> 10.72166667 | T9: =AVERAGE(OFFSET(GW_SW006!$C$10,12*($A9-1),4*(PlotControl!$C$6-1),12,1)) -> 6.776208333 | U9: =AVERAGE(OFFSET(GW_SW006!$D$10,12*($A9-1),4*(PlotControl!$C$6-1),12,1)) -> 8.743591667 | V9: =AVERAGE(OFFSET(GW_SW006!$E$10,12*($A9-1),4*(PlotControl!$C$6-1),12,1)) -> 11.67868333 | W9: =AVERAGE(OFFSET(GW_Colby!$C$10,12*($A9-1),4*(PlotControl!$C$6-1),12,1)) -> 8.192858333 | X9: =AVERAGE(OFFSET(GW_Colby!$D$10,12*($A9-1),4*(PlotControl!$C$6-1),12,1)) -> 10.57934167 | Y9: =AVERAGE(OFFSET(GW_Colby!$E$10,12*($A9-1),4*(PlotControl!$C$6-1),12,1)) -> 14.11625 | AA9: 5 | AB9: =AVERAGE(OFFSET(RO_SW002!$C$10,12*($A9-1),4*(PlotControl!$C$6-1),12,1)) -> 0.1318179267 | AC9: =AVERAGE(OFFSET(RO_SW002!$D$10,12*($A9-1),4*(PlotControl!$C$6-1),12,1)) -> 1.858724917 | AD9: =AVERAGE(OFFSET(RO_SW002!$E$10,12*($A9-1),4*(PlotControl!$C$6-1),12,1)) -> 19.43549333 | AE9: =AVERAGE(OFFSET(RO_SW003!$C$10,12*($A9-1),4*(PlotControl!$C$6-1),12,1)) -> 0.1662361667 | AF9: =AVERAGE(OFFSET(RO_SW003!$D$10,12*($A9-1),4*(PlotControl!$C$6-1),12,1)) -> 2.31757925 | AG9: =AVERAGE(OFFSET(RO_SW003!$E$10,12*($A9-1),4*(PlotControl!$C$6-1),12,1)) -> 24.20064333 | AH9: =AVERAGE(OFFSET(RO_SW004!$C$10,12*($A9-1),4*(PlotControl!$C$6-1),12,1)) -> 0.3211345833 | AI9: =AVERAGE(OFFSET(RO_SW004!$D$10,12*($A9-1),4*(PlotControl!$C$6-1),12,1)) -> 4.361210333 | AJ9: =AVERAGE(OFFSET(RO_SW004!$E$10,12*($A9-1),4*(PlotControl!$C$6-1),12,1)) -> 45.22044167 | AK9: =AVERAGE(OFFSET(RO_SW004a!$C$10,12*($A9-1),4*(PlotControl!$C$6-1),12,1)) -> 0.8990466667 | AL9: =AVERAGE(OFFSET(RO_SW004a!$D$10,12*($A9-1),4*(PlotControl!$C$6-1),12,1)) -> 12.06733492 | AM9: =AVERAGE(OFFSET(RO_SW004a!$E$10,12*($A9-1),4*(PlotControl!$C$6-1),12,1)) -> 124.6055083 | AN9: =AVERAGE(OFFSET(RO_SW004b!$C$10,12*($A9-1),4*(PlotControl!$C$6-1),12,1)) -> 1.35445 | AO9: =AVERAGE(OFFSET(RO_SW004b!$D$10,12*($A9-1),4*(PlotControl!$C$6-1),12,1)) -> 18.40601133 | AP9: =AVERAGE(OFFSET(RO_SW004b!$E$10,12*($A9-1),4*(PlotControl!$C$6-1),12,1)) -> 190.4737083 | AQ9: =AVERAGE(OFFSET(RO_SW005!$C$10,12*($A9-1),4*(PlotControl!$C$6-1),12,1)) -> 1.809588167 | AR9: =AVERAGE(OFFSET(RO_SW005!$D$10,12*($A9-1),4*(PlotControl!$C$6-1),12,1)) -> 24.29224217 | AS9: =AVERAGE(OFFSET(RO_SW005!$E$10,12*($A9-1),4*(PlotControl!$C$6-1),12,1)) -> 251.810775 | AT9: =AVERAGE(OFFSET(RO_SW006!$C$10,12*($A9-1),4*(PlotControl!$C$6-1),12,1)) -> 1.894623167 | AU9: =AVERAGE(OFFSET(RO_SW006!$D$10,12*($A9-1),4*(PlotControl!$C$6-1),12,1)) -> 25.728583 | AV9: =AVERAGE(OFFSET(RO_SW006!$E$10,12*($A9-1),4*(PlotControl!$C$6-1),12,1)) -> 267.1466833 | AW9: =AVERAGE(OFFSET(RO_Colby!$C$10,12*($A9-1),4*(PlotControl!$C$6-1),12,1)) -> 2.274245667 | AX9: =AVERAGE(OFFSET(RO_Colby!$D$10,12*($A9-1),4*(PlotControl!$C$6-1),12,1)) -> 30.90966375 | AY9: =AVERAGE(OFFSET(RO_Colby!$E$10,12*($A9-1),4*(PlotControl!$C$6-1),12,1)) -> 320.9856917
A10: 6 | B10: =AVERAGE(OFFSET(GW_SW002!$C$10,12*($A10-1),4*(PlotControl!$C$6-1),12,1)) -> 0.5151325 | C10: =AVERAGE(OFFSET(GW_SW002!$D$10,12*($A10-1),4*(PlotControl!$C$6-1),12,1)) -> 0.6659458333 | D10: =AVERAGE(OFFSET(GW_SW002!$E$10,12*($A10-1),4*(PlotControl!$C$6-1),12,1)) -> 0.906 | E10: =AVERAGE(OFFSET(GW_SW003!$C$10,12*($A10-1),4*(PlotControl!$C$6-1),12,1)) -> 0.6493366667 | F10: =AVERAGE(OFFSET(GW_SW003!$D$10,12*($A10-1),4*(PlotControl!$C$6-1),12,1)) -> 0.8392633333 | G10: =AVERAGE(OFFSET(GW_SW003!$E$10,12*($A10-1),4*(PlotControl!$C$6-1),12,1)) -> 1.14095 | H10: =AVERAGE(OFFSET(GW_SW004!$C$10,12*($A10-1),4*(PlotControl!$C$6-1),12,1)) -> 0.9407966667 | I10: =AVERAGE(OFFSET(GW_SW004!$D$10,12*($A10-1),4*(PlotControl!$C$6-1),12,1)) -> 1.232819167 | J10: =AVERAGE(OFFSET(GW_SW004!$E$10,12*($A10-1),4*(PlotControl!$C$6-1),12,1)) -> 1.69365 | K10: =AVERAGE(OFFSET(GW_SW004a!$C$10,12*($A10-1),4*(PlotControl!$C$6-1),12,1)) -> 2.942726667 | L10: =AVERAGE(OFFSET(GW_SW004a!$D$10,12*($A10-1),4*(PlotControl!$C$6-1),12,1)) -> 3.792958333 | M10: =AVERAGE(OFFSET(GW_SW004a!$E$10,12*($A10-1),4*(PlotControl!$C$6-1),12,1)) -> 5.105533333 | N10: =AVERAGE(OFFSET(GW_SW004b!$C$10,12*($A10-1),4*(PlotControl!$C$6-1),12,1)) -> 4.7692 | O10: =AVERAGE(OFFSET(GW_SW004b!$D$10,12*($A10-1),4*(PlotControl!$C$6-1),12,1)) -> 6.154508333 | P10: =AVERAGE(OFFSET(GW_SW004b!$E$10,12*($A10-1),4*(PlotControl!$C$6-1),12,1)) -> 8.345191667 | Q10: =AVERAGE(OFFSET(GW_SW005!$C$10,12*($A10-1),4*(PlotControl!$C$6-1),12,1)) -> 6.24625 | R10: =AVERAGE(OFFSET(GW_SW005!$D$10,12*($A10-1),4*(PlotControl!$C$6-1),12,1)) -> 8.021433333 | S10: =AVERAGE(OFFSET(GW_SW005!$E$10,12*($A10-1),4*(PlotControl!$C$6-1),12,1)) -> 10.84331667 | T10: =AVERAGE(OFFSET(GW_SW006!$C$10,12*($A10-1),4*(PlotControl!$C$6-1),12,1)) -> 6.746808333 | U10: =AVERAGE(OFFSET(GW_SW006!$D$10,12*($A10-1),4*(PlotControl!$C$6-1),12,1)) -> 8.68235 | V10: =AVERAGE(OFFSET(GW_SW006!$E$10,12*($A10-1),4*(PlotControl!$C$6-1),12,1)) -> 11.78648333 | W10: =AVERAGE(OFFSET(GW_Colby!$C$10,12*($A10-1),4*(PlotControl!$C$6-1),12,1)) -> 8.165133333 | X10: =AVERAGE(OFFSET(GW_Colby!$D$10,12*($A10-1),4*(PlotControl!$C$6-1),12,1)) -> 10.50184167 | Y10: =AVERAGE(OFFSET(GW_Colby!$E$10,12*($A10-1),4*(PlotControl!$C$6-1),12,1)) -> 14.26441667 | AA10: 6 | AB10: =AVERAGE(OFFSET(RO_SW002!$C$10,12*($A10-1),4*(PlotControl!$C$6-1),12,1)) -> 0.1306232833 | AC10: =AVERAGE(OFFSET(RO_SW002!$D$10,12*($A10-1),4*(PlotControl!$C$6-1),12,1)) -> 1.794528667 | AD10: =AVERAGE(OFFSET(RO_SW002!$E$10,12*($A10-1),4*(PlotControl!$C$6-1),12,1)) -> 19.25614167 | AE10: =AVERAGE(OFFSET(RO_SW003!$C$10,12*($A10-1),4*(PlotControl!$C$6-1),12,1)) -> 0.1649795833 | AF10: =AVERAGE(OFFSET(RO_SW003!$D$10,12*($A10-1),4*(PlotControl!$C$6-1),12,1)) -> 2.242738 | AG10: =AVERAGE(OFFSET(RO_SW003!$E$10,12*($A10-1),4*(PlotControl!$C$6-1),12,1)) -> 23.99079667 | AH10: =AVERAGE(OFFSET(RO_SW004!$C$10,12*($A10-1),4*(PlotControl!$C$6-1),12,1)) -> 0.3159845833 | AI10: =AVERAGE(OFFSET(RO_SW004!$D$10,12*($A10-1),4*(PlotControl!$C$6-1),12,1)) -> 4.22540975 | AJ10: =AVERAGE(OFFSET(RO_SW004!$E$10,12*($A10-1),4*(PlotControl!$C$6-1),12,1)) -> 44.77643333 | AK10: =AVERAGE(OFFSET(RO_SW004a!$C$10,12*($A10-1),4*(PlotControl!$C$6-1),12,1)) -> 0.8828466667 | AL10: =AVERAGE(OFFSET(RO_SW004a!$D$10,12*($A10-1),4*(PlotControl!$C$6-1),12,1)) -> 11.67801333 | AM10: =AVERAGE(OFFSET(RO_SW004a!$E$10,12*($A10-1),4*(PlotControl!$C$6-1),12,1)) -> 123.40235 | AN10: =AVERAGE(OFFSET(RO_SW004b!$C$10,12*($A10-1),4*(PlotControl!$C$6-1),12,1)) -> 1.333723333 | AO10: =AVERAGE(OFFSET(RO_SW004b!$D$10,12*($A10-1),4*(PlotControl!$C$6-1),12,1)) -> 17.81768583 | AP10: =AVERAGE(OFFSET(RO_SW004b!$E$10,12*($A10-1),4*(PlotControl!$C$6-1),12,1)) -> 188.4385583 | AQ10: =AVERAGE(OFFSET(RO_SW005!$C$10,12*($A10-1),4*(PlotControl!$C$6-1),12,1)) -> 1.775163333 | AR10: =AVERAGE(OFFSET(RO_SW005!$D$10,12*($A10-1),4*(PlotControl!$C$6-1),12,1)) -> 23.61745083 | AS10: =AVERAGE(OFFSET(RO_SW005!$E$10,12*($A10-1),4*(PlotControl!$C$6-1),12,1)) -> 247.9543833 | AT10: =AVERAGE(OFFSET(RO_SW006!$C$10,12*($A10-1),4*(PlotControl!$C$6-1),12,1)) -> 1.858233333 | AU10: =AVERAGE(OFFSET(RO_SW006!$D$10,12*($A10-1),4*(PlotControl!$C$6-1),12,1)) -> 24.96939167 | AV10: =AVERAGE(OFFSET(RO_SW006!$E$10,12*($A10-1),4*(PlotControl!$C$6-1),12,1)) -> 262.9162833 | AW10: =AVERAGE(OFFSET(RO_Colby!$C$10,12*($A10-1),4*(PlotControl!$C$6-1),12,1)) -> 2.229623333 | AX10: =AVERAGE(OFFSET(RO_Colby!$D$10,12*($A10-1),4*(PlotControl!$C$6-1),12,1)) -> 30.001935 | AY10: =AVERAGE(OFFSET(RO_Colby!$E$10,12*($A10-1),4*(PlotControl!$C$6-1),12,1)) -> 315.9784583
A11: 7 | B11: =AVERAGE(OFFSET(GW_SW002!$C$10,12*($A11-1),4*(PlotControl!$C$6-1),12,1)) -> 0.5163366667 | C11: =AVERAGE(OFFSET(GW_SW002!$D$10,12*($A11-1),4*(PlotControl!$C$6-1),12,1)) -> 0.6656008333 | D11: =AVERAGE(OFFSET(GW_SW002!$E$10,12*($A11-1),4*(PlotControl!$C$6-1),12,1)) -> 0.9066483333 | E11: =AVERAGE(OFFSET(GW_SW003!$C$10,12*($A11-1),4*(PlotControl!$C$6-1),12,1)) -> 0.6502908333 | F11: =AVERAGE(OFFSET(GW_SW003!$D$10,12*($A11-1),4*(PlotControl!$C$6-1),12,1)) -> 0.838665 | G11: =AVERAGE(OFFSET(GW_SW003!$E$10,12*($A11-1),4*(PlotControl!$C$6-1),12,1)) -> 1.140779167 | H11: =AVERAGE(OFFSET(GW_SW004!$C$10,12*($A11-1),4*(PlotControl!$C$6-1),12,1)) -> 0.9418966667 | I11: =AVERAGE(OFFSET(GW_SW004!$D$10,12*($A11-1),4*(PlotControl!$C$6-1),12,1)) -> 1.235581667 | J11: =AVERAGE(OFFSET(GW_SW004!$E$10,12*($A11-1),4*(PlotControl!$C$6-1),12,1)) -> 1.690908333 | K11: =AVERAGE(OFFSET(GW_SW004a!$C$10,12*($A11-1),4*(PlotControl!$C$6-1),12,1)) -> 2.938211667 | L11: =AVERAGE(OFFSET(GW_SW004a!$D$10,12*($A11-1),4*(PlotControl!$C$6-1),12,1)) -> 3.781258333 | M11: =AVERAGE(OFFSET(GW_SW004a!$E$10,12*($A11-1),4*(PlotControl!$C$6-1),12,1)) -> 5.07235 | N11: =AVERAGE(OFFSET(GW_SW004b!$C$10,12*($A11-1),4*(PlotControl!$C$6-1),12,1)) -> 4.768566667 | O11: =AVERAGE(OFFSET(GW_SW004b!$D$10,12*($A11-1),4*(PlotControl!$C$6-1),12,1)) -> 6.1454 | P11: =AVERAGE(OFFSET(GW_SW004b!$E$10,12*($A11-1),4*(PlotControl!$C$6-1),12,1)) -> 8.296883333 | Q11: =AVERAGE(OFFSET(GW_SW005!$C$10,12*($A11-1),4*(PlotControl!$C$6-1),12,1)) -> 6.255133333 | R11: =AVERAGE(OFFSET(GW_SW005!$D$10,12*($A11-1),4*(PlotControl!$C$6-1),12,1)) -> 8.047591667 | S11: =AVERAGE(OFFSET(GW_SW005!$E$10,12*($A11-1),4*(PlotControl!$C$6-1),12,1)) -> 10.80269167 | T11: =AVERAGE(OFFSET(GW_SW006!$C$10,12*($A11-1),4*(PlotControl!$C$6-1),12,1)) -> 6.751508333 | U11: =AVERAGE(OFFSET(GW_SW006!$D$10,12*($A11-1),4*(PlotControl!$C$6-1),12,1)) -> 8.715258333 | V11: =AVERAGE(OFFSET(GW_SW006!$E$10,12*($A11-1),4*(PlotControl!$C$6-1),12,1)) -> 11.74405833 | W11: =AVERAGE(OFFSET(GW_Colby!$C$10,12*($A11-1),4*(PlotControl!$C$6-1),12,1)) -> 8.173758333 | X11: =AVERAGE(OFFSET(GW_Colby!$D$10,12*($A11-1),4*(PlotControl!$C$6-1),12,1)) -> 10.54056667 | Y11: =AVERAGE(OFFSET(GW_Colby!$E$10,12*($A11-1),4*(PlotControl!$C$6-1),12,1)) -> 14.21166667 | AA11: 7 | AB11: =AVERAGE(OFFSET(RO_SW002!$C$10,12*($A11-1),4*(PlotControl!$C$6-1),12,1)) -> 0.12023135 | AC11: =AVERAGE(OFFSET(RO_SW002!$D$10,12*($A11-1),4*(PlotControl!$C$6-1),12,1)) -> 1.67466775 | AD11: =AVERAGE(OFFSET(RO_SW002!$E$10,12*($A11-1),4*(PlotControl!$C$6-1),12,1)) -> 17.52119667 | AE11: =AVERAGE(OFFSET(RO_SW003!$C$10,12*($A11-1),4*(PlotControl!$C$6-1),12,1)) -> 0.151293 | AF11: =AVERAGE(OFFSET(RO_SW003!$D$10,12*($A11-1),4*(PlotControl!$C$6-1),12,1)) -> 2.08608765 | AG11: =AVERAGE(OFFSET(RO_SW003!$E$10,12*($A11-1),4*(PlotControl!$C$6-1),12,1)) -> 21.81034833 | AH11: =AVERAGE(OFFSET(RO_SW004!$C$10,12*($A11-1),4*(PlotControl!$C$6-1),12,1)) -> 0.2909130833 | AI11: =AVERAGE(OFFSET(RO_SW004!$D$10,12*($A11-1),4*(PlotControl!$C$6-1),12,1)) -> 3.942377933 | AJ11: =AVERAGE(OFFSET(RO_SW004!$E$10,12*($A11-1),4*(PlotControl!$C$6-1),12,1)) -> 40.659785 | AK11: =AVERAGE(OFFSET(RO_SW004a!$C$10,12*($A11-1),4*(PlotControl!$C$6-1),12,1)) -> 0.8085808333 | AL11: =AVERAGE(OFFSET(RO_SW004a!$D$10,12*($A11-1),4*(PlotControl!$C$6-1),12,1)) -> 10.9062355 | AM11: =AVERAGE(OFFSET(RO_SW004a!$E$10,12*($A11-1),4*(PlotControl!$C$6-1),12,1)) -> 111.70525 | AN11: =AVERAGE(OFFSET(RO_SW004b!$C$10,12*($A11-1),4*(PlotControl!$C$6-1),12,1)) -> 1.2220275 | AO11: =AVERAGE(OFFSET(RO_SW004b!$D$10,12*($A11-1),4*(PlotControl!$C$6-1),12,1)) -> 16.62892717 | AP11: =AVERAGE(OFFSET(RO_SW004b!$E$10,12*($A11-1),4*(PlotControl!$C$6-1),12,1)) -> 170.8032417 | AQ11: =AVERAGE(OFFSET(RO_SW005!$C$10,12*($A11-1),4*(PlotControl!$C$6-1),12,1)) -> 1.621155833 | AR11: =AVERAGE(OFFSET(RO_SW005!$D$10,12*($A11-1),4*(PlotControl!$C$6-1),12,1)) -> 21.96331883 | AS11: =AVERAGE(OFFSET(RO_SW005!$E$10,12*($A11-1),4*(PlotControl!$C$6-1),12,1)) -> 225.3756583 | AT11: =AVERAGE(OFFSET(RO_SW006!$C$10,12*($A11-1),4*(PlotControl!$C$6-1),12,1)) -> 1.6991525 | AU11: =AVERAGE(OFFSET(RO_SW006!$D$10,12*($A11-1),4*(PlotControl!$C$6-1),12,1)) -> 23.1714505 | AV11: =AVERAGE(OFFSET(RO_SW006!$E$10,12*($A11-1),4*(PlotControl!$C$6-1),12,1)) -> 238.8112583 | AW11: =AVERAGE(OFFSET(RO_Colby!$C$10,12*($A11-1),4*(PlotControl!$C$6-1),12,1)) -> 2.038715833 | AX11: =AVERAGE(OFFSET(RO_Colby!$D$10,12*($A11-1),4*(PlotControl!$C$6-1),12,1)) -> 27.86023692 | AY11: =AVERAGE(OFFSET(RO_Colby!$E$10,12*($A11-1),4*(PlotControl!$C$6-1),12,1)) -> 287.069975
A12: 8 | B12: =AVERAGE(OFFSET(GW_SW002!$C$10,12*($A12-1),4*(PlotControl!$C$6-1),12,1)) -> 0.5194483333 | C12: =AVERAGE(OFFSET(GW_SW002!$D$10,12*($A12-1),4*(PlotControl!$C$6-1),12,1)) -> 0.6603308333 | D12: =AVERAGE(OFFSET(GW_SW002!$E$10,12*($A12-1),4*(PlotControl!$C$6-1),12,1)) -> 0.903695 | E12: =AVERAGE(OFFSET(GW_SW003!$C$10,12*($A12-1),4*(PlotControl!$C$6-1),12,1)) -> 0.6545966667 | F12: =AVERAGE(OFFSET(GW_SW003!$D$10,12*($A12-1),4*(PlotControl!$C$6-1),12,1)) -> 0.83174 | G12: =AVERAGE(OFFSET(GW_SW003!$E$10,12*($A12-1),4*(PlotControl!$C$6-1),12,1)) -> 1.13607 | H12: =AVERAGE(OFFSET(GW_SW004!$C$10,12*($A12-1),4*(PlotControl!$C$6-1),12,1)) -> 0.9489141667 | I12: =AVERAGE(OFFSET(GW_SW004!$D$10,12*($A12-1),4*(PlotControl!$C$6-1),12,1)) -> 1.226936667 | J12: =AVERAGE(OFFSET(GW_SW004!$E$10,12*($A12-1),4*(PlotControl!$C$6-1),12,1)) -> 1.687741667 | K12: =AVERAGE(OFFSET(GW_SW004a!$C$10,12*($A12-1),4*(PlotControl!$C$6-1),12,1)) -> 2.953100833 | L12: =AVERAGE(OFFSET(GW_SW004a!$D$10,12*($A12-1),4*(PlotControl!$C$6-1),12,1)) -> 3.743825 | M12: =AVERAGE(OFFSET(GW_SW004a!$E$10,12*($A12-1),4*(PlotControl!$C$6-1),12,1)) -> 5.091233333 | N12: =AVERAGE(OFFSET(GW_SW004b!$C$10,12*($A12-1),4*(PlotControl!$C$6-1),12,1)) -> 4.793325 | O12: =AVERAGE(OFFSET(GW_SW004b!$D$10,12*($A12-1),4*(PlotControl!$C$6-1),12,1)) -> 6.084875 | P12: =AVERAGE(OFFSET(GW_SW004b!$E$10,12*($A12-1),4*(PlotControl!$C$6-1),12,1)) -> 8.30675 | Q12: =AVERAGE(OFFSET(GW_SW005!$C$10,12*($A12-1),4*(PlotControl!$C$6-1),12,1)) -> 6.28675 | R12: =AVERAGE(OFFSET(GW_SW005!$D$10,12*($A12-1),4*(PlotControl!$C$6-1),12,1)) -> 7.973183333 | S12: =AVERAGE(OFFSET(GW_SW005!$E$10,12*($A12-1),4*(PlotControl!$C$6-1),12,1)) -> 10.84665 | T12: =AVERAGE(OFFSET(GW_SW006!$C$10,12*($A12-1),4*(PlotControl!$C$6-1),12,1)) -> 6.786516667 | U12: =AVERAGE(OFFSET(GW_SW006!$D$10,12*($A12-1),4*(PlotControl!$C$6-1),12,1)) -> 8.625075 | V12: =AVERAGE(OFFSET(GW_SW006!$E$10,12*($A12-1),4*(PlotControl!$C$6-1),12,1)) -> 11.75893333 | W12: =AVERAGE(OFFSET(GW_Colby!$C$10,12*($A12-1),4*(PlotControl!$C$6-1),12,1)) -> 8.215975 | X12: =AVERAGE(OFFSET(GW_Colby!$D$10,12*($A12-1),4*(PlotControl!$C$6-1),12,1)) -> 10.435875 | Y12: =AVERAGE(OFFSET(GW_Colby!$E$10,12*($A12-1),4*(PlotControl!$C$6-1),12,1)) -> 14.2275 | AA12: 8 | AB12: =AVERAGE(OFFSET(RO_SW002!$C$10,12*($A12-1),4*(PlotControl!$C$6-1),12,1)) -> 0.1362114833 | AC12: =AVERAGE(OFFSET(RO_SW002!$D$10,12*($A12-1),4*(PlotControl!$C$6-1),12,1)) -> 1.727654833 | AD12: =AVERAGE(OFFSET(RO_SW002!$E$10,12*($A12-1),4*(PlotControl!$C$6-1),12,1)) -> 19.4540975 | AE12: =AVERAGE(OFFSET(RO_SW003!$C$10,12*($A12-1),4*(PlotControl!$C$6-1),12,1)) -> 0.16985855 | AF12: =AVERAGE(OFFSET(RO_SW003!$D$10,12*($A12-1),4*(PlotControl!$C$6-1),12,1)) -> 2.156227433 | AG12: =AVERAGE(OFFSET(RO_SW003!$E$10,12*($A12-1),4*(PlotControl!$C$6-1),12,1)) -> 24.20497167 | AH12: =AVERAGE(OFFSET(RO_SW004!$C$10,12*($A12-1),4*(PlotControl!$C$6-1),12,1)) -> 0.324074775 | AI12: =AVERAGE(OFFSET(RO_SW004!$D$10,12*($A12-1),4*(PlotControl!$C$6-1),12,1)) -> 4.055335242 | AJ12: =AVERAGE(OFFSET(RO_SW004!$E$10,12*($A12-1),4*(PlotControl!$C$6-1),12,1)) -> 45.06881083 | AK12: =AVERAGE(OFFSET(RO_SW004a!$C$10,12*($A12-1),4*(PlotControl!$C$6-1),12,1)) -> 0.8965099417 | AL12: =AVERAGE(OFFSET(RO_SW004a!$D$10,12*($A12-1),4*(PlotControl!$C$6-1),12,1)) -> 11.16462075 | AM12: =AVERAGE(OFFSET(RO_SW004a!$E$10,12*($A12-1),4*(PlotControl!$C$6-1),12,1)) -> 123.4544583 | AN12: =AVERAGE(OFFSET(RO_SW004b!$C$10,12*($A12-1),4*(PlotControl!$C$6-1),12,1)) -> 1.354956608 | AO12: =AVERAGE(OFFSET(RO_SW004b!$D$10,12*($A12-1),4*(PlotControl!$C$6-1),12,1)) -> 17.01479058 | AP12: =AVERAGE(OFFSET(RO_SW004b!$E$10,12*($A12-1),4*(PlotControl!$C$6-1),12,1)) -> 188.865125 | AQ12: =AVERAGE(OFFSET(RO_SW005!$C$10,12*($A12-1),4*(PlotControl!$C$6-1),12,1)) -> 1.798409333 | AR12: =AVERAGE(OFFSET(RO_SW005!$D$10,12*($A12-1),4*(PlotControl!$C$6-1),12,1)) -> 22.57016475 | AS12: =AVERAGE(OFFSET(RO_SW005!$E$10,12*($A12-1),4*(PlotControl!$C$6-1),12,1)) -> 249.0373667 | AT12: =AVERAGE(OFFSET(RO_SW006!$C$10,12*($A12-1),4*(PlotControl!$C$6-1),12,1)) -> 1.887876 | AU12: =AVERAGE(OFFSET(RO_SW006!$D$10,12*($A12-1),4*(PlotControl!$C$6-1),12,1)) -> 23.82634725 | AV12: =AVERAGE(OFFSET(RO_SW006!$E$10,12*($A12-1),4*(PlotControl!$C$6-1),12,1)) -> 263.8544917 | AW12: =AVERAGE(OFFSET(RO_Colby!$C$10,12*($A12-1),4*(PlotControl!$C$6-1),12,1)) -> 2.26832825 | AX12: =AVERAGE(OFFSET(RO_Colby!$D$10,12*($A12-1),4*(PlotControl!$C$6-1),12,1)) -> 28.64114658 | AY12: =AVERAGE(OFFSET(RO_Colby!$E$10,12*($A12-1),4*(PlotControl!$C$6-1),12,1)) -> 317.2497333
A13: 9 | B13: =AVERAGE(OFFSET(GW_SW002!$C$10,12*($A13-1),4*(PlotControl!$C$6-1),12,1)) -> 0.5075375 | C13: =AVERAGE(OFFSET(GW_SW002!$D$10,12*($A13-1),4*(PlotControl!$C$6-1),12,1)) -> 0.65969 | D13: =AVERAGE(OFFSET(GW_SW002!$E$10,12*($A13-1),4*(PlotControl!$C$6-1),12,1)) -> 0.9051825 | E13: =AVERAGE(OFFSET(GW_SW003!$C$10,12*($A13-1),4*(PlotControl!$C$6-1),12,1)) -> 0.6398375 | F13: =AVERAGE(OFFSET(GW_SW003!$D$10,12*($A13-1),4*(PlotControl!$C$6-1),12,1)) -> 0.83098 | G13: =AVERAGE(OFFSET(GW_SW003!$E$10,12*($A13-1),4*(PlotControl!$C$6-1),12,1)) -> 1.139739167 | H13: =AVERAGE(OFFSET(GW_SW004!$C$10,12*($A13-1),4*(PlotControl!$C$6-1),12,1)) -> 0.927595 | I13: =AVERAGE(OFFSET(GW_SW004!$D$10,12*($A13-1),4*(PlotControl!$C$6-1),12,1)) -> 1.223124167 | J13: =AVERAGE(OFFSET(GW_SW004!$E$10,12*($A13-1),4*(PlotControl!$C$6-1),12,1)) -> 1.6979 | K13: =AVERAGE(OFFSET(GW_SW004a!$C$10,12*($A13-1),4*(PlotControl!$C$6-1),12,1)) -> 2.873634167 | L13: =AVERAGE(OFFSET(GW_SW004a!$D$10,12*($A13-1),4*(PlotControl!$C$6-1),12,1)) -> 3.725208333 | M13: =AVERAGE(OFFSET(GW_SW004a!$E$10,12*($A13-1),4*(PlotControl!$C$6-1),12,1)) -> 5.091 | N13: =AVERAGE(OFFSET(GW_SW004b!$C$10,12*($A13-1),4*(PlotControl!$C$6-1),12,1)) -> 4.680258333 | O13: =AVERAGE(OFFSET(GW_SW004b!$D$10,12*($A13-1),4*(PlotControl!$C$6-1),12,1)) -> 6.078658333 | P13: =AVERAGE(OFFSET(GW_SW004b!$E$10,12*($A13-1),4*(PlotControl!$C$6-1),12,1)) -> 8.310291667 | Q13: =AVERAGE(OFFSET(GW_SW005!$C$10,12*($A13-1),4*(PlotControl!$C$6-1),12,1)) -> 6.156125 | R13: =AVERAGE(OFFSET(GW_SW005!$D$10,12*($A13-1),4*(PlotControl!$C$6-1),12,1)) -> 7.985308333 | S13: =AVERAGE(OFFSET(GW_SW005!$E$10,12*($A13-1),4*(PlotControl!$C$6-1),12,1)) -> 10.847325 | T13: =AVERAGE(OFFSET(GW_SW006!$C$10,12*($A13-1),4*(PlotControl!$C$6-1),12,1)) -> 6.633058333 | U13: =AVERAGE(OFFSET(GW_SW006!$D$10,12*($A13-1),4*(PlotControl!$C$6-1),12,1)) -> 8.623225 | V13: =AVERAGE(OFFSET(GW_SW006!$E$10,12*($A13-1),4*(PlotControl!$C$6-1),12,1)) -> 11.74665 | W13: =AVERAGE(OFFSET(GW_Colby!$C$10,12*($A13-1),4*(PlotControl!$C$6-1),12,1)) -> 8.030183333 | X13: =AVERAGE(OFFSET(GW_Colby!$D$10,12*($A13-1),4*(PlotControl!$C$6-1),12,1)) -> 10.44519167 | Y13: =AVERAGE(OFFSET(GW_Colby!$E$10,12*($A13-1),4*(PlotControl!$C$6-1),12,1)) -> 14.22058333 | AA13: 9 | AB13: =AVERAGE(OFFSET(RO_SW002!$C$10,12*($A13-1),4*(PlotControl!$C$6-1),12,1)) -> 0.1355348 | AC13: =AVERAGE(OFFSET(RO_SW002!$D$10,12*($A13-1),4*(PlotControl!$C$6-1),12,1)) -> 1.784011615 | AD13: =AVERAGE(OFFSET(RO_SW002!$E$10,12*($A13-1),4*(PlotControl!$C$6-1),12,1)) -> 18.24146667 | AE13: =AVERAGE(OFFSET(RO_SW003!$C$10,12*($A13-1),4*(PlotControl!$C$6-1),12,1)) -> 0.1707215833 | AF13: =AVERAGE(OFFSET(RO_SW003!$D$10,12*($A13-1),4*(PlotControl!$C$6-1),12,1)) -> 2.227720448 | AG13: =AVERAGE(OFFSET(RO_SW003!$E$10,12*($A13-1),4*(PlotControl!$C$6-1),12,1)) -> 22.7419025 | AH13: =AVERAGE(OFFSET(RO_SW004!$C$10,12*($A13-1),4*(PlotControl!$C$6-1),12,1)) -> 0.3248869167 | AI13: =AVERAGE(OFFSET(RO_SW004!$D$10,12*($A13-1),4*(PlotControl!$C$6-1),12,1)) -> 4.182723394 | AJ13: =AVERAGE(OFFSET(RO_SW004!$E$10,12*($A13-1),4*(PlotControl!$C$6-1),12,1)) -> 42.46938333 | AK13: =AVERAGE(OFFSET(RO_SW004a!$C$10,12*($A13-1),4*(PlotControl!$C$6-1),12,1)) -> 0.89868 | AL13: =AVERAGE(OFFSET(RO_SW004a!$D$10,12*($A13-1),4*(PlotControl!$C$6-1),12,1)) -> 11.5176883 | AM13: =AVERAGE(OFFSET(RO_SW004a!$E$10,12*($A13-1),4*(PlotControl!$C$6-1),12,1)) -> 116.2935 | AN13: =AVERAGE(OFFSET(RO_SW004b!$C$10,12*($A13-1),4*(PlotControl!$C$6-1),12,1)) -> 1.364241667 | AO13: =AVERAGE(OFFSET(RO_SW004b!$D$10,12*($A13-1),4*(PlotControl!$C$6-1),12,1)) -> 17.60305163 | AP13: =AVERAGE(OFFSET(RO_SW004b!$E$10,12*($A13-1),4*(PlotControl!$C$6-1),12,1)) -> 178.3180083 | AQ13: =AVERAGE(OFFSET(RO_SW005!$C$10,12*($A13-1),4*(PlotControl!$C$6-1),12,1)) -> 1.8129325 | AR13: =AVERAGE(OFFSET(RO_SW005!$D$10,12*($A13-1),4*(PlotControl!$C$6-1),12,1)) -> 23.35896413 | AS13: =AVERAGE(OFFSET(RO_SW005!$E$10,12*($A13-1),4*(PlotControl!$C$6-1),12,1)) -> 236.3931917 | AT13: =AVERAGE(OFFSET(RO_SW006!$C$10,12*($A13-1),4*(PlotControl!$C$6-1),12,1)) -> 1.902541667 | AU13: =AVERAGE(OFFSET(RO_SW006!$D$10,12*($A13-1),4*(PlotControl!$C$6-1),12,1)) -> 24.66209747 | AV13: =AVERAGE(OFFSET(RO_SW006!$E$10,12*($A13-1),4*(PlotControl!$C$6-1),12,1)) -> 250.0573583 | AW13: =AVERAGE(OFFSET(RO_Colby!$C$10,12*($A13-1),4*(PlotControl!$C$6-1),12,1)) -> 2.28673 | AX13: =AVERAGE(OFFSET(RO_Colby!$D$10,12*($A13-1),4*(PlotControl!$C$6-1),12,1)) -> 29.65599747 | AY13: =AVERAGE(OFFSET(RO_Colby!$E$10,12*($A13-1),4*(PlotControl!$C$6-1),12,1)) -> 300.7191333
A14: 10 | B14: =AVERAGE(OFFSET(GW_SW002!$C$10,12*($A14-1),4*(PlotControl!$C$6-1),12,1)) -> 0.5123658333 | C14: =AVERAGE(OFFSET(GW_SW002!$D$10,12*($A14-1),4*(PlotControl!$C$6-1),12,1)) -> 0.6574508333 | D14: =AVERAGE(OFFSET(GW_SW002!$E$10,12*($A14-1),4*(PlotControl!$C$6-1),12,1)) -> 0.893575 | E14: =AVERAGE(OFFSET(GW_SW003!$C$10,12*($A14-1),4*(PlotControl!$C$6-1),12,1)) -> 0.64551 | F14: =AVERAGE(OFFSET(GW_SW003!$D$10,12*($A14-1),4*(PlotControl!$C$6-1),12,1)) -> 0.8284816667 | G14: =AVERAGE(OFFSET(GW_SW003!$E$10,12*($A14-1),4*(PlotControl!$C$6-1),12,1)) -> 1.125690833 | H14: =AVERAGE(OFFSET(GW_SW004!$C$10,12*($A14-1),4*(PlotControl!$C$6-1),12,1)) -> 0.9346191667 | I14: =AVERAGE(OFFSET(GW_SW004!$D$10,12*($A14-1),4*(PlotControl!$C$6-1),12,1)) -> 1.218239167 | J14: =AVERAGE(OFFSET(GW_SW004!$E$10,12*($A14-1),4*(PlotControl!$C$6-1),12,1)) -> 1.658208333 | K14: =AVERAGE(OFFSET(GW_SW004a!$C$10,12*($A14-1),4*(PlotControl!$C$6-1),12,1)) -> 2.898665833 | L14: =AVERAGE(OFFSET(GW_SW004a!$D$10,12*($A14-1),4*(PlotControl!$C$6-1),12,1)) -> 3.705716667 | M14: =AVERAGE(OFFSET(GW_SW004a!$E$10,12*($A14-1),4*(PlotControl!$C$6-1),12,1)) -> 4.974275 | N14: =AVERAGE(OFFSET(GW_SW004b!$C$10,12*($A14-1),4*(PlotControl!$C$6-1),12,1)) -> 4.721891667 | O14: =AVERAGE(OFFSET(GW_SW004b!$D$10,12*($A14-1),4*(PlotControl!$C$6-1),12,1)) -> 6.047608333 | P14: =AVERAGE(OFFSET(GW_SW004b!$E$10,12*($A14-1),4*(PlotControl!$C$6-1),12,1)) -> 8.142441667 | Q14: =AVERAGE(OFFSET(GW_SW005!$C$10,12*($A14-1),4*(PlotControl!$C$6-1),12,1)) -> 6.223758333 | R14: =AVERAGE(OFFSET(GW_SW005!$D$10,12*($A14-1),4*(PlotControl!$C$6-1),12,1)) -> 7.934591667 | S14: =AVERAGE(OFFSET(GW_SW005!$E$10,12*($A14-1),4*(PlotControl!$C$6-1),12,1)) -> 10.668825 | T14: =AVERAGE(OFFSET(GW_SW006!$C$10,12*($A14-1),4*(PlotControl!$C$6-1),12,1)) -> 6.702508333 | U14: =AVERAGE(OFFSET(GW_SW006!$D$10,12*($A14-1),4*(PlotControl!$C$6-1),12,1)) -> 8.562491667 | V14: =AVERAGE(OFFSET(GW_SW006!$E$10,12*($A14-1),4*(PlotControl!$C$6-1),12,1)) -> 11.54966667 | W14: =AVERAGE(OFFSET(GW_Colby!$C$10,12*($A14-1),4*(PlotControl!$C$6-1),12,1)) -> 8.115075 | X14: =AVERAGE(OFFSET(GW_Colby!$D$10,12*($A14-1),4*(PlotControl!$C$6-1),12,1)) -> 10.36978333 | Y14: =AVERAGE(OFFSET(GW_Colby!$E$10,12*($A14-1),4*(PlotControl!$C$6-1),12,1)) -> 13.98708333 | AA14: 10 | AB14: =AVERAGE(OFFSET(RO_SW002!$C$10,12*($A14-1),4*(PlotControl!$C$6-1),12,1)) -> 0.1404492083 | AC14: =AVERAGE(OFFSET(RO_SW002!$D$10,12*($A14-1),4*(PlotControl!$C$6-1),12,1)) -> 1.815390667 | AD14: =AVERAGE(OFFSET(RO_SW002!$E$10,12*($A14-1),4*(PlotControl!$C$6-1),12,1)) -> 18.11632917 | AE14: =AVERAGE(OFFSET(RO_SW003!$C$10,12*($A14-1),4*(PlotControl!$C$6-1),12,1)) -> 0.1767443333 | AF14: =AVERAGE(OFFSET(RO_SW003!$D$10,12*($A14-1),4*(PlotControl!$C$6-1),12,1)) -> 2.266794417 | AG14: =AVERAGE(OFFSET(RO_SW003!$E$10,12*($A14-1),4*(PlotControl!$C$6-1),12,1)) -> 22.5801775 | AH14: =AVERAGE(OFFSET(RO_SW004!$C$10,12*($A14-1),4*(PlotControl!$C$6-1),12,1)) -> 0.3414219167 | AI14: =AVERAGE(OFFSET(RO_SW004!$D$10,12*($A14-1),4*(PlotControl!$C$6-1),12,1)) -> 4.256922167 | AJ14: =AVERAGE(OFFSET(RO_SW004!$E$10,12*($A14-1),4*(PlotControl!$C$6-1),12,1)) -> 42.03505 | AK14: =AVERAGE(OFFSET(RO_SW004a!$C$10,12*($A14-1),4*(PlotControl!$C$6-1),12,1)) -> 0.9526141667 | AL14: =AVERAGE(OFFSET(RO_SW004a!$D$10,12*($A14-1),4*(PlotControl!$C$6-1),12,1)) -> 11.7147775 | AM14: =AVERAGE(OFFSET(RO_SW004a!$E$10,12*($A14-1),4*(PlotControl!$C$6-1),12,1)) -> 114.8689917 | AN14: =AVERAGE(OFFSET(RO_SW004b!$C$10,12*($A14-1),4*(PlotControl!$C$6-1),12,1)) -> 1.43358 | AO14: =AVERAGE(OFFSET(RO_SW004b!$D$10,12*($A14-1),4*(PlotControl!$C$6-1),12,1)) -> 17.94142417 | AP14: =AVERAGE(OFFSET(RO_SW004b!$E$10,12*($A14-1),4*(PlotControl!$C$6-1),12,1)) -> 176.1258667 | AQ14: =AVERAGE(OFFSET(RO_SW005!$C$10,12*($A14-1),4*(PlotControl!$C$6-1),12,1)) -> 1.9042675 | AR14: =AVERAGE(OFFSET(RO_SW005!$D$10,12*($A14-1),4*(PlotControl!$C$6-1),12,1)) -> 23.85168583 | AS14: =AVERAGE(OFFSET(RO_SW005!$E$10,12*($A14-1),4*(PlotControl!$C$6-1),12,1)) -> 233.5771667 | AT14: =AVERAGE(OFFSET(RO_SW006!$C$10,12*($A14-1),4*(PlotControl!$C$6-1),12,1)) -> 1.994145833 | AU14: =AVERAGE(OFFSET(RO_SW006!$D$10,12*($A14-1),4*(PlotControl!$C$6-1),12,1)) -> 25.17296583 | AV14: =AVERAGE(OFFSET(RO_SW006!$E$10,12*($A14-1),4*(PlotControl!$C$6-1),12,1)) -> 247.047925 | AW14: =AVERAGE(OFFSET(RO_Colby!$C$10,12*($A14-1),4*(PlotControl!$C$6-1),12,1)) -> 2.392581667 | AX14: =AVERAGE(OFFSET(RO_Colby!$D$10,12*($A14-1),4*(PlotControl!$C$6-1),12,1)) -> 30.2771325 | AY14: =AVERAGE(OFFSET(RO_Colby!$E$10,12*($A14-1),4*(PlotControl!$C$6-1),12,1)) -> 297.1761833
A15: 11 | B15: =AVERAGE(OFFSET(GW_SW002!$C$10,12*($A15-1),4*(PlotControl!$C$6-1),12,1)) -> 0.5160825 | C15: =AVERAGE(OFFSET(GW_SW002!$D$10,12*($A15-1),4*(PlotControl!$C$6-1),12,1)) -> 0.6579533333 | D15: =AVERAGE(OFFSET(GW_SW002!$E$10,12*($A15-1),4*(PlotControl!$C$6-1),12,1)) -> 0.8985741667 | E15: =AVERAGE(OFFSET(GW_SW003!$C$10,12*($A15-1),4*(PlotControl!$C$6-1),12,1)) -> 0.6502525 | F15: =AVERAGE(OFFSET(GW_SW003!$D$10,12*($A15-1),4*(PlotControl!$C$6-1),12,1)) -> 0.8303366667 | G15: =AVERAGE(OFFSET(GW_SW003!$E$10,12*($A15-1),4*(PlotControl!$C$6-1),12,1)) -> 1.130750833 | H15: =AVERAGE(OFFSET(GW_SW004!$C$10,12*($A15-1),4*(PlotControl!$C$6-1),12,1)) -> 0.94079 | I15: =AVERAGE(OFFSET(GW_SW004!$D$10,12*($A15-1),4*(PlotControl!$C$6-1),12,1)) -> 1.218815833 | J15: =AVERAGE(OFFSET(GW_SW004!$E$10,12*($A15-1),4*(PlotControl!$C$6-1),12,1)) -> 1.678025 | K15: =AVERAGE(OFFSET(GW_SW004a!$C$10,12*($A15-1),4*(PlotControl!$C$6-1),12,1)) -> 2.916525833 | L15: =AVERAGE(OFFSET(GW_SW004a!$D$10,12*($A15-1),4*(PlotControl!$C$6-1),12,1)) -> 3.699191667 | M15: =AVERAGE(OFFSET(GW_SW004a!$E$10,12*($A15-1),4*(PlotControl!$C$6-1),12,1)) -> 5.007691667 | N15: =AVERAGE(OFFSET(GW_SW004b!$C$10,12*($A15-1),4*(PlotControl!$C$6-1),12,1)) -> 4.755316667 | O15: =AVERAGE(OFFSET(GW_SW004b!$D$10,12*($A15-1),4*(PlotControl!$C$6-1),12,1)) -> 6.056975 | P15: =AVERAGE(OFFSET(GW_SW004b!$E$10,12*($A15-1),4*(PlotControl!$C$6-1),12,1)) -> 8.2037 | Q15: =AVERAGE(OFFSET(GW_SW005!$C$10,12*($A15-1),4*(PlotControl!$C$6-1),12,1)) -> 6.269175 | R15: =AVERAGE(OFFSET(GW_SW005!$D$10,12*($A15-1),4*(PlotControl!$C$6-1),12,1)) -> 7.97395 | S15: =AVERAGE(OFFSET(GW_SW005!$E$10,12*($A15-1),4*(PlotControl!$C$6-1),12,1)) -> 10.78318333 | T15: =AVERAGE(OFFSET(GW_SW006!$C$10,12*($A15-1),4*(PlotControl!$C$6-1),12,1)) -> 6.743208333 | U15: =AVERAGE(OFFSET(GW_SW006!$D$10,12*($A15-1),4*(PlotControl!$C$6-1),12,1)) -> 8.616891667 | V15: =AVERAGE(OFFSET(GW_SW006!$E$10,12*($A15-1),4*(PlotControl!$C$6-1),12,1)) -> 11.65995833 | W15: =AVERAGE(OFFSET(GW_Colby!$C$10,12*($A15-1),4*(PlotControl!$C$6-1),12,1)) -> 8.1645 | X15: =AVERAGE(OFFSET(GW_Colby!$D$10,12*($A15-1),4*(PlotControl!$C$6-1),12,1)) -> 10.43715833 | Y15: =AVERAGE(OFFSET(GW_Colby!$E$10,12*($A15-1),4*(PlotControl!$C$6-1),12,1)) -> 14.1285 | AA15: 11 | AB15: =AVERAGE(OFFSET(RO_SW002!$C$10,12*($A15-1),4*(PlotControl!$C$6-1),12,1)) -> 0.1527808667 | AC15: =AVERAGE(OFFSET(RO_SW002!$D$10,12*($A15-1),4*(PlotControl!$C$6-1),12,1)) -> 1.827595241 | AD15: =AVERAGE(OFFSET(RO_SW002!$E$10,12*($A15-1),4*(PlotControl!$C$6-1),12,1)) -> 19.78256417 | AE15: =AVERAGE(OFFSET(RO_SW003!$C$10,12*($A15-1),4*(PlotControl!$C$6-1),12,1)) -> 0.1918103333 | AF15: =AVERAGE(OFFSET(RO_SW003!$D$10,12*($A15-1),4*(PlotControl!$C$6-1),12,1)) -> 2.281929762 | AG15: =AVERAGE(OFFSET(RO_SW003!$E$10,12*($A15-1),4*(PlotControl!$C$6-1),12,1)) -> 24.64374083 | AH15: =AVERAGE(OFFSET(RO_SW004!$C$10,12*($A15-1),4*(PlotControl!$C$6-1),12,1)) -> 0.3648066667 | AI15: =AVERAGE(OFFSET(RO_SW004!$D$10,12*($A15-1),4*(PlotControl!$C$6-1),12,1)) -> 4.277236928 | AJ15: =AVERAGE(OFFSET(RO_SW004!$E$10,12*($A15-1),4*(PlotControl!$C$6-1),12,1)) -> 45.93254167 | AK15: =AVERAGE(OFFSET(RO_SW004a!$C$10,12*($A15-1),4*(PlotControl!$C$6-1),12,1)) -> 1.008913333 | AL15: =AVERAGE(OFFSET(RO_SW004a!$D$10,12*($A15-1),4*(PlotControl!$C$6-1),12,1)) -> 11.71749109 | AM15: =AVERAGE(OFFSET(RO_SW004a!$E$10,12*($A15-1),4*(PlotControl!$C$6-1),12,1)) -> 125.153725 | AN15: =AVERAGE(OFFSET(RO_SW004b!$C$10,12*($A15-1),4*(PlotControl!$C$6-1),12,1)) -> 1.5389625 | AO15: =AVERAGE(OFFSET(RO_SW004b!$D$10,12*($A15-1),4*(PlotControl!$C$6-1),12,1)) -> 17.98685859 | AP15: =AVERAGE(OFFSET(RO_SW004b!$E$10,12*($A15-1),4*(PlotControl!$C$6-1),12,1)) -> 192.16995 | AQ15: =AVERAGE(OFFSET(RO_SW005!$C$10,12*($A15-1),4*(PlotControl!$C$6-1),12,1)) -> 2.0473075 | AR15: =AVERAGE(OFFSET(RO_SW005!$D$10,12*($A15-1),4*(PlotControl!$C$6-1),12,1)) -> 23.88706359 | AS15: =AVERAGE(OFFSET(RO_SW005!$E$10,12*($A15-1),4*(PlotControl!$C$6-1),12,1)) -> 255.3154167 | AT15: =AVERAGE(OFFSET(RO_SW006!$C$10,12*($A15-1),4*(PlotControl!$C$6-1),12,1)) -> 2.143938333 | AU15: =AVERAGE(OFFSET(RO_SW006!$D$10,12*($A15-1),4*(PlotControl!$C$6-1),12,1)) -> 25.20335859 | AV15: =AVERAGE(OFFSET(RO_SW006!$E$10,12*($A15-1),4*(PlotControl!$C$6-1),12,1)) -> 269.8270667 | AW15: =AVERAGE(OFFSET(RO_Colby!$C$10,12*($A15-1),4*(PlotControl!$C$6-1),12,1)) -> 2.576501667 | AX15: =AVERAGE(OFFSET(RO_Colby!$D$10,12*($A15-1),4*(PlotControl!$C$6-1),12,1)) -> 30.3227586 | AY15: =AVERAGE(OFFSET(RO_Colby!$E$10,12*($A15-1),4*(PlotControl!$C$6-1),12,1)) -> 324.6377083
A16: 12 | B16: =AVERAGE(OFFSET(GW_SW002!$C$10,12*($A16-1),4*(PlotControl!$C$6-1),12,1)) -> 0.5124425 | C16: =AVERAGE(OFFSET(GW_SW002!$D$10,12*($A16-1),4*(PlotControl!$C$6-1),12,1)) -> 0.6586716667 | D16: =AVERAGE(OFFSET(GW_SW002!$E$10,12*($A16-1),4*(PlotControl!$C$6-1),12,1)) -> 0.89281 | E16: =AVERAGE(OFFSET(GW_SW003!$C$10,12*($A16-1),4*(PlotControl!$C$6-1),12,1)) -> 0.6452991667 | F16: =AVERAGE(OFFSET(GW_SW003!$D$10,12*($A16-1),4*(PlotControl!$C$6-1),12,1)) -> 0.8300541667 | G16: =AVERAGE(OFFSET(GW_SW003!$E$10,12*($A16-1),4*(PlotControl!$C$6-1),12,1)) -> 1.123478333 | H16: =AVERAGE(OFFSET(GW_SW004!$C$10,12*($A16-1),4*(PlotControl!$C$6-1),12,1)) -> 0.9313375 | I16: =AVERAGE(OFFSET(GW_SW004!$D$10,12*($A16-1),4*(PlotControl!$C$6-1),12,1)) -> 1.2178425 | J16: =AVERAGE(OFFSET(GW_SW004!$E$10,12*($A16-1),4*(PlotControl!$C$6-1),12,1)) -> 1.656891667 | K16: =AVERAGE(OFFSET(GW_SW004a!$C$10,12*($A16-1),4*(PlotControl!$C$6-1),12,1)) -> 2.8774675 | L16: =AVERAGE(OFFSET(GW_SW004a!$D$10,12*($A16-1),4*(PlotControl!$C$6-1),12,1)) -> 3.693133333 | M16: =AVERAGE(OFFSET(GW_SW004a!$E$10,12*($A16-1),4*(PlotControl!$C$6-1),12,1)) -> 4.956841667 | N16: =AVERAGE(OFFSET(GW_SW004b!$C$10,12*($A16-1),4*(PlotControl!$C$6-1),12,1)) -> 4.699408333 | O16: =AVERAGE(OFFSET(GW_SW004b!$D$10,12*($A16-1),4*(PlotControl!$C$6-1),12,1)) -> 6.0361 | P16: =AVERAGE(OFFSET(GW_SW004b!$E$10,12*($A16-1),4*(PlotControl!$C$6-1),12,1)) -> 8.1433 | Q16: =AVERAGE(OFFSET(GW_SW005!$C$10,12*($A16-1),4*(PlotControl!$C$6-1),12,1)) -> 6.204 | R16: =AVERAGE(OFFSET(GW_SW005!$D$10,12*($A16-1),4*(PlotControl!$C$6-1),12,1)) -> 7.944408333 | S16: =AVERAGE(OFFSET(GW_SW005!$E$10,12*($A16-1),4*(PlotControl!$C$6-1),12,1)) -> 10.67135833 | T16: =AVERAGE(OFFSET(GW_SW006!$C$10,12*($A16-1),4*(PlotControl!$C$6-1),12,1)) -> 6.669525 | U16: =AVERAGE(OFFSET(GW_SW006!$D$10,12*($A16-1),4*(PlotControl!$C$6-1),12,1)) -> 8.565108333 | V16: =AVERAGE(OFFSET(GW_SW006!$E$10,12*($A16-1),4*(PlotControl!$C$6-1),12,1)) -> 11.54349167 | W16: =AVERAGE(OFFSET(GW_Colby!$C$10,12*($A16-1),4*(PlotControl!$C$6-1),12,1)) -> 8.078916667 | X16: =AVERAGE(OFFSET(GW_Colby!$D$10,12*($A16-1),4*(PlotControl!$C$6-1),12,1)) -> 10.3773 | Y16: =AVERAGE(OFFSET(GW_Colby!$E$10,12*($A16-1),4*(PlotControl!$C$6-1),12,1)) -> 13.98225 | AA16: 12 | AB16: =AVERAGE(OFFSET(RO_SW002!$C$10,12*($A16-1),4*(PlotControl!$C$6-1),12,1)) -> 0.1336855667 | AC16: =AVERAGE(OFFSET(RO_SW002!$D$10,12*($A16-1),4*(PlotControl!$C$6-1),12,1)) -> 1.688734517 | AD16: =AVERAGE(OFFSET(RO_SW002!$E$10,12*($A16-1),4*(PlotControl!$C$6-1),12,1)) -> 18.8544725 | AE16: =AVERAGE(OFFSET(RO_SW003!$C$10,12*($A16-1),4*(PlotControl!$C$6-1),12,1)) -> 0.1681555833 | AF16: =AVERAGE(OFFSET(RO_SW003!$D$10,12*($A16-1),4*(PlotControl!$C$6-1),12,1)) -> 2.107735708 | AG16: =AVERAGE(OFFSET(RO_SW003!$E$10,12*($A16-1),4*(PlotControl!$C$6-1),12,1)) -> 23.4596625 | AH16: =AVERAGE(OFFSET(RO_SW004!$C$10,12*($A16-1),4*(PlotControl!$C$6-1),12,1)) -> 0.3225811667 | AI16: =AVERAGE(OFFSET(RO_SW004!$D$10,12*($A16-1),4*(PlotControl!$C$6-1),12,1)) -> 3.954438833 | AJ16: =AVERAGE(OFFSET(RO_SW004!$E$10,12*($A16-1),4*(PlotControl!$C$6-1),12,1)) -> 43.717105 | AK16: =AVERAGE(OFFSET(RO_SW004a!$C$10,12*($A16-1),4*(PlotControl!$C$6-1),12,1)) -> 0.8900808333 | AL16: =AVERAGE(OFFSET(RO_SW004a!$D$10,12*($A16-1),4*(PlotControl!$C$6-1),12,1)) -> 10.8002005 | AM16: =AVERAGE(OFFSET(RO_SW004a!$E$10,12*($A16-1),4*(PlotControl!$C$6-1),12,1)) -> 119.1863667 | AN16: =AVERAGE(OFFSET(RO_SW004b!$C$10,12*($A16-1),4*(PlotControl!$C$6-1),12,1)) -> 1.356883333 | AO16: =AVERAGE(OFFSET(RO_SW004b!$D$10,12*($A16-1),4*(PlotControl!$C$6-1),12,1)) -> 16.56604625 | AP16: =AVERAGE(OFFSET(RO_SW004b!$E$10,12*($A16-1),4*(PlotControl!$C$6-1),12,1)) -> 182.9362417 | AQ16: =AVERAGE(OFFSET(RO_SW005!$C$10,12*($A16-1),4*(PlotControl!$C$6-1),12,1)) -> 1.801591667 | AR16: =AVERAGE(OFFSET(RO_SW005!$D$10,12*($A16-1),4*(PlotControl!$C$6-1),12,1)) -> 22.05022467 | AS16: =AVERAGE(OFFSET(RO_SW005!$E$10,12*($A16-1),4*(PlotControl!$C$6-1),12,1)) -> 242.8731833 | AT16: =AVERAGE(OFFSET(RO_SW006!$C$10,12*($A16-1),4*(PlotControl!$C$6-1),12,1)) -> 1.8858475 | AU16: =AVERAGE(OFFSET(RO_SW006!$D$10,12*($A16-1),4*(PlotControl!$C$6-1),12,1)) -> 23.25390383 | AV16: =AVERAGE(OFFSET(RO_SW006!$E$10,12*($A16-1),4*(PlotControl!$C$6-1),12,1)) -> 256.4483833 | AW16: =AVERAGE(OFFSET(RO_Colby!$C$10,12*($A16-1),4*(PlotControl!$C$6-1),12,1)) -> 2.270586667 | AX16: =AVERAGE(OFFSET(RO_Colby!$D$10,12*($A16-1),4*(PlotControl!$C$6-1),12,1)) -> 27.97561133 | AY16: =AVERAGE(OFFSET(RO_Colby!$E$10,12*($A16-1),4*(PlotControl!$C$6-1),12,1)) -> 308.5663583
